Workbook

Sheet Main
B2: Interim | C2: Report
F3: Report Sheet Control Table
F4: * Please sheet(s) to print
F5: Sheet | G5: YES/NO | H5: Start Row | I5: Last Col
B6: Company : | C6: NOMURA ASSET MANAGEMENT MALAYSIA SDN BHD | D6: =VLOOKUP(FundCode,InFund!A:I,7,0) -> NM | F6: BS | G6: YES
B7: Fund : | C7: SOCSO | D7: =VLOOKUP(FundCode,InFund!A:I,6,0) -> 2020-12-31 | F7: PL | G7: YES
B8: Fund Name : | C8: =VLOOKUP(FundCode,InFund!A:I,2,0) -> PERTUBUHAN KESELAMATAN SOCIAL(SOCSO) | D8: =DATE(YEAR(ValueDate)-1,MONTH(ValueDate),DAY(ValueDate)) -> 2020-04-30 | F8: CashFlow | G8: YES
B9: Start Date: | C9: 2021-04-01 | D9: =DATE(YEAR(StartDate)-1,MONTH(StartDate),DAY(StartDate)) -> 2020-04-01 | F9: FVTPL | G9: YES
B10: End Date : | C10: 2021-04-30 | D10: =IF(ISERROR(DATEVALUE(TEXT(ValueDate,"mm/dd/yyyy"))),IF(D11>366,DATEVALUE(DAY(FinYrEnd) &"/" & MONTH(FinYrEnd) & "/" &YEAR(ValueDate)),DATEVALUE(DAY(FinYrEnd) &"/" & MONTH(FinYrEnd) & "/" &YEAR(ValueDate)-1)),IF(D11>366,DATEVALUE(MONTH(FinYrEnd) &"/" & DAY(FinYrEnd) & "/" &YEAR(ValueDate)),DATEVALUE(MONTH(FinYrEnd) &"/" & DAY(FinYrEnd) & "/" &YEAR(ValueDate)-1))) -> 2020-12-31 | F10: Equities | G10: YES | H10: 10 | I10: 12
B11: Email Address : | D11: =IF(ISERROR(DATEVALUE(TEXT(ValueDate,"mm/dd/yyyy"))),ValueDate-DATEVALUE(DAY(FinYrEnd) &"/" & MONTH(FinYrEnd) & "/" &YEAR(ValueDate)-1),ValueDate-DATEVALUE(MONTH(FinYrEnd) &"/" & DAY(FinYrEnd) & "/" &YEAR(ValueDate)-1)) -> 120 | F11: CIS | G11: YES | H11: 10 | I11: 12
D12: http://192.168.82.6:8099/RiskkSvc | F12: BND | G12: YES | H12: 10 | I12: 15
D13: =VLOOKUP(FundCode,InFund!A:I,8,0) -> 1 | F13: CSH&Deposit | G13: YES
D14: =IF(EOYFlag=1,IF(MONTH(LstYrEnd)=MONTH(StartDate-1),1,0),0) -> 0 | F14: TotalEQT | G14: YES
D15: =VLOOKUP(FundCode,InFund!A:I,9,0) -> MYR | F15: Transaction | G15: YES | H15: 8 | I15: 5
D16: =VLOOKUP(FundCode,InFund!A:I,4,0) -> 0 | F16: Segment | G16: YES
D17: =IF(D16=0,"bond","sukuk") -> bond | F17: Segment2 | G17: YES
F18: FinancialInst | G18: YES

Sheet InPortfolio
A1: qProductType | B1: qFundCode | C1: qStockCode | D1: UnitFaceValue | E1: MarketValueSC | F1: MarketValueFC | G1: qFundGrpCode | H1: ExchangeRate | I1: LCD | J1: NCD | K1: MaturityDateCSH | L1: CostFC | M1: CostSC | N1: AccruedInterestFC | O1: AccruedInterestSC | P1: UnrealisedGainsStock | Q1: UnrealisedGainsExchg | R1: PriceCurr | S1: FundName | T1: FundCurrency | U1: MaxTenor | V1: qCompanyID | W1: StockName | X1: StockCurrency | Y1: qAssetClass | Z1: AssetClassDesc | AA1: SectorName | AB1: Frequency | AC1: ExcelBasis | AD1: Coupon | AE1: MaturityDateBND | AF1: Term | AG1: qCPCode | AH1: CPName | AI1: CurrencyName | AJ1: ProductTypeDesc | AK1: EQTSource | AL1: AmortAccreation | AM1: SecDesc | AN1: ExPreAcq | AO1: ExPreAcqSC | AP1: IssuedSize | AQ1: Exchange | AR1: IslamicFlag | AS1: qStockType | AT1: Board | AU1: qBondType | AV1: BndDesc | AW1: qManagerCode | AX1: qCountryID | AY1: FundDesc | AZ1: Rating | BA1: NAV | BB1: qCshType | BC1: CshTypeDesc | BD1: ValuationGL | BE1: UTFlag | BF1: qIntSector | BG1: ValuationMethod | BH1: fPercNAV | BI1: PurchaseYTM | BJ1: PurchaseDate | BK1: MarketValueDate | BL1: BookValue | BM1: ValueYTM | BN1: ValGains | BO1: PreAcqSC | BP1: PreAcqFC | BQ1: FundGrpName | BR1: LastMarketValue | BS1: Basis | BT1: fRefPrice | BU1: Diminution | BV1: qAssetAccType | BW1: Islamic | BX1: TradeDate | BY1: RatingAgency | BZ1: qRank | CA1: qIssuerCode | CB1: qInvType | CC1: ISINCode | CD1: BursaCode | CE1: TrnTradeDate | CF1: LocalStockCode | CG1: IssueDate | CH1: Callabledate | CI1: LstAccIntSC | CJ1: LstAmortAcc | CK1: LstBookValue | CL1: qMasterID | CM1: TrnLCD | CN1: CountryName
A2: CSH | B2: SOCSO | C2: RPF*MYR*PBK | D2: 6800000 | E2: 6800326.03 | F2: 6800326.03 | G2: sFundCode | H2: 1 | I2: 3000-01-01 | J2: 3000-01-01 | K2: 2021-05-03 | L2: 6800000 | M2: 6800000 | N2: 326.03 | O2: 326.03 | P2: 0 | Q2: 0 | R2: 0 | S2: PERTUBUHAN KESELAMATAN SOCIAL(SOCSO) | T2: MYR | U2: 365 | V2: NM | W2: RPF*MYR*PBK | X2: MYR | Y2: CSH | Z2: Cash | AA2: OTHERS | AG2: PBK | AH2: PUBLIC BANK | AI2: Ringgit Malaysia | AJ2: MONEY MARKET | AK2: 1 | AL2: 0 | AM2: RPF*MYR*PBK | AN2: 6800978.08 | AO2: 6800978.08 | AP2: 0 | AR2: 0 | AW2: NAMM | AX2: MY | AY2: PERTUBUHAN KESELAMATAN SOCIAL(SOCSO) | BA2: 184713469.9 | BB2: RPF | BC2: Short Term Placement | BD2: FALSE | BE2: 0 | BF2: 0 | BG2: 0 | BH2: 3.68155394 | BI2: 0.0175 | BJ2: 2021-04-30 | BK2: 2021-04-30 | BL2: 6800326.03 | BM2: 0 | BN2: 978.08 | BO2: 0 | BP2: 0 | BQ2: PERTUBUHAN KESELAMATAN SOCIAL(SOCSO) | BR2: 0 | BS2: 365 | BT2: 1 | BU2: 0 | BV2: 210 | BW2: 0 | BX2: 2021-04-30 | CA2: N/A | CB2: FVTPL | CC2: N/A | CE2: 44313 | CL2: CSH*210401027 | CN2: MALAYSIA
A3: EQT | B3: SOCSO | C3: 6575740 | D3: 792590 | E3: 5777981.1 | F3: 5777981.1 | G3: sFundCode | H3: 1 | I3: 3000-01-01 | J3: 3000-01-01 | K3: 3000-01-01 | L3: 3611204.47 | M3: 3611204.47 | N3: 0 | O3: 0 | P3: 2166776.63 | Q3: 0 | R3: 7.29 | S3: PERTUBUHAN KESELAMATAN SOCIAL(SOCSO) | T3: MYR | U3: 365 | V3: NM | W3: MEGA FIRST CORP BHD | X3: MYR | Y3: EQT | Z3: Equity | AA3: UTILITIES | AI3: Ringgit Malaysia | AJ3: EQUITY | AK3: 1 | AL3: 0 | AM3: MEGA FIRST CORP BHD | AN3: 3611204.47 | AO3: 3611204.47 | AP3: 473678751 | AQ3: XKLS | AR3: 0 | AS3: ORD | AT3: MB | AW3: NAMM | AX3: MY | AY3: PERTUBUHAN KESELAMATAN SOCIAL(SOCSO) | BA3: 184713469.9 | BD3: FALSE | BE3: 0 | BF3: 13 | BG3: 0 | BH3: 3.128077829 | BI3: 0 | BJ3: 2020-12-31 | BK3: 2021-04-30 | BL3: 3611204.47 | BM3: 0 | BN3: -39629.5 | BO3: 0 | BP3: 0 | BQ3: PERTUBUHAN KESELAMATAN SOCIAL(SOCSO) | BR3: 0 | BT3: 0 | BU3: 0 | BV3: 10 | BW3: 0 | BX3: 2020-12-31 | CA3: N/A | CB3: FVTPL | CC3: MYL3069OO001 | CD3: 3069 | CE3: 44194 | CI3: 0 | CJ3: 0 | CK3: 3611204.47 | CL3: SOCSO*6575740 | CN3: MALAYSIA
A4: EQT | B4: SOCSO | C4: 6658317 | D4: 600000 | E4: 3498000 | F4: 3498000 | G4: sFundCode | H4: 1 | I4: 3000-01-01 | J4: 3000-01-01 | K4: 3000-01-01 | L4: 3185014.68 | M4: 3185014.68 | N4: 0 | O4: 0 | P4: 312985.32 | Q4: 0 | R4: 5.83 | S4: PERTUBUHAN KESELAMATAN SOCIAL(SOCSO) | T4: MYR | U4: 365 | V4: NM | W4: PENTAMASTER CORP BHD | X4: MYR | Y4: EQT | Z4: Equity | AA4: TECHNOLOGY | AI4: Ringgit Malaysia | AJ4: EQUITY | AK4: 1 | AL4: 0 | AM4: PENTAMASTER CORP BHD | AN4: 3185014.68 | AO4: 3185014.68 | AP4: 712317149 | AQ4: XKLS | AR4: 0 | AS4: ORD | AT4: MB | AW4: NAMM | AX4: MY | AY4: PERTUBUHAN KESELAMATAN SOCIAL(SOCSO) | BA4: 184713469.9 | BD4: FALSE | BE4: 0 | BF4: 10 | BG4: 0 | BH4: 1.893743862 | BI4: 0 | BJ4: 2020-12-31 | BK4: 2021-04-30 | BL4: 3185014.68 | BM4: 0 | BN4: -102000 | BO4: 0 | BP4: 0 | BQ4: PERTUBUHAN KESELAMATAN SOCIAL(SOCSO) | BR4: 0 | BT4: 0 | BU4: 0 | BV4: 10 | BW4: 0 | BX4: 2020-12-31 | CA4: N/A | CB4: FVTPL | CC4: MYL7160OO004 | CD4: 7160 | CE4: 44194 | CI4: 0 | CJ4: 0 | CK4: 3185014.68 | CL4: SOCSO*6658317 | CN4: MALAYSIA
A5: EQT | B5: SOCSO | C5: 6703972 | D5: 163000 | E5: 2565620 | F5: 2565620 | G5: sFundCode | H5: 1 | I5: 3000-01-01 | J5: 3000-01-01 | K5: 3000-01-01 | L5: 2819929.99 | M5: 2819929.99 | N5: 0 | O5: 0 | P5: -254309.99 | Q5: 0 | R5: 15.74 | S5: PERTUBUHAN KESELAMATAN SOCIAL(SOCSO) | T5: MYR | U5: 365 | V5: NM | W5: PETRONAS GAS BHD | X5: MYR | Y5: EQT | Z5: Equity | AA5: UTILITIES | AI5: Ringgit Malaysia | AJ5: EQUITY | AK5: 1 | AL5: 0 | AM5: PETRONAS GAS BHD | AN5: 2819929.99 | AO5: 2819929.99 | AP5: 1978731915 | AQ5: XKLS | AR5: 0 | AS5: ORD | AT5: MB | AW5: NAMM | AX5: MY | AY5: PERTUBUHAN KESELAMATAN SOCIAL(SOCSO) | BA5: 184713469.9 | BD5: FALSE | BE5: 0 | BF5: 13 | BG5: 0 | BH5: 1.388972878 | BI5: 0 | BJ5: 2020-12-31 | BK5: 2021-04-30 | BL5: 2819929.99 | BM5: 0 | BN5: -6520 | BO5: 0 | BP5: 0 | BQ5: PERTUBUHAN KESELAMATAN SOCIAL(SOCSO) | BR5: 0 | BT5: 0 | BU5: 0 | BV5: 10 | BW5: 0 | BX5: 2020-12-31 | CA5: N/A | CB5: FVTPL | CC5: MYL6033OO004 | CD5: 6033 | CE5: 44194 | CI5: 0 | CJ5: 0 | CK5: 2819929.99 | CL5: SOCSO*6703972 | CN5: MALAYSIA
A6: EQT | B6: SOCSO | C6: 6868398 | D6: 780000 | E6: 4453800 | F6: 4453800 | G6: sFundCode | H6: 1 | I6: 3000-01-01 | J6: 3000-01-01 | K6: 3000-01-01 | L6: 3586394.96 | M6: 3586394.96 | N6: 0 | O6: 0 | P6: 867405.04 | Q6: 0 | R6: 5.71 | S6: PERTUBUHAN KESELAMATAN SOCIAL(SOCSO) | T6: MYR | U6: 365 | V6: NM | W6: TELEKOM MALAYSIA BHD | X6: MYR | Y6: EQT | Z6: Equity | AA6: TELECOMMUNICATIONS & MEDIA | AI6: Ringgit Malaysia | AJ6: EQUITY | AK6: 1 | AL6: 0 | AM6: TELEKOM MALAYSIA BHD | AN6: 3586394.96 | AO6: 3586394.96 | AP6: 3773700923 | AQ6: XKLS | AR6: 0 | AS6: ORD | AT6: MB | AW6: NAMM | AX6: MY | AY6: PERTUBUHAN KESELAMATAN SOCIAL(SOCSO) | BA6: 184713469.9 | BD6: FALSE | BE6: 0 | BF6: 11 | BG6: 0 | BH6: 2.411193943 | BI6: 0 | BJ6: 2020-12-31 | BK6: 2021-04-30 | BL6: 3586394.96 | BM6: 0 | BN6: -7800 | BO6: 0 | BP6: 0 | BQ6: PERTUBUHAN KESELAMATAN SOCIAL(SOCSO) | BR6: 0 | BT6: 0 | BU6: 0 | BV6: 10 | BW6: 0 | BX6: 2020-12-31 | CA6: N/A | CB6: FVTPL | CC6: MYL4863OO006 | CD6: 4863 | CE6: 44194 | CI6: 0 | CJ6: 0 | CK6: 3586394.96 | CL6: SOCSO*6868398 | CN6: MALAYSIA
A7: EQT | B7: SOCSO | C7: 6904612 | D7: 1135525 | E7: 11309829 | F7: 11309829 | G7: sFundCode | H7: 1 | I7: 3000-01-01 | J7: 3000-01-01 | K7: 3000-01-01 | L7: 11832170.5 | M7: 11832170.5 | N7: 0 | O7: 0 | P7: -522341.5 | Q7: 0 | R7: 9.96 | S7: PERTUBUHAN KESELAMATAN SOCIAL(SOCSO) | T7: MYR | U7: 365 | V7: NM | W7: TENAGA NASIONAL BHD | X7: MYR | Y7: EQT | Z7: Equity | AA7: UTILITIES | AI7: Ringgit Malaysia | AJ7: EQUITY | AK7: 1 | AL7: 0 | AM7: TENAGA NASIONAL BHD | AN7: 11832170.5 | AO7: 11832170.5 | AP7: 5704653871 | AQ7: XKLS | AR7: 0 | AS7: ORD | AT7: MB | AW7: NAMM | AX7: MY | AY7: PERTUBUHAN KESELAMATAN SOCIAL(SOCSO) | BA7: 184713469.9 | BD7: FALSE | BE7: 0 | BF7: 13 | BG7: 0 | BH7: 6.122904303 | BI7: 0 | BJ7: 2020-12-31 | BK7: 2021-04-30 | BL7: 11832170.5 | BM7: 0 | BN7: -34065.75 | BO7: 0 | BP7: 0 | BQ7: PERTUBUHAN KESELAMATAN SOCIAL(SOCSO) | BR7: 0 | BT7: 0 | BU7: 0 | BV7: 10 | BW7: 0 | BX7: 2020-12-31 | CA7: N/A | CB7: FVTPL | CC7: MYL5347OO009 | CD7: 5347 | CE7: 44194 | CI7: 0 | CJ7: 0 | CK7: 11832170.5 | CL7: SOCSO*6904612 | CN7: MALAYSIA
A8: EQT | B8: SOCSO | C8: 6986717 | D8: 980000 | E8: 5115600 | F8: 5115600 | G8: sFundCode | H8: 1 | I8: 3000-01-01 | J8: 3000-01-01 | K8: 3000-01-01 | L8: 5733703.48 | M8: 5733703.48 | N8: 0 | O8: 0 | P8: -618103.48 | Q8: 0 | R8: 5.22 | S8: PERTUBUHAN KESELAMATAN SOCIAL(SOCSO) | T8: MYR | U8: 365 | V8: NM | W8: YINSON HOLDINGS BHD | X8: MYR | Y8: EQT | Z8: Equity | AA8: ENERGY | AI8: Ringgit Malaysia | AJ8: EQUITY | AK8: 1 | AL8: 0 | AM8: YINSON HOLDINGS BHD | AN8: 5733703.48 | AO8: 5733703.48 | AP8: 1065383373 | AQ8: XKLS | AR8: 0 | AS8: ORD | AT8: MB | AW8: NAMM | AX8: MY | AY8: PERTUBUHAN KESELAMATAN SOCIAL(SOCSO) | BA8: 184713469.9 | BD8: FALSE | BE8: 0 | BF8: 3 | BG8: 0 | BH8: 2.769478588 | BI8: 0 | BJ8: 2020-12-31 | BK8: 2021-04-30 | BL8: 5733703.48 | BM8: 0 | BN8: -68600 | BO8: 0 | BP8: 0 | BQ8: PERTUBUHAN KESELAMATAN SOCIAL(SOCSO) | BR8: 0 | BT8: 0 | BU8: 0 | BV8: 10 | BW8: 0 | BX8: 2020-12-31 | CA8: N/A | CB8: FVTPL | CC8: MYL7293OO003 | CD8: 7293 | CE8: 44194 | CI8: 0 | CJ8: 0 | CK8: 5733703.48 | CL8: SOCSO*6986717 | CN8: MALAYSIA
A9: EQT | B9: SOCSO | C9: BKRQ635 | D9: 1193100 | E9: 2577096 | F9: 2577096 | G9: sFundCode | H9: 1 | I9: 3000-01-01 | J9: 3000-01-01 | K9: 3000-01-01 | L9: 2267159.19 | M9: 2267159.19 | N9: 0 | O9: 0 | P9: 309936.81 | Q9: 0 | R9: 2.16 | S9: PERTUBUHAN KESELAMATAN SOCIAL(SOCSO) | T9: MYR | U9: 365 | V9: NM | W9: AME ELITE CONSORTIUM BHD | X9: MYR | Y9: EQT | Z9: Equity | AA9: CONSTRUCTION | AI9: Ringgit Malaysia | AJ9: EQUITY | AK9: 1 | AL9: 0 | AM9: AME ELITE CONSORTIUM BHD | AN9: 2267159.19 | AO9: 2267159.19 | AP9: 427115101 | AQ9: XKLS | AR9: 0 | AS9: ORD | AT9: MB | AW9: NAMM | AX9: MY | AY9: PERTUBUHAN KESELAMATAN SOCIAL(SOCSO) | BA9: 184713469.9 | BD9: FALSE | BE9: 0 | BF9: 1 | BG9: 0 | BH9: 1.395185744 | BI9: 0 | BJ9: 2020-12-31 | BK9: 2021-04-30 | BL9: 2267159.19 | BM9: 0 | BN9: 23862 | BO9: 0 | BP9: 0 | BQ9: PERTUBUHAN KESELAMATAN SOCIAL(SOCSO) | BR9: 0 | BT9: 0 | BU9: 0 | BV9: 10 | BW9: 0 | BX9: 2020-12-31 | CA9: N/A | CB9: FVTPL | CC9: MYL5293OO005 | CD9: 5293 | CE9: 44194 | CI9: 0 | CJ9: 0 | CK9: 2267159.19 | CL9: SOCSO*BKRQ635 | CN9: MALAYSIA
A10: EQT | B10: SOCSO | C10: BMD4XP8 | D10: 376000 | E10: 0 | F10: 0 | G10: sFundCode | H10: 1 | I10: 3000-01-01 | J10: 3000-01-01 | K10: 3000-01-01 | L10: 0 | M10: 0 | N10: 0 | O10: 0 | P10: 0 | Q10: 0 | R10: 0 | S10: PERTUBUHAN KESELAMATAN SOCIAL(SOCSO) | T10: MYR | U10: 365 | V10: NM | W10: SKP RESOURCES BHD-CW99 | X10: MYR | Y10: EQT | Z10: Equity | AA10: UNKNOWN | AI10: Ringgit Malaysia | AJ10: EQUITY | AK10: 1 | AL10: 0 | AM10: SKP RESOURCES BHD-CW99 | AN10: 0 | AO10: 0 | AP10: 1 | AQ10: XKLS | AR10: 0 | AS10: ORD | AT10: MB | AW10: NAMM | AX10: MY | AY10: PERTUBUHAN KESELAMATAN SOCIAL(SOCSO) | BA10: 184713469.9 | BD10: FALSE | BE10: 0 | BF10: 0 | BG10: 0 | BH10: 0 | BI10: 0 | BJ10: 2021-04-21 | BK10: 3000-01-01 | BL10: 0 | BM10: 0 | BN10: 0 | BO10: 0 | BP10: 0 | BQ10: PERTUBUHAN KESELAMATAN SOCIAL(SOCSO) | BR10: 0 | BT10: 0 | BU10: 0 | BV10: 10 | BW10: 0 | BX10: 2021-04-21 | CA10: N/A | CB10: FVTPL | CC10: MYL7155WB640 | CE10: 44305 | CL10: SOCSO*BMD4XP8 | CN10: MALAYSIA
A11: EQT | B11: SOCSO | C11: BX909K4 | D11: 1450300 | E11: 2523522 | F11: 2523522 | G11: sFundCode | H11: 1 | I11: 3000-01-01 | J11: 3000-01-01 | K11: 3000-01-01 | L11: 2083898.53 | M11: 2083898.53 | N11: 0 | O11: 0 | P11: 439623.47 | Q11: 0 | R11: 1.74 | S11: PERTUBUHAN KESELAMATAN SOCIAL(SOCSO) | T11: MYR | U11: 365 | V11: NM | W11: SUNWAY CONSTRUCTION GROUP BH | X11: MYR | Y11: EQT | Z11: Equity | AA11: CONSTRUCTION | AI11: Ringgit Malaysia | AJ11: EQUITY | AK11: 1 | AL11: 0 | AM11: SUNWAY CONSTRUCTION GROUP BH | AN11: 2083898.53 | AO11: 2083898.53 | AP11: 1289359110 | AQ11: XKLS | AR11: 0 | AS11: ORD | AT11: MB | AW11: NAMM | AX11: MY | AY11: PERTUBUHAN KESELAMATAN SOCIAL(SOCSO) | BA11: 184713469.9 | BD11: FALSE | BE11: 0 | BF11: 1 | BG11: 0 | BH11: 1.366181904 | BI11: 0 | BJ11: 2020-12-31 | BK11: 2021-04-30 | BL11: 2083898.53 | BM11: 0 | BN11: -72515 | BO11: 0 | BP11: 0 | BQ11: PERTUBUHAN KESELAMATAN SOCIAL(SOCSO) | BR11: 0 | BT11: 0 | BU11: 0 | BV11: 10 | BW11: 0 | BX11: 2020-12-31 | CA11: N/A | CB11: FVTPL | CC11: MYL5263OO008 | CD11: 5263 | CE11: 44194 | CI11: 0 | CJ11: 0 | CK11: 2083898.53 | CL11: SOCSO*BX909K4 | CN11: MALAYSIA
A12: EQT | B12: SOCSO | C12: B83X6P8 | D12: 1127000 | E12: 6063260 | F12: 6063260 | G12: sFundCode | H12: 1 | I12: 3000-01-01 | J12: 3000-01-01 | K12: 3000-01-01 | L12: 6376629.33 | M12: 6376629.33 | N12: 0 | O12: 0 | P12: -313369.33 | Q12: 0 | R12: 5.38 | S12: PERTUBUHAN KESELAMATAN SOCIAL(SOCSO) | T12: MYR | U12: 365 | V12: NM | W12: IHH HEALTHCARE BHD | X12: MYR | Y12: EQT | Z12: Equity | AA12: HEALTH CARE | AI12: Ringgit Malaysia | AJ12: EQUITY | AK12: 1 | AL12: 0 | AM12: IHH HEALTHCARE BHD | AN12: 6376629.33 | AO12: 6376629.33 | AP12: 8779073463 | AQ12: XKLS | AR12: 0 | AS12: ORD | AT12: MB | AW12: NAMM | AX12: MY | AY12: PERTUBUHAN KESELAMATAN SOCIAL(SOCSO) | BA12: 184713469.9 | BD12: FALSE | BE12: 0 | BF12: 5 | BG12: 0 | BH12: 3.282521844 | BI12: 0 | BJ12: 2020-12-31 | BK12: 2021-04-30 | BL12: 6376629.33 | BM12: 0 | BN12: -135240 | BO12: 0 | BP12: 0 | BQ12: PERTUBUHAN KESELAMATAN SOCIAL(SOCSO) | BR12: 0 | BT12: 0 | BU12: 0 | BV12: 10 | BW12: 0 | BX12: 2020-12-31 | CA12: N/A | CB12: FVTPL | CC12: MYL5225OO007 | CD12: 5225 | CE12: 44194 | CI12: 0 | CJ12: 0 | CK12: 6376629.33 | CL12: SOCSO*B83X6P8 | CN12: MALAYSIA
A13: EQT | B13: SOCSO | C13: B89JCF2 | D13: 1101400 | E13: 1927450 | F13: 1927450 | G13: sFundCode | H13: 1 | I13: 3000-01-01 | J13: 3000-01-01 | K13: 3000-01-01 | L13: 1834177.6 | M13: 1834177.6 | N13: 0 | O13: 0 | P13: 93272.4 | Q13: 0 | R13: 1.75 | S13: PERTUBUHAN KESELAMATAN SOCIAL(SOCSO) | T13: MYR | U13: 365 | V13: NM | W13: IGB REAL ESTATE INVESTMENT T | X13: MYR | Y13: EQT | Z13: Equity | AA13: REAL ESTATE INVESTMENT TRUSTS | AI13: Ringgit Malaysia | AJ13: EQUITY | AK13: 1 | AL13: 0 | AM13: IGB REAL ESTATE INVESTMENT T | AN13: 1834177.6 | AO13: 1834177.6 | AP13: 3566580434 | AQ13: XKLS | AR13: 0 | AS13: ORD | AT13: MB | AW13: NAMM | AX13: MY | AY13: PERTUBUHAN KESELAMATAN SOCIAL(SOCSO) | BA13: 184713469.9 | BD13: FALSE | BE13: 0 | BF13: 9 | BG13: 0 | BH13: 1.04348102 | BI13: 0 | BJ13: 2020-12-31 | BK13: 2021-04-30 | BL13: 1834177.6 | BM13: 0 | BN13: -33042 | BO13: 0 | BP13: 0 | BQ13: PERTUBUHAN KESELAMATAN SOCIAL(SOCSO) | BR13: 0 | BT13: 0 | BU13: 0 | BV13: 10 | BW13: 0 | BX13: 2020-12-31 | CA13: N/A | CB13: FVTPL | CC13: MYL5227TO002 | CD13: 5227 | CE13: 44194 | CI13: 0 | CJ13: 0 | CK13: 1834177.6 | CL13: SOCSO*B89JCF2 | CN13: MALAYSIA
A14: EQT | B14: SOCSO | C14: BDFM1K8 | D14: 822500 | E14: 3536750 | F14: 3536750 | G14: sFundCode | H14: 1 | I14: 3000-01-01 | J14: 3000-01-01 | K14: 3000-01-01 | L14: 3432174.94 | M14: 3432174.94 | N14: 0 | O14: 0 | P14: 104575.06 | Q14: 0 | R14: 4.3 | S14: PERTUBUHAN KESELAMATAN SOCIAL(SOCSO) | T14: MYR | U14: 365 | V14: NM | W14: WESTPORTS HOLDINGS BHD | X14: MYR | Y14: EQT | Z14: Equity | AA14: TRANSPORTATION & LOGISTICS | AI14: Ringgit Malaysia | AJ14: EQUITY | AK14: 1 | AL14: 0 | AM14: WESTPORTS HOLDINGS BHD | AN14: 3432174.94 | AO14: 3432174.94 | AP14: 3410000000 | AQ14: XKLS | AR14: 0 | AS14: ORD | AT14: MB | AW14: NAMM | AX14: MY | AY14: PERTUBUHAN KESELAMATAN SOCIAL(SOCSO) | BA14: 184713469.9 | BD14: FALSE | BE14: 0 | BF14: 12 | BG14: 0 | BH14: 1.9147223 | BI14: 0 | BJ14: 2020-12-31 | BK14: 2021-04-30 | BL14: 3432174.94 | BM14: 0 | BN14: 16450 | BO14: 0 | BP14: 0 | BQ14: PERTUBUHAN KESELAMATAN SOCIAL(SOCSO) | BR14: 0 | BT14: 0 | BU14: 0 | BV14: 10 | BW14: 0 | BX14: 2020-12-31 | CA14: N/A | CB14: FVTPL | CC14: MYL5246OO003 | CD14: 5246 | CE14: 44194 | CI14: 0 | CJ14: 0 | CK14: 3432174.94 | CL14: SOCSO*BDFM1K8 | CN14: MALAYSIA
A15: EQT | B15: SOCSO | C15: BF0J5S4 | D15: 1280000 | E15: 6656000 | F15: 6656000 | G15: sFundCode | H15: 1 | I15: 3000-01-01 | J15: 3000-01-01 | K15: 3000-01-01 | L15: 5759877.1 | M15: 5759877.1 | N15: 0 | O15: 0 | P15: 896122.9 | Q15: 0 | R15: 5.2 | S15: PERTUBUHAN KESELAMATAN SOCIAL(SOCSO) | T15: MYR | U15: 365 | V15: NM | W15: PRESS METAL ALUMINIUM HOLDIN | X15: MYR | Y15: EQT | Z15: Equity | AA15: INDUSTRIAL PRODUCTS & SERVICES | AI15: Ringgit Malaysia | AJ15: EQUITY | AK15: 1 | AL15: 0 | AM15: PRESS METAL ALUMINIUM HOLDIN | AN15: 5759877.1 | AO15: 5759877.1 | AP15: 8076219078 | AQ15: XKLS | AR15: 0 | AS15: ORD | AT15: MB | AW15: NAMM | AX15: MY | AY15: PERTUBUHAN KESELAMATAN SOCIAL(SOCSO) | BA15: 184713469.9 | BD15: FALSE | BE15: 0 | BF15: 6 | BG15: 0 | BH15: 3.603418853 | BI15: 0 | BJ15: 2021-01-11 | BK15: 2021-04-30 | BL15: 5759877.1 | BM15: 0 | BN15: -12800 | BO15: 0 | BP15: 0 | BQ15: PERTUBUHAN KESELAMATAN SOCIAL(SOCSO) | BR15: 0 | BT15: 0 | BU15: 0 | BV15: 10 | BW15: 0 | BX15: 2021-01-11 | CA15: N/A | CB15: FVTPL | CC15: MYL8869OO009 | CD15: 8869 | CE15: 44203 | CI15: 0 | CJ15: 0 | CK15: 5121744.81 | CL15: SOCSO*BF0J5S4 | CN15: MALAYSIA
A16: EQT | B16: SOCSO | C16: BGLKMM6 | D16: 1310000 | E16: 1938800 | F16: 1938800 | G16: sFundCode | H16: 1 | I16: 3000-01-01 | J16: 3000-01-01 | K16: 3000-01-01 | L16: 2020487.22 | M16: 2020487.22 | N16: 0 | O16: 0 | P16: -81687.22 | Q16: 0 | R16: 1.48 | S16: PERTUBUHAN KESELAMATAN SOCIAL(SOCSO) | T16: MYR | U16: 365 | V16: NM | W16: BERMAZ AUTO BHD | X16: MYR | Y16: EQT | Z16: Equity | AA16: CONSUMER PRODUCTS & SERVICES | AI16: Ringgit Malaysia | AJ16: EQUITY | AK16: 1 | AL16: 0 | AM16: BERMAZ AUTO BHD | AN16: 2020487.22 | AO16: 2020487.22 | AP16: 1161427988 | AQ16: XKLS | AR16: 0 | AS16: ORD | AT16: MB | AW16: NAMM | AX16: MY | AY16: PERTUBUHAN KESELAMATAN SOCIAL(SOCSO) | BA16: 184713469.9 | BD16: FALSE | BE16: 0 | BF16: 2 | BG16: 0 | BH16: 1.049625672 | BI16: 0 | BJ16: 2020-12-31 | BK16: 2021-04-30 | BL16: 2020487.22 | BM16: 0 | BN16: -52400 | BO16: 0 | BP16: 0 | BQ16: PERTUBUHAN KESELAMATAN SOCIAL(SOCSO) | BR16: 0 | BT16: 0 | BU16: 0 | BV16: 10 | BW16: 0 | BX16: 2020-12-31 | CA16: N/A | CB16: FVTPL | CC16: MYL5248OO009 | CD16: 5248 | CE16: 44194 | CI16: 0 | CJ16: 0 | CK16: 2020487.22 | CL16: SOCSO*BGLKMM6 | CN16: MALAYSIA
A17: EQT | B17: SOCSO | C17: BJ17CJ5 | D17: 450000 | E17: 2691000 | F17: 2691000 | G17: sFundCode | H17: 1 | I17: 3000-01-01 | J17: 3000-01-01 | K17: 3000-01-01 | L17: 1027166.63 | M17: 1027166.63 | N17: 0 | O17: 0 | P17: 1663833.37 | Q17: 0 | R17: 5.98 | S17: PERTUBUHAN KESELAMATAN SOCIAL(SOCSO) | T17: MYR | U17: 365 | V17: NM | W17: UWC BHD | X17: MYR | Y17: EQT | Z17: Equity | AA17: TECHNOLOGY | AI17: Ringgit Malaysia | AJ17: EQUITY | AK17: 1 | AL17: 0 | AM17: UWC BHD | AN17: 1027166.63 | AO17: 1027166.63 | AP17: 1100632606 | AQ17: XKLS | AR17: 0 | AS17: ORD | AT17: MB | AW17: NAMM | AX17: MY | AY17: PERTUBUHAN KESELAMATAN SOCIAL(SOCSO) | BA17: 184713469.9 | BD17: FALSE | BE17: 0 | BF17: 10 | BG17: 0 | BH17: 1.456850982 | BI17: 0 | BJ17: 2020-12-31 | BK17: 2021-04-30 | BL17: 1027166.63 | BM17: 0 | BN17: -13500 | BO17: 0 | BP17: 0 | BQ17: PERTUBUHAN KESELAMATAN SOCIAL(SOCSO) | BR17: 0 | BT17: 0 | BU17: 0 | BV17: 10 | BW17: 0 | BX17: 2020-12-31 | CA17: N/A | CB17: FVTPL | CC17: MYL5292OO007 | CD17: 5292 | CE17: 44194 | CI17: 0 | CJ17: 0 | CK17: 1190372 | CL17: SOCSO*BJ17CJ5 | CN17: MALAYSIA
A18: EQT | B18: SOCSO | C18: B2QZGV5 | D18: 567700 | E18: 2196999 | F18: 2196999 | G18: sFundCode | H18: 1 | I18: 3000-01-01 | J18: 3000-01-01 | K18: 3000-01-01 | L18: 2123198 | M18: 2123198 | N18: 0 | O18: 0 | P18: 73801 | Q18: 0 | R18: 3.87 | S18: PERTUBUHAN KESELAMATAN SOCIAL(SOCSO) | T18: MYR | U18: 365 | V18: NM | W18: AXIATA GROUP BERHAD | X18: MYR | Y18: EQT | Z18: Equity | AA18: TELECOMMUNICATIONS & MEDIA | AI18: Ringgit Malaysia | AJ18: EQUITY | AK18: 1 | AL18: 0 | AM18: AXIATA GROUP BERHAD | AN18: 2123198 | AO18: 2123198 | AP18: 9172710982 | AQ18: XKLS | AR18: 0 | AS18: ORD | AT18: MB | AW18: NAMM | AX18: MY | AY18: PERTUBUHAN KESELAMATAN SOCIAL(SOCSO) | BA18: 184713469.9 | BD18: FALSE | BE18: 0 | BF18: 11 | BG18: 0 | BH18: 1.189409197 | BI18: 0 | BJ18: 2020-12-31 | BK18: 2021-04-30 | BL18: 2123198 | BM18: 0 | BN18: -51093 | BO18: 0 | BP18: 0 | BQ18: PERTUBUHAN KESELAMATAN SOCIAL(SOCSO) | BR18: 0 | BT18: 0 | BU18: 0 | BV18: 10 | BW18: 0 | BX18: 2020-12-31 | CA18: N/A | CB18: FVTPL | CC18: MYL6888OO001 | CD18: 6888 | CE18: 44194 | CI18: 0 | CJ18: 0 | CK18: 2123198 | CL18: SOCSO*B2QZGV5 | CN18: MALAYSIA
A19: EQT | B19: SOCSO | C19: B54JP79 | D19: 810000 | E19: 2794500 | F19: 2794500 | G19: sFundCode | H19: 1 | I19: 3000-01-01 | J19: 3000-01-01 | K19: 3000-01-01 | L19: 2004353.01 | M19: 2004353.01 | N19: 0 | O19: 0 | P19: 790146.99 | Q19: 0 | R19: 3.45 | S19: PERTUBUHAN KESELAMATAN SOCIAL(SOCSO) | T19: MYR | U19: 365 | V19: NM | W19: INARI AMERTRON BHD | X19: MYR | Y19: EQT | Z19: Equity | AA19: TECHNOLOGY | AI19: Ringgit Malaysia | AJ19: EQUITY | AK19: 1 | AL19: 0 | AM19: INARI AMERTRON BHD | AN19: 2004353.01 | AO19: 2004353.01 | AP19: 3344618099 | AQ19: XKLS | AR19: 0 | AS19: ORD | AT19: MB | AW19: NAMM | AX19: MY | AY19: PERTUBUHAN KESELAMATAN SOCIAL(SOCSO) | BA19: 184713469.9 | BD19: FALSE | BE19: 0 | BF19: 10 | BG19: 0 | BH19: 1.512883712 | BI19: 0 | BJ19: 2020-12-31 | BK19: 2021-04-30 | BL19: 2004353.01 | BM19: 0 | BN19: -89100 | BO19: 0 | BP19: 0 | BQ19: PERTUBUHAN KESELAMATAN SOCIAL(SOCSO) | BR19: 0 | BT19: 0 | BU19: 0 | BV19: 10 | BW19: 0 | BX19: 2020-12-31 | CA19: N/A | CB19: FVTPL | CC19: MYQ0166OO007 | CD19: 0166 | CE19: 44194 | CI19: 0 | CJ19: 0 | CK19: 2301294.19 | CL19: SOCSO*B54JP79 | CN19: MALAYSIA
A20: EQT | B20: SOCSO | C20: B5KQGT3 | D20: 733200 | E20: 6012240 | F20: 6012240 | G20: sFundCode | H20: 1 | I20: 3000-01-01 | J20: 3000-01-01 | K20: 3000-01-01 | L20: 5609687.62 | M20: 5609687.62 | N20: 0 | O20: 0 | P20: 402552.38 | Q20: 0 | R20: 8.2 | S20: PERTUBUHAN KESELAMATAN SOCIAL(SOCSO) | T20: MYR | U20: 365 | V20: NM | W20: PETRONAS CHEMICALS GROUP BHD | X20: MYR | Y20: EQT | Z20: Equity | AA20: INDUSTRIAL PRODUCTS & SERVICES | AI20: Ringgit Malaysia | AJ20: EQUITY | AK20: 1 | AL20: 0 | AM20: PETRONAS CHEMICALS GROUP BHD | AN20: 5609687.62 | AO20: 5609687.62 | AP20: 8000000000 | AQ20: XKLS | AR20: 0 | AS20: ORD | AT20: MB | AW20: NAMM | AX20: MY | AY20: PERTUBUHAN KESELAMATAN SOCIAL(SOCSO) | BA20: 184713469.9 | BD20: FALSE | BE20: 0 | BF20: 6 | BG20: 0 | BH20: 3.254900686 | BI20: 0 | BJ20: 2020-12-31 | BK20: 2021-04-30 | BL20: 5609687.62 | BM20: 0 | BN20: -21996 | BO20: 0 | BP20: 0 | BQ20: PERTUBUHAN KESELAMATAN SOCIAL(SOCSO) | BR20: 0 | BT20: 0 | BU20: 0 | BV20: 10 | BW20: 0 | BX20: 2020-12-31 | CA20: N/A | CB20: FVTPL | CC20: MYL5183OO008 | CD20: 5183 | CE20: 44194 | CI20: 0 | CJ20: 0 | CK20: 5609687.62 | CL20: SOCSO*B5KQGT3 | CN20: MALAYSIA
A21: EQT | B21: SOCSO | C21: B62QFR9 | D21: 500000 | E21: 750000 | F21: 750000 | G21: sFundCode | H21: 1 | I21: 3000-01-01 | J21: 3000-01-01 | K21: 3000-01-01 | L21: 922692.34 | M21: 922692.34 | N21: 0 | O21: 0 | P21: -172692.34 | Q21: 0 | R21: 1.5 | S21: PERTUBUHAN KESELAMATAN SOCIAL(SOCSO) | T21: MYR | U21: 365 | V21: NM | W21: SUNWAY REAL ESTATE INVESTMEN | X21: MYR | Y21: EQT | Z21: Equity | AA21: REAL ESTATE INVESTMENT TRUSTS | AI21: Ringgit Malaysia | AJ21: EQUITY | AK21: 1 | AL21: 0 | AM21: SUNWAY REAL ESTATE INVESTMEN | AN21: 922692.34 | AO21: 922692.34 | AP21: 3424807700 | AQ21: XKLS | AR21: 0 | AS21: ORD | AT21: MB | AW21: NAMM | AX21: MY | AY21: PERTUBUHAN KESELAMATAN SOCIAL(SOCSO) | BA21: 184713469.9 | BD21: FALSE | BE21: 0 | BF21: 9 | BG21: 0 | BH21: 0.4060342758 | BI21: 0 | BJ21: 2020-12-31 | BK21: 2021-04-30 | BL21: 922692.34 | BM21: 0 | BN21: -15000 | BO21: 0 | BP21: 0 | BQ21: PERTUBUHAN KESELAMATAN SOCIAL(SOCSO) | BR21: 0 | BT21: 0 | BU21: 0 | BV21: 10 | BW21: 0 | BX21: 2020-12-31 | CA21: N/A | CB21: FVTPL | CC21: MYL5176TO001 | CD21: 5176 | CE21: 44194 | CI21: 0 | CJ21: 0 | CK21: 922692.34 | CL21: SOCSO*B62QFR9 | CN21: MALAYSIA
A22: EQT | B22: SOCSO | C22: B6VGS93 | D22: 2481500 | E22: 4020030 | F22: 4020030 | G22: sFundCode | H22: 1 | I22: 3000-01-01 | J22: 3000-01-01 | K22: 3000-01-01 | L22: 4051399.01 | M22: 4051399.01 | N22: 0 | O22: 0 | P22: -31369.01 | Q22: 0 | R22: 1.62 | S22: PERTUBUHAN KESELAMATAN SOCIAL(SOCSO) | T22: MYR | U22: 365 | V22: NM | W22: SUNWAY BHD | X22: MYR | Y22: EQT | Z22: Equity | AA22: INDUSTRIAL PRODUCTS & SERVICES | AI22: Ringgit Malaysia | AJ22: EQUITY | AK22: 1 | AL22: 0 | AM22: SUNWAY BHD | AN22: 4051399.01 | AO22: 4051399.01 | AP22: 4888927102 | AQ22: XKLS | AR22: 0 | AS22: ORD | AT22: MB | AW22: NAMM | AX22: MY | AY22: PERTUBUHAN KESELAMATAN SOCIAL(SOCSO) | BA22: 184713469.9 | BD22: FALSE | BE22: 0 | BF22: 6 | BG22: 0 | BH22: 2.17635996 | BI22: 0 | BJ22: 2020-12-31 | BK22: 2021-04-30 | BL22: 4051399.01 | BM22: 0 | BN22: -74445 | BO22: 0 | BP22: 0 | BQ22: PERTUBUHAN KESELAMATAN SOCIAL(SOCSO) | BR22: 0 | BT22: 0 | BU22: 0 | BV22: 10 | BW22: 0 | BX22: 2020-12-31 | CA22: N/A | CB22: FVTPL | CC22: MYL5211OO007 | CD22: 5211 | CE22: 44194 | CI22: 0 | CJ22: 0 | CK22: 4459396.04 | CL22: SOCSO*B6VGS93 | CN22: MALAYSIA
A23: EQT | B23: SOCSO | C23: B79YDV3 | D23: 1025200 | E23: 1425028 | F23: 1425028 | G23: sFundCode | H23: 1 | I23: 3000-01-01 | J23: 3000-01-01 | K23: 3000-01-01 | L23: 1657721.96 | M23: 1657721.96 | N23: 0 | O23: 0 | P23: -232693.96 | Q23: 0 | R23: 1.39 | S23: PERTUBUHAN KESELAMATAN SOCIAL(SOCSO) | T23: MYR | U23: 365 | V23: NM | W23: PAVILION REAL ESTATE INVEST | X23: MYR | Y23: EQT | Z23: Equity | AA23: REAL ESTATE INVESTMENT TRUSTS | AI23: Ringgit Malaysia | AJ23: EQUITY | AK23: 1 | AL23: 0 | AM23: PAVILION REAL ESTATE INVEST | AN23: 1657721.96 | AO23: 1657721.96 | AP23: 3047723507 | AQ23: XKLS | AR23: 0 | AS23: ORD | AT23: MB | AW23: NAMM | AX23: MY | AY23: PERTUBUHAN KESELAMATAN SOCIAL(SOCSO) | BA23: 184713469.9 | BD23: FALSE | BE23: 0 | BF23: 9 | BG23: 0 | BH23: 0.7714802827 | BI23: 0 | BJ23: 2020-12-31 | BK23: 2021-04-30 | BL23: 1657721.96 | BM23: 0 | BN23: 10252 | BO23: 0 | BP23: 0 | BQ23: PERTUBUHAN KESELAMATAN SOCIAL(SOCSO) | BR23: 0 | BT23: 0 | BU23: 0 | BV23: 10 | BW23: 0 | BX23: 2020-12-31 | CA23: N/A | CB23: FVTPL | CC23: MYL5212TO004 | CD23: 5212 | CE23: 44194 | CI23: 0 | CJ23: 0 | CK23: 1657721.96 | CL23: SOCSO*B79YDV3 | CN23: MALAYSIA
A24: EQT | B24: SOCSO | C24: B06FV38 | D24: 251200 | E24: 2117616 | F24: 2117616 | G24: sFundCode | H24: 1 | I24: 3000-01-01 | J24: 3000-01-01 | K24: 3000-01-01 | L24: 2144361.5 | M24: 2144361.5 | N24: 0 | O24: 0 | P24: -26745.5 | Q24: 0 | R24: 8.43 | S24: PERTUBUHAN KESELAMATAN SOCIAL(SOCSO) | T24: MYR | U24: 365 | V24: NM | W24: BURSA MALAYSIA BHD | X24: MYR | Y24: EQT | Z24: Equity | AA24: FINANCIAL SERVICES | AI24: Ringgit Malaysia | AJ24: EQUITY | AK24: 1 | AL24: 0 | AM24: BURSA MALAYSIA BHD | AN24: 2144361.5 | AO24: 2144361.5 | AP24: 809299121 | AQ24: XKLS | AR24: 0 | AS24: ORD | AT24: MB | AW24: NAMM | AX24: MY | AY24: PERTUBUHAN KESELAMATAN SOCIAL(SOCSO) | BA24: 184713469.9 | BD24: FALSE | BE24: 0 | BF24: 4 | BG24: 0 | BH24: 1.146432905 | BI24: 0 | BJ24: 2020-12-31 | BK24: 2021-04-30 | BL24: 2144361.5 | BM24: 0 | BN24: 5024 | BO24: 0 | BP24: 0 | BQ24: PERTUBUHAN KESELAMATAN SOCIAL(SOCSO) | BR24: 0 | BT24: 0 | BU24: 0 | BV24: 10 | BW24: 0 | BX24: 2020-12-31 | CA24: N/A | CB24: FVTPL | CC24: MYL1818OO003 | CD24: 1818 | CE24: 44194 | CI24: 0 | CJ24: 0 | CK24: 2390211.86 | CL24: SOCSO*B06FV38 | CN24: MALAYSIA
A25: EQT | B25: SOCSO | C25: B0CMCL8 | D25: 1642695 | E25: 3236109.15 | F25: 3236109.15 | G25: sFundCode | H25: 1 | I25: 3000-01-01 | J25: 3000-01-01 | K25: 3000-01-01 | L25: 3042955.23 | M25: 3042955.23 | N25: 0 | O25: 0 | P25: 193153.92 | Q25: 0 | R25: 1.97 | S25: PERTUBUHAN KESELAMATAN SOCIAL(SOCSO) | T25: MYR | U25: 365 | V25: NM | W25: AXIS REAL ESTATE INVESTMENT | X25: MYR | Y25: EQT | Z25: Equity | AA25: REAL ESTATE INVESTMENT TRUSTS | AI25: Ringgit Malaysia | AJ25: EQUITY | AK25: 1 | AL25: 0 | AM25: AXIS REAL ESTATE INVESTMENT | AN25: 3042955.23 | AO25: 3042955.23 | AP25: 1446481518 | AQ25: XKLS | AR25: 0 | AS25: ORD | AT25: MB | AW25: NAMM | AX25: MY | AY25: PERTUBUHAN KESELAMATAN SOCIAL(SOCSO) | BA25: 184713469.9 | BD25: FALSE | BE25: 0 | BF25: 9 | BG25: 0 | BH25: 1.751961647 | BI25: 0 | BJ25: 2020-12-31 | BK25: 2021-04-30 | BL25: 3042955.23 | BM25: 0 | BN25: -32853.9 | BO25: 0 | BP25: 0 | BQ25: PERTUBUHAN KESELAMATAN SOCIAL(SOCSO) | BR25: 0 | BT25: 0 | BU25: 0 | BV25: 10 | BW25: 0 | BX25: 2020-12-31 | CA25: N/A | CB25: FVTPL | CC25: MYL5106TO008 | CD25: 5106 | CE25: 44194 | CI25: 0 | CJ25: 0 | CK25: 3042955.23 | CL25: SOCSO*B0CMCL8 | CN25: MALAYSIA
A26: EQT | B26: SOCSO | C26: B0KLDR0 | D26: 229800 | E26: 3690588 | F26: 3690588 | G26: sFundCode | H26: 1 | I26: 3000-01-01 | J26: 3000-01-01 | K26: 3000-01-01 | L26: 3519751.6 | M26: 3519751.6 | N26: 0 | O26: 0 | P26: 170836.4 | Q26: 0 | R26: 16.06 | S26: PERTUBUHAN KESELAMATAN SOCIAL(SOCSO) | T26: MYR | U26: 365 | V26: NM | W26: VITROX CORP BHD | X26: MYR | Y26: EQT | Z26: Equity | AA26: TECHNOLOGY | AI26: Ringgit Malaysia | AJ26: EQUITY | AK26: 1 | AL26: 0 | AM26: VITROX CORP BHD | AN26: 3519751.6 | AO26: 3519751.6 | AP26: 472174900 | AQ26: XKLS | AR26: 0 | AS26: ORD | AT26: MB | AW26: NAMM | AX26: MY | AY26: PERTUBUHAN KESELAMATAN SOCIAL(SOCSO) | BA26: 184713469.9 | BD26: FALSE | BE26: 0 | BF26: 10 | BG26: 0 | BH26: 1.998006968 | BI26: 0 | BJ26: 2020-12-31 | BK26: 2021-04-30 | BL26: 3519751.6 | BM26: 0 | BN26: -13788 | BO26: 0 | BP26: 0 | BQ26: PERTUBUHAN KESELAMATAN SOCIAL(SOCSO) | BR26: 0 | BT26: 0 | BU26: 0 | BV26: 10 | BW26: 0 | BX26: 2020-12-31 | CA26: N/A | CB26: FVTPL | CC26: MYQ0097OO004 | CD26: 0097 | CE26: 44194 | CI26: 0 | CJ26: 0 | CK26: 4821661.46 | CL26: SOCSO*B0KLDR0 | CN26: MALAYSIA
A27: EQT | B27: SOCSO | C27: B1VZ5G1 | D27: 545400 | E27: 2285226 | F27: 2285226 | G27: sFundCode | H27: 1 | I27: 3000-01-01 | J27: 3000-01-01 | K27: 3000-01-01 | L27: 1404958.6 | M27: 1404958.6 | N27: 0 | O27: 0 | P27: 880267.4 | Q27: 0 | R27: 4.19 | S27: PERTUBUHAN KESELAMATAN SOCIAL(SOCSO) | T27: MYR | U27: 365 | V27: NM | W27: SCIENTEX BHD | X27: MYR | Y27: EQT | Z27: Equity | AA27: INDUSTRIAL PRODUCTS & SERVICES | AI27: Ringgit Malaysia | AJ27: EQUITY | AK27: 1 | AL27: 0 | AM27: SCIENTEX BHD | AN27: 1404958.6 | AO27: 1404958.6 | AP27: 1550594636 | AQ27: XKLS | AR27: 0 | AS27: ORD | AT27: MB | AW27: NAMM | AX27: MY | AY27: PERTUBUHAN KESELAMATAN SOCIAL(SOCSO) | BA27: 184713469.9 | BD27: FALSE | BE27: 0 | BF27: 6 | BG27: 0 | BH27: 1.237173445 | BI27: 0 | BJ27: 2020-12-31 | BK27: 2021-04-30 | BL27: 1404958.6 | BM27: 0 | BN27: -49086 | BO27: 0 | BP27: 0 | BQ27: PERTUBUHAN KESELAMATAN SOCIAL(SOCSO) | BR27: 0 | BT27: 0 | BU27: 0 | BV27: 10 | BW27: 0 | BX27: 2020-12-31 | CA27: N/A | CB27: FVTPL | CC27: MYL4731OO005 | CD27: 4731 | CE27: 44194 | CI27: 0 | CJ27: 0 | CK27: 1404958.6 | CL27: SOCSO*B1VZ5G1 | CN27: MALAYSIA
A28: EQT | B28: SOCSO | C28: B29H4P8 | D28: 212586 | E28: 2636066.4 | F28: 2636066.4 | G28: sFundCode | H28: 1 | I28: 3000-01-01 | J28: 3000-01-01 | K28: 3000-01-01 | L28: 2468637.09 | M28: 2468637.09 | N28: 0 | O28: 0 | P28: 167429.31 | Q28: 0 | R28: 12.4 | S28: PERTUBUHAN KESELAMATAN SOCIAL(SOCSO) | T28: MYR | U28: 365 | V28: NM | W28: AEON CREDIT SERVICE M BHD | X28: MYR | Y28: EQT | Z28: Equity | AA28: FINANCIAL SERVICES | AI28: Ringgit Malaysia | AJ28: EQUITY | AK28: 1 | AL28: 0 | AM28: AEON CREDIT SERVICE M BHD | AN28: 2468637.09 | AO28: 2468637.09 | AP28: 255307690 | AQ28: XKLS | AR28: 0 | AS28: ORD | AT28: MB | AW28: NAMM | AX28: MY | AY28: PERTUBUHAN KESELAMATAN SOCIAL(SOCSO) | BA28: 184713469.9 | BD28: FALSE | BE28: 0 | BF28: 4 | BG28: 0 | BH28: 1.427111082 | BI28: 0 | BJ28: 2020-12-31 | BK28: 2021-04-30 | BL28: 2468637.09 | BM28: 0 | BN28: -38265.48 | BO28: 0 | BP28: 0 | BQ28: PERTUBUHAN KESELAMATAN SOCIAL(SOCSO) | BR28: 0 | BT28: 0 | BU28: 0 | BV28: 10 | BW28: 0 | BX28: 2020-12-31 | CA28: N/A | CB28: FVTPL | CC28: MYL5139OO000 | CD28: 5139 | CE28: 44194 | CI28: 0 | CJ28: 0 | CK28: 2468637.09 | CL28: SOCSO*B29H4P8 | CN28: MALAYSIA
A29: EQT | B29: SOCSO | C29: B29TTR1 | D29: 2431800 | E29: 5495868 | F29: 5495868 | G29: sFundCode | H29: 1 | I29: 3000-01-01 | J29: 3000-01-01 | K29: 3000-01-01 | L29: 5565331.2 | M29: 5565331.2 | N29: 0 | O29: 0 | P29: -69463.2 | Q29: 0 | R29: 2.26 | S29: PERTUBUHAN KESELAMATAN SOCIAL(SOCSO) | T29: MYR | U29: 365 | V29: NM | W29: SIME DARBY BERHAD | X29: MYR | Y29: EQT | Z29: Equity | AA29: CONSUMER PRODUCTS & SERVICES | AI29: Ringgit Malaysia | AJ29: EQUITY | AK29: 1 | AL29: 0 | AM29: SIME DARBY BERHAD | AN29: 5565331.2 | AO29: 5565331.2 | AP29: 6802537377 | AQ29: XKLS | AR29: 0 | AS29: ORD | AT29: MB | AW29: NAMM | AX29: MY | AY29: PERTUBUHAN KESELAMATAN SOCIAL(SOCSO) | BA29: 184713469.9 | BD29: FALSE | BE29: 0 | BF29: 2 | BG29: 0 | BH29: 2.975347711 | BI29: 0 | BJ29: 2020-12-31 | BK29: 2021-04-30 | BL29: 5565331.2 | BM29: 0 | BN29: -24318 | BO29: 0 | BP29: 0 | BQ29: PERTUBUHAN KESELAMATAN SOCIAL(SOCSO) | BR29: 0 | BT29: 0 | BU29: 0 | BV29: 10 | BW29: 0 | BX29: 2020-12-31 | CA29: N/A | CB29: FVTPL | CC29: MYL4197OO009 | CD29: 4197 | CE29: 44194 | CI29: 0 | CJ29: 0 | CK29: 5565331.2 | CL29: SOCSO*B29TTR1 | CN29: MALAYSIA
A30: EQT | B30: SOCSO | C30: 6359881 | D30: 1189191 | E30: 4197844.23 | F30: 4197844.23 | G30: sFundCode | H30: 1 | I30: 3000-01-01 | J30: 3000-01-01 | K30: 3000-01-01 | L30: 4337813.18 | M30: 4337813.18 | N30: 0 | O30: 0 | P30: -139968.95 | Q30: 0 | R30: 3.53 | S30: PERTUBUHAN KESELAMATAN SOCIAL(SOCSO) | T30: MYR | U30: 365 | V30: NM | W30: GAMUDA BHD | X30: MYR | Y30: EQT | Z30: Equity | AA30: CONSTRUCTION | AI30: Ringgit Malaysia | AJ30: EQUITY | AK30: 1 | AL30: 0 | AM30: GAMUDA BHD | AN30: 4337813.18 | AO30: 4337813.18 | AP30: 2513528454 | AQ30: XKLS | AR30: 0 | AS30: ORD | AT30: MB | AW30: NAMM | AX30: MY | AY30: PERTUBUHAN KESELAMATAN SOCIAL(SOCSO) | BA30: 184713469.9 | BD30: FALSE | BE30: 0 | BF30: 1 | BG30: 0 | BH30: 2.272624856 | BI30: 0 | BJ30: 2020-12-31 | BK30: 2021-04-30 | BL30: 4337813.18 | BM30: 0 | BN30: -23783.82 | BO30: 0 | BP30: 0 | BQ30: PERTUBUHAN KESELAMATAN SOCIAL(SOCSO) | BR30: 0 | BT30: 0 | BU30: 0 | BV30: 10 | BW30: 0 | BX30: 2020-12-31 | CA30: N/A | CB30: FVTPL | CC30: MYL5398OO002 | CD30: 5398 | CE30: 44194 | CI30: 0 | CJ30: 0 | CK30: 4337813.18 | CL30: SOCSO*6359881 | CN30: MALAYSIA
A31: EQT | B31: SOCSO | C31: 6436450 | D31: 345284 | E31: 5724808.72 | F31: 5724808.72 | G31: sFundCode | H31: 1 | I31: 3000-01-01 | J31: 3000-01-01 | K31: 3000-01-01 | L31: 5862487.21 | M31: 5862487.21 | N31: 0 | O31: 0 | P31: -137678.49 | Q31: 0 | R31: 16.58 | S31: PERTUBUHAN KESELAMATAN SOCIAL(SOCSO) | T31: MYR | U31: 365 | V31: NM | W31: HONG LEONG FINANCIAL GROUP | X31: MYR | Y31: EQT | Z31: Equity | AA31: FINANCIAL SERVICES | AI31: Ringgit Malaysia | AJ31: EQUITY | AK31: 1 | AL31: 0 | AM31: HONG LEONG FINANCIAL GROUP | AN31: 5862487.21 | AO31: 5862487.21 | AP31: 1145243990 | AQ31: XKLS | AR31: 0 | AS31: ORD | AT31: MB | AW31: NAMM | AX31: MY | AY31: PERTUBUHAN KESELAMATAN SOCIAL(SOCSO) | BA31: 184713469.9 | BD31: FALSE | BE31: 0 | BF31: 4 | BG31: 0 | BH31: 3.099291417 | BI31: 0 | BJ31: 2020-12-31 | BK31: 2021-04-30 | BL31: 5862487.21 | BM31: 0 | BN31: 6905.68 | BO31: 0 | BP31: 0 | BQ31: PERTUBUHAN KESELAMATAN SOCIAL(SOCSO) | BR31: 0 | BT31: 0 | BU31: 0 | BV31: 10 | BW31: 0 | BX31: 2020-12-31 | CA31: N/A | CB31: FVTPL | CC31: MYL1082OO006 | CD31: 1082 | CE31: 44194 | CI31: 0 | CJ31: 0 | CK31: 5862487.21 | CL31: SOCSO*6436450 | CN31: MALAYSIA
A32: EQT | B32: SOCSO | C32: 6455217 | D32: 1821200 | E32: 3551340 | F32: 3551340 | G32: sFundCode | H32: 1 | I32: 3000-01-01 | J32: 3000-01-01 | K32: 3000-01-01 | L32: 3004002.25 | M32: 3004002.25 | N32: 0 | O32: 0 | P32: 547337.75 | Q32: 0 | R32: 1.95 | S32: PERTUBUHAN KESELAMATAN SOCIAL(SOCSO) | T32: MYR | U32: 365 | V32: NM | W32: IJM CORP BHD | X32: MYR | Y32: EQT | Z32: Equity | AA32: CONSTRUCTION | AI32: Ringgit Malaysia | AJ32: EQUITY | AK32: 1 | AL32: 0 | AM32: IJM CORP BHD | AN32: 3004002.25 | AO32: 3004002.25 | AP32: 3615576620 | AQ32: XKLS | AR32: 0 | AS32: ORD | AT32: MB | AW32: NAMM | AX32: MY | AY32: PERTUBUHAN KESELAMATAN SOCIAL(SOCSO) | BA32: 184713469.9 | BD32: FALSE | BE32: 0 | BF32: 1 | BG32: 0 | BH32: 1.92262102 | BI32: 0 | BJ32: 2020-12-31 | BK32: 2021-04-30 | BL32: 3004002.25 | BM32: 0 | BN32: -91060 | BO32: 0 | BP32: 0 | BQ32: PERTUBUHAN KESELAMATAN SOCIAL(SOCSO) | BR32: 0 | BT32: 0 | BU32: 0 | BV32: 10 | BW32: 0 | BX32: 2020-12-31 | CA32: N/A | CB32: FVTPL | CC32: MYL3336OO004 | CD32: 3336 | CE32: 44194 | CI32: 0 | CJ32: 0 | CK32: 3004002.25 | CL32: SOCSO*6455217 | CN32: MALAYSIA
A33: EQT | B33: SOCSO | C33: 6497446 | D33: 133000 | E33: 2926000 | F33: 2926000 | G33: sFundCode | H33: 1 | I33: 3000-01-01 | J33: 3000-01-01 | K33: 3000-01-01 | L33: 3020189.01 | M33: 3020189.01 | N33: 0 | O33: 0 | P33: -94189.01 | Q33: 0 | R33: 22 | S33: PERTUBUHAN KESELAMATAN SOCIAL(SOCSO) | T33: MYR | U33: 365 | V33: NM | W33: KUALA LUMPUR KEPONG BHD | X33: MYR | Y33: EQT | Z33: Equity | AA33: PLANTATION | AI33: Ringgit Malaysia | AJ33: EQUITY | AK33: 1 | AL33: 0 | AM33: KUALA LUMPUR KEPONG BHD | AN33: 3020189.01 | AO33: 3020189.01 | AP33: 1078554001 | AQ33: XKLS | AR33: 0 | AS33: ORD | AT33: MB | AW33: NAMM | AX33: MY | AY33: PERTUBUHAN KESELAMATAN SOCIAL(SOCSO) | BA33: 184713469.9 | BD33: FALSE | BE33: 0 | BF33: 7 | BG33: 0 | BH33: 1.584075055 | BI33: 0 | BJ33: 2020-12-31 | BK33: 2021-04-30 | BL33: 3020189.01 | BM33: 0 | BN33: 18620 | BO33: 0 | BP33: 0 | BQ33: PERTUBUHAN KESELAMATAN SOCIAL(SOCSO) | BR33: 0 | BT33: 0 | BU33: 0 | BV33: 10 | BW33: 0 | BX33: 2020-12-31 | CA33: N/A | CB33: FVTPL | CC33: MYL2445OO004 | CD33: 2445 | CE33: 44194 | CI33: 0 | CJ33: 0 | CK33: 3020189.01 | CL33: SOCSO*6497446 | CN33: MALAYSIA
A34: EQT | B34: SOCSO | C34: 6522672 | D34: 209200 | E34: 2891144 | F34: 2891144 | G34: sFundCode | H34: 1 | I34: 3000-01-01 | J34: 3000-01-01 | K34: 3000-01-01 | L34: 3122504.45 | M34: 3122504.45 | N34: 0 | O34: 0 | P34: -231360.45 | Q34: 0 | R34: 13.82 | S34: PERTUBUHAN KESELAMATAN SOCIAL(SOCSO) | T34: MYR | U34: 365 | V34: NM | W34: LPI CAPITAL BERHAD | X34: MYR | Y34: EQT | Z34: Equity | AA34: FINANCIAL SERVICES | AI34: Ringgit Malaysia | AJ34: EQUITY | AK34: 1 | AL34: 0 | AM34: LPI CAPITAL BERHAD | AN34: 3122504.45 | AO34: 3122504.45 | AP34: 398382970 | AQ34: XKLS | AR34: 0 | AS34: ORD | AT34: MB | AW34: NAMM | AX34: MY | AY34: PERTUBUHAN KESELAMATAN SOCIAL(SOCSO) | BA34: 184713469.9 | BD34: FALSE | BE34: 0 | BF34: 4 | BG34: 0 | BH34: 1.565204747 | BI34: 0 | BJ34: 2020-12-31 | BK34: 2021-04-30 | BL34: 3122504.45 | BM34: 0 | BN34: -8368 | BO34: 0 | BP34: 0 | BQ34: PERTUBUHAN KESELAMATAN SOCIAL(SOCSO) | BR34: 0 | BT34: 0 | BU34: 0 | BV34: 10 | BW34: 0 | BX34: 2020-12-31 | CA34: N/A | CB34: FVTPL | CC34: MYL8621OO004 | CD34: 8621 | CE34: 44194 | CI34: 0 | CJ34: 0 | CK34: 2870224 | CL34: SOCSO*6522672 | CN34: MALAYSIA
A35: EQT | B35: SOCSO | C35: 6556325 | D35: 1711981 | E35: 14089603.63 | F35: 14089603.63 | G35: sFundCode | H35: 1 | I35: 3000-01-01 | J35: 3000-01-01 | K35: 3000-01-01 | L35: 14475766.04 | M35: 14475766.04 | N35: 0 | O35: 0 | P35: -386162.41 | Q35: 0 | R35: 8.23 | S35: PERTUBUHAN KESELAMATAN SOCIAL(SOCSO) | T35: MYR | U35: 365 | V35: NM | W35: MALAYAN BANKING BHD | X35: MYR | Y35: EQT | Z35: Equity | AA35: FINANCIAL SERVICES | AI35: Ringgit Malaysia | AJ35: EQUITY | AK35: 1 | AL35: 0 | AM35: MALAYAN BANKING BHD | AN35: 14475766.04 | AO35: 14475766.04 | AP35: 11413994640 | AQ35: XKLS | AR35: 0 | AS35: ORD | AT35: MB | AW35: NAMM | AX35: MY | AY35: PERTUBUHAN KESELAMATAN SOCIAL(SOCSO) | BA35: 184713469.9 | BD35: FALSE | BE35: 0 | BF35: 4 | BG35: 0 | BH35: 7.627816009 | BI35: 0 | BJ35: 2020-12-31 | BK35: 2021-04-30 | BL35: 14475766.04 | BM35: 0 | BN35: 68479.24 | BO35: 0 | BP35: 0 | BQ35: PERTUBUHAN KESELAMATAN SOCIAL(SOCSO) | BR35: 0 | BT35: 0 | BU35: 0 | BV35: 10 | BW35: 0 | BX35: 2020-12-31 | CA35: N/A | CB35: FVTPL | CC35: MYL1155OO000 | CD35: 1155 | CE35: 44194 | CI35: 0 | CJ35: 0 | CK35: 14475766.04 | CL35: SOCSO*6556325 | CN35: MALAYSIA
A36: EQT | B36: SOCSO | C36: 6057680 | D36: 381600 | E36: 3331368 | F36: 3331368 | G36: sFundCode | H36: 1 | I36: 3000-01-01 | J36: 3000-01-01 | K36: 3000-01-01 | L36: 3796315.98 | M36: 3796315.98 | N36: 0 | O36: 0 | P36: -464947.98 | Q36: 0 | R36: 8.73 | S36: PERTUBUHAN KESELAMATAN SOCIAL(SOCSO) | T36: MYR | U36: 365 | V36: NM | W36: GENTING PLANTATIONS BHD | X36: MYR | Y36: EQT | Z36: Equity | AA36: PLANTATION | AI36: Ringgit Malaysia | AJ36: EQUITY | AK36: 1 | AL36: 0 | AM36: GENTING PLANTATIONS BHD | AN36: 3796315.98 | AO36: 3796315.98 | AP36: 897198230 | AQ36: XKLS | AR36: 0 | AS36: ORD | AT36: MB | AW36: NAMM | AX36: MY | AY36: PERTUBUHAN KESELAMATAN SOCIAL(SOCSO) | BA36: 184713469.9 | BD36: FALSE | BE36: 0 | BF36: 7 | BG36: 0 | BH36: 1.803532791 | BI36: 0 | BJ36: 2020-12-31 | BK36: 2021-04-30 | BL36: 3796315.98 | BM36: 0 | BN36: 30528 | BO36: 0 | BP36: 0 | BQ36: PERTUBUHAN KESELAMATAN SOCIAL(SOCSO) | BR36: 0 | BT36: 0 | BU36: 0 | BV36: 10 | BW36: 0 | BX36: 2020-12-31 | CA36: N/A | CB36: FVTPL | CC36: MYL2291OO002 | CD36: 2291 | CE36: 44194 | CI36: 0 | CJ36: 0 | CK36: 3796315.98 | CL36: SOCSO*6057680 | CN36: MALAYSIA
A37: EQT | B37: SOCSO | C37: 6075745 | D37: 503338 | E37: 2083819.32 | F37: 2083819.32 | G37: sFundCode | H37: 1 | I37: 3000-01-01 | J37: 3000-01-01 | K37: 3000-01-01 | L37: 2308912.6 | M37: 2308912.6 | N37: 0 | O37: 0 | P37: -225093.28 | Q37: 0 | R37: 4.14 | S37: PERTUBUHAN KESELAMATAN SOCIAL(SOCSO) | T37: MYR | U37: 365 | V37: NM | W37: CIMB GROUP HOLDINGS BHD | X37: MYR | Y37: EQT | Z37: Equity | AA37: FINANCIAL SERVICES | AI37: Ringgit Malaysia | AJ37: EQUITY | AK37: 1 | AL37: 0 | AM37: CIMB GROUP HOLDINGS BHD | AN37: 2308912.6 | AO37: 2308912.6 | AP37: 9922966350 | AQ37: XKLS | AR37: 0 | AS37: ORD | AT37: MB | AW37: NAMM | AX37: MY | AY37: PERTUBUHAN KESELAMATAN SOCIAL(SOCSO) | BA37: 184713469.9 | BD37: FALSE | BE37: 0 | BF37: 4 | BG37: 0 | BH37: 1.128136091 | BI37: 0 | BJ37: 2020-12-31 | BK37: 2021-04-30 | BL37: 2308912.6 | BM37: 0 | BN37: -5033.38 | BO37: 0 | BP37: 0 | BQ37: PERTUBUHAN KESELAMATAN SOCIAL(SOCSO) | BR37: 0 | BT37: 0 | BU37: 0 | BV37: 10 | BW37: 0 | BX37: 2020-12-31 | CA37: N/A | CB37: FVTPL | CC37: MYL1023OO000 | CD37: 1023 | CE37: 44194 | CI37: 0 | CJ37: 0 | CK37: 2308912.6 | CL37: SOCSO*6075745 | CN37: MALAYSIA
A38: EQT | B38: SOCSO | C38: 6086242 | D38: 600000 | E38: 2514000 | F38: 2514000 | G38: sFundCode | H38: 1 | I38: 3000-01-01 | J38: 3000-01-01 | K38: 3000-01-01 | L38: 2560022.31 | M38: 2560022.31 | N38: 0 | O38: 0 | P38: -46022.31 | Q38: 0 | R38: 4.19 | S38: PERTUBUHAN KESELAMATAN SOCIAL(SOCSO) | T38: MYR | U38: 365 | V38: NM | W38: DIGI.COM BHD | X38: MYR | Y38: EQT | Z38: Equity | AA38: TELECOMMUNICATIONS & MEDIA | AI38: Ringgit Malaysia | AJ38: EQUITY | AK38: 1 | AL38: 0 | AM38: DIGI.COM BHD | AN38: 2560022.31 | AO38: 2560022.31 | AP38: 7775000000 | AQ38: XKLS | AR38: 0 | AS38: ORD | AT38: MB | AW38: NAMM | AX38: MY | AY38: PERTUBUHAN KESELAMATAN SOCIAL(SOCSO) | BA38: 184713469.9 | BD38: FALSE | BE38: 0 | BF38: 11 | BG38: 0 | BH38: 1.361026893 | BI38: 0 | BJ38: 2021-04-09 | BK38: 2021-04-30 | BL38: 2560022.31 | BM38: 0 | BN38: 0 | BO38: 0 | BP38: 0 | BQ38: PERTUBUHAN KESELAMATAN SOCIAL(SOCSO) | BR38: 0 | BT38: 0 | BU38: 0 | BV38: 10 | BW38: 0 | BX38: 2021-04-09 | CA38: N/A | CB38: FVTPL | CC38: MYL6947OO005 | CD38: 6947 | CE38: 44293 | CL38: SOCSO*6086242 | CN38: MALAYSIA
A39: EQT | B39: SOCSO | C39: 6113429 | D39: 928200 | E39: 2580396 | F39: 2580396 | G39: sFundCode | H39: 1 | I39: 3000-01-01 | J39: 3000-01-01 | K39: 3000-01-01 | L39: 2487028.17 | M39: 2487028.17 | N39: 0 | O39: 0 | P39: 93367.83 | Q39: 0 | R39: 2.78 | S39: PERTUBUHAN KESELAMATAN SOCIAL(SOCSO) | T39: MYR | U39: 365 | V39: NM | W39: V.S. INDUSTRY BERHAD | X39: MYR | Y39: EQT | Z39: Equity | AA39: INDUSTRIAL PRODUCTS & SERVICES | AI39: Ringgit Malaysia | AJ39: EQUITY | AK39: 1 | AL39: 0 | AM39: V.S. INDUSTRY BERHAD | AN39: 2487028.17 | AO39: 2487028.17 | AP39: 1882410298 | AQ39: XKLS | AR39: 0 | AS39: ORD | AT39: MB | AW39: NAMM | AX39: MY | AY39: PERTUBUHAN KESELAMATAN SOCIAL(SOCSO) | BA39: 184713469.9 | BD39: FALSE | BE39: 0 | BF39: 6 | BG39: 0 | BH39: 1.396972295 | BI39: 0 | BJ39: 2021-01-11 | BK39: 2021-04-30 | BL39: 2487028.17 | BM39: 0 | BN39: -37128 | BO39: 0 | BP39: 0 | BQ39: PERTUBUHAN KESELAMATAN SOCIAL(SOCSO) | BR39: 0 | BT39: 0 | BU39: 0 | BV39: 10 | BW39: 0 | BX39: 2021-01-11 | CA39: N/A | CB39: FVTPL | CC39: MYL6963OO002 | CD39: 6963 | CE39: 44203 | CI39: 0 | CJ39: 0 | CK39: 1928214.96 | CL39: SOCSO*6113429 | CN39: MALAYSIA
A40: EQT | B40: SOCSO | C40: 6244675 | D40: 1071800 | E40: 5584078 | F40: 5584078 | G40: sFundCode | H40: 1 | I40: 3000-01-01 | J40: 3000-01-01 | K40: 3000-01-01 | L40: 5988439.23 | M40: 5988439.23 | N40: 0 | O40: 0 | P40: -404361.23 | Q40: 0 | R40: 5.21 | S40: PERTUBUHAN KESELAMATAN SOCIAL(SOCSO) | T40: MYR | U40: 365 | V40: NM | W40: RHB BANK BHD | X40: MYR | Y40: EQT | Z40: Equity | AA40: FINANCIAL SERVICES | AI40: Ringgit Malaysia | AJ40: EQUITY | AK40: 1 | AL40: 0 | AM40: RHB BANK BHD | AN40: 5988439.23 | AO40: 5988439.23 | AP40: 4010045621 | AQ40: XKLS | AR40: 0 | AS40: ORD | AT40: MB | AW40: NAMM | AX40: MY | AY40: PERTUBUHAN KESELAMATAN SOCIAL(SOCSO) | BA40: 184713469.9 | BD40: FALSE | BE40: 0 | BF40: 4 | BG40: 0 | BH40: 3.023102756 | BI40: 0 | BJ40: 2020-12-31 | BK40: 2021-04-30 | BL40: 5988439.23 | BM40: 0 | BN40: -10718 | BO40: 0 | BP40: 0 | BQ40: PERTUBUHAN KESELAMATAN SOCIAL(SOCSO) | BR40: 0 | BT40: 0 | BU40: 0 | BV40: 10 | BW40: 0 | BX40: 2020-12-31 | CA40: N/A | CB40: FVTPL | CC40: MYL1066OO009 | CD40: 1066 | CE40: 44194 | CI40: 0 | CJ40: 0 | CK40: 5988439.23 | CL40: SOCSO*6244675 | CN40: MALAYSIA
A41: EQT | B41: SOCSO | C41: 6336538 | D41: 230000 | E41: 3192400 | F41: 3192400 | G41: sFundCode | H41: 1 | I41: 3000-01-01 | J41: 3000-01-01 | K41: 3000-01-01 | L41: 2608063.81 | M41: 2608063.81 | N41: 0 | O41: 0 | P41: 584336.19 | Q41: 0 | R41: 13.88 | S41: PERTUBUHAN KESELAMATAN SOCIAL(SOCSO) | T41: MYR | U41: 365 | V41: NM | W41: TIME DOTCOM BHD | X41: MYR | Y41: EQT | Z41: Equity | AA41: TELECOMMUNICATIONS & MEDIA | AI41: Ringgit Malaysia | AJ41: EQUITY | AK41: 1 | AL41: 0 | AM41: TIME DOTCOM BHD | AN41: 2608063.81 | AO41: 2608063.81 | AP41: 604711833 | AQ41: XKLS | AR41: 0 | AS41: ORD | AT41: MB | AW41: NAMM | AX41: MY | AY41: PERTUBUHAN KESELAMATAN SOCIAL(SOCSO) | BA41: 184713469.9 | BD41: FALSE | BE41: 0 | BF41: 11 | BG41: 0 | BH41: 1.728298429 | BI41: 0 | BJ41: 2020-12-31 | BK41: 2021-04-30 | BL41: 2608063.81 | BM41: 0 | BN41: -36800 | BO41: 0 | BP41: 0 | BQ41: PERTUBUHAN KESELAMATAN SOCIAL(SOCSO) | BR41: 0 | BT41: 0 | BU41: 0 | BV41: 10 | BW41: 0 | BX41: 2020-12-31 | CA41: N/A | CB41: FVTPL | CC41: MYL5031OO009 | CD41: 5031 | CE41: 44194 | CI41: 0 | CJ41: 0 | CK41: 3061640.13 | CL41: SOCSO*6336538 | CN41: MALAYSIA
A42: EQT | B42: SOCSO | C42: B00G234 | D42: 478365 | E42: 2894108.25 | F42: 2894108.25 | G42: sFundCode | H42: 1 | I42: 3000-01-01 | J42: 3000-01-01 | K42: 3000-01-01 | L42: 2174144.51 | M42: 2174144.51 | N42: 0 | O42: 0 | P42: 719963.74 | Q42: 0 | R42: 6.05 | S42: PERTUBUHAN KESELAMATAN SOCIAL(SOCSO) | T42: MYR | U42: 365 | V42: NM | W42: QL RESOURCES BHD | X42: MYR | Y42: EQT | Z42: Equity | AA42: CONSUMER PRODUCTS & SERVICES | AI42: Ringgit Malaysia | AJ42: EQUITY | AK42: 1 | AL42: 0 | AM42: QL RESOURCES BHD | AN42: 2174144.51 | AO42: 2174144.51 | AP42: 2433657389 | AQ42: XKLS | AR42: 0 | AS42: ORD | AT42: MB | AW42: NAMM | AX42: MY | AY42: PERTUBUHAN KESELAMATAN SOCIAL(SOCSO) | BA42: 184713469.9 | BD42: FALSE | BE42: 0 | BF42: 2 | BG42: 0 | BH42: 1.56680953 | BI42: 0 | BJ42: 2020-12-31 | BK42: 2021-04-30 | BL42: 2174144.51 | BM42: 0 | BN42: -19134.6 | BO42: 0 | BP42: 0 | BQ42: PERTUBUHAN KESELAMATAN SOCIAL(SOCSO) | BR42: 0 | BT42: 0 | BU42: 0 | BV42: 10 | BW42: 0 | BX42: 2020-12-31 | CA42: N/A | CB42: FVTPL | CC42: MYL7084OO006 | CD42: 7084 | CE42: 44194 | CI42: 0 | CJ42: 0 | CK42: 2174144.51 | CL42: SOCSO*B00G234 | CN42: MALAYSIA
A43: EQT | B43: SOCSO | C43: B00MRS2 | D43: 1548112 | E43: 4706260.48 | F43: 4706260.48 | G43: sFundCode | H43: 1 | I43: 3000-01-01 | J43: 3000-01-01 | K43: 3000-01-01 | L43: 5063121.49 | M43: 5063121.49 | N43: 0 | O43: 0 | P43: -356861.01 | Q43: 0 | R43: 3.04 | S43: PERTUBUHAN KESELAMATAN SOCIAL(SOCSO) | T43: MYR | U43: 365 | V43: NM | W43: DIALOG GROUP BHD | X43: MYR | Y43: EQT | Z43: Equity | AA43: ENERGY | AI43: Ringgit Malaysia | AJ43: EQUITY | AK43: 1 | AL43: 0 | AM43: DIALOG GROUP BHD | AN43: 5063121.49 | AO43: 5063121.49 | AP43: 5642237378 | AQ43: XKLS | AR43: 0 | AS43: ORD | AT43: MB | AW43: NAMM | AX43: MY | AY43: PERTUBUHAN KESELAMATAN SOCIAL(SOCSO) | BA43: 184713469.9 | BD43: FALSE | BE43: 0 | BF43: 3 | BG43: 0 | BH43: 2.547870754 | BI43: 0 | BJ43: 2020-12-31 | BK43: 2021-04-30 | BL43: 5063121.49 | BM43: 0 | BN43: -15481.12 | BO43: 0 | BP43: 0 | BQ43: PERTUBUHAN KESELAMATAN SOCIAL(SOCSO) | BR43: 0 | BT43: 0 | BU43: 0 | BV43: 10 | BW43: 0 | BX43: 2020-12-31 | CA43: N/A | CB43: FVTPL | CC43: MYL7277OO006 | CD43: 7277 | CE43: 44194 | CI43: 0 | CJ43: 0 | CK43: 5063121.49 | CL43: SOCSO*B00MRS2 | CN43: MALAYSIA
A44: EQT | B44: SOCSO | C44: B012W42 | D44: 3245250 | E44: 13467787.5 | F44: 13467787.5 | G44: sFundCode | H44: 1 | I44: 3000-01-01 | J44: 3000-01-01 | K44: 3000-01-01 | L44: 12669912.8 | M44: 12669912.8 | N44: 0 | O44: 0 | P44: 797874.7 | Q44: 0 | R44: 4.15 | S44: PERTUBUHAN KESELAMATAN SOCIAL(SOCSO) | T44: MYR | U44: 365 | V44: NM | W44: PUBLIC BANK BERHAD | X44: MYR | Y44: EQT | Z44: Equity | AA44: FINANCIAL SERVICES | AI44: Ringgit Malaysia | AJ44: EQUITY | AK44: 1 | AL44: 0 | AM44: PUBLIC BANK BERHAD | AN44: 12669912.8 | AO44: 12669912.8 | AP44: 19410691735 | AQ44: XKLS | AR44: 0 | AS44: ORD | AT44: MB | AW44: NAMM | AX44: MY | AY44: PERTUBUHAN KESELAMATAN SOCIAL(SOCSO) | BA44: 184713469.9 | BD44: FALSE | BE44: 0 | BF44: 4 | BG44: 0 | BH44: 7.291177792 | BI44: 0 | BJ44: 2020-12-31 | BK44: 2021-04-30 | BL44: 12669912.8 | BM44: 0 | BN44: -64905 | BO44: 0 | BP44: 0 | BQ44: PERTUBUHAN KESELAMATAN SOCIAL(SOCSO) | BR44: 0 | BT44: 0 | BU44: 0 | BV44: 10 | BW44: 0 | BX44: 2020-12-31 | CA44: N/A | CB44: FVTPL | CC44: MYL1295OO004 | CD44: 1295 | CE44: 44194 | CI44: 0 | CJ44: 0 | CK44: 12669912.8 | CL44: SOCSO*B012W42 | CN44: MALAYSIA
A45: EQT | B45: SOCSO | C45: B03DHR1 | D45: 2350000 | E45: 3901000 | F45: 3901000 | G45: sFundCode | H45: 1 | I45: 3000-01-01 | J45: 3000-01-01 | K45: 3000-01-01 | L45: 4285255.66 | M45: 4285255.66 | N45: 0 | O45: 0 | P45: -384255.66 | Q45: 0 | R45: 1.66 | S45: PERTUBUHAN KESELAMATAN SOCIAL(SOCSO) | T45: MYR | U45: 365 | V45: NM | W45: SKP RESOURCES BHD | X45: MYR | Y45: EQT | Z45: Equity | AA45: INDUSTRIAL PRODUCTS & SERVICES | AI45: Ringgit Malaysia | AJ45: EQUITY | AK45: 1 | AL45: 0 | AM45: SKP RESOURCES BHD | AN45: 4285255.66 | AO45: 4285255.66 | AP45: 1562360686 | AQ45: XKLS | AR45: 0 | AS45: ORD | AT45: MB | AW45: NAMM | AX45: MY | AY45: PERTUBUHAN KESELAMATAN SOCIAL(SOCSO) | BA45: 184713469.9 | BD45: FALSE | BE45: 0 | BF45: 6 | BG45: 0 | BH45: 2.111919613 | BI45: 0 | BJ45: 2021-01-18 | BK45: 2021-04-30 | BL45: 4285255.66 | BM45: 0 | BN45: 47000 | BO45: 0 | BP45: 0 | BQ45: PERTUBUHAN KESELAMATAN SOCIAL(SOCSO) | BR45: 0 | BT45: 0 | BU45: 0 | BV45: 10 | BW45: 0 | BX45: 2021-01-18 | CA45: N/A | CB45: FVTPL | CC45: MYL7155OO004 | CD45: 7155 | CE45: 44210 | CI45: 0 | CJ45: 0 | CK45: 4285255.66 | CL45: SOCSO*B03DHR1 | CN45: MALAYSIA
A46: EQT | B46: SOCSO | C46: B2QPJK5 | D46: 216400 | E46: 2224592 | F46: 2224592 | G46: sFundCode | H46: 1 | I46: 3000-01-01 | J46: 3000-01-01 | K46: 3000-01-01 | L46: 2627096 | M46: 2627096 | N46: 0 | O46: 0 | P46: -402504 | Q46: 0 | R46: 10.28 | S46: PERTUBUHAN KESELAMATAN SOCIAL(SOCSO) | T46: MYR | U46: 365 | V46: NM | W46: HARTALEGA HOLDINGS BHD | X46: MYR | Y46: EQT | Z46: Equity | AA46: HEALTH CARE | AI46: Ringgit Malaysia | AJ46: EQUITY | AK46: 1 | AL46: 0 | AM46: HARTALEGA HOLDINGS BHD | AN46: 2627096 | AO46: 2627096 | AP46: 3419161863 | AQ46: XKLS | AR46: 0 | AS46: ORD | AT46: MB | AW46: NAMM | AX46: MY | AY46: PERTUBUHAN KESELAMATAN SOCIAL(SOCSO) | BA46: 184713469.9 | BD46: FALSE | BE46: 0 | BF46: 5 | BG46: 0 | BH46: 1.204347469 | BI46: 0 | BJ46: 2020-12-31 | BK46: 2021-04-30 | BL46: 2627096 | BM46: 0 | BN46: -64920 | BO46: 0 | BP46: 0 | BQ46: PERTUBUHAN KESELAMATAN SOCIAL(SOCSO) | BR46: 0 | BT46: 0 | BU46: 0 | BV46: 10 | BW46: 0 | BX46: 2020-12-31 | CA46: N/A | CB46: FVTPL | CC46: MYL5168OO009 | CD46: 5168 | CE46: 44194 | CI46: 0 | CJ46: 0 | CK46: 2627096 | CL46: SOCSO*B2QPJK5 | CN46: MALAYSIA
A47: EQT | B47: SOCSO | C47: BN4JBJ9 | D47: 141600 | E47: 564984 | F47: 564984 | G47: sFundCode | H47: 1 | I47: 3000-01-01 | J47: 3000-01-01 | K47: 3000-01-01 | L47: 555452.14 | M47: 555452.14 | N47: 0 | O47: 0 | P47: 9531.86 | Q47: 0 | R47: 3.99 | S47: PERTUBUHAN KESELAMATAN SOCIAL(SOCSO) | T47: MYR | U47: 365 | V47: NM | W47: MR DIY GROUP M BHD | X47: MYR | Y47: EQT | Z47: Equity | AA47: CONSUMER PRODUCTS & SERVICES | AI47: Ringgit Malaysia | AJ47: EQUITY | AK47: 1 | AL47: 0 | AM47: MR DIY GROUP M BHD | AN47: 555452.14 | AO47: 555452.14 | AP47: 6276600000 | AQ47: XKLS | AR47: 0 | AS47: ORD | AT47: MB | AW47: NAMM | AX47: MY | AY47: PERTUBUHAN KESELAMATAN SOCIAL(SOCSO) | BA47: 184713469.9 | BD47: FALSE | BE47: 0 | BF47: 2 | BG47: 0 | BH47: 0.3058704924 | BI47: 0 | BJ47: 2021-04-20 | BK47: 2021-04-30 | BL47: 555452.14 | BM47: 0 | BN47: -15576 | BO47: 0 | BP47: 0 | BQ47: PERTUBUHAN KESELAMATAN SOCIAL(SOCSO) | BR47: 0 | BT47: 0 | BU47: 0 | BV47: 10 | BW47: 0 | BX47: 2021-04-20 | CA47: N/A | CB47: FVTPL | CC47: MYL5296OO008 | CD47: 5296 | CE47: 44302 | CL47: SOCSO*BN4JBJ9 | CN47: MALAYSIA
A48: TBI | B48: SOCSO | C48: TaxVal | D48: 0 | E48: 0 | F48: 0 | G48: sFundCode | H48: 1 | I48: 3000-01-01 | J48: 3000-01-01 | K48: 3000-01-01 | L48: 0 | M48: 0 | N48: 0 | O48: 0 | P48: 0 | Q48: 0 | R48: 0 | S48: PERTUBUHAN KESELAMATAN SOCIAL(SOCSO) | T48: MYR | U48: 365 | V48: NM | X48: MYR | Y48: TBI | Z48: Cash And Equivalent | AJ48: CASH AND EQUIVALENT | AK48: 1 | AL48: 0 | AM48: Tax Payable | AN48: 0 | AO48: 0 | AW48: NAMM | AY48: PERTUBUHAN KESELAMATAN SOCIAL(SOCSO) | BA48: 184713469.9 | BD48: FALSE | BE48: 0 | BG48: 0 | BH48: 0 | BI48: 0 | BJ48: 3000-01-01 | BK48: 3000-01-01 | BL48: 0 | BM48: 0 | BN48: 0 | BO48: 0 | BP48: 0 | BQ48: PERTUBUHAN KESELAMATAN SOCIAL(SOCSO) | BR48: 0 | BT48: 0 | BU48: 0 | BW48: 0 | BX48: 3000-01-01 | CB48: HFT | CE48: 401767
A49: TBI | B49: SOCSO | C49: OthVal | D49: 0 | E49: 0 | F49: 0 | G49: sFundCode | H49: 1 | I49: 3000-01-01 | J49: 3000-01-01 | K49: 3000-01-01 | L49: 0 | M49: 0 | N49: 0 | O49: 0 | P49: 0 | Q49: 0 | R49: 0 | S49: PERTUBUHAN KESELAMATAN SOCIAL(SOCSO) | T49: MYR | U49: 365 | V49: NM | X49: MYR | Y49: TBI | Z49: Cash And Equivalent | AJ49: CASH AND EQUIVALENT | AK49: 1 | AL49: 0 | AM49: Others | AN49: 0 | AO49: 0 | AW49: NAMM | AY49: PERTUBUHAN KESELAMATAN SOCIAL(SOCSO) | BA49: 184713469.9 | BD49: FALSE | BE49: 0 | BG49: 0 | BH49: 0 | BI49: 0 | BJ49: 3000-01-01 | BK49: 3000-01-01 | BL49: 0 | BM49: 0 | BN49: 0 | BO49: 0 | BP49: 0 | BQ49: PERTUBUHAN KESELAMATAN SOCIAL(SOCSO) | BR49: 0 | BT49: 0 | BU49: 0 | BW49: 0 | BX49: 3000-01-01 | CB49: HFT | CE49: 401767
A50: TBI | B50: SOCSO | C50: CustodianFee_BF | D50: 0 | E50: 0 | F50: 0 | G50: sFundCode | H50: 1 | I50: 3000-01-01 | J50: 3000-01-01 | K50: 3000-01-01 | L50: 0 | M50: 0 | N50: 0 | O50: 0 | P50: 0 | Q50: 0 | R50: 0 | S50: PERTUBUHAN KESELAMATAN SOCIAL(SOCSO) | T50: MYR | U50: 365 | V50: NM | X50: MYR | Y50: TBI | Z50: Cash And Equivalent | AJ50: CASH AND EQUIVALENT | AK50: 1 | AL50: 0 | AM50: Others | AN50: 0 | AO50: 0 | AW50: NAMM | AY50: PERTUBUHAN KESELAMATAN SOCIAL(SOCSO) | BA50: 184713469.9 | BD50: FALSE | BE50: 0 | BG50: 0 | BH50: 0 | BI50: 0 | BJ50: 3000-01-01 | BK50: 3000-01-01 | BL50: 0 | BM50: 0 | BN50: 0 | BO50: 0 | BP50: 0 | BQ50: PERTUBUHAN KESELAMATAN SOCIAL(SOCSO) | BR50: 0 | BT50: 0 | BU50: 0 | BW50: 0 | BX50: 3000-01-01 | CB50: HFT | CE50: 401767
A51: TBI | B51: SOCSO | C51: AuditorFee_BF | D51: 0 | E51: 0 | F51: 0 | G51: sFundCode | H51: 1 | I51: 3000-01-01 | J51: 3000-01-01 | K51: 3000-01-01 | L51: 0 | M51: 0 | N51: 0 | O51: 0 | P51: 0 | Q51: 0 | R51: 0 | S51: PERTUBUHAN KESELAMATAN SOCIAL(SOCSO) | T51: MYR | U51: 365 | V51: NM | X51: MYR | Y51: TBI | Z51: Cash And Equivalent | AJ51: CASH AND EQUIVALENT | AK51: 1 | AL51: 0 | AM51: Others | AN51: 0 | AO51: 0 | AW51: NAMM | AY51: PERTUBUHAN KESELAMATAN SOCIAL(SOCSO) | BA51: 184713469.9 | BD51: FALSE | BE51: 0 | BG51: 0 | BH51: 0 | BI51: 0 | BJ51: 3000-01-01 | BK51: 3000-01-01 | BL51: 0 | BM51: 0 | BN51: 0 | BO51: 0 | BP51: 0 | BQ51: PERTUBUHAN KESELAMATAN SOCIAL(SOCSO) | BR51: 0 | BT51: 0 | BU51: 0 | BW51: 0 | BX51: 3000-01-01 | CB51: HFT | CE51: 401767
A52: TBI | B52: SOCSO | C52: TrusteeFee_BF | D52: 0 | E52: 0 | F52: 0 | G52: sFundCode | H52: 1 | I52: 3000-01-01 | J52: 3000-01-01 | K52: 3000-01-01 | L52: 0 | M52: 0 | N52: 0 | O52: 0 | P52: 0 | Q52: 0 | R52: 0 | S52: PERTUBUHAN KESELAMATAN SOCIAL(SOCSO) | T52: MYR | U52: 365 | V52: NM | X52: MYR | Y52: TBI | Z52: Cash And Equivalent | AJ52: CASH AND EQUIVALENT | AK52: 1 | AL52: 0 | AM52: Others | AN52: 0 | AO52: 0 | AW52: NAMM | AY52: PERTUBUHAN KESELAMATAN SOCIAL(SOCSO) | BA52: 184713469.9 | BD52: FALSE | BE52: 0 | BG52: 0 | BH52: 0 | BI52: 0 | BJ52: 3000-01-01 | BK52: 3000-01-01 | BL52: 0 | BM52: 0 | BN52: 0 | BO52: 0 | BP52: 0 | BQ52: PERTUBUHAN KESELAMATAN SOCIAL(SOCSO) | BR52: 0 | BT52: 0 | BU52: 0 | BW52: 0 | BX52: 3000-01-01 | CB52: HFT | CE52: 401767
A53: TBI | B53: SOCSO | C53: MngFeeRebate_BF | D53: 0 | E53: 0 | F53: 0 | G53: sFundCode | H53: 1 | I53: 3000-01-01 | J53: 3000-01-01 | K53: 3000-01-01 | L53: 0 | M53: 0 | N53: 0 | O53: 0 | P53: 0 | Q53: 0 | R53: 0 | S53: PERTUBUHAN KESELAMATAN SOCIAL(SOCSO) | T53: MYR | U53: 365 | V53: NM | X53: MYR | Y53: TBI | Z53: Cash And Equivalent | AJ53: CASH AND EQUIVALENT | AK53: 1 | AL53: 0 | AM53: Others | AN53: 0 | AO53: 0 | AW53: NAMM | AY53: PERTUBUHAN KESELAMATAN SOCIAL(SOCSO) | BA53: 184713469.9 | BD53: FALSE | BE53: 0 | BG53: 0 | BH53: 0 | BI53: 0 | BJ53: 3000-01-01 | BK53: 3000-01-01 | BL53: 0 | BM53: 0 | BN53: 0 | BO53: 0 | BP53: 0 | BQ53: PERTUBUHAN KESELAMATAN SOCIAL(SOCSO) | BR53: 0 | BT53: 0 | BU53: 0 | BW53: 0 | BX53: 3000-01-01 | CB53: HFT | CE53: 401767
A54: TBI | B54: SOCSO | C54: BankVal | D54: 0 | E54: 57367.75 | F54: 57367.75 | G54: sFundCode | H54: 1 | I54: 3000-01-01 | J54: 3000-01-01 | K54: 3000-01-01 | L54: 57367.75 | M54: 0 | N54: 0 | O54: 0 | P54: 0 | Q54: 0 | R54: 0 | S54: PERTUBUHAN KESELAMATAN SOCIAL(SOCSO) | T54: MYR | U54: 365 | V54: NM | X54: MYR | Y54: TBI | Z54: Cash And Equivalent | AJ54: CASH AND EQUIVALENT | AK54: 1 | AL54: 0 | AM54: Bank Balance | AN54: 0 | AO54: 0 | AW54: NAMM | AY54: PERTUBUHAN KESELAMATAN SOCIAL(SOCSO) | BA54: 184713469.9 | BD54: FALSE | BE54: 0 | BG54: 0 | BH54: 0.0310576971 | BI54: 0 | BJ54: 3000-01-01 | BK54: 3000-01-01 | BL54: 0 | BM54: 0 | BN54: 0 | BO54: 0 | BP54: 0 | BQ54: PERTUBUHAN KESELAMATAN SOCIAL(SOCSO) | BR54: 0 | BT54: 0 | BU54: 0 | BW54: 0 | BX54: 3000-01-01 | CB54: HFT | CE54: 401767
A55: TBI | B55: SOCSO | C55: BrokerageFee_BF | D55: 0 | E55: 0 | F55: 0 | G55: sFundCode | H55: 1 | I55: 3000-01-01 | J55: 3000-01-01 | K55: 3000-01-01 | L55: 0 | M55: 0 | N55: 0 | O55: 0 | P55: 0 | Q55: 0 | R55: 0 | S55: PERTUBUHAN KESELAMATAN SOCIAL(SOCSO) | T55: MYR | U55: 365 | V55: NM | X55: MYR | Y55: TBI | Z55: Cash And Equivalent | AJ55: CASH AND EQUIVALENT | AK55: 1 | AL55: 0 | AM55: Others | AN55: 0 | AO55: 0 | AW55: NAMM | AY55: PERTUBUHAN KESELAMATAN SOCIAL(SOCSO) | BA55: 184713469.9 | BD55: FALSE | BE55: 0 | BG55: 0 | BH55: 0 | BI55: 0 | BJ55: 3000-01-01 | BK55: 3000-01-01 | BL55: 0 | BM55: 0 | BN55: 0 | BO55: 0 | BP55: 0 | BQ55: PERTUBUHAN KESELAMATAN SOCIAL(SOCSO) | BR55: 0 | BT55: 0 | BU55: 0 | BW55: 0 | BX55: 3000-01-01 | CB55: HFT | CE55: 401767
A56: TBI | B56: SOCSO | C56: DivVal | D56: 0 | E56: 165558 | F56: 165558 | G56: sFundCode | H56: 1 | I56: 3000-01-01 | J56: 3000-01-01 | K56: 3000-01-01 | L56: 165558 | M56: 0 | N56: 0 | O56: 0 | P56: 0 | Q56: 0 | R56: 0 | S56: PERTUBUHAN KESELAMATAN SOCIAL(SOCSO) | T56: MYR | U56: 365 | V56: NM | X56: MYR | Y56: TBI | Z56: Cash And Equivalent | AJ56: CASH AND EQUIVALENT | AK56: 1 | AL56: 0 | AM56: Dividend Receivable | AN56: 0 | AO56: 0 | AW56: NAMM | AY56: PERTUBUHAN KESELAMATAN SOCIAL(SOCSO) | BA56: 184713469.9 | BD56: FALSE | BE56: 0 | BG56: 0 | BH56: 0.08962963018 | BI56: 0 | BJ56: 3000-01-01 | BK56: 3000-01-01 | BL56: 0 | BM56: 0 | BN56: 0 | BO56: 0 | BP56: 0 | BQ56: PERTUBUHAN KESELAMATAN SOCIAL(SOCSO) | BR56: 0 | BT56: 0 | BU56: 0 | BW56: 0 | BX56: 3000-01-01 | CB56: HFT | CE56: 401767
A57: TBI | B57: SOCSO | C57: MngCr | D57: 0 | E57: 0 | F57: 0 | G57: sFundCode | H57: 1 | I57: 3000-01-01 | J57: 3000-01-01 | K57: 3000-01-01 | L57: 0 | M57: 0 | N57: 0 | O57: 0 | P57: 0 | Q57: 0 | R57: 0 | S57: PERTUBUHAN KESELAMATAN SOCIAL(SOCSO) | T57: MYR | U57: 365 | V57: NM | X57: MYR | Y57: TBI | Z57: Cash And Equivalent | AJ57: CASH AND EQUIVALENT | AK57: 1 | AL57: 0 | AM57: Others | AN57: 0 | AO57: 0 | AW57: NAMM | AY57: PERTUBUHAN KESELAMATAN SOCIAL(SOCSO) | BA57: 184713469.9 | BD57: FALSE | BE57: 0 | BG57: 0 | BH57: 0 | BI57: 0 | BJ57: 3000-01-01 | BK57: 3000-01-01 | BL57: 0 | BM57: 0 | BN57: 0 | BO57: 0 | BP57: 0 | BQ57: PERTUBUHAN KESELAMATAN SOCIAL(SOCSO) | BR57: 0 | BT57: 0 | BU57: 0 | BW57: 0 | BX57: 3000-01-01 | CB57: HFT | CE57: 401767
A58: TBI | B58: SOCSO | C58: MngDb | D58: 0 | E58: 0 | F58: 0 | G58: sFundCode | H58: 1 | I58: 3000-01-01 | J58: 3000-01-01 | K58: 3000-01-01 | L58: 0 | M58: 0 | N58: 0 | O58: 0 | P58: 0 | Q58: 0 | R58: 0 | S58: PERTUBUHAN KESELAMATAN SOCIAL(SOCSO) | T58: MYR | U58: 365 | V58: NM | X58: MYR | Y58: TBI | Z58: Cash And Equivalent | AJ58: CASH AND EQUIVALENT | AK58: 1 | AL58: 0 | AM58: Others | AN58: 0 | AO58: 0 | AW58: NAMM | AY58: PERTUBUHAN KESELAMATAN SOCIAL(SOCSO) | BA58: 184713469.9 | BD58: FALSE | BE58: 0 | BG58: 0 | BH58: 0 | BI58: 0 | BJ58: 3000-01-01 | BK58: 3000-01-01 | BL58: 0 | BM58: 0 | BN58: 0 | BO58: 0 | BP58: 0 | BQ58: PERTUBUHAN KESELAMATAN SOCIAL(SOCSO) | BR58: 0 | BT58: 0 | BU58: 0 | BW58: 0 | BX58: 3000-01-01 | CB58: HFT | CE58: 401767
A59: TBI | B59: SOCSO | C59: TradeCrVal | D59: 0 | E59: -30294.62 | F59: -30294.62 | G59: sFundCode | H59: 1 | I59: 3000-01-01 | J59: 3000-01-01 | K59: 3000-01-01 | L59: -30294.62 | M59: 0 | N59: 0 | O59: 0 | P59: 0 | Q59: 0 | R59: 0 | S59: PERTUBUHAN KESELAMATAN SOCIAL(SOCSO) | T59: MYR | U59: 365 | V59: NM | X59: MYR | Y59: TBI | Z59: Cash And Equivalent | AJ59: CASH AND EQUIVALENT | AK59: 1 | AL59: 0 | AM59: Creditor Broker | AN59: 0 | AO59: 0 | AW59: NAMM | AY59: PERTUBUHAN KESELAMATAN SOCIAL(SOCSO) | BA59: 184713469.9 | BD59: FALSE | BE59: 0 | BG59: 0 | BH59: -0.01640087212 | BI59: 0 | BJ59: 3000-01-01 | BK59: 3000-01-01 | BL59: 0 | BM59: 0 | BN59: 0 | BO59: 0 | BP59: 0 | BQ59: PERTUBUHAN KESELAMATAN SOCIAL(SOCSO) | BR59: 0 | BT59: 0 | BU59: 0 | BW59: 0 | BX59: 3000-01-01 | CB59: HFT | CE59: 401767
A60: TBI | B60: SOCSO | C60: TradeDrVal | D60: 0 | E60: 0 | F60: 0 | G60: sFundCode | H60: 1 | I60: 3000-01-01 | J60: 3000-01-01 | K60: 3000-01-01 | L60: 0 | M60: 0 | N60: 0 | O60: 0 | P60: 0 | Q60: 0 | R60: 0 | S60: PERTUBUHAN KESELAMATAN SOCIAL(SOCSO) | T60: MYR | U60: 365 | V60: NM | X60: MYR | Y60: TBI | Z60: Cash And Equivalent | AJ60: CASH AND EQUIVALENT | AK60: 1 | AL60: 0 | AM60: Debtor Broker | AN60: 0 | AO60: 0 | AW60: NAMM | AY60: PERTUBUHAN KESELAMATAN SOCIAL(SOCSO) | BA60: 184713469.9 | BD60: FALSE | BE60: 0 | BG60: 0 | BH60: 0 | BI60: 0 | BJ60: 3000-01-01 | BK60: 3000-01-01 | BL60: 0 | BM60: 0 | BN60: 0 | BO60: 0 | BP60: 0 | BQ60: PERTUBUHAN KESELAMATAN SOCIAL(SOCSO) | BR60: 0 | BT60: 0 | BU60: 0 | BW60: 0 | BX60: 3000-01-01 | CB60: HFT | CE60: 401767
A61: TBI | B61: SOCSO | C61: BankVal-FX | D61: 0 | E61: 0 | F61: 0 | G61: sFundCode | H61: 1 | I61: 3000-01-01 | J61: 3000-01-01 | K61: 3000-01-01 | L61: 0 | M61: 0 | N61: 0 | O61: 0 | P61: 0 | Q61: 0 | R61: 0 | S61: PERTUBUHAN KESELAMATAN SOCIAL(SOCSO) | T61: MYR | U61: 365 | V61: NM | X61: MYR | Y61: TBI | Z61: Cash And Equivalent | AJ61: CASH AND EQUIVALENT | AK61: 1 | AL61: 0 | AM61: Bank Balance - Foreign | AN61: 0 | AO61: 0 | AW61: NAMM | AY61: PERTUBUHAN KESELAMATAN SOCIAL(SOCSO) | BA61: 184713469.9 | BD61: FALSE | BE61: 0 | BG61: 0 | BH61: 0 | BI61: 0 | BJ61: 3000-01-01 | BK61: 3000-01-01 | BL61: 0 | BM61: 0 | BN61: 0 | BO61: 0 | BP61: 0 | BQ61: PERTUBUHAN KESELAMATAN SOCIAL(SOCSO) | BR61: 0 | BT61: 0 | BU61: 0 | BW61: 0 | BX61: 3000-01-01 | CB61: HFT | CE61: 401767
A62: TBI | B62: SOCSO | C62: MngFee_BF | D62: 0 | E62: 0 | F62: 0 | G62: sFundCode | H62: 1 | I62: 3000-01-01 | J62: 3000-01-01 | K62: 3000-01-01 | L62: 0 | M62: 0 | N62: 0 | O62: 0 | P62: 0 | Q62: 0 | R62: 0 | S62: PERTUBUHAN KESELAMATAN SOCIAL(SOCSO) | T62: MYR | U62: 365 | V62: NM | X62: MYR | Y62: TBI | Z62: Cash And Equivalent | AJ62: CASH AND EQUIVALENT | AK62: 1 | AL62: 0 | AM62: Others | AN62: 0 | AO62: 0 | AW62: NAMM | AY62: PERTUBUHAN KESELAMATAN SOCIAL(SOCSO) | BA62: 184713469.9 | BD62: FALSE | BE62: 0 | BG62: 0 | BH62: 0 | BI62: 0 | BJ62: 3000-01-01 | BK62: 3000-01-01 | BL62: 0 | BM62: 0 | BN62: 0 | BO62: 0 | BP62: 0 | BQ62: PERTUBUHAN KESELAMATAN SOCIAL(SOCSO) | BR62: 0 | BT62: 0 | BU62: 0 | BW62: 0 | BX62: 3000-01-01 | CB62: HFT | CE62: 401767
A63: TBI | B63: SOCSO | C63: ProvDistVal | D63: 0 | E63: 0 | F63: 0 | G63: sFundCode | H63: 1 | I63: 3000-01-01 | J63: 3000-01-01 | K63: 3000-01-01 | L63: 0 | M63: 0 | N63: 0 | O63: 0 | P63: 0 | Q63: 0 | R63: 0 | S63: PERTUBUHAN KESELAMATAN SOCIAL(SOCSO) | T63: MYR | U63: 365 | V63: NM | X63: MYR | Y63: TBI | Z63: Cash And Equivalent | AJ63: CASH AND EQUIVALENT | AK63: 1 | AL63: 0 | AM63: Others | AN63: 0 | AO63: 0 | AW63: NAMM | AY63: PERTUBUHAN KESELAMATAN SOCIAL(SOCSO) | BA63: 184713469.9 | BD63: FALSE | BE63: 0 | BG63: 0 | BH63: 0 | BI63: 0 | BJ63: 3000-01-01 | BK63: 3000-01-01 | BL63: 0 | BM63: 0 | BN63: 0 | BO63: 0 | BP63: 0 | BQ63: PERTUBUHAN KESELAMATAN SOCIAL(SOCSO) | BR63: 0 | BT63: 0 | BU63: 0 | BW63: 0 | BX63: 3000-01-01 | CB63: HFT | CE63: 401767
A64: TBI | B64: SOCSO | C64: DefTaxProvVal | D64: 0 | E64: 0 | F64: 0 | G64: sFundCode | H64: 1 | I64: 3000-01-01 | J64: 3000-01-01 | K64: 3000-01-01 | L64: 0 | M64: 0 | N64: 0 | O64: 0 | P64: 0 | Q64: 0 | R64: 0 | S64: PERTUBUHAN KESELAMATAN SOCIAL(SOCSO) | T64: MYR | U64: 365 | V64: NM | X64: MYR | Y64: TBI | Z64: Cash And Equivalent | AJ64: CASH AND EQUIVALENT | AK64: 1 | AL64: 0 | AM64: Tax Payable | AN64: 0 | AO64: 0 | AW64: NAMM | AY64: PERTUBUHAN KESELAMATAN SOCIAL(SOCSO) | BA64: 184713469.9 | BD64: FALSE | BE64: 0 | BG64: 0 | BH64: 0 | BI64: 0 | BJ64: 3000-01-01 | BK64: 3000-01-01 | BL64: 0 | BM64: 0 | BN64: 0 | BO64: 0 | BP64: 0 | BQ64: PERTUBUHAN KESELAMATAN SOCIAL(SOCSO) | BR64: 0 | BT64: 0 | BU64: 0 | BW64: 0 | BX64: 3000-01-01 | CB64: HFT | CE64: 401767
A65: TBI | B65: SOCSO | C65: TaxProvVal | D65: 0 | E65: 0 | F65: 0 | G65: sFundCode | H65: 1 | I65: 3000-01-01 | J65: 3000-01-01 | K65: 3000-01-01 | L65: 0 | M65: 0 | N65: 0 | O65: 0 | P65: 0 | Q65: 0 | R65: 0 | S65: PERTUBUHAN KESELAMATAN SOCIAL(SOCSO) | T65: MYR | U65: 365 | V65: NM | X65: MYR | Y65: TBI | Z65: Cash And Equivalent | AJ65: CASH AND EQUIVALENT | AK65: 1 | AL65: 0 | AM65: Tax Payable | AN65: 0 | AO65: 0 | AW65: NAMM | AY65: PERTUBUHAN KESELAMATAN SOCIAL(SOCSO) | BA65: 184713469.9 | BD65: FALSE | BE65: 0 | BG65: 0 | BH65: 0 | BI65: 0 | BJ65: 3000-01-01 | BK65: 3000-01-01 | BL65: 0 | BM65: 0 | BN65: 0 | BO65: 0 | BP65: 0 | BQ65: PERTUBUHAN KESELAMATAN SOCIAL(SOCSO) | BR65: 0 | BT65: 0 | BU65: 0 | BW65: 0 | BX65: 3000-01-01 | CB65: HFT | CE65: 401767
A66: TBI | B66: SOCSO | C66: OtherCrVal | D66: 0 | E66: 0 | F66: 0 | G66: sFundCode | H66: 1 | I66: 3000-01-01 | J66: 3000-01-01 | K66: 3000-01-01 | L66: 0 | M66: 0 | N66: 0 | O66: 0 | P66: 0 | Q66: 0 | R66: 0 | S66: PERTUBUHAN KESELAMATAN SOCIAL(SOCSO) | T66: MYR | U66: 365 | V66: NM | X66: MYR | Y66: TBI | Z66: Cash And Equivalent | AJ66: CASH AND EQUIVALENT | AK66: 1 | AL66: 0 | AM66: Others | AN66: 0 | AO66: 0 | AW66: NAMM | AY66: PERTUBUHAN KESELAMATAN SOCIAL(SOCSO) | BA66: 184713469.9 | BD66: FALSE | BE66: 0 | BG66: 0 | BH66: 0 | BI66: 0 | BJ66: 3000-01-01 | BK66: 3000-01-01 | BL66: 0 | BM66: 0 | BN66: 0 | BO66: 0 | BP66: 0 | BQ66: PERTUBUHAN KESELAMATAN SOCIAL(SOCSO) | BR66: 0 | BT66: 0 | BU66: 0 | BW66: 0 | BX66: 3000-01-01 | CB66: HFT | CE66: 401767
A67: TBI | B67: SOCSO | C67: OtherDbVal | D67: 0 | E67: 0 | F67: 0 | G67: sFundCode | H67: 1 | I67: 3000-01-01 | J67: 3000-01-01 | K67: 3000-01-01 | L67: 0 | M67: 0 | N67: 0 | O67: 0 | P67: 0 | Q67: 0 | R67: 0 | S67: PERTUBUHAN KESELAMATAN SOCIAL(SOCSO) | T67: MYR | U67: 365 | V67: NM | X67: MYR | Y67: TBI | Z67: Cash And Equivalent | AJ67: CASH AND EQUIVALENT | AK67: 1 | AL67: 0 | AM67: Others | AN67: 0 | AO67: 0 | AW67: NAMM | AY67: PERTUBUHAN KESELAMATAN SOCIAL(SOCSO) | BA67: 184713469.9 | BD67: FALSE | BE67: 0 | BG67: 0 | BH67: 0 | BI67: 0 | BJ67: 3000-01-01 | BK67: 3000-01-01 | BL67: 0 | BM67: 0 | BN67: 0 | BO67: 0 | BP67: 0 | BQ67: PERTUBUHAN KESELAMATAN SOCIAL(SOCSO) | BR67: 0 | BT67: 0 | BU67: 0 | BW67: 0 | BX67: 3000-01-01 | CB67: HFT | CE67: 401767

Sheet InTrn
A1: sPeriod | B1: qEventTrxID | C1: qTrnCode | D1: qProductType | E1: qFundCode | F1: TradeDate | G1: ValueDate | H1: PayDate | I1: RevDate | J1: AccDate | K1: PosTrnMatDt | L1: qCPCode | M1: SettCurrency | N1: qStockCode | O1: ExchgRateSF | P1: TranYTM | Q1: UnitFaceValue | R1: CostSC | S1: CostFC | T1: SCGrossProceed | U1: SCNetProceed | V1: TranProceed | W1: TranGains | X1: BrokerageFee | Y1: ClearingFee | Z1: StampDuty | AA1: CustodianFeeCC | AB1: CustodianFeeFC | AC1: TranIncome | AD1: TranBuyCapital | AE1: TranFXGnL | AF1: CrossTrade | AG1: ContractNote | AH1: qAssetAccType | AI1: TranPreAcq | AJ1: qMasterID | AK1: TranAmortAccre | AL1: Remarks | AM1: qInvType | AN1: PurchaseDate | AO1: CummFV | AP1: FCNetProceed | AQ1: FCGrossProceed | AR1: CPName
A2: Cur | B2: EQT*210400849 | C2: SS | D2: EQT | E2: SOCSO | F2: 2021-04-13 | G2: 2021-04-13 | H2: 2021-04-15 | I2: 3000-01-01 | J2: 2021-04-13 | K2: 01/01/3000 | L2: 7 | M2: MYR | N2: B0KLDR0 | O2: 1 | P2: 0 | Q2: -33600 | R2: -514637.31 | S2: -514637.31 | T2: 542928.96 | U2: 541702.83 | V2: 0 | W2: -27065.52 | X2: 814.39 | Y2: 0 | Z2: 200 | AA2: 0 | AB2: 0 | AC2: 0 | AD2: -514637.31 | AE2: 0 | AF2: 0 | AH2: 10 | AI2: 0 | AJ2: SOCSO*B0KLDR0 | AK2: 0 | AM2: FVTPL | AN2: 2020-12-31 | AO2: 281200 | AP2: 541702.83 | AQ2: 542928.96 | AR2: NOMURA SECURITIES
A3: Cur | B3: EQT*210400921 | C3: SS | D3: EQT | E3: SOCSO | F3: 2021-04-14 | G3: 2021-04-14 | H3: 2021-04-16 | I3: 3000-01-01 | J3: 2021-04-14 | K3: 01/01/3000 | L3: 7 | M3: MYR | N3: B0KLDR0 | O3: 1 | P3: 0 | Q3: -9700 | R3: -148570.89 | S3: -148570.89 | T3: 154126.21 | U3: 153679.91 | V3: 0 | W3: -5109.02 | X3: 231.19 | Y3: 0 | Z3: 155 | AA3: 0 | AB3: 0 | AC3: 0 | AD3: -148570.89 | AE3: 0 | AF3: 0 | AH3: 10 | AI3: 0 | AJ3: SOCSO*B0KLDR0 | AK3: 0 | AM3: FVTPL | AN3: 2020-12-31 | AO3: 271500 | AP3: 153679.91 | AQ3: 154126.21 | AR3: NOMURA SECURITIES
A4: Cur | B4: EQT*210401008 | C4: SS | D4: EQT | E4: SOCSO | F4: 2021-04-15 | G4: 2021-04-15 | H4: 2021-04-19 | I4: 3000-01-01 | J4: 2021-04-15 | K4: 01/01/3000 | L4: 7 | M4: MYR | N4: B0KLDR0 | O4: 1 | P4: 0 | Q4: -6700 | R4: -102621.13 | S4: -102621.13 | T4: 106111.92 | U4: 105804.36 | V4: 0 | W4: -3183.23 | X4: 159.17 | Y4: 0 | Z4: 107 | AA4: 0 | AB4: 0 | AC4: 0 | AD4: -102621.13 | AE4: 0 | AF4: 0 | AH4: 10 | AI4: 0 | AJ4: SOCSO*B0KLDR0 | AK4: 0 | AM4: FVTPL | AN4: 2020-12-31 | AO4: 264800 | AP4: 105804.36 | AQ4: 106111.92 | AR4: NOMURA SECURITIES
A5: Cur | B5: EQT*210400667 | C5: SP | D5: EQT | E5: SOCSO | F5: 2021-04-09 | G5: 2021-04-09 | H5: 2021-04-13 | I5: 3000-01-01 | J5: 2021-04-09 | K5: 01/01/3000 | L5: CIGK | M5: MYR | N5: 6086242 | O5: 1 | P5: 0 | Q5: 63900 | R5: 267749.21 | S5: 267749.21 | T5: -267044.49 | U5: -267749.21 | V5: 0 | W5: 0 | X5: 400.57 | Y5: 0 | Z5: 200 | AA5: 0 | AB5: 0 | AC5: 0 | AD5: 267749.21 | AE5: 0 | AF5: 0 | AH5: 10 | AI5: 0 | AJ5: SOCSO*6086242 | AK5: 0 | AM5: FVTPL | AN5: 2021-04-09 | AO5: 63900 | AP5: -267749.21 | AQ5: -267044.49 | AR5: CIMB-GK
A6: Cur | B6: EQT*210400848 | C6: SP | D6: EQT | E6: SOCSO | F6: 2021-04-13 | G6: 2021-04-13 | H6: 2021-04-15 | I6: 3000-01-01 | J6: 2021-04-13 | K6: 01/01/3000 | L6: CLS | M6: MYR | N6: 6086242 | O6: 1 | P6: 0 | Q6: 19700 | R6: 84949.19 | S6: 84949.19 | T6: -84704.09 | U6: -84949.19 | V6: 0 | W6: 0 | X6: 127.06 | Y6: 0 | Z6: 85 | AA6: 0 | AB6: 0 | AC6: 0 | AD6: 84949.19 | AE6: 0 | AF6: 0 | AH6: 10 | AI6: 0 | AJ6: SOCSO*6086242 | AK6: 0 | AM6: FVTPL | AN6: 2021-04-09 | AO6: 308700 | AP6: -84949.19 | AQ6: -84704.09 | AR6: CLSA
A7: Cur | B7: EQT*210400920 | C7: SP | D7: EQT | E7: SOCSO | F7: 2021-04-14 | G7: 2021-04-14 | H7: 2021-04-16 | I7: 3000-01-01 | J7: 2021-04-14 | K7: 01/01/3000 | L7: CLS | M7: MYR | N7: 6086242 | O7: 1 | P7: 0 | Q7: 174100 | R7: 746110.96 | S7: 746110.96 | T7: -744503.83 | U7: -746110.96 | V7: 0 | W7: 0 | X7: 1116.76 | Y7: 0 | Z7: 200 | AA7: 0 | AB7: 0 | AC7: 0 | AD7: 746110.96 | AE7: 0 | AF7: 0 | AH7: 10 | AI7: 0 | AJ7: SOCSO*6086242 | AK7: 0 | AM7: FVTPL | AN7: 2021-04-09 | AO7: 482800 | AP7: -746110.96 | AQ7: -744503.83 | AR7: CLSA
A8: Cur | B8: EQT*210401006 | C8: SP | D8: EQT | E8: SOCSO | F8: 2021-04-15 | G8: 2021-04-15 | H8: 2021-04-19 | I8: 3000-01-01 | J8: 2021-04-15 | K8: 01/01/3000 | L8: CLS | M8: MYR | N8: 6086242 | O8: 1 | P8: 0 | Q8: 117200 | R8: 496575.95 | S8: 496575.95 | T8: -495439.56 | U8: -496575.95 | V8: 0 | W8: 0 | X8: 743.16 | Y8: 0 | Z8: 200 | AA8: 0 | AB8: 0 | AC8: 0 | AD8: 496575.95 | AE8: 0 | AF8: 0 | AH8: 10 | AI8: 0 | AJ8: SOCSO*6086242 | AK8: 0 | AM8: FVTPL | AN8: 2021-04-09 | AO8: 600000 | AP8: -496575.95 | AQ8: -495439.56 | AR8: CLSA
A9: Cur | B9: EQT*210401234 | C9: SP | D9: EQT | E9: SOCSO | F9: 2021-04-20 | G9: 2021-04-20 | H9: 2021-04-22 | I9: 3000-01-01 | J9: 2021-04-20 | K9: 01/01/3000 | L9: CLS | M9: MYR | N9: BN4JBJ9 | O9: 1 | P9: 0 | Q9: 115000 | R9: 451563.98 | S9: 451563.98 | T9: -450512.5 | U9: -451563.98 | V9: 0 | W9: 0 | X9: 675.77 | Y9: 0 | Z9: 200 | AA9: 0 | AB9: 0 | AC9: 0 | AD9: 451563.98 | AE9: 0 | AF9: 0 | AH9: 10 | AI9: 0 | AJ9: SOCSO*BN4JBJ9 | AK9: 0 | AM9: FVTPL | AN9: 2021-04-20 | AO9: 115000 | AP9: -451563.98 | AQ9: -450512.5 | AR9: CLSA
A10: Cur | B10: EQT*210401441 | C10: SP | D10: EQT | E10: SOCSO | F10: 2021-04-22 | G10: 2021-04-22 | H10: 2021-04-26 | I10: 3000-01-01 | J10: 2021-04-22 | K10: 01/01/3000 | L10: CLS | M10: MYR | N10: BN4JBJ9 | O10: 1 | P10: 0 | Q10: 26600 | R10: 103888.16 | S10: 103888.16 | T10: -103588.38 | U10: -103888.16 | V10: 0 | W10: 0 | X10: 155.38 | Y10: 0 | Z10: 104 | AA10: 0 | AB10: 0 | AC10: 0 | AD10: 103888.16 | AE10: 0 | AF10: 0 | AH10: 10 | AI10: 0 | AJ10: SOCSO*BN4JBJ9 | AK10: 0 | AM10: FVTPL | AN10: 2021-04-20 | AO10: 141600 | AP10: -103888.16 | AQ10: -103588.38 | AR10: CLSA
A11: Cur | B11: EQT*210400782 | C11: SP | D11: EQT | E11: SOCSO | F11: 2021-04-12 | G11: 2021-04-12 | H11: 2021-04-14 | I11: 3000-01-01 | J11: 2021-04-12 | K11: 01/01/3000 | L11: CLS | M11: MYR | N11: 6086242 | O11: 1 | P11: 0 | Q11: 225100 | R11: 964637 | S11: 964637 | T11: -962617.64 | U11: -964637 | V11: 0 | W11: 0 | X11: 1443.93 | Y11: 0 | Z11: 200 | AA11: 0 | AB11: 0 | AC11: 0 | AD11: 964637 | AE11: 0 | AF11: 0 | AH11: 10 | AI11: 0 | AJ11: SOCSO*6086242 | AK11: 0 | AM11: FVTPL | AN11: 2021-04-09 | AO11: 289000 | AP11: -964637 | AQ11: -962617.64 | AR11: CLSA
A12: Cur | B12: EQT*210400199 | C12: SS | D12: EQT | E12: SOCSO | F12: 2021-04-02 | G12: 2021-04-02 | H12: 2021-04-06 | I12: 3000-01-01 | J12: 2021-04-02 | K12: 01/01/3000 | L12: CLS | M12: MYR | N12: B6VGS93 | O12: 1 | P12: 0 | Q12: -62600 | R12: -102203.34 | S12: -102203.34 | T12: 106420 | U12: 106111.86 | V12: 0 | W12: -3908.52 | X12: 159.63 | Y12: 0 | Z12: 107 | AA12: 0 | AB12: 0 | AC12: 0 | AD12: -102203.34 | AE12: 0 | AF12: 0 | AH12: 10 | AI12: 0 | AJ12: SOCSO*B6VGS93 | AK12: 0 | AM12: FVTPL | AN12: 2020-12-31 | AO12: 2638500 | AP12: 106111.86 | AQ12: 106420 | AR12: CLSA
A13: Cur | B13: EQT*210400354 | C13: SS | D13: EQT | E13: SOCSO | F13: 2021-04-06 | G13: 2021-04-06 | H13: 2021-04-08 | I13: 3000-01-01 | J13: 2021-04-06 | K13: 01/01/3000 | L13: CLS | M13: MYR | N13: B6VGS93 | O13: 1 | P13: 0 | Q13: -27400 | R13: -44734.37 | S13: -44734.37 | T13: 47059.5 | U13: 46922.55 | V13: 0 | W13: -2188.18 | X13: 70.59 | Y13: 0 | Z13: 48 | AA13: 0 | AB13: 0 | AC13: 0 | AD13: -44734.37 | AE13: 0 | AF13: 0 | AH13: 10 | AI13: 0 | AJ13: SOCSO*B6VGS93 | AK13: 0 | AM13: FVTPL | AN13: 2020-12-31 | AO13: 2529400 | AP13: 46922.55 | AQ13: 47059.5 | AR13: CLSA
A14: Cur | B14: EQT*210401440 | C14: SS | D14: EQT | E14: SOCSO | F14: 2021-04-22 | G14: 2021-04-22 | H14: 2021-04-26 | I14: 3000-01-01 | J14: 2021-04-22 | K14: 01/01/3000 | L14: CS | M14: MYR | N14: B0KLDR0 | O14: 1 | P14: 0 | Q14: -6600 | R14: -101089.47 | S14: -101089.47 | T14: 105881.82 | U14: 105575.7 | V14: 0 | W14: -4486.23 | X14: 158.82 | Y14: 0 | Z14: 106 | AA14: 0 | AB14: 0 | AC14: 0 | AD14: -101089.47 | AE14: 0 | AF14: 0 | AH14: 10 | AI14: 0 | AJ14: SOCSO*B0KLDR0 | AK14: 0 | AM14: FVTPL | AN14: 2020-12-31 | AO14: 258200 | AP14: 105575.7 | AQ14: 105881.82 | AR14: COLLINS STEWART
A15: Cur | B15: EQT*210401597 | C15: SS | D15: EQT | E15: SOCSO | F15: 2021-04-26 | G15: 2021-04-26 | H15: 2021-04-28 | I15: 3000-01-01 | J15: 2021-04-26 | K15: 01/01/3000 | L15: KAF | M15: MYR | N15: B54JP79 | O15: 1 | P15: 0 | Q15: -58800 | R15: -145501.18 | S15: -145501.18 | T15: 208645.92 | U15: 208051.57 | V15: 0 | W15: -62550.39 | X15: 312.97 | Y15: 0 | Z15: 200 | AA15: 0 | AB15: 0 | AC15: 0 | AD15: -145501.18 | AE15: 0 | AF15: 0 | AH15: 10 | AI15: 0 | AJ15: SOCSO*B54JP79 | AK15: 0 | AM15: FVTPL | AN15: 2020-12-31 | AO15: 871200 | AP15: 208051.57 | AQ15: 208645.92 | AR15: KAF EQUITIES SDN BHD
A16: Cur | B16: EQT*210401439 | C16: SS | D16: EQT | E16: SOCSO | F16: 2021-04-22 | G16: 2021-04-22 | H16: 2021-04-26 | I16: 3000-01-01 | J16: 2021-04-22 | K16: 01/01/3000 | L16: KAF | M16: MYR | N16: 6336538 | O16: 1 | P16: 0 | Q16: -20000 | R16: -226788.16 | S16: -226788.16 | T16: 279200 | U16: 278472.31 | V16: 0 | W16: -51684.15 | X16: 418.8 | Y16: 0 | Z16: 200 | AA16: 0 | AB16: 0 | AC16: 0 | AD16: -226788.16 | AE16: 0 | AF16: 0 | AH16: 10 | AI16: 0 | AJ16: SOCSO*6336538 | AK16: 0 | AM16: FVTPL | AN16: 2020-12-31 | AO16: 230000 | AP16: 278472.31 | AQ16: 279200 | AR16: KAF EQUITIES SDN BHD
A17: Cur | B17: CSH*210400239 | C17: CN | D17: CSH | E17: SOCSO | F17: 2021-04-07 | G17: 2021-04-07 | H17: 2021-04-07 | I17: 3000-01-01 | J17: 2021-04-07 | K17: 01/01/3000 | L17: KL;CASHDUMMY | M17: MYR | N17: CAP*MYR | O17: 1 | P17: 0 | Q17: -3326886.52 | R17: 3326886.52 | S17: 3326886.52 | T17: -3326886.52 | U17: -3326886.52 | V17: 0 | W17: 0 | X17: 0 | Y17: 0 | Z17: 0 | AA17: 0 | AB17: 0 | AC17: 0 | AD17: 3326886.52 | AE17: 0 | AF17: 0 | AH17: 0 | AI17: 0 | AJ17: CSH*210400239 | AK17: 0 | AM17: FVTPL | AN17: 2021-04-07 | AO17: 0 | AP17: -3326886.52 | AQ17: -3326886.52 | AR17: KL;CASHDUMMY
A18: Cur | B18: EQT*210401070 | C18: SS | D18: EQT | E18: SOCSO | F18: 2021-04-16 | G18: 2021-04-16 | H18: 2021-04-20 | I18: 3000-01-01 | J18: 2021-04-16 | K18: 01/01/3000 | L18: MAC | M18: MYR | N18: B06FV38 | O18: 1 | P18: 0 | Q18: -2600 | R18: -22194.82 | S18: -22194.82 | T18: 22440.08 | U18: 22367.94 | V18: 0 | W18: -173.12 | X18: 40 | Y18: 0 | Z18: 23 | AA18: 0 | AB18: 0 | AC18: 0 | AD18: -22194.82 | AE18: 0 | AF18: 0 | AH18: 10 | AI18: 0 | AJ18: SOCSO*B06FV38 | AK18: 0 | AM18: FVTPL | AN18: 2020-12-31 | AO18: 251200 | AP18: 22367.94 | AQ18: 22440.08 | AR18: MACQUARIE SECURITIES
A19: Cur | B19: EQT*210401007 | C19: SS | D19: EQT | E19: SOCSO | F19: 2021-04-15 | G19: 2021-04-15 | H19: 2021-04-19 | I19: 3000-01-01 | J19: 2021-04-15 | K19: 01/01/3000 | L19: MAC | M19: MYR | N19: B06FV38 | O19: 1 | P19: 0 | Q19: -26200 | R19: -223655.54 | S19: -223655.54 | T19: 225788.98 | U19: 225162.24 | V19: 0 | W19: -1506.7 | X19: 338.68 | Y19: 0 | Z19: 200 | AA19: 0 | AB19: 0 | AC19: 0 | AD19: -223655.54 | AE19: 0 | AF19: 0 | AH19: 10 | AI19: 0 | AJ19: SOCSO*B06FV38 | AK19: 0 | AM19: FVTPL | AN19: 2020-12-31 | AO19: 253800 | AP19: 225162.24 | AQ19: 225788.98 | AR19: MACQUARIE SECURITIES
A20: Cur | B20: EQT*210401135 | C20: SP | D20: EQT | E20: SOCSO | F20: 2021-04-19 | G20: 2021-04-19 | H20: 2021-04-21 | I20: 3000-01-01 | J20: 2021-04-19 | K20: 01/01/3000 | L20: MAC | M20: MYR | N20: BF0J5S4 | O20: 1 | P20: 0 | Q20: 50000 | R20: 268145.47 | S20: 268145.47 | T20: -267440 | U20: -268145.47 | V20: 0 | W20: 0 | X20: 401.16 | Y20: 0 | Z20: 200 | AA20: 0 | AB20: 0 | AC20: 0 | AD20: 268145.47 | AE20: 0 | AF20: 0 | AH20: 10 | AI20: 0 | AJ20: SOCSO*BF0J5S4 | AK20: 0 | AM20: FVTPL | AN20: 2021-01-11 | AO20: 1210000 | AP20: -268145.47 | AQ20: -267440 | AR20: MACQUARIE SECURITIES
A21: Cur | B21: EQT*210401663 | C21: SS | D21: EQT | E21: SOCSO | F21: 2021-04-27 | G21: 2021-04-27 | H21: 2021-04-30 | I21: 3000-01-01 | J21: 2021-04-27 | K21: 01/01/3000 | L21: MAC | M21: MYR | N21: B54JP79 | O21: 1 | P21: 0 | Q21: -61200 | R21: -151440 | S21: -151440 | T21: 219157.2 | U21: 218542.99 | V21: 0 | W21: -67102.99 | X21: 328.74 | Y21: 0 | Z21: 200 | AA21: 0 | AB21: 0 | AC21: 0 | AD21: -151440 | AE21: 0 | AF21: 0 | AH21: 10 | AI21: 0 | AJ21: SOCSO*B54JP79 | AK21: 0 | AM21: FVTPL | AN21: 2020-12-31 | AO21: 810000 | AP21: 218542.99 | AQ21: 219157.2 | AR21: MACQUARIE SECURITIES
A22: Cur | B22: EQT*210401522 | C22: SS | D22: EQT | E22: SOCSO | F22: 2021-04-23 | G22: 2021-04-23 | H22: 2021-04-27 | I22: 3000-01-01 | J22: 2021-04-23 | K22: 01/01/3000 | L22: MAC | M22: MYR | N22: B0KLDR0 | O22: 1 | P22: 0 | Q22: -28400 | R22: -434991.06 | S22: -434991.06 | T22: 463891.28 | U22: 462814.52 | V22: 0 | W22: -27823.46 | X22: 695.84 | Y22: 0 | Z22: 200 | AA22: 0 | AB22: 0 | AC22: 0 | AD22: -434991.06 | AE22: 0 | AF22: 0 | AH22: 10 | AI22: 0 | AJ22: SOCSO*B0KLDR0 | AK22: 0 | AM22: FVTPL | AN22: 2020-12-31 | AO22: 229800 | AP22: 462814.52 | AQ22: 463891.28 | AR22: MACQUARIE SECURITIES
A23: Cur | B23: EQC*210400299 | C23: SI | D23: EQT | E23: SOCSO | F23: 2021-04-23 | G23: 2021-04-23 | H23: 2021-05-11 | I23: 3000-01-01 | J23: 2021-04-23 | K23: 01/01/3000 | L23: N/A | M23: MYR | N23: B29TTR1 | O23: 1 | P23: 0 | Q23: 0 | R23: 0 | S23: 0 | T23: 97272 | U23: 97272 | V23: 0 | W23: -97272 | X23: 97272 | Y23: 0 | Z23: 0 | AA23: 0 | AB23: 0 | AC23: 0 | AD23: 0 | AE23: 0 | AF23: 0 | AH23: 10 | AI23: 0 | AJ23: SOCSO*B29TTR1 | AK23: 0 | AL23: J003917250 | AM23: FVTPL | AN23: 2020-12-31 | AO23: 2431800 | AP23: 97272 | AQ23: 97272 | AR23: NOT APPLICABLE
A24: Cur | B24: EQC*210400137 | C24: SI | D24: EQT | E24: SOCSO | F24: 2021-04-16 | G24: 2021-04-16 | H24: 2021-05-06 | I24: 3000-01-01 | J24: 2021-04-16 | K24: 01/01/3000 | L24: N/A | M24: MYR | N24: BGLKMM6 | O24: 1 | P24: 0 | Q24: 0 | R24: 0 | S24: 0 | T24: 19650 | U24: 19650 | V24: 0 | W24: -19650 | X24: 19650 | Y24: 0 | Z24: 0 | AA24: 0 | AB24: 0 | AC24: 0 | AD24: 0 | AE24: 0 | AF24: 0 | AH24: 10 | AI24: 0 | AJ24: SOCSO*BGLKMM6 | AK24: 0 | AL24: J003905326 | AM24: FVTPL | AN24: 2020-12-31 | AO24: 1310000 | AP24: 19650 | AQ24: 19650 | AR24: NOT APPLICABLE
A25: Cur | B25: EQC*210400040 | C25: SI | D25: EQT | E25: SOCSO | F25: 2021-04-07 | G25: 2021-04-07 | H25: 2021-04-19 | I25: 3000-01-01 | J25: 2021-04-07 | K25: 01/01/3000 | L25: N/A | M25: MYR | N25: 6575740 | O25: 1 | P25: 0 | Q25: 0 | R25: 0 | S25: 0 | T25: 51518.35 | U25: 51518.35 | V25: 0 | W25: -51518.35 | X25: 51518.35 | Y25: 0 | Z25: 0 | AA25: 0 | AB25: 0 | AC25: 0 | AD25: 0 | AE25: 0 | AF25: 0 | AH25: 10 | AI25: 0 | AJ25: SOCSO*6575740 | AK25: 0 | AL25: J003887371 | AM25: FVTPL | AN25: 2020-12-31 | AO25: 792590 | AP25: 51518.35 | AQ25: 51518.35 | AR25: NOT APPLICABLE
A26: Cur | B26: EQC*210400311 | C26: SI | D26: EQT | E26: SOCSO | F26: 2021-04-23 | G26: 2021-04-23 | H26: 2021-05-11 | I26: 3000-01-01 | J26: 2021-04-23 | K26: 01/01/3000 | L26: N/A | M26: MYR | N26: B29TTR1 | O26: 1 | P26: 0 | Q26: 0 | R26: 0 | S26: 0 | T26: 48636 | U26: 48636 | V26: 0 | W26: -48636 | X26: 48636 | Y26: 0 | Z26: 0 | AA26: 0 | AB26: 0 | AC26: 0 | AD26: 0 | AE26: 0 | AF26: 0 | AH26: 10 | AI26: 0 | AJ26: SOCSO*B29TTR1 | AK26: 0 | AL26: J003917248 | AM26: FVTPL | AN26: 2020-12-31 | AO26: 2431800 | AP26: 48636 | AQ26: 48636 | AR26: NOT APPLICABLE
A27: Cur | B27: EQC*210400119 | C27: SI | D27: EQT | E27: SOCSO | F27: 2021-04-14 | G27: 2021-04-14 | H27: 2021-04-30 | I27: 3000-01-01 | J27: 2021-04-14 | K27: 01/01/3000 | L27: N/A | M27: MYR | N27: 6113429 | O27: 1 | P27: 0 | Q27: 0 | R27: 0 | S27: 0 | T27: 8738.4 | U27: 8738.4 | V27: 0 | W27: -8738.4 | X27: 8738.4 | Y27: 0 | Z27: 0 | AA27: 0 | AB27: 0 | AC27: 0 | AD27: 0 | AE27: 0 | AF27: 0 | AH27: 10 | AI27: 0 | AJ27: SOCSO*6113429 | AK27: 0 | AL27: J003899373 | AM27: FVTPL | AN27: 2021-01-11 | AO27: 728200 | AP27: 8738.4 | AQ27: 8738.4 | AR27: NOT APPLICABLE
A28: Cur | B28: EQC*210400114 | C28: SI | D28: EQT | E28: SOCSO | F28: 2021-04-14 | G28: 2021-04-14 | H28: 2021-04-28 | I28: 3000-01-01 | J28: 2021-04-14 | K28: 01/01/3000 | L28: N/A | M28: MYR | N28: B6VGS93 | O28: 1 | P28: 0 | Q28: 0 | R28: 0 | S28: 0 | T28: 37222.5 | U28: 37222.5 | V28: 0 | W28: -37222.5 | X28: 37222.5 | Y28: 0 | Z28: 0 | AA28: 0 | AB28: 0 | AC28: 0 | AD28: 0 | AE28: 0 | AF28: 0 | AH28: 10 | AI28: 0 | AJ28: SOCSO*B6VGS93 | AK28: 0 | AL28: J003899345 | AM28: FVTPL | AN28: 2020-12-31 | AO28: 2481500 | AP28: 37222.5 | AQ28: 37222.5 | AR28: NOT APPLICABLE
A29: Cur | B29: EQC*210400211 | C29: SB | D29: EQT | E29: SOCSO | F29: 2021-04-19 | G29: 2021-04-19 | H29: 2021-04-21 | I29: 3000-01-01 | J29: 2021-04-21 | K29: 01/01/3000 | L29: N/A | M29: MYR | N29: BF0J5S4 | O29: 1 | P29: 0 | Q29: 580000 | R29: 0 | S29: 0 | T29: 0 | U29: 0 | V29: 0 | W29: 0 | X29: 0 | Y29: 0 | Z29: 0 | AA29: 0 | AB29: 0 | AC29: 0 | AD29: 0 | AE29: 0 | AF29: 0 | AH29: 10 | AI29: 0 | AJ29: SOCSO*BF0J5S4 | AK29: 0 | AL29: J003908440 | AM29: FVTPL | AN29: 2021-01-11 | AO29: 1253900 | AP29: 0 | AQ29: 0 | AR29: NOT APPLICABLE
A30: Cur | B30: EQC*210500104 | C30: SB | D30: EQT | E30: SOCSO | F30: 2021-04-21 | G30: 2021-04-21 | H30: 2021-05-04 | I30: 3000-01-01 | J30: 2021-05-04 | K30: 01/01/3000 | L30: N/A | M30: MYR | N30: BMD4XP8 | O30: 1 | P30: 0 | Q30: 376000 | R30: 0 | S30: 0 | T30: 0 | U30: 0 | V30: 0 | W30: 0 | X30: 0 | Y30: 0 | Z30: 0 | AA30: 0 | AB30: 0 | AC30: 0 | AD30: 0 | AE30: 0 | AF30: 0 | AH30: 20 | AI30: 0 | AJ30: SOCSO*BMD4XP8 | AK30: 0 | AL30: J003913230 | AM30: FVTPL | AN30: 2021-04-21 | AO30: 376000 | AP30: 0 | AQ30: 0 | AR30: NOT APPLICABLE
A31: Cur | B31: EQC*210400338 | C31: SB | D31: EQT | E31: SOCSO | F31: 2021-04-21 | G31: 2021-04-21 | H31: 2021-04-23 | I31: 3000-01-01 | J31: 2021-04-23 | K31: 01/01/3000 | L31: N/A | M31: MYR | N31: B03DHR1 | O31: 1 | P31: 0 | Q31: 470000 | R31: 0 | S31: 0 | T31: 0 | U31: 0 | V31: 0 | W31: 0 | X31: 0 | Y31: 0 | Z31: 0 | AA31: 0 | AB31: 0 | AC31: 0 | AD31: 0 | AE31: 0 | AF31: 0 | AH31: 10 | AI31: 0 | AJ31: SOCSO*B03DHR1 | AK31: 0 | AL31: J003913282 | AM31: FVTPL | AN31: 2021-01-18 | AO31: 2350000 | AP31: 0 | AQ31: 0 | AR31: NOT APPLICABLE
A32: Cur | B32: EQA*210400043 | C32: SJ | D32: EQT | E32: SOCSO | F32: 2021-04-01 | G32: 2021-04-01 | H32: 2021-04-01 | I32: 3000-01-01 | J32: 2021-04-01 | K32: 01/01/3000 | L32: N/A | M32: MYR | N32: 6522672 | O32: 1 | P32: 0 | Q32: 0 | R32: 252280.45 | S32: 252280.45 | T32: 0 | U32: 0 | V32: 0 | W32: -252280.45 | X32: 0 | Y32: 0 | Z32: 0 | AA32: 0 | AB32: 0 | AC32: 0 | AD32: 252280.45 | AE32: 0 | AF32: 0 | AH32: 10 | AI32: 0 | AJ32: SOCSO*6522672 | AK32: 0 | AM32: FVTPL | AN32: 2020-12-31 | AO32: 209200 | AP32: 0 | AQ32: 0 | AR32: NOT APPLICABLE
A33: Cur | B33: CSH*210400456 | C33: RP | D33: CSH | E33: SOCSO | F33: 2021-04-14 | G33: 2021-04-14 | H33: 2021-04-14 | I33: 3000-01-01 | J33: 2021-04-14 | K33: 15/04/2021 | L33: PBK | M33: MYR | N33: RPF*MYR*PBK | O33: 1 | P33: 0.0175 | Q33: 6100000 | R33: 6100000 | S33: 6100000 | T33: -6100000 | U33: -6100000 | V33: 0 | W33: 0 | X33: 0 | Y33: 0 | Z33: 0 | AA33: 0 | AB33: 0 | AC33: 0 | AD33: 6100000 | AE33: 0 | AF33: 0 | AH33: 210 | AI33: 0 | AJ33: CSH*210400456 | AK33: 0 | AL33: New Placement | AM33: FVTPL | AN33: 2021-04-14 | AO33: 6100000 | AP33: -6100000 | AQ33: -6100000 | AR33: PUBLIC BANK
A34: Cur | B34: CSH*210400515 | C34: RP | D34: CSH | E34: SOCSO | F34: 2021-04-15 | G34: 2021-04-15 | H34: 2021-04-15 | I34: 3000-01-01 | J34: 2021-04-15 | K34: 16/04/2021 | L34: PBK | M34: MYR | N34: RPF*MYR*PBK | O34: 1 | P34: 0.0175 | Q34: 6600000 | R34: 6600000 | S34: 6600000 | T34: -6600000 | U34: -6600000 | V34: 0 | W34: 0 | X34: 0 | Y34: 0 | Z34: 0 | AA34: 0 | AB34: 0 | AC34: 0 | AD34: 6600000 | AE34: 0 | AF34: 0 | AH34: 210 | AI34: 0 | AJ34: CSH*210400515 | AK34: 0 | AL34: New Placement | AM34: FVTPL | AN34: 2021-04-15 | AO34: 6600000 | AP34: -6600000 | AQ34: -6600000 | AR34: PUBLIC BANK
A35: Cur | B35: CSH*210400508 | C35: RM | D35: CSH | E35: SOCSO | F35: 2021-04-15 | G35: 2021-04-15 | H35: 2021-04-15 | I35: 3000-01-01 | J35: 2021-04-15 | K35: 15/04/2021 | L35: PBK | M35: MYR | N35: RPF*MYR*PBK | O35: 1 | P35: 0.0175 | Q35: -6100000 | R35: -6100000 | S35: -6100000 | T35: 6100292.47 | U35: 6100292.47 | V35: 0 | W35: 0 | X35: 0 | Y35: 0 | Z35: 0 | AA35: 0 | AB35: 0 | AC35: -292.47 | AD35: -6100000 | AE35: 0 | AF35: 0 | AH35: 210 | AI35: 0 | AJ35: CSH*210400456 | AK35: 0 | AL35: SOD Maturity | AM35: FVTPL | AN35: 2021-04-14 | AO35: 0 | AP35: 6100292.47 | AQ35: 6100292.47 | AR35: PUBLIC BANK
A36: Cur | B36: CSH*210400069 | C36: RP | D36: CSH | E36: SOCSO | F36: 2021-04-02 | G36: 2021-04-02 | H36: 2021-04-02 | I36: 3000-01-01 | J36: 2021-04-02 | K36: 05/04/2021 | L36: PBK | M36: MYR | N36: RPF*MYR*PBK | O36: 1 | P36: 0.0175 | Q36: 10000000 | R36: 10000000 | S36: 10000000 | T36: -10000000 | U36: -10000000 | V36: 0 | W36: 0 | X36: 0 | Y36: 0 | Z36: 0 | AA36: 0 | AB36: 0 | AC36: 0 | AD36: 10000000 | AE36: 0 | AF36: 0 | AH36: 210 | AI36: 0 | AJ36: CSH*210400069 | AK36: 0 | AL36: New Placement | AM36: FVTPL | AN36: 2021-04-02 | AO36: 10000000 | AP36: -10000000 | AQ36: -10000000 | AR36: PUBLIC BANK
A37: Cur | B37: CSH*210400862 | C37: RM | D37: CSH | E37: SOCSO | F37: 2021-04-26 | G37: 2021-04-26 | H37: 2021-04-26 | I37: 3000-01-01 | J37: 2021-04-26 | K37: 26/04/2021 | L37: PBK | M37: MYR | N37: RPF*MYR*PBK | O37: 1 | P37: 0.0175 | Q37: -6100000 | R37: -6100000 | S37: -6100000 | T37: 6100877.4 | U37: 6100877.4 | V37: 0 | W37: 0 | X37: 0 | Y37: 0 | Z37: 0 | AA37: 0 | AB37: 0 | AC37: -877.4 | AD37: -6100000 | AE37: 0 | AF37: 0 | AH37: 210 | AI37: 0 | AJ37: CSH*210400819 | AK37: 0 | AL37: SOD Maturity | AM37: FVTPL | AN37: 2021-04-23 | AO37: 0 | AP37: 6100877.4 | AQ37: 6100877.4 | AR37: PUBLIC BANK
A38: Cur | B38: CSH*210400869 | C38: RP | D38: CSH | E38: SOCSO | F38: 2021-04-26 | G38: 2021-04-26 | H38: 2021-04-26 | I38: 3000-01-01 | J38: 2021-04-26 | K38: 27/04/2021 | L38: PBK | M38: MYR | N38: RPF*MYR*PBK | O38: 1 | P38: 0.0175 | Q38: 6400000 | R38: 6400000 | S38: 6400000 | T38: -6400000 | U38: -6400000 | V38: 0 | W38: 0 | X38: 0 | Y38: 0 | Z38: 0 | AA38: 0 | AB38: 0 | AC38: 0 | AD38: 6400000 | AE38: 0 | AF38: 0 | AH38: 210 | AI38: 0 | AJ38: CSH*210400869 | AK38: 0 | AL38: New Placement | AM38: FVTPL | AN38: 2021-04-26 | AO38: 6400000 | AP38: -6400000 | AQ38: -6400000 | AR38: PUBLIC BANK
A39: Cur | B39: CSH*210400007 | C39: RM | D39: CSH | E39: SOCSO | F39: 2021-04-01 | G39: 2021-04-01 | H39: 2021-04-01 | I39: 3000-01-01 | J39: 2021-04-01 | K39: 01/04/2021 | L39: PBK | M39: MYR | N39: RPF*MYR*PBK | O39: 1 | P39: 0.0175 | Q39: -9100000 | R39: -9100000 | S39: -9100000 | T39: 9100436.3 | U39: 9100436.3 | V39: 0 | W39: 0 | X39: 0 | Y39: 0 | Z39: 0 | AA39: 0 | AB39: 0 | AC39: -436.3 | AD39: -9100000 | AE39: 0 | AF39: 0 | AH39: 210 | AI39: 0 | AJ39: CSH*210301249 | AK39: 0 | AL39: SOD Maturity | AM39: FVTPL | AN39: 2021-03-31 | AO39: 0 | AP39: 9100436.3 | AQ39: 9100436.3 | AR39: PUBLIC BANK
A40: Cur | B40: CSH*210400315 | C40: RP | D40: CSH | E40: SOCSO | F40: 2021-04-09 | G40: 2021-04-09 | H40: 2021-04-09 | I40: 3000-01-01 | J40: 2021-04-09 | K40: 12/04/2021 | L40: PBK | M40: MYR | N40: RPF*MYR*PBK | O40: 1 | P40: 0.0175 | Q40: 7400000 | R40: 7400000 | S40: 7400000 | T40: -7400000 | U40: -7400000 | V40: 0 | W40: 0 | X40: 0 | Y40: 0 | Z40: 0 | AA40: 0 | AB40: 0 | AC40: 0 | AD40: 7400000 | AE40: 0 | AF40: 0 | AH40: 210 | AI40: 0 | AJ40: CSH*210400315 | AK40: 0 | AL40: New Placement | AM40: FVTPL | AN40: 2021-04-09 | AO40: 7400000 | AP40: -7400000 | AQ40: -7400000 | AR40: PUBLIC BANK
A41: Cur | B41: CSH*210400308 | C41: RM | D41: CSH | E41: SOCSO | F41: 2021-04-09 | G41: 2021-04-09 | H41: 2021-04-09 | I41: 3000-01-01 | J41: 2021-04-09 | K41: 09/04/2021 | L41: PBK | M41: MYR | N41: RPF*MYR*PBK | O41: 1 | P41: 0.0175 | Q41: -7200000 | R41: -7200000 | S41: -7200000 | T41: 7200345.21 | U41: 7200345.21 | V41: 0 | W41: 0 | X41: 0 | Y41: 0 | Z41: 0 | AA41: 0 | AB41: 0 | AC41: -345.21 | AD41: -7200000 | AE41: 0 | AF41: 0 | AH41: 210 | AI41: 0 | AJ41: CSH*210400262 | AK41: 0 | AL41: SOD Maturity | AM41: FVTPL | AN41: 2021-04-08 | AO41: 0 | AP41: 7200345.21 | AQ41: 7200345.21 | AR41: PUBLIC BANK
A42: Cur | B42: CSH*210400563 | C42: RP | D42: CSH | E42: SOCSO | F42: 2021-04-16 | G42: 2021-04-16 | H42: 2021-04-16 | I42: 3000-01-01 | J42: 2021-04-16 | K42: 19/04/2021 | L42: PBK | M42: MYR | N42: RPF*MYR*PBK | O42: 1 | P42: 0.0175 | Q42: 6000000 | R42: 6000000 | S42: 6000000 | T42: -6000000 | U42: -6000000 | V42: 0 | W42: 0 | X42: 0 | Y42: 0 | Z42: 0 | AA42: 0 | AB42: 0 | AC42: 0 | AD42: 6000000 | AE42: 0 | AF42: 0 | AH42: 210 | AI42: 0 | AJ42: CSH*210400563 | AK42: 0 | AL42: New Placement | AM42: FVTPL | AN42: 2021-04-16 | AO42: 6000000 | AP42: -6000000 | AQ42: -6000000 | AR42: PUBLIC BANK
A43: Cur | B43: CSH*210400556 | C43: RM | D43: CSH | E43: SOCSO | F43: 2021-04-16 | G43: 2021-04-16 | H43: 2021-04-16 | I43: 3000-01-01 | J43: 2021-04-16 | K43: 16/04/2021 | L43: PBK | M43: MYR | N43: RPF*MYR*PBK | O43: 1 | P43: 0.0175 | Q43: -6600000 | R43: -6600000 | S43: -6600000 | T43: 6600316.44 | U43: 6600316.44 | V43: 0 | W43: 0 | X43: 0 | Y43: 0 | Z43: 0 | AA43: 0 | AB43: 0 | AC43: -316.44 | AD43: -6600000 | AE43: 0 | AF43: 0 | AH43: 210 | AI43: 0 | AJ43: CSH*210400515 | AK43: 0 | AL43: SOD Maturity | AM43: FVTPL | AN43: 2021-04-15 | AO43: 0 | AP43: 6600316.44 | AQ43: 6600316.44 | AR43: PUBLIC BANK
A44: Cur | B44: CSH*210400449 | C44: RM | D44: CSH | E44: SOCSO | F44: 2021-04-14 | G44: 2021-04-14 | H44: 2021-04-14 | I44: 3000-01-01 | J44: 2021-04-14 | K44: 14/04/2021 | L44: PBK | M44: MYR | N44: RPF*MYR*PBK | O44: 1 | P44: 0.0175 | Q44: -7100000 | R44: -7100000 | S44: -7100000 | T44: 7100340.41 | U44: 7100340.41 | V44: 0 | W44: 0 | X44: 0 | Y44: 0 | Z44: 0 | AA44: 0 | AB44: 0 | AC44: -340.41 | AD44: -7100000 | AE44: 0 | AF44: 0 | AH44: 210 | AI44: 0 | AJ44: CSH*210400407 | AK44: 0 | AL44: SOD Maturity | AM44: FVTPL | AN44: 2021-04-13 | AO44: 0 | AP44: 7100340.41 | AQ44: 7100340.41 | AR44: PUBLIC BANK
A45: Cur | B45: CSH*210400609 | C45: RP | D45: CSH | E45: SOCSO | F45: 2021-04-19 | G45: 2021-04-19 | H45: 2021-04-19 | I45: 3000-01-01 | J45: 2021-04-19 | K45: 20/04/2021 | L45: PBK | M45: MYR | N45: RPF*MYR*PBK | O45: 1 | P45: 0.0175 | Q45: 6500000 | R45: 6500000 | S45: 6500000 | T45: -6500000 | U45: -6500000 | V45: 0 | W45: 0 | X45: 0 | Y45: 0 | Z45: 0 | AA45: 0 | AB45: 0 | AC45: 0 | AD45: 6500000 | AE45: 0 | AF45: 0 | AH45: 210 | AI45: 0 | AJ45: CSH*210400609 | AK45: 0 | AL45: New Placement | AM45: FVTPL | AN45: 2021-04-19 | AO45: 6500000 | AP45: -6500000 | AQ45: -6500000 | AR45: PUBLIC BANK
A46: Cur | B46: CSH*210400602 | C46: RM | D46: CSH | E46: SOCSO | F46: 2021-04-19 | G46: 2021-04-19 | H46: 2021-04-19 | I46: 3000-01-01 | J46: 2021-04-19 | K46: 19/04/2021 | L46: PBK | M46: MYR | N46: RPF*MYR*PBK | O46: 1 | P46: 0.0175 | Q46: -6000000 | R46: -6000000 | S46: -6000000 | T46: 6000863.01 | U46: 6000863.01 | V46: 0 | W46: 0 | X46: 0 | Y46: 0 | Z46: 0 | AA46: 0 | AB46: 0 | AC46: -863.01 | AD46: -6000000 | AE46: 0 | AF46: 0 | AH46: 210 | AI46: 0 | AJ46: CSH*210400563 | AK46: 0 | AL46: SOD Maturity | AM46: FVTPL | AN46: 2021-04-16 | AO46: 0 | AP46: 6000863.01 | AQ46: 6000863.01 | AR46: PUBLIC BANK
A47: Cur | B47: CSH*210400659 | C47: RP | D47: CSH | E47: SOCSO | F47: 2021-04-20 | G47: 2021-04-20 | H47: 2021-04-20 | I47: 3000-01-01 | J47: 2021-04-20 | K47: 21/04/2021 | L47: PBK | M47: MYR | N47: RPF*MYR*PBK | O47: 1 | P47: 0.0175 | Q47: 6600000 | R47: 6600000 | S47: 6600000 | T47: -6600000 | U47: -6600000 | V47: 0 | W47: 0 | X47: 0 | Y47: 0 | Z47: 0 | AA47: 0 | AB47: 0 | AC47: 0 | AD47: 6600000 | AE47: 0 | AF47: 0 | AH47: 210 | AI47: 0 | AJ47: CSH*210400659 | AK47: 0 | AL47: New Placement | AM47: FVTPL | AN47: 2021-04-20 | AO47: 6600000 | AP47: -6600000 | AQ47: -6600000 | AR47: PUBLIC BANK
A48: Cur | B48: CSH*210400652 | C48: RM | D48: CSH | E48: SOCSO | F48: 2021-04-20 | G48: 2021-04-20 | H48: 2021-04-20 | I48: 3000-01-01 | J48: 2021-04-20 | K48: 20/04/2021 | L48: PBK | M48: MYR | N48: RPF*MYR*PBK | O48: 1 | P48: 0.0175 | Q48: -6500000 | R48: -6500000 | S48: -6500000 | T48: 6500311.64 | U48: 6500311.64 | V48: 0 | W48: 0 | X48: 0 | Y48: 0 | Z48: 0 | AA48: 0 | AB48: 0 | AC48: -311.64 | AD48: -6500000 | AE48: 0 | AF48: 0 | AH48: 210 | AI48: 0 | AJ48: CSH*210400609 | AK48: 0 | AL48: SOD Maturity | AM48: FVTPL | AN48: 2021-04-19 | AO48: 0 | AP48: 6500311.64 | AQ48: 6500311.64 | AR48: PUBLIC BANK
A49: Cur | B49: CSH*210400765 | C49: RP | D49: CSH | E49: SOCSO | F49: 2021-04-22 | G49: 2021-04-22 | H49: 2021-04-22 | I49: 3000-01-01 | J49: 2021-04-22 | K49: 23/04/2021 | L49: PBK | M49: MYR | N49: RPF*MYR*PBK | O49: 1 | P49: 0.0175 | Q49: 5800000 | R49: 5800000 | S49: 5800000 | T49: -5800000 | U49: -5800000 | V49: 0 | W49: 0 | X49: 0 | Y49: 0 | Z49: 0 | AA49: 0 | AB49: 0 | AC49: 0 | AD49: 5800000 | AE49: 0 | AF49: 0 | AH49: 210 | AI49: 0 | AJ49: CSH*210400765 | AK49: 0 | AL49: New Placement | AM49: FVTPL | AN49: 2021-04-22 | AO49: 5800000 | AP49: -5800000 | AQ49: -5800000 | AR49: PUBLIC BANK
A50: Cur | B50: CSH*210400758 | C50: RM | D50: CSH | E50: SOCSO | F50: 2021-04-22 | G50: 2021-04-22 | H50: 2021-04-22 | I50: 3000-01-01 | J50: 2021-04-22 | K50: 22/04/2021 | L50: PBK | M50: MYR | N50: RPF*MYR*PBK | O50: 1 | P50: 0.0175 | Q50: -6300000 | R50: -6300000 | S50: -6300000 | T50: 6300302.05 | U50: 6300302.05 | V50: 0 | W50: 0 | X50: 0 | Y50: 0 | Z50: 0 | AA50: 0 | AB50: 0 | AC50: -302.05 | AD50: -6300000 | AE50: 0 | AF50: 0 | AH50: 210 | AI50: 0 | AJ50: CSH*210400704 | AK50: 0 | AL50: SOD Maturity | AM50: FVTPL | AN50: 2021-04-21 | AO50: 0 | AP50: 6300302.05 | AQ50: 6300302.05 | AR50: PUBLIC BANK
A51: Cur | B51: CSH*210400819 | C51: RP | D51: CSH | E51: SOCSO | F51: 2021-04-23 | G51: 2021-04-23 | H51: 2021-04-23 | I51: 3000-01-01 | J51: 2021-04-23 | K51: 26/04/2021 | L51: PBK | M51: MYR | N51: RPF*MYR*PBK | O51: 1 | P51: 0.0175 | Q51: 6100000 | R51: 6100000 | S51: 6100000 | T51: -6100000 | U51: -6100000 | V51: 0 | W51: 0 | X51: 0 | Y51: 0 | Z51: 0 | AA51: 0 | AB51: 0 | AC51: 0 | AD51: 6100000 | AE51: 0 | AF51: 0 | AH51: 210 | AI51: 0 | AJ51: CSH*210400819 | AK51: 0 | AL51: New Placement | AM51: FVTPL | AN51: 2021-04-23 | AO51: 6100000 | AP51: -6100000 | AQ51: -6100000 | AR51: PUBLIC BANK
A52: Cur | B52: CSH*210400812 | C52: RM | D52: CSH | E52: SOCSO | F52: 2021-04-23 | G52: 2021-04-23 | H52: 2021-04-23 | I52: 3000-01-01 | J52: 2021-04-23 | K52: 23/04/2021 | L52: PBK | M52: MYR | N52: RPF*MYR*PBK | O52: 1 | P52: 0.0175 | Q52: -5800000 | R52: -5800000 | S52: -5800000 | T52: 5800278.08 | U52: 5800278.08 | V52: 0 | W52: 0 | X52: 0 | Y52: 0 | Z52: 0 | AA52: 0 | AB52: 0 | AC52: -278.08 | AD52: -5800000 | AE52: 0 | AF52: 0 | AH52: 210 | AI52: 0 | AJ52: CSH*210400765 | AK52: 0 | AL52: SOD Maturity | AM52: FVTPL | AN52: 2021-04-22 | AO52: 0 | AP52: 5800278.08 | AQ52: 5800278.08 | AR52: PUBLIC BANK
A53: Cur | B53: CSH*210400922 | C53: RP | D53: CSH | E53: SOCSO | F53: 2021-04-27 | G53: 2021-04-27 | H53: 2021-04-27 | I53: 3000-01-01 | J53: 2021-04-27 | K53: 28/04/2021 | L53: PBK | M53: MYR | N53: RPF*MYR*PBK | O53: 1 | P53: 0.0175 | Q53: 6800000 | R53: 6800000 | S53: 6800000 | T53: -6800000 | U53: -6800000 | V53: 0 | W53: 0 | X53: 0 | Y53: 0 | Z53: 0 | AA53: 0 | AB53: 0 | AC53: 0 | AD53: 6800000 | AE53: 0 | AF53: 0 | AH53: 210 | AI53: 0 | AJ53: CSH*210400922 | AK53: 0 | AL53: New Placement | AM53: FVTPL | AN53: 2021-04-27 | AO53: 6800000 | AP53: -6800000 | AQ53: -6800000 | AR53: PUBLIC BANK
A54: Cur | B54: CSH*210400916 | C54: RM | D54: CSH | E54: SOCSO | F54: 2021-04-27 | G54: 2021-04-27 | H54: 2021-04-27 | I54: 3000-01-01 | J54: 2021-04-27 | K54: 27/04/2021 | L54: PBK | M54: MYR | N54: RPF*MYR*PBK | O54: 1 | P54: 0.0175 | Q54: -6400000 | R54: -6400000 | S54: -6400000 | T54: 6400306.85 | U54: 6400306.85 | V54: 0 | W54: 0 | X54: 0 | Y54: 0 | Z54: 0 | AA54: 0 | AB54: 0 | AC54: -306.85 | AD54: -6400000 | AE54: 0 | AF54: 0 | AH54: 210 | AI54: 0 | AJ54: CSH*210400869 | AK54: 0 | AL54: SOD Maturity | AM54: FVTPL | AN54: 2021-04-26 | AO54: 0 | AP54: 6400306.85 | AQ54: 6400306.85 | AR54: PUBLIC BANK
A55: Cur | B55: CSH*210400972 | C55: RP | D55: CSH | E55: SOCSO | F55: 2021-04-28 | G55: 2021-04-28 | H55: 2021-04-28 | I55: 3000-01-01 | J55: 2021-04-28 | K55: 30/04/2021 | L55: PBK | M55: MYR | N55: RPF*MYR*PBK | O55: 1 | P55: 0.0175 | Q55: 6700000 | R55: 6700000 | S55: 6700000 | T55: -6700000 | U55: -6700000 | V55: 0 | W55: 0 | X55: 0 | Y55: 0 | Z55: 0 | AA55: 0 | AB55: 0 | AC55: 0 | AD55: 6700000 | AE55: 0 | AF55: 0 | AH55: 210 | AI55: 0 | AJ55: CSH*210400972 | AK55: 0 | AL55: New Placement | AM55: FVTPL | AN55: 2021-04-28 | AO55: 6700000 | AP55: -6700000 | AQ55: -6700000 | AR55: PUBLIC BANK
A56: Cur | B56: CSH*210400965 | C56: RM | D56: CSH | E56: SOCSO | F56: 2021-04-28 | G56: 2021-04-28 | H56: 2021-04-28 | I56: 3000-01-01 | J56: 2021-04-28 | K56: 28/04/2021 | L56: PBK | M56: MYR | N56: RPF*MYR*PBK | O56: 1 | P56: 0.0175 | Q56: -6800000 | R56: -6800000 | S56: -6800000 | T56: 6800326.03 | U56: 6800326.03 | V56: 0 | W56: 0 | X56: 0 | Y56: 0 | Z56: 0 | AA56: 0 | AB56: 0 | AC56: -326.03 | AD56: -6800000 | AE56: 0 | AF56: 0 | AH56: 210 | AI56: 0 | AJ56: CSH*210400922 | AK56: 0 | AL56: SOD Maturity | AM56: FVTPL | AN56: 2021-04-27 | AO56: 0 | AP56: 6800326.03 | AQ56: 6800326.03 | AR56: PUBLIC BANK
A57: Cur | B57: CSH*210401027 | C57: RP | D57: CSH | E57: SOCSO | F57: 2021-04-30 | G57: 2021-04-30 | H57: 2021-04-30 | I57: 3000-01-01 | J57: 2021-04-30 | K57: 03/05/2021 | L57: PBK | M57: MYR | N57: RPF*MYR*PBK | O57: 1 | P57: 0.0175 | Q57: 6800000 | R57: 6800000 | S57: 6800000 | T57: -6800000 | U57: -6800000 | V57: 0 | W57: 0 | X57: 0 | Y57: 0 | Z57: 0 | AA57: 0 | AB57: 0 | AC57: 0 | AD57: 6800000 | AE57: 0 | AF57: 0 | AH57: 210 | AI57: 0 | AJ57: CSH*210401027 | AK57: 0 | AL57: New Placement | AM57: FVTPL | AN57: 2021-04-30 | AO57: 6800000 | AP57: -6800000 | AQ57: -6800000 | AR57: PUBLIC BANK
A58: Cur | B58: CSH*210401020 | C58: RM | D58: CSH | E58: SOCSO | F58: 2021-04-30 | G58: 2021-04-30 | H58: 2021-04-30 | I58: 3000-01-01 | J58: 2021-04-30 | K58: 30/04/2021 | L58: PBK | M58: MYR | N58: RPF*MYR*PBK | O58: 1 | P58: 0.0175 | Q58: -6700000 | R58: -6700000 | S58: -6700000 | T58: 6700642.47 | U58: 6700642.47 | V58: 0 | W58: 0 | X58: 0 | Y58: 0 | Z58: 0 | AA58: 0 | AB58: 0 | AC58: -642.47 | AD58: -6700000 | AE58: 0 | AF58: 0 | AH58: 210 | AI58: 0 | AJ58: CSH*210400972 | AK58: 0 | AL58: SOD Maturity | AM58: FVTPL | AN58: 2021-04-28 | AO58: 0 | AP58: 6700642.47 | AQ58: 6700642.47 | AR58: PUBLIC BANK
A59: Cur | B59: CSH*210400704 | C59: RP | D59: CSH | E59: SOCSO | F59: 2021-04-21 | G59: 2021-04-21 | H59: 2021-04-21 | I59: 3000-01-01 | J59: 2021-04-21 | K59: 22/04/2021 | L59: PBK | M59: MYR | N59: RPF*MYR*PBK | O59: 1 | P59: 0.0175 | Q59: 6300000 | R59: 6300000 | S59: 6300000 | T59: -6300000 | U59: -6300000 | V59: 0 | W59: 0 | X59: 0 | Y59: 0 | Z59: 0 | AA59: 0 | AB59: 0 | AC59: 0 | AD59: 6300000 | AE59: 0 | AF59: 0 | AH59: 210 | AI59: 0 | AJ59: CSH*210400704 | AK59: 0 | AL59: New Placement | AM59: FVTPL | AN59: 2021-04-21 | AO59: 6300000 | AP59: -6300000 | AQ59: -6300000 | AR59: PUBLIC BANK
A60: Cur | B60: CSH*210400697 | C60: RM | D60: CSH | E60: SOCSO | F60: 2021-04-21 | G60: 2021-04-21 | H60: 2021-04-21 | I60: 3000-01-01 | J60: 2021-04-21 | K60: 21/04/2021 | L60: PBK | M60: MYR | N60: RPF*MYR*PBK | O60: 1 | P60: 0.0175 | Q60: -6600000 | R60: -6600000 | S60: -6600000 | T60: 6600316.44 | U60: 6600316.44 | V60: 0 | W60: 0 | X60: 0 | Y60: 0 | Z60: 0 | AA60: 0 | AB60: 0 | AC60: -316.44 | AD60: -6600000 | AE60: 0 | AF60: 0 | AH60: 210 | AI60: 0 | AJ60: CSH*210400659 | AK60: 0 | AL60: SOD Maturity | AM60: FVTPL | AN60: 2021-04-20 | AO60: 0 | AP60: 6600316.44 | AQ60: 6600316.44 | AR60: PUBLIC BANK
A61: Cur | B61: CSH*210400014 | C61: RP | D61: CSH | E61: SOCSO | F61: 2021-04-01 | G61: 2021-04-01 | H61: 2021-04-01 | I61: 3000-01-01 | J61: 2021-04-01 | K61: 02/04/2021 | L61: PBK | M61: MYR | N61: RPF*MYR*PBK | O61: 1 | P61: 0.0175 | Q61: 9200000 | R61: 9200000 | S61: 9200000 | T61: -9200000 | U61: -9200000 | V61: 0 | W61: 0 | X61: 0 | Y61: 0 | Z61: 0 | AA61: 0 | AB61: 0 | AC61: 0 | AD61: 9200000 | AE61: 0 | AF61: 0 | AH61: 210 | AI61: 0 | AJ61: CSH*210400014 | AK61: 0 | AL61: New Placement | AM61: FVTPL | AN61: 2021-04-01 | AO61: 9200000 | AP61: -9200000 | AQ61: -9200000 | AR61: PUBLIC BANK
A62: Cur | B62: CSH*210400164 | C62: RP | D62: CSH | E62: SOCSO | F62: 2021-04-06 | G62: 2021-04-06 | H62: 2021-04-06 | I62: 3000-01-01 | J62: 2021-04-06 | K62: 07/04/2021 | L62: PBK | M62: MYR | N62: RPF*MYR*PBK | O62: 1 | P62: 0.0175 | Q62: 10300000 | R62: 10300000 | S62: 10300000 | T62: -10300000 | U62: -10300000 | V62: 0 | W62: 0 | X62: 0 | Y62: 0 | Z62: 0 | AA62: 0 | AB62: 0 | AC62: 0 | AD62: 10300000 | AE62: 0 | AF62: 0 | AH62: 210 | AI62: 0 | AJ62: CSH*210400164 | AK62: 0 | AL62: New Placement | AM62: FVTPL | AN62: 2021-04-06 | AO62: 10300000 | AP62: -10300000 | AQ62: -10300000 | AR62: PUBLIC BANK
A63: Cur | B63: CSH*210400157 | C63: RM | D63: CSH | E63: SOCSO | F63: 2021-04-06 | G63: 2021-04-06 | H63: 2021-04-06 | I63: 3000-01-01 | J63: 2021-04-06 | K63: 06/04/2021 | L63: PBK | M63: MYR | N63: RPF*MYR*PBK | O63: 1 | P63: 0.0175 | Q63: -10200000 | R63: -10200000 | S63: -10200000 | T63: 10200489.04 | U63: 10200489.04 | V63: 0 | W63: 0 | X63: 0 | Y63: 0 | Z63: 0 | AA63: 0 | AB63: 0 | AC63: -489.04 | AD63: -10200000 | AE63: 0 | AF63: 0 | AH63: 210 | AI63: 0 | AJ63: CSH*210400119 | AK63: 0 | AL63: SOD Maturity | AM63: FVTPL | AN63: 2021-04-05 | AO63: 0 | AP63: 10200489.04 | AQ63: 10200489.04 | AR63: PUBLIC BANK
A64: Cur | B64: CSH*210400056 | C64: RM | D64: CSH | E64: SOCSO | F64: 2021-04-02 | G64: 2021-04-02 | H64: 2021-04-02 | I64: 3000-01-01 | J64: 2021-04-02 | K64: 02/04/2021 | L64: PBK | M64: MYR | N64: RPF*MYR*PBK | O64: 1 | P64: 0.0175 | Q64: -9200000 | R64: -9200000 | S64: -9200000 | T64: 9200441.1 | U64: 9200441.1 | V64: 0 | W64: 0 | X64: 0 | Y64: 0 | Z64: 0 | AA64: 0 | AB64: 0 | AC64: -441.1 | AD64: -9200000 | AE64: 0 | AF64: 0 | AH64: 210 | AI64: 0 | AJ64: CSH*210400014 | AK64: 0 | AL64: SOD Maturity | AM64: FVTPL | AN64: 2021-04-01 | AO64: 0 | AP64: 9200441.1 | AQ64: 9200441.1 | AR64: PUBLIC BANK
A65: Cur | B65: CSH*210400119 | C65: RP | D65: CSH | E65: SOCSO | F65: 2021-04-05 | G65: 2021-04-05 | H65: 2021-04-05 | I65: 3000-01-01 | J65: 2021-04-05 | K65: 06/04/2021 | L65: PBK | M65: MYR | N65: RPF*MYR*PBK | O65: 1 | P65: 0.0175 | Q65: 10200000 | R65: 10200000 | S65: 10200000 | T65: -10200000 | U65: -10200000 | V65: 0 | W65: 0 | X65: 0 | Y65: 0 | Z65: 0 | AA65: 0 | AB65: 0 | AC65: 0 | AD65: 10200000 | AE65: 0 | AF65: 0 | AH65: 210 | AI65: 0 | AJ65: CSH*210400119 | AK65: 0 | AL65: New Placement | AM65: FVTPL | AN65: 2021-04-05 | AO65: 10200000 | AP65: -10200000 | AQ65: -10200000 | AR65: PUBLIC BANK
A66: Cur | B66: CSH*210400112 | C66: RM | D66: CSH | E66: SOCSO | F66: 2021-04-05 | G66: 2021-04-05 | H66: 2021-04-05 | I66: 3000-01-01 | J66: 2021-04-05 | K66: 05/04/2021 | L66: PBK | M66: MYR | N66: RPF*MYR*PBK | O66: 1 | P66: 0.0175 | Q66: -10000000 | R66: -10000000 | S66: -10000000 | T66: 10001438.36 | U66: 10001438.36 | V66: 0 | W66: 0 | X66: 0 | Y66: 0 | Z66: 0 | AA66: 0 | AB66: 0 | AC66: -1438.36 | AD66: -10000000 | AE66: 0 | AF66: 0 | AH66: 210 | AI66: 0 | AJ66: CSH*210400069 | AK66: 0 | AL66: SOD Maturity | AM66: FVTPL | AN66: 2021-04-02 | AO66: 0 | AP66: 10001438.36 | AQ66: 10001438.36 | AR66: PUBLIC BANK
A67: Cur | B67: CSH*210400220 | C67: RP | D67: CSH | E67: SOCSO | F67: 2021-04-07 | G67: 2021-04-07 | H67: 2021-04-07 | I67: 3000-01-01 | J67: 2021-04-07 | K67: 08/04/2021 | L67: PBK | M67: MYR | N67: RPF*MYR*PBK | O67: 1 | P67: 0.0175 | Q67: 7100000 | R67: 7100000 | S67: 7100000 | T67: -7100000 | U67: -7100000 | V67: 0 | W67: 0 | X67: 0 | Y67: 0 | Z67: 0 | AA67: 0 | AB67: 0 | AC67: 0 | AD67: 7100000 | AE67: 0 | AF67: 0 | AH67: 210 | AI67: 0 | AJ67: CSH*210400220 | AK67: 0 | AL67: New Placement | AM67: FVTPL | AN67: 2021-04-07 | AO67: 7100000 | AP67: -7100000 | AQ67: -7100000 | AR67: PUBLIC BANK
A68: Cur | B68: CSH*210400213 | C68: RM | D68: CSH | E68: SOCSO | F68: 2021-04-07 | G68: 2021-04-07 | H68: 2021-04-07 | I68: 3000-01-01 | J68: 2021-04-07 | K68: 07/04/2021 | L68: PBK | M68: MYR | N68: RPF*MYR*PBK | O68: 1 | P68: 0.0175 | Q68: -10300000 | R68: -10300000 | S68: -10300000 | T68: 10300493.84 | U68: 10300493.84 | V68: 0 | W68: 0 | X68: 0 | Y68: 0 | Z68: 0 | AA68: 0 | AB68: 0 | AC68: -493.84 | AD68: -10300000 | AE68: 0 | AF68: 0 | AH68: 210 | AI68: 0 | AJ68: CSH*210400164 | AK68: 0 | AL68: SOD Maturity | AM68: FVTPL | AN68: 2021-04-06 | AO68: 0 | AP68: 10300493.84 | AQ68: 10300493.84 | AR68: PUBLIC BANK
A69: Cur | B69: CSH*210400262 | C69: RP | D69: CSH | E69: SOCSO | F69: 2021-04-08 | G69: 2021-04-08 | H69: 2021-04-08 | I69: 3000-01-01 | J69: 2021-04-08 | K69: 09/04/2021 | L69: PBK | M69: MYR | N69: RPF*MYR*PBK | O69: 1 | P69: 0.0175 | Q69: 7200000 | R69: 7200000 | S69: 7200000 | T69: -7200000 | U69: -7200000 | V69: 0 | W69: 0 | X69: 0 | Y69: 0 | Z69: 0 | AA69: 0 | AB69: 0 | AC69: 0 | AD69: 7200000 | AE69: 0 | AF69: 0 | AH69: 210 | AI69: 0 | AJ69: CSH*210400262 | AK69: 0 | AL69: New Placement | AM69: FVTPL | AN69: 2021-04-08 | AO69: 7200000 | AP69: -7200000 | AQ69: -7200000 | AR69: PUBLIC BANK
A70: Cur | B70: CSH*210400255 | C70: RM | D70: CSH | E70: SOCSO | F70: 2021-04-08 | G70: 2021-04-08 | H70: 2021-04-08 | I70: 3000-01-01 | J70: 2021-04-08 | K70: 08/04/2021 | L70: PBK | M70: MYR | N70: RPF*MYR*PBK | O70: 1 | P70: 0.0175 | Q70: -7100000 | R70: -7100000 | S70: -7100000 | T70: 7100340.41 | U70: 7100340.41 | V70: 0 | W70: 0 | X70: 0 | Y70: 0 | Z70: 0 | AA70: 0 | AB70: 0 | AC70: -340.41 | AD70: -7100000 | AE70: 0 | AF70: 0 | AH70: 210 | AI70: 0 | AJ70: CSH*210400220 | AK70: 0 | AL70: SOD Maturity | AM70: FVTPL | AN70: 2021-04-07 | AO70: 0 | AP70: 7100340.41 | AQ70: 7100340.41 | AR70: PUBLIC BANK
A71: Cur | B71: CSH*210400364 | C71: RP | D71: CSH | E71: SOCSO | F71: 2021-04-12 | G71: 2021-04-12 | H71: 2021-04-12 | I71: 3000-01-01 | J71: 2021-04-12 | K71: 13/04/2021 | L71: PBK | M71: MYR | N71: RPF*MYR*PBK | O71: 1 | P71: 0.0175 | Q71: 7401064.38 | R71: 7401064.38 | S71: 7401064.38 | T71: -7401064.38 | U71: -7401064.38 | V71: 0 | W71: 0 | X71: 0 | Y71: 0 | Z71: 0 | AA71: 0 | AB71: 0 | AC71: 0 | AD71: 7401064.38 | AE71: 0 | AF71: 0 | AH71: 210 | AI71: 0 | AJ71: CSH*210400364 | AK71: 0 | AL71: Rollover, P+I | AM71: FVTPL | AN71: 2021-04-12 | AO71: 7401064.38 | AP71: -7401064.38 | AQ71: -7401064.38 | AR71: PUBLIC BANK
A72: Cur | B72: CSH*210400356 | C72: RM | D72: CSH | E72: SOCSO | F72: 2021-04-12 | G72: 2021-04-12 | H72: 2021-04-12 | I72: 3000-01-01 | J72: 2021-04-12 | K72: 12/04/2021 | L72: PBK | M72: MYR | N72: RPF*MYR*PBK | O72: 1 | P72: 0.0175 | Q72: -7400000 | R72: -7400000 | S72: -7400000 | T72: 7401064.38 | U72: 7401064.38 | V72: 0 | W72: 0 | X72: 0 | Y72: 0 | Z72: 0 | AA72: 0 | AB72: 0 | AC72: -1064.38 | AD72: -7400000 | AE72: 0 | AF72: 0 | AH72: 210 | AI72: 0 | AJ72: CSH*210400315 | AK72: 0 | AL72: SOD Maturity | AM72: FVTPL | AN72: 2021-04-09 | AO72: 0 | AP72: 7401064.38 | AQ72: 7401064.38 | AR72: PUBLIC BANK
A73: Cur | B73: CSH*210400407 | C73: RP | D73: CSH | E73: SOCSO | F73: 2021-04-13 | G73: 2021-04-13 | H73: 2021-04-13 | I73: 3000-01-01 | J73: 2021-04-13 | K73: 14/04/2021 | L73: PBK | M73: MYR | N73: RPF*MYR*PBK | O73: 1 | P73: 0.0175 | Q73: 7100000 | R73: 7100000 | S73: 7100000 | T73: -7100000 | U73: -7100000 | V73: 0 | W73: 0 | X73: 0 | Y73: 0 | Z73: 0 | AA73: 0 | AB73: 0 | AC73: 0 | AD73: 7100000 | AE73: 0 | AF73: 0 | AH73: 210 | AI73: 0 | AJ73: CSH*210400407 | AK73: 0 | AL73: New Placement | AM73: FVTPL | AN73: 2021-04-13 | AO73: 7100000 | AP73: -7100000 | AQ73: -7100000 | AR73: PUBLIC BANK
A74: Cur | B74: CSH*210400400 | C74: RM | D74: CSH | E74: SOCSO | F74: 2021-04-13 | G74: 2021-04-13 | H74: 2021-04-13 | I74: 3000-01-01 | J74: 2021-04-13 | K74: 13/04/2021 | L74: PBK | M74: MYR | N74: RPF*MYR*PBK | O74: 1 | P74: 0.0175 | Q74: -7401064.38 | R74: -7401064.38 | S74: -7401064.38 | T74: 7401419.23 | U74: 7401419.23 | V74: 0 | W74: 0 | X74: 0 | Y74: 0 | Z74: 0 | AA74: 0 | AB74: 0 | AC74: -354.85 | AD74: -7401064.38 | AE74: 0 | AF74: 0 | AH74: 210 | AI74: 0 | AJ74: CSH*210400364 | AK74: 0 | AL74: SOD Maturity | AM74: FVTPL | AN74: 2021-04-12 | AO74: 0 | AP74: 7401419.23 | AQ74: 7401419.23 | AR74: PUBLIC BANK
A75: Cur | B75: EQT*210400452 | C75: SS | D75: EQT | E75: SOCSO | F75: 2021-04-07 | G75: 2021-04-07 | H75: 2021-04-09 | I75: 3000-01-01 | J75: 2021-04-07 | K75: 01/01/3000 | L75: RHS | M75: MYR | N75: B6VGS93 | O75: 1 | P75: 0 | Q75: -47900 | R75: -78203.51 | S75: -78203.51 | T75: 81932.95 | U75: 81696.1 | V75: 0 | W75: -3492.59 | X75: 122.9 | Y75: 0 | Z75: 82 | AA75: 0 | AB75: 0 | AC75: 0 | AD75: -78203.51 | AE75: 0 | AF75: 0 | AH75: 10 | AI75: 0 | AJ75: SOCSO*B6VGS93 | AK75: 0 | AM75: FVTPL | AN75: 2020-12-31 | AO75: 2481500 | AP75: 81696.1 | AQ75: 81932.95 | AR75: RHB INVESTMENT BANK BERHAD
A76: Cur | B76: EQT*210400109 | C76: SS | D76: EQT | E76: SOCSO | F76: 2021-04-01 | G76: 2021-04-01 | H76: 2021-04-05 | I76: 3000-01-01 | J76: 2021-04-01 | K76: 01/01/3000 | L76: RHS | M76: MYR | N76: B6VGS93 | O76: 1 | P76: 0 | Q76: -30300 | R76: -49469.03 | S76: -49469.03 | T76: 51510 | U76: 51360.63 | V76: 0 | W76: -1891.6 | X76: 77.27 | Y76: 0 | Z76: 52 | AA76: 0 | AB76: 0 | AC76: 0 | AD76: -49469.03 | AE76: 0 | AF76: 0 | AH76: 10 | AI76: 0 | AJ76: SOCSO*B6VGS93 | AK76: 0 | AM76: FVTPL | AN76: 2020-12-31 | AO76: 2701100 | AP76: 51360.63 | AQ76: 51510 | AR76: RHB INVESTMENT BANK BERHAD
A77: Cur | B77: EQT*210401345 | C77: SS | D77: EQT | E77: SOCSO | F77: 2021-04-21 | G77: 2021-04-21 | H77: 2021-04-23 | I77: 3000-01-01 | J77: 2021-04-21 | K77: 01/01/3000 | L77: RHS | M77: MYR | N77: 6336538 | O77: 1 | P77: 0 | Q77: -20000 | R77: -226788.16 | S77: -226788.16 | T77: 279514 | U77: 278785.71 | V77: 0 | W77: -51997.55 | X77: 419.27 | Y77: 0 | Z77: 200 | AA77: 0 | AB77: 0 | AC77: 0 | AD77: -226788.16 | AE77: 0 | AF77: 0 | AH77: 10 | AI77: 0 | AJ77: SOCSO*6336538 | AK77: 0 | AM77: FVTPL | AN77: 2020-12-31 | AO77: 250000 | AP77: 278785.71 | AQ77: 279514 | AR77: RHB INVESTMENT BANK BERHAD
A78: Cur | B78: EQT*210400264 | C78: SS | D78: EQT | E78: SOCSO | F78: 2021-04-05 | G78: 2021-04-05 | H78: 2021-04-07 | I78: 3000-01-01 | J78: 2021-04-05 | K78: 01/01/3000 | L78: RHS | M78: MYR | N78: B6VGS93 | O78: 1 | P78: 0 | Q78: -81700 | R78: -133386.78 | S78: -133386.78 | T78: 140368.77 | U78: 139962.47 | V78: 0 | W78: -6575.69 | X78: 210.55 | Y78: 0 | Z78: 141 | AA78: 0 | AB78: 0 | AC78: 0 | AD78: -133386.78 | AE78: 0 | AF78: 0 | AH78: 10 | AI78: 0 | AJ78: SOCSO*B6VGS93 | AK78: 0 | AM78: FVTPL | AN78: 2020-12-31 | AO78: 2556800 | AP78: 139962.47 | AQ78: 140368.77 | AR78: RHB INVESTMENT BANK BERHAD
A79: Cur | B79: EQT*210401346 | C79: SP | D79: EQT | E79: SOCSO | F79: 2021-04-21 | G79: 2021-04-21 | H79: 2021-04-23 | I79: 3000-01-01 | J79: 2021-04-21 | K79: 01/01/3000 | L79: SB | M79: MYR | N79: BF0J5S4 | O79: 1 | P79: 0 | Q79: 26100 | R79: 137978.96 | S79: 137978.96 | T79: -137580.93 | U79: -137978.96 | V79: 0 | W79: 0 | X79: 206.37 | Y79: 0 | Z79: 138 | AA79: 0 | AB79: 0 | AC79: 0 | AD79: 137978.96 | AE79: 0 | AF79: 0 | AH79: 10 | AI79: 0 | AJ79: SOCSO*BF0J5S4 | AK79: 0 | AM79: FVTPL | AN79: 2021-01-11 | AO79: 1280000 | AP79: -137978.96 | AQ79: -137580.93 | AR79: CITIGROUP GLOBAL MARKETS
A80: Cur | B80: EQT*210401596 | C80: SP | D80: EQT | E80: SOCSO | F80: 2021-04-26 | G80: 2021-04-26 | H80: 2021-04-28 | I80: 3000-01-01 | J80: 2021-04-26 | K80: 01/01/3000 | L80: SB | M80: MYR | N80: 6113429 | O80: 1 | P80: 0 | Q80: 115800 | R80: 323057.29 | S80: 323057.29 | T80: -322248.24 | U80: -323057.29 | V80: 0 | W80: 0 | X80: 483.37 | Y80: 0 | Z80: 200 | AA80: 0 | AB80: 0 | AC80: 0 | AD80: 323057.29 | AE80: 0 | AF80: 0 | AH80: 10 | AI80: 0 | AJ80: SOCSO*6113429 | AK80: 0 | AM80: FVTPL | AN80: 2021-01-11 | AO80: 844000 | AP80: -323057.29 | AQ80: -322248.24 | AR80: CITIGROUP GLOBAL MARKETS
A81: Cur | B81: EQT*210401662 | C81: SP | D81: EQT | E81: SOCSO | F81: 2021-04-27 | G81: 2021-04-27 | H81: 2021-04-30 | I81: 3000-01-01 | J81: 2021-04-27 | K81: 01/01/3000 | L81: SB | M81: MYR | N81: 6113429 | O81: 1 | P81: 0 | Q81: 73400 | R81: 205461.3 | S81: 205461.3 | T81: -204874.08 | U81: -205461.3 | V81: 0 | W81: 0 | X81: 307.31 | Y81: 0 | Z81: 200 | AA81: 0 | AB81: 0 | AC81: 0 | AD81: 205461.3 | AE81: 0 | AF81: 0 | AH81: 10 | AI81: 0 | AJ81: SOCSO*6113429 | AK81: 0 | AM81: FVTPL | AN81: 2021-01-11 | AO81: 917400 | AP81: -205461.3 | AQ81: -204874.08 | AR81: CITIGROUP GLOBAL MARKETS
A82: Cur | B82: EQT*210401761 | C82: SP | D82: EQT | E82: SOCSO | F82: 2021-04-28 | G82: 2021-04-28 | H82: 2021-05-03 | I82: 3000-01-01 | J82: 2021-04-28 | K82: 01/01/3000 | L82: SB | M82: MYR | N82: 6113429 | O82: 1 | P82: 0 | Q82: 10800 | R82: 30294.62 | S82: 30294.62 | T82: -30206.52 | U82: -30294.62 | V82: 0 | W82: 0 | X82: 45.31 | Y82: 0 | Z82: 31 | AA82: 0 | AB82: 0 | AC82: 0 | AD82: 30294.62 | AE82: 0 | AF82: 0 | AH82: 10 | AI82: 0 | AJ82: SOCSO*6113429 | AK82: 0 | AM82: FVTPL | AN82: 2021-01-11 | AO82: 928200 | AP82: -30294.62 | AQ82: -30206.52 | AR82: CITIGROUP GLOBAL MARKETS
A83: Cur | B83: EQT*210400110 | C83: SS | D83: EQT | E83: SOCSO | F83: 2021-04-01 | G83: 2021-04-01 | H83: 2021-04-05 | I83: 3000-01-01 | J83: 2021-04-01 | K83: 01/01/3000 | L83: SB | M83: MYR | N83: BJ17CJ5 | O83: 1 | P83: 0 | Q83: -21500 | R83: -49075.74 | S83: -49075.74 | T83: 127920.7 | U83: 127550.93 | V83: 0 | W83: -78475.19 | X83: 191.88 | Y83: 0 | Z83: 128 | AA83: 0 | AB83: 0 | AC83: 0 | AD83: -49075.74 | AE83: 0 | AF83: 0 | AH83: 10 | AI83: 0 | AJ83: SOCSO*BJ17CJ5 | AK83: 0 | AM83: FVTPL | AN83: 2020-12-31 | AO83: 500000 | AP83: 127550.93 | AQ83: 127920.7 | AR83: CITIGROUP GLOBAL MARKETS
A84: Cur | B84: EQT*210401232 | C84: SP | D84: EQT | E84: SOCSO | F84: 2021-04-20 | G84: 2021-04-20 | H84: 2021-04-22 | I84: 3000-01-01 | J84: 2021-04-20 | K84: 01/01/3000 | L84: SB | M84: MYR | N84: BF0J5S4 | O84: 1 | P84: 0 | Q84: 43900 | R84: 232007.86 | S84: 232007.86 | T84: -231370.56 | U84: -232007.86 | V84: 0 | W84: 0 | X84: 347.06 | Y84: 0 | Z84: 200 | AA84: 0 | AB84: 0 | AC84: 0 | AD84: 232007.86 | AE84: 0 | AF84: 0 | AH84: 10 | AI84: 0 | AJ84: SOCSO*BF0J5S4 | AK84: 0 | AM84: FVTPL | AN84: 2021-01-11 | AO84: 1253900 | AP84: -232007.86 | AQ84: -231370.56 | AR84: CITIGROUP GLOBAL MARKETS
A85: Cur | B85: EQT*210401347 | C85: SS | D85: EQT | E85: SOCSO | F85: 2021-04-21 | G85: 2021-04-21 | H85: 2021-04-23 | I85: 3000-01-01 | J85: 2021-04-21 | K85: 01/01/3000 | L85: SBW | M85: MYR | N85: BJ17CJ5 | O85: 1 | P85: 0 | Q85: -19200 | R85: -43825.78 | S85: -43825.78 | T85: 115278.72 | U85: 114944.83 | V85: 0 | W85: -71119.05 | X85: 172.92 | Y85: 0 | Z85: 116 | AA85: 0 | AB85: 0 | AC85: 0 | AD85: -43825.78 | AE85: 0 | AF85: 0 | AH85: 10 | AI85: 0 | AJ85: SOCSO*BJ17CJ5 | AK85: 0 | AM85: FVTPL | AN85: 2020-12-31 | AO85: 450000 | AP85: 114944.83 | AQ85: 115278.72 | AR85: UBS SECURITIES
A86: Cur | B86: EQT*210401233 | C86: SS | D86: EQT | E86: SOCSO | F86: 2021-04-20 | G86: 2021-04-20 | H86: 2021-04-22 | I86: 3000-01-01 | J86: 2021-04-20 | K86: 01/01/3000 | L86: SBW | M86: MYR | N86: BJ17CJ5 | O86: 1 | P86: 0 | Q86: -30800 | R86: -70303.85 | S86: -70303.85 | T86: 187467.28 | U86: 186924.96 | V86: 0 | W86: -116621.11 | X86: 281.2 | Y86: 0 | Z86: 188 | AA86: 0 | AB86: 0 | AC86: 0 | AD86: -70303.85 | AE86: 0 | AF86: 0 | AH86: 10 | AI86: 0 | AJ86: SOCSO*BJ17CJ5 | AK86: 0 | AM86: FVTPL | AN86: 2020-12-31 | AO86: 469200 | AP86: 186924.96 | AQ86: 187467.28 | AR86: UBS SECURITIES

Sheet InFund
A1: qFundCode | B1: FundName | C1: qFundType | D1: Islamic | E1: FinanceYrStart | F1: FinanceYrEnd | G1: qCompanyID | H1: RollEOYFlag | I1: FundCurrency
A2: AJC-MASHAREQ | B2: ALJAZIRA JAPANESE EQUITY FUND | C2: 1 | D2: 1 | E2: 2013-03-01 | F2: 2020-12-31 | G2: NI | H2: 1 | I2: USD
A3: BNM-ICLIF | B3: IFM ICLIF SHARIAH EQUITY NOMURA-I | C3: 1 | D3: 1 | E3: 2013-08-26 | F3: 2020-12-31 | G3: NI | H3: 1 | I3: MYR
A4: BNM-ICLIF-FI2 | B4: IFM ICLIF CORP BOND NOMURA | C4: 2 | D4: 0 | E4: 2021-01-04 | F4: 2020-12-31 | G4: NM | H4: 1 | I4: MYR
A5: BNM-INCEIF | B5: IFM INCEIF SHARIAH EQUITY NOMURA-I | C5: 1 | D5: 1 | E5: 2013-08-26 | F5: 2020-12-31 | G5: NI | H5: 1 | I5: MYR
A6: BNM-INCEIF-FI | B6: IFM INCEIF SUKUK NOMURA-I | C6: 2 | D6: 1 | E6: 2016-11-28 | F6: 2020-12-31 | G6: NI | H6: 1 | I6: MYR
A7: BNM-MEDF-FI | B7: IFM MEDF CORP BOND NOMURA | C7: 2 | D7: 0 | E7: 2016-11-28 | F7: 2020-12-31 | G7: NM | H7: 1 | I7: MYR
A8: BNMMF | B8: IFM MEDF CONV EQUITY NOMURA | C8: 1 | D8: 0 | E8: 2011-08-08 | F8: 2020-12-31 | G8: NM | H8: 1 | I8: MYR
A9: BNM-NTF | B9: IFM NTF CONV EQUITY NOMURA | C9: 1 | D9: 0 | E9: 2020-09-17 | F9: 2020-12-31 | G9: NM | H9: 1 | I9: MYR
A10: BNM-NTF-FI | B10: IFM NTF CORP BOND NOMURA | C10: 2 | D10: 0 | E10: 2016-11-28 | F10: 2020-12-31 | G10: NM | H10: 1 | I10: MYR
A11: CGC | B11: CREDIT GUARANTEE CORPORATION MALAYSIA BERHAD | C11: 2 | D11: 0 | E11: 2017-03-16 | F11: 2020-12-31 | G11: NM | H11: 1 | I11: MYR
A12: EPF | B12: EMPLOYEES PROVIDENT FUND BOARD | C12: 1 | D12: 0 | E12: 1994-07-05 | F12: 2020-12-31 | G12: NM | H12: 1 | I12: MYR
A13: EPF-ASEAN | B13: EPF ASEAN 40 EX MALAYSIA EQUITY | C13: 1 | D13: 0 | E13: 2007-01-23 | F13: 2020-12-31 | G13: NM | H13: 1 | I13: USD
A14: EPF-ASIA | B14: EPF-ASIA EX JAPAN EX MALAYSIA EQUITY | C14: 1 | D14: 0 | E14: 2007-05-24 | F14: 2020-12-31 | G14: NM | H14: 1 | I14: USD
A15: EPF-DMSUKUK | B15: EMPLOYEES PROVIDENT FUND BOARD (NIAM-FI RR) - IC | C15: 2 | D15: 1 | E15: 2013-07-16 | F15: 2020-12-31 | G15: NI | H15: 1 | I15: MYR
A16: EPF-GLOBAL | B16: NOMURA FOR EPF GLOBAL EQUITY FUND | C16: 1 | D16: 0 | E16: 2007-12-10 | F16: 2020-12-31 | G16: NM | H16: 1 | I16: USD
A17: EPFMSIANFI | B17: EMPLOYEES PROVIDENT FUND BOARD (NAM-FI RR) | C17: 3 | D17: 0 | E17: 2010-04-23 | F17: 2020-12-31 | G17: NM | H17: 1 | I17: MYR
A18: EPF-NIAMEQ | B18: EMPLOYEES PROVIDENT FUND BOARD (NIAM EQ) | C18: 1 | D18: 1 | E18: 2018-11-01 | F18: 2020-12-31 | G18: NI | H18: 1 | I18: MYR
A19: EPF-SHASIA | B19: EPF SHARIAH ASIA NOMURA ISLAMIC | C19: 1 | D19: 1 | E19: 2010-09-20 | F19: 2020-12-31 | G19: NI | H19: 1 | I19: USD
A20: EPF-SHWORLD | B20: EPF SHARIAH WORLD NOMURA ISLAMIC | C20: 1 | D20: 1 | E20: 2010-09-15 | F20: 2020-12-31 | G20: NI | H20: 1 | I20: USD
A21: i-CASH | B21: NOMURA i-CASH FUND | C21: 4 | D21: 1 | E21: 2012-11-07 | F21: 2020-04-30 | G21: NI | H21: 1 | I21: MYR
A22: i-INCOME2 | B22: NOMURA I-INCOME FUND 2 | C22: 2 | D22: 1 | E22: 3000-01-01 | F22: 2022-10-31 | G22: NM | H22: 1 | I22: MYR
A23: i-INCOME2H | B23: NOMURA I-INCOME FUND 2 - CLASS H | C23: 2 | D23: 1 | E23: 3000-01-01 | F23: 2022-10-31 | G23: NM | H23: 1 | I23: MYR
A24: i-INCOME2I | B24: NOMURA I-INCOME FUND 2 - CLASS I | C24: 2 | D24: 1 | E24: 3000-01-01 | F24: 2022-10-31 | G24: NM | H24: 1 | I24: MYR
A25: i-INCOME2S | B25: NOMURA I-INCOME FUND 2 - CLASS S | C25: 2 | D25: 1 | E25: 3000-01-01 | F25: 2022-10-31 | G25: NM | H25: 1 | I25: MYR
A26: i-MONEY | B26: NOMURA i-INCOME FUND | C26: 2 | D26: 1 | E26: 2012-11-07 | F26: 2020-12-31 | G26: NI | H26: 1 | I26: MYR
A27: KWAP | B27: KUMPULAN WANG PERSARAAN | C27: 1 | D27: 0 | E27: 2007-09-10 | F27: 2020-12-31 | G27: NM | H27: 1 | I27: MYR
A28: KWAP-NIAM | B28: KWAP (NOMURA ISLAMIC AM) | C28: 2 | D28: 1 | E28: 2014-07-23 | F28: 2020-12-31 | G28: NI | H28: 1 | I28: MYR
A29: LAB-NGBF | B29: LABUAN RE - NOMURA-GLOBAL BALANCED FUND | C29: 3 | D29: 0 | E29: 2015-06-08 | F29: 2020-12-31 | G29: NM | H29: 1 | I29: USD
A30: MHILJP-EQ | B30: BHT05 (MT HATTON INVT LTD JP PORTFOLIO) | C30: 1 | D30: 0 | E30: 2020-08-04 | F30: 2020-12-31 | G30: NM | H30: 1 | I30: JPY
A31: MSIG-EQ | B31: NOMURA FOR MSIG INSURANCE (MALAYSIA)BHD (EQ) | C31: 1 | D31: 0 | E31: 2021-05-03 | F31: 2021-12-31 | G31: NM | H31: 1 | I31: MYR
A32: NGDBF | B32: DTMB FOR NOMURA GLOBAL DYNAMIC BOND FUND | C32: 2 | D32: 0 | E32: 2021-02-02 | F32: 2020-01-31 | G32: NM | H32: 1 | I32: USD
A33: NGDBFM | B33: NOMURA GLOBAL DYNAMIC BOND FUND - CLASS MYR | C33: 2 | D33: 0 | E33: 2021-02-02 | F33: 2020-01-31 | G33: NM | H33: 1 | I33: USD
A34: NGDBFU | B34: NOMURA GLOBAL DYNAMIC BOND FUND - CLASS USD | C34: 2 | D34: 0 | E34: 2021-02-02 | F34: 2020-01-31 | G34: NM | H34: 1 | I34: USD
A35: NGHC | B35: CCTB-NOMURA GLOBAL HIGH CONVICTION FUND | C35: 1 | D35: 0 | E35: 2016-12-13 | F35: 2020-08-31 | G35: NM | H35: 1 | I35: USD
A36: NGHM | B36: NOMURA GLOBAL HIGH CONVICTION FUND - CLASS MYR | C36: 1 | D36: 0 | E36: 2016-12-13 | F36: 2020-08-31 | G36: NM | H36: 1 | I36: USD
A37: NGHU | B37: NOMURA GLOBAL HIGH CONVICTION FUND - CLASS USD | C37: 1 | D37: 0 | E37: 2016-12-13 | F37: 2020-08-31 | G37: NM | H37: 1 | I37: USD
A38: NGSEF | B38: NOMURA GLOBAL SUSTAINABLE EQUITY FUND | C38: 1 | D38: 0 | E38: 3000-01-01 | F38: 2021-07-31 | G38: NM | H38: 1 | I38: USD
A39: NGSEFA | B39: NOMURA GLOBAL SUSTAINABLE EQUITY FUND-MYR CLASS A | C39: 1 | D39: 0 | E39: 3000-01-01 | F39: 2021-07-31 | G39: NM | H39: 1 | I39: MYR
A40: NGSEFB | B40: NOMURA GLOBAL SUSTAINABLE EQUITY FUND-MYR CLASS B | C40: 1 | D40: 0 | E40: 3000-01-01 | F40: 2021-07-31 | G40: NM | H40: 1 | I40: MYR
A41: NGSEFU | B41: NOMURA GLOBAL SUSTAINABLE EQUITY FUND-USD CLASS | C41: 1 | D41: 0 | E41: 3000-01-01 | F41: 2021-07-31 | G41: NM | H41: 1 | I41: USD
A42: NGSSGF | B42: NOMURA GLOBAL SHARIAH STRATEGIC GROWTH FUND | C42: 1 | D42: 1 | E42: 2020-05-22 | F42: 2020-09-30 | G42: NM | H42: 1 | I42: MYR
A43: NGSSGFA | B43: NOMURA GLOBAL SHARIAH STRATEGIC GROWTH FUND A | C43: 1 | D43: 1 | E43: 2020-05-22 | F43: 2020-09-30 | G43: NM | H43: 1 | I43: MYR
A44: NGSSGFB | B44: NOMURA GLOBAL SHARIAH STRATEGIC GROWTH FUND B | C44: 1 | D44: 1 | E44: 2020-05-22 | F44: 2020-09-30 | G44: NM | H44: 1 | I44: MYR
A45: NRBF1 | B45: CCTB-NOMURA RINGGIT BOND FUND1 | C45: 2 | D45: 0 | E45: 2019-07-01 | F45: 2020-12-31 | G45: NM | H45: 1 | I45: MYR
A46: NRBF2 | B46: DTMB FOR NOMURA RINGGIT BOND FUND 2 | C46: 2 | D46: 0 | E46: 2020-07-28 | F46: 2020-03-31 | G46: NM | H46: 1 | I46: MYR
A47: PET-ACF | B47: PETRONAS EFM (ACF-NOMURA) | C47: 2 | D47: 0 | E47: 3000-01-01 | F47: 2020-12-31 | G47: NM | H47: 1 | I47: MYR
A48: PET-FI | B48: PETRONAS EFM (NOMURA-FI) | C48: 2 | D48: 0 | E48: 2019-12-18 | F48: 2020-12-31 | G48: NM | H48: 1 | I48: MYR
A49: RHBI-GDMF | B49: RHB ISLAMIC GLOBAL DEVELOPED MARKETS FUND | C49: 1 | D49: 1 | E49: 2015-05-28 | F49: 2020-12-31 | G49: NI | H49: 1 | I49: MYR
A50: SLMAB-LFNP | B50: SUN LIFE (LIFE FUND NON PAR-NA) | C50: 1 | D50: 0 | E50: 2016-04-01 | F50: 2020-12-31 | G50: NM | H50: 1 | I50: MYR
A51: SLMAB-LNUL | B51: SUN LIFE (LNUL-NA) | C51: 1 | D51: 0 | E51: 3000-01-01 | F51: 2020-12-31 | G51: NM | H51: 1 | I51: MYR
A52: SLMTB-FTFPA | B52: SUN LIFE TAKAFUL(FTFPA) | C52: 1 | D52: 1 | E52: 2016-04-01 | F52: 2020-12-31 | G52: NI | H52: 1 | I52: MYR
A53: SOCSO | B53: PERTUBUHAN KESELAMATAN SOCIAL(SOCSO) | C53: 1 | D53: 0 | E53: 2009-11-16 | F53: 2020-12-31 | G53: NM | H53: 1 | I53: MYR
A54: TNB-RBTF | B54: TNB RETIREMENT BENEFIT TRUST FUND | C54: 1 | D54: 0 | E54: 2010-12-15 | F54: 2020-12-31 | G54: NM | H54: 1 | I54: MYR
A55: UJSB-EQ1 | B55: URUSHARTA JAMAAH SDN BHD (NOMURA 1) | C55: 1 | D55: 1 | E55: 2020-03-26 | F55: 2020-12-31 | G55: NI | H55: 1 | I55: MYR
A56: UJSB-EQ2 | B56: URUSHARTA JAMAAH SDN BHD (NOMURA 2) | C56: 1 | D56: 1 | E56: 2020-03-26 | F56: 2020-12-31 | G56: NI | H56: 1 | I56: MYR
A57: WB-EQ | B57: WARBA BANK K.S.C | C57: 1 | D57: 1 | E57: 2020-02-13 | F57: 2020-12-31 | G57: NM | H57: 1 | I57: USD

Sheet InSett
A1: sPeriod | B1: qSettleID | C1: AccDate | D1: qEventTrxID | E1: qFundCode | F1: qCurrencyCode | G1: BankedAmt | H1: BankGL | I1: FXGainsAmt | J1: qTrnCode | K1: TranProceed | L1: TranBuyCapital | M1: TranIncome | N1: TranGains | O1: TranAmortAccre | P1: TranPreAcq | Q1: TranExpenses | R1: TranFXGnL | S1: SCNetProceed | T1: UnitFaceValue | U1: SPeriod1 | V1: StockName
A2: Cur | B2: STM*210402450 | C2: 2021-04-27 | D2: CSH*210400922 | E2: SOCSO | F2: MYR | G2: -6800000 | H2: SOCSO-MYR000-500000 | I2: 0 | J2: RP | K2: 0 | L2: 6800000 | M2: 0 | N2: 0 | O2: 0 | P2: 0 | Q2: 0 | R2: 0 | S2: -6800000 | T2: 6800000 | U2: cur | V2: RPF*MYR*PBK
A3: Cur | B3: STM*210402540 | C3: 2021-04-28 | D3: CSH*210400965 | E3: SOCSO | F3: MYR | G3: 6800326.03 | H3: SOCSO-MYR000-500000 | I3: 0 | J3: RM | K3: 0 | L3: -6800000 | M3: -326.03 | N3: 0 | O3: 0 | P3: 0 | Q3: 0 | R3: 0 | S3: 6800326.03 | T3: -6800000 | U3: cur | V3: RPF*MYR*PBK
A4: Cur | B4: STM*210402563 | C4: 2021-04-28 | D4: CSH*210400972 | E4: SOCSO | F4: MYR | G4: -6700000 | H4: SOCSO-MYR000-500000 | I4: 0 | J4: RP | K4: 0 | L4: 6700000 | M4: 0 | N4: 0 | O4: 0 | P4: 0 | Q4: 0 | R4: 0 | S4: -6700000 | T4: 6700000 | U4: cur | V4: RPF*MYR*PBK
A5: Cur | B5: STM*210402670 | C5: 2021-04-30 | D5: CSH*210401020 | E5: SOCSO | F5: MYR | G5: 6700642.47 | H5: SOCSO-MYR000-500000 | I5: 0 | J5: RM | K5: 0 | L5: -6700000 | M5: -642.47 | N5: 0 | O5: 0 | P5: 0 | Q5: 0 | R5: 0 | S5: 6700642.47 | T5: -6700000 | U5: cur | V5: RPF*MYR*PBK
A6: Cur | B6: STM*210402683 | C6: 2021-04-30 | D6: CSH*210401027 | E6: SOCSO | F6: MYR | G6: -6800000 | H6: SOCSO-MYR000-500000 | I6: 0 | J6: RP | K6: 0 | L6: 6800000 | M6: 0 | N6: 0 | O6: 0 | P6: 0 | Q6: 0 | R6: 0 | S6: -6800000 | T6: 6800000 | U6: cur | V6: RPF*MYR*PBK
A7: Cur | B7: STM*210402344 | C7: 2021-04-26 | D7: EQT*210401440 | E7: SOCSO | F7: MYR | G7: 105575.7 | H7: SOCSO-MYR000-500000 | I7: 0 | J7: SS | K7: 0 | L7: -101089.47 | M7: 0 | N7: -4486.23 | O7: 0 | P7: 0 | Q7: 0 | R7: 0 | S7: 105575.7 | T7: -6600 | U7: cur | V7: VITROX CORP BHD
A8: Cur | B8: STM*210402467 | C8: 2021-04-27 | D8: EQT*210401522 | E8: SOCSO | F8: MYR | G8: 462814.52 | H8: SOCSO-MYR000-500000 | I8: 0 | J8: SS | K8: 0 | L8: -434991.06 | M8: 0 | N8: -27823.46 | O8: 0 | P8: 0 | Q8: 0 | R8: 0 | S8: 462814.52 | T8: -28400 | U8: cur | V8: VITROX CORP BHD
A9: Cur | B9: STM*210402795 | C9: 2021-04-30 | D9: EQT*210401662 | E9: SOCSO | F9: MYR | G9: -205461.3 | H9: SOCSO-MYR000-500000 | I9: 0 | J9: SP | K9: 0 | L9: 205461.3 | M9: 0 | N9: 0 | O9: 0 | P9: 0 | Q9: 0 | R9: 0 | S9: -205461.3 | T9: 73400 | U9: cur | V9: V.S. INDUSTRY BERHAD
A10: Cur | B10: STM*210402623 | C10: 2021-04-28 | D10: EQT*210401596 | E10: SOCSO | F10: MYR | G10: -323057.29 | H10: SOCSO-MYR000-500000 | I10: 0 | J10: SP | K10: 0 | L10: 323057.29 | M10: 0 | N10: 0 | O10: 0 | P10: 0 | Q10: 0 | R10: 0 | S10: -323057.29 | T10: 115800 | U10: cur | V10: V.S. INDUSTRY BERHAD
A11: Cur | B11: STM*210402208 | C11: 2021-04-23 | D11: EQT*210401347 | E11: SOCSO | F11: MYR | G11: 114944.83 | H11: SOCSO-MYR000-500000 | I11: 0 | J11: SS | K11: 0 | L11: -43825.78 | M11: 0 | N11: -71119.05 | O11: 0 | P11: 0 | Q11: 0 | R11: 0 | S11: 114944.83 | T11: -19200 | U11: cur | V11: UWC BHD
A12: Cur | B12: STM*210402085 | C12: 2021-04-22 | D12: EQT*210401233 | E12: SOCSO | F12: MYR | G12: 186924.96 | H12: SOCSO-MYR000-500000 | I12: 0 | J12: SS | K12: 0 | L12: -70303.85 | M12: 0 | N12: -116621.11 | O12: 0 | P12: 0 | Q12: 0 | R12: 0 | S12: 186924.96 | T12: -30800 | U12: cur | V12: UWC BHD
A13: Cur | B13: STM*210401664 | C13: 2021-04-19 | D13: EQT*210401008 | E13: SOCSO | F13: MYR | G13: 105804.36 | H13: SOCSO-MYR000-500000 | I13: 0 | J13: SS | K13: 0 | L13: -102621.13 | M13: 0 | N13: -3183.23 | O13: 0 | P13: 0 | Q13: 0 | R13: 0 | S13: 105804.36 | T13: -6700 | U13: cur | V13: VITROX CORP BHD
A14: Cur | B14: STM*210401662 | C14: 2021-04-19 | D14: EQT*210401006 | E14: SOCSO | F14: MYR | G14: -496575.95 | H14: SOCSO-MYR000-500000 | I14: 0 | J14: SP | K14: 0 | L14: 496575.95 | M14: 0 | N14: 0 | O14: 0 | P14: 0 | Q14: 0 | R14: 0 | S14: -496575.95 | T14: 117200 | U14: cur | V14: DIGI.COM BHD
A15: Cur | B15: STM*210401491 | C15: 2021-04-16 | D15: EQT*210400921 | E15: SOCSO | F15: MYR | G15: 153679.91 | H15: SOCSO-MYR000-500000 | I15: 0 | J15: SS | K15: 0 | L15: -148570.89 | M15: 0 | N15: -5109.02 | O15: 0 | P15: 0 | Q15: 0 | R15: 0 | S15: 153679.91 | T15: -9700 | U15: cur | V15: VITROX CORP BHD
A16: Cur | B16: STM*210401490 | C16: 2021-04-16 | D16: EQT*210400920 | E16: SOCSO | F16: MYR | G16: -746110.96 | H16: SOCSO-MYR000-500000 | I16: 0 | J16: SP | K16: 0 | L16: 746110.96 | M16: 0 | N16: 0 | O16: 0 | P16: 0 | Q16: 0 | R16: 0 | S16: -746110.96 | T16: 174100 | U16: cur | V16: DIGI.COM BHD
A17: Cur | B17: STM*210401351 | C17: 2021-04-15 | D17: EQT*210400849 | E17: SOCSO | F17: MYR | G17: 541702.83 | H17: SOCSO-MYR000-500000 | I17: 0 | J17: SS | K17: 0 | L17: -514637.31 | M17: 0 | N17: -27065.52 | O17: 0 | P17: 0 | Q17: 0 | R17: 0 | S17: 541702.83 | T17: -33600 | U17: cur | V17: VITROX CORP BHD
A18: Cur | B18: STM*210401350 | C18: 2021-04-15 | D18: EQT*210400848 | E18: SOCSO | F18: MYR | G18: -84949.19 | H18: SOCSO-MYR000-500000 | I18: 0 | J18: SP | K18: 0 | L18: 84949.19 | M18: 0 | N18: 0 | O18: 0 | P18: 0 | Q18: 0 | R18: 0 | S18: -84949.19 | T18: 19700 | U18: cur | V18: DIGI.COM BHD
A19: Cur | B19: STM*210401228 | C19: 2021-04-14 | D19: EQT*210400782 | E19: SOCSO | F19: MYR | G19: -964637 | H19: SOCSO-MYR000-500000 | I19: 0 | J19: SP | K19: 0 | L19: 964637 | M19: 0 | N19: 0 | O19: 0 | P19: 0 | Q19: 0 | R19: 0 | S19: -964637 | T19: 225100 | U19: cur | V19: DIGI.COM BHD
A20: Cur | B20: STM*210401088 | C20: 2021-04-13 | D20: EQT*210400667 | E20: SOCSO | F20: MYR | G20: -267749.21 | H20: SOCSO-MYR000-500000 | I20: 0 | J20: SP | K20: 0 | L20: 267749.21 | M20: 0 | N20: 0 | O20: 0 | P20: 0 | Q20: 0 | R20: 0 | S20: -267749.21 | T20: 63900 | U20: cur | V20: DIGI.COM BHD
A21: Cur | B21: STM*210400294 | C21: 2021-04-05 | D21: EQT*210400110 | E21: SOCSO | F21: MYR | G21: 127550.93 | H21: SOCSO-MYR000-500000 | I21: 0 | J21: SS | K21: 0 | L21: -49075.74 | M21: 0 | N21: -78475.19 | O21: 0 | P21: 0 | Q21: 0 | R21: 0 | S21: 127550.93 | T21: -21500 | U21: cur | V21: UWC BHD
A22: Cur | B22: STM*210400206 | C22: 2021-04-02 | D22: EQT*210400016 | E22: SOCSO | F22: MYR | G22: 326836.73 | H22: SOCSO-MYR000-500000 | I22: 0 | J22: SS | K22: 0 | L22: -127825.18 | M22: 0 | N22: -199011.55 | O22: 0 | P22: 0 | Q22: 0 | R22: 0 | S22: 326836.73 | T22: -56000 | U22: cur | V22: UWC BHD
A23: Cur | B23: STM*210400204 | C23: 2021-04-02 | D23: EQT*210400014 | E23: SOCSO | F23: MYR | G23: 426357.28 | H23: SOCSO-MYR000-500000 | I23: 0 | J23: SS | K23: 0 | L23: -397187.92 | M23: 0 | N23: -29169.36 | O23: 0 | P23: 0 | Q23: 0 | R23: 0 | S23: 426357.28 | T23: -150000 | U23: cur | V23: V.S. INDUSTRY BERHAD
A24: Cur | B24: STM*210400074 | C24: 2021-04-01 | D24: EQT*210302716 | E24: SOCSO | F24: MYR | G24: 72307.43 | H24: SOCSO-MYR000-500000 | I24: 0 | J24: SS | K24: 0 | L24: -28532.41 | M24: 0 | N24: -43775.02 | O24: 0 | P24: 0 | Q24: 0 | R24: 0 | S24: 72307.43 | T24: -12500 | U24: cur | V24: UWC BHD
A25: Cur | B25: STM*210402772 | C25: 2021-04-30 | D25: EQC*210400119 | E25: SOCSO | F25: MYR | G25: 8738.4 | H25: SOCSO-MYR000-500000 | I25: 0 | J25: SI | K25: 0 | L25: 0 | M25: 0 | N25: -8738.4 | O25: 0 | P25: 0 | Q25: 0 | R25: 0 | S25: 8738.4 | T25: 0 | U25: cur | V25: V.S. INDUSTRY BERHAD
A26: Cur | B26: STM*210402427 | C26: 2021-04-27 | D26: CSH*210400916 | E26: SOCSO | F26: MYR | G26: 6400306.85 | H26: SOCSO-MYR000-500000 | I26: 0 | J26: RM | K26: 0 | L26: -6400000 | M26: -306.85 | N26: 0 | O26: 0 | P26: 0 | Q26: 0 | R26: 0 | S26: 6400306.85 | T26: -6400000 | U26: cur | V26: RPF*MYR*PBK
A27: Cur | B27: STM*210402308 | C27: 2021-04-26 | D27: CSH*210400869 | E27: SOCSO | F27: MYR | G27: -6400000 | H27: SOCSO-MYR000-500000 | I27: 0 | J27: RP | K27: 0 | L27: 6400000 | M27: 0 | N27: 0 | O27: 0 | P27: 0 | Q27: 0 | R27: 0 | S27: -6400000 | T27: 6400000 | U27: cur | V27: RPF*MYR*PBK
A28: Cur | B28: STM*210402284 | C28: 2021-04-26 | D28: CSH*210400862 | E28: SOCSO | F28: MYR | G28: 6100877.4 | H28: SOCSO-MYR000-500000 | I28: 0 | J28: RM | K28: 0 | L28: -6100000 | M28: -877.4 | N28: 0 | O28: 0 | P28: 0 | Q28: 0 | R28: 0 | S28: 6100877.4 | T28: -6100000 | U28: cur | V28: RPF*MYR*PBK
A29: Cur | B29: STM*210402178 | C29: 2021-04-23 | D29: CSH*210400819 | E29: SOCSO | F29: MYR | G29: -6100000 | H29: SOCSO-MYR000-500000 | I29: 0 | J29: RP | K29: 0 | L29: 6100000 | M29: 0 | N29: 0 | O29: 0 | P29: 0 | Q29: 0 | R29: 0 | S29: -6100000 | T29: 6100000 | U29: cur | V29: RPF*MYR*PBK
A30: Cur | B30: STM*210402151 | C30: 2021-04-23 | D30: CSH*210400812 | E30: SOCSO | F30: MYR | G30: 5800278.08 | H30: SOCSO-MYR000-500000 | I30: 0 | J30: RM | K30: 0 | L30: -5800000 | M30: -278.08 | N30: 0 | O30: 0 | P30: 0 | Q30: 0 | R30: 0 | S30: 5800278.08 | T30: -5800000 | U30: cur | V30: RPF*MYR*PBK
A31: Cur | B31: STM*210402039 | C31: 2021-04-22 | D31: CSH*210400765 | E31: SOCSO | F31: MYR | G31: -5800000 | H31: SOCSO-MYR000-500000 | I31: 0 | J31: RP | K31: 0 | L31: 5800000 | M31: 0 | N31: 0 | O31: 0 | P31: 0 | Q31: 0 | R31: 0 | S31: -5800000 | T31: 5800000 | U31: cur | V31: RPF*MYR*PBK
A32: Cur | B32: STM*210402011 | C32: 2021-04-22 | D32: CSH*210400758 | E32: SOCSO | F32: MYR | G32: 6300302.05 | H32: SOCSO-MYR000-500000 | I32: 0 | J32: RM | K32: 0 | L32: -6300000 | M32: -302.05 | N32: 0 | O32: 0 | P32: 0 | Q32: 0 | R32: 0 | S32: 6300302.05 | T32: -6300000 | U32: cur | V32: RPF*MYR*PBK
A33: Cur | B33: STM*210401892 | C33: 2021-04-21 | D33: CSH*210400704 | E33: SOCSO | F33: MYR | G33: -6300000 | H33: SOCSO-MYR000-500000 | I33: 0 | J33: RP | K33: 0 | L33: 6300000 | M33: 0 | N33: 0 | O33: 0 | P33: 0 | Q33: 0 | R33: 0 | S33: -6300000 | T33: 6300000 | U33: cur | V33: RPF*MYR*PBK
A34: Cur | B34: STM*210401869 | C34: 2021-04-21 | D34: CSH*210400697 | E34: SOCSO | F34: MYR | G34: 6600316.44 | H34: SOCSO-MYR000-500000 | I34: 0 | J34: RM | K34: 0 | L34: -6600000 | M34: -316.44 | N34: 0 | O34: 0 | P34: 0 | Q34: 0 | R34: 0 | S34: 6600316.44 | T34: -6600000 | U34: cur | V34: RPF*MYR*PBK
A35: Cur | B35: STM*210401744 | C35: 2021-04-20 | D35: CSH*210400659 | E35: SOCSO | F35: MYR | G35: -6600000 | H35: SOCSO-MYR000-500000 | I35: 0 | J35: RP | K35: 0 | L35: 6600000 | M35: 0 | N35: 0 | O35: 0 | P35: 0 | Q35: 0 | R35: 0 | S35: -6600000 | T35: 6600000 | U35: cur | V35: RPF*MYR*PBK
A36: Cur | B36: STM*210401713 | C36: 2021-04-20 | D36: CSH*210400652 | E36: SOCSO | F36: MYR | G36: 6500311.64 | H36: SOCSO-MYR000-500000 | I36: 0 | J36: RM | K36: 0 | L36: -6500000 | M36: -311.64 | N36: 0 | O36: 0 | P36: 0 | Q36: 0 | R36: 0 | S36: 6500311.64 | T36: -6500000 | U36: cur | V36: RPF*MYR*PBK
A37: Cur | B37: STM*210401587 | C37: 2021-04-19 | D37: CSH*210400609 | E37: SOCSO | F37: MYR | G37: -6500000 | H37: SOCSO-MYR000-500000 | I37: 0 | J37: RP | K37: 0 | L37: 6500000 | M37: 0 | N37: 0 | O37: 0 | P37: 0 | Q37: 0 | R37: 0 | S37: -6500000 | T37: 6500000 | U37: cur | V37: RPF*MYR*PBK
A38: Cur | B38: STM*210401559 | C38: 2021-04-19 | D38: CSH*210400602 | E38: SOCSO | F38: MYR | G38: 6000863.01 | H38: SOCSO-MYR000-500000 | I38: 0 | J38: RM | K38: 0 | L38: -6000000 | M38: -863.01 | N38: 0 | O38: 0 | P38: 0 | Q38: 0 | R38: 0 | S38: 6000863.01 | T38: -6000000 | U38: cur | V38: RPF*MYR*PBK
A39: Cur | B39: STM*210401436 | C39: 2021-04-16 | D39: CSH*210400563 | E39: SOCSO | F39: MYR | G39: -6000000 | H39: SOCSO-MYR000-500000 | I39: 0 | J39: RP | K39: 0 | L39: 6000000 | M39: 0 | N39: 0 | O39: 0 | P39: 0 | Q39: 0 | R39: 0 | S39: -6000000 | T39: 6000000 | U39: cur | V39: RPF*MYR*PBK
A40: Cur | B40: STM*210401408 | C40: 2021-04-16 | D40: CSH*210400556 | E40: SOCSO | F40: MYR | G40: 6600316.44 | H40: SOCSO-MYR000-500000 | I40: 0 | J40: RM | K40: 0 | L40: -6600000 | M40: -316.44 | N40: 0 | O40: 0 | P40: 0 | Q40: 0 | R40: 0 | S40: 6600316.44 | T40: -6600000 | U40: cur | V40: RPF*MYR*PBK
A41: Cur | B41: STM*210401291 | C41: 2021-04-15 | D41: CSH*210400515 | E41: SOCSO | F41: MYR | G41: -6600000 | H41: SOCSO-MYR000-500000 | I41: 0 | J41: RP | K41: 0 | L41: 6600000 | M41: 0 | N41: 0 | O41: 0 | P41: 0 | Q41: 0 | R41: 0 | S41: -6600000 | T41: 6600000 | U41: cur | V41: RPF*MYR*PBK
A42: Cur | B42: STM*210401266 | C42: 2021-04-15 | D42: CSH*210400508 | E42: SOCSO | F42: MYR | G42: 6100292.47 | H42: SOCSO-MYR000-500000 | I42: 0 | J42: RM | K42: 0 | L42: -6100000 | M42: -292.47 | N42: 0 | O42: 0 | P42: 0 | Q42: 0 | R42: 0 | S42: 6100292.47 | T42: -6100000 | U42: cur | V42: RPF*MYR*PBK
A43: Cur | B43: STM*210401194 | C43: 2021-04-14 | D43: CSH*210400456 | E43: SOCSO | F43: MYR | G43: -6100000 | H43: SOCSO-MYR000-500000 | I43: 0 | J43: RP | K43: 0 | L43: 6100000 | M43: 0 | N43: 0 | O43: 0 | P43: 0 | Q43: 0 | R43: 0 | S43: -6100000 | T43: 6100000 | U43: cur | V43: RPF*MYR*PBK
A44: Cur | B44: STM*210401180 | C44: 2021-04-14 | D44: CSH*210400449 | E44: SOCSO | F44: MYR | G44: 7100340.41 | H44: SOCSO-MYR000-500000 | I44: 0 | J44: RM | K44: 0 | L44: -7100000 | M44: -340.41 | N44: 0 | O44: 0 | P44: 0 | Q44: 0 | R44: 0 | S44: 7100340.41 | T44: -7100000 | U44: cur | V44: RPF*MYR*PBK
A45: Cur | B45: STM*210401071 | C45: 2021-04-13 | D45: CSH*210400407 | E45: SOCSO | F45: MYR | G45: -7100000 | H45: SOCSO-MYR000-500000 | I45: 0 | J45: RP | K45: 0 | L45: 7100000 | M45: 0 | N45: 0 | O45: 0 | P45: 0 | Q45: 0 | R45: 0 | S45: -7100000 | T45: 7100000 | U45: cur | V45: RPF*MYR*PBK
A46: Cur | B46: STM*210401047 | C46: 2021-04-13 | D46: CSH*210400400 | E46: SOCSO | F46: MYR | G46: 7401419.23 | H46: SOCSO-MYR000-500000 | I46: 0 | J46: RM | K46: 0 | L46: -7401064.38 | M46: -354.85 | N46: 0 | O46: 0 | P46: 0 | Q46: 0 | R46: 0 | S46: 7401419.23 | T46: -7401064.38 | U46: cur | V46: RPF*MYR*PBK
A47: Cur | B47: STM*210400941 | C47: 2021-04-12 | D47: CSH*210400364 | E47: SOCSO | F47: MYR | G47: -7401064.38 | H47: SOCSO-MYR000-500000 | I47: 0 | J47: RP | K47: 0 | L47: 7401064.38 | M47: 0 | N47: 0 | O47: 0 | P47: 0 | Q47: 0 | R47: 0 | S47: -7401064.38 | T47: 7401064.38 | U47: cur | V47: RPF*MYR*PBK
A48: Cur | B48: STM*210400921 | C48: 2021-04-12 | D48: CSH*210400356 | E48: SOCSO | F48: MYR | G48: 7401064.38 | H48: SOCSO-MYR000-500000 | I48: 0 | J48: RM | K48: 0 | L48: -7400000 | M48: -1064.38 | N48: 0 | O48: 0 | P48: 0 | Q48: 0 | R48: 0 | S48: 7401064.38 | T48: -7400000 | U48: cur | V48: RPF*MYR*PBK
A49: Cur | B49: STM*210400809 | C49: 2021-04-09 | D49: CSH*210400315 | E49: SOCSO | F49: MYR | G49: -7400000 | H49: SOCSO-MYR000-500000 | I49: 0 | J49: RP | K49: 0 | L49: 7400000 | M49: 0 | N49: 0 | O49: 0 | P49: 0 | Q49: 0 | R49: 0 | S49: -7400000 | T49: 7400000 | U49: cur | V49: RPF*MYR*PBK
A50: Cur | B50: STM*210400788 | C50: 2021-04-09 | D50: CSH*210400308 | E50: SOCSO | F50: MYR | G50: 7200345.21 | H50: SOCSO-MYR000-500000 | I50: 0 | J50: RM | K50: 0 | L50: -7200000 | M50: -345.21 | N50: 0 | O50: 0 | P50: 0 | Q50: 0 | R50: 0 | S50: 7200345.21 | T50: -7200000 | U50: cur | V50: RPF*MYR*PBK
A51: Cur | B51: STM*210400651 | C51: 2021-04-08 | D51: CSH*210400262 | E51: SOCSO | F51: MYR | G51: -7200000 | H51: SOCSO-MYR000-500000 | I51: 0 | J51: RP | K51: 0 | L51: 7200000 | M51: 0 | N51: 0 | O51: 0 | P51: 0 | Q51: 0 | R51: 0 | S51: -7200000 | T51: 7200000 | U51: cur | V51: RPF*MYR*PBK
A52: Cur | B52: STM*210400634 | C52: 2021-04-08 | D52: CSH*210400255 | E52: SOCSO | F52: MYR | G52: 7100340.41 | H52: SOCSO-MYR000-500000 | I52: 0 | J52: RM | K52: 0 | L52: -7100000 | M52: -340.41 | N52: 0 | O52: 0 | P52: 0 | Q52: 0 | R52: 0 | S52: 7100340.41 | T52: -7100000 | U52: cur | V52: RPF*MYR*PBK
A53: Cur | B53: STM*210400536 | C53: 2021-04-07 | D53: CSH*210400239 | E53: SOCSO | F53: MYR | G53: -3326886.52 | H53: SOCSO-MYR000-500000 | I53: 0 | J53: CN | K53: 0 | L53: 3326886.52 | M53: 0 | N53: 0 | O53: 0 | P53: 0 | Q53: 0 | R53: 0 | S53: -3326886.52 | T53: -3326886.52 | U53: cur | V53: CAPITAL MYR
A54: Cur | B54: STM*210400528 | C54: 2021-04-07 | D54: CSH*210400220 | E54: SOCSO | F54: MYR | G54: -7100000 | H54: SOCSO-MYR000-500000 | I54: 0 | J54: RP | K54: 0 | L54: 7100000 | M54: 0 | N54: 0 | O54: 0 | P54: 0 | Q54: 0 | R54: 0 | S54: -7100000 | T54: 7100000 | U54: cur | V54: RPF*MYR*PBK
A55: Cur | B55: STM*210400503 | C55: 2021-04-07 | D55: CSH*210400213 | E55: SOCSO | F55: MYR | G55: 10300493.84 | H55: SOCSO-MYR000-500000 | I55: 0 | J55: RM | K55: 0 | L55: -10300000 | M55: -493.84 | N55: 0 | O55: 0 | P55: 0 | Q55: 0 | R55: 0 | S55: 10300493.84 | T55: -10300000 | U55: cur | V55: RPF*MYR*PBK
A56: Cur | B56: STM*210400380 | C56: 2021-04-06 | D56: CSH*210400164 | E56: SOCSO | F56: MYR | G56: -10300000 | H56: SOCSO-MYR000-500000 | I56: 0 | J56: RP | K56: 0 | L56: 10300000 | M56: 0 | N56: 0 | O56: 0 | P56: 0 | Q56: 0 | R56: 0 | S56: -10300000 | T56: 10300000 | U56: cur | V56: RPF*MYR*PBK
A57: Cur | B57: STM*210400359 | C57: 2021-04-06 | D57: CSH*210400157 | E57: SOCSO | F57: MYR | G57: 10200489.04 | H57: SOCSO-MYR000-500000 | I57: 0 | J57: RM | K57: 0 | L57: -10200000 | M57: -489.04 | N57: 0 | O57: 0 | P57: 0 | Q57: 0 | R57: 0 | S57: 10200489.04 | T57: -10200000 | U57: cur | V57: RPF*MYR*PBK
A58: Cur | B58: STM*210400245 | C58: 2021-04-05 | D58: CSH*210400119 | E58: SOCSO | F58: MYR | G58: -10200000 | H58: SOCSO-MYR000-500000 | I58: 0 | J58: RP | K58: 0 | L58: 10200000 | M58: 0 | N58: 0 | O58: 0 | P58: 0 | Q58: 0 | R58: 0 | S58: -10200000 | T58: 10200000 | U58: cur | V58: RPF*MYR*PBK
A59: Cur | B59: STM*210400229 | C59: 2021-04-05 | D59: CSH*210400112 | E59: SOCSO | F59: MYR | G59: 10001438.36 | H59: SOCSO-MYR000-500000 | I59: 0 | J59: RM | K59: 0 | L59: -10000000 | M59: -1438.36 | N59: 0 | O59: 0 | P59: 0 | Q59: 0 | R59: 0 | S59: 10001438.36 | T59: -10000000 | U59: cur | V59: RPF*MYR*PBK
A60: Cur | B60: STM*210400161 | C60: 2021-04-02 | D60: CSH*210400069 | E60: SOCSO | F60: MYR | G60: -10000000 | H60: SOCSO-MYR000-500000 | I60: 0 | J60: RP | K60: 0 | L60: 10000000 | M60: 0 | N60: 0 | O60: 0 | P60: 0 | Q60: 0 | R60: 0 | S60: -10000000 | T60: 10000000 | U60: cur | V60: RPF*MYR*PBK
A61: Cur | B61: STM*210400142 | C61: 2021-04-02 | D61: CSH*210400056 | E61: SOCSO | F61: MYR | G61: 9200441.1 | H61: SOCSO-MYR000-500000 | I61: 0 | J61: RM | K61: 0 | L61: -9200000 | M61: -441.1 | N61: 0 | O61: 0 | P61: 0 | Q61: 0 | R61: 0 | S61: 9200441.1 | T61: -9200000 | U61: cur | V61: RPF*MYR*PBK
A62: Cur | B62: STM*210400041 | C62: 2021-04-01 | D62: CSH*210400014 | E62: SOCSO | F62: MYR | G62: -9200000 | H62: SOCSO-MYR000-500000 | I62: 0 | J62: RP | K62: 0 | L62: 9200000 | M62: 0 | N62: 0 | O62: 0 | P62: 0 | Q62: 0 | R62: 0 | S62: -9200000 | T62: 9200000 | U62: cur | V62: RPF*MYR*PBK
A63: Cur | B63: STM*210400001 | C63: 2021-04-01 | D63: CSH*210400007 | E63: SOCSO | F63: MYR | G63: 9100436.3 | H63: SOCSO-MYR000-500000 | I63: 0 | J63: RM | K63: 0 | L63: -9100000 | M63: -436.3 | N63: 0 | O63: 0 | P63: 0 | Q63: 0 | R63: 0 | S63: 9100436.3 | T63: -9100000 | U63: cur | V63: RPF*MYR*PBK
A64: Cur | B64: STM*210402796 | C64: 2021-04-30 | D64: EQT*210401663 | E64: SOCSO | F64: MYR | G64: 218542.99 | H64: SOCSO-MYR000-500000 | I64: 0 | J64: SS | K64: 0 | L64: -151440 | M64: 0 | N64: -67102.99 | O64: 0 | P64: 0 | Q64: 0 | R64: 0 | S64: 218542.99 | T64: -61200 | U64: cur | V64: INARI AMERTRON BHD
A65: Cur | B65: STM*210402624 | C65: 2021-04-28 | D65: EQT*210401597 | E65: SOCSO | F65: MYR | G65: 208051.57 | H65: SOCSO-MYR000-500000 | I65: 0 | J65: SS | K65: 0 | L65: -145501.18 | M65: 0 | N65: -62550.39 | O65: 0 | P65: 0 | Q65: 0 | R65: 0 | S65: 208051.57 | T65: -58800 | U65: cur | V65: INARI AMERTRON BHD
A66: Cur | B66: STM*210402065 | C66: 2021-04-22 | D66: EQC*210300334 | E66: SOCSO | F66: MYR | G66: 24210.56 | H66: SOCSO-MYR000-500000 | I66: 0 | J66: SI | K66: 0 | L66: 0 | M66: 0 | N66: -24210.56 | O66: 0 | P66: 0 | Q66: 0 | R66: 0 | S66: 24210.56 | T66: 0 | U66: cur | V66: CIMB GROUP HOLDINGS BHD
A67: Cur | B67: STM*210400689 | C67: 2021-04-08 | D67: EQC*210300280 | E67: SOCSO | F67: MYR | G67: 26500 | H67: SOCSO-MYR000-500000 | I67: 0 | J67: SI | K67: 0 | L67: 0 | M67: 0 | N67: -26500 | O67: 0 | P67: 0 | Q67: 0 | R67: 0 | S67: 26500 | T67: 0 | U67: cur | V67: INARI AMERTRON BHD
A68: Cur | B68: STM*210400547 | C68: 2021-04-07 | D68: EQC*210300182 | E68: SOCSO | F68: MYR | G68: 39883.25 | H68: SOCSO-MYR000-500000 | I68: 0 | J68: SI | K68: 0 | L68: 0 | M68: 0 | N68: -39883.25 | O68: 0 | P68: 0 | Q68: 0 | R68: 0 | S68: 39883.25 | T68: 0 | U68: cur | V68: SUNWAY CONSTRUCTION GROUP BH
A69: Cur | B69: STM*210402345 | C69: 2021-04-26 | D69: EQT*210401441 | E69: SOCSO | F69: MYR | G69: -103888.16 | H69: SOCSO-MYR000-500000 | I69: 0 | J69: SP | K69: 0 | L69: 103888.16 | M69: 0 | N69: 0 | O69: 0 | P69: 0 | Q69: 0 | R69: 0 | S69: -103888.16 | T69: 26600 | U69: cur | V69: MR DIY GROUP M BHD
A70: Cur | B70: STM*210402343 | C70: 2021-04-26 | D70: EQT*210401439 | E70: SOCSO | F70: MYR | G70: 278472.31 | H70: SOCSO-MYR000-500000 | I70: 0 | J70: SS | K70: 0 | L70: -226788.16 | M70: 0 | N70: -51684.15 | O70: 0 | P70: 0 | Q70: 0 | R70: 0 | S70: 278472.31 | T70: -20000 | U70: cur | V70: TIME DOTCOM BHD
A71: Cur | B71: STM*210402206 | C71: 2021-04-23 | D71: EQT*210401345 | E71: SOCSO | F71: MYR | G71: 278785.71 | H71: SOCSO-MYR000-500000 | I71: 0 | J71: SS | K71: 0 | L71: -226788.16 | M71: 0 | N71: -51997.55 | O71: 0 | P71: 0 | Q71: 0 | R71: 0 | S71: 278785.71 | T71: -20000 | U71: cur | V71: TIME DOTCOM BHD
A72: Cur | B72: STM*210402086 | C72: 2021-04-22 | D72: EQT*210401234 | E72: SOCSO | F72: MYR | G72: -451563.98 | H72: SOCSO-MYR000-500000 | I72: 0 | J72: SP | K72: 0 | L72: 451563.98 | M72: 0 | N72: 0 | O72: 0 | P72: 0 | Q72: 0 | R72: 0 | S72: -451563.98 | T72: 115000 | U72: cur | V72: MR DIY GROUP M BHD
A73: Cur | B73: STM*210401781 | C73: 2021-04-20 | D73: EQT*210401070 | E73: SOCSO | F73: MYR | G73: 22367.94 | H73: SOCSO-MYR000-500000 | I73: 0 | J73: SS | K73: 0 | L73: -22194.82 | M73: 0 | N73: -173.12 | O73: 0 | P73: 0 | Q73: 0 | R73: 0 | S73: 22367.94 | T73: -2600 | U73: cur | V73: BURSA MALAYSIA BHD
A74: Cur | B74: STM*210401663 | C74: 2021-04-19 | D74: EQT*210401007 | E74: SOCSO | F74: MYR | G74: 225162.24 | H74: SOCSO-MYR000-500000 | I74: 0 | J74: SS | K74: 0 | L74: -223655.54 | M74: 0 | N74: -1506.7 | O74: 0 | P74: 0 | Q74: 0 | R74: 0 | S74: 225162.24 | T74: -26200 | U74: cur | V74: BURSA MALAYSIA BHD
A75: Cur | B75: STM*210400835 | C75: 2021-04-09 | D75: EQT*210400452 | E75: SOCSO | F75: MYR | G75: 81696.1 | H75: SOCSO-MYR000-500000 | I75: 0 | J75: SS | K75: 0 | L75: -78203.51 | M75: 0 | N75: -3492.59 | O75: 0 | P75: 0 | Q75: 0 | R75: 0 | S75: 81696.1 | T75: -47900 | U75: cur | V75: SUNWAY BHD
A76: Cur | B76: STM*210400723 | C76: 2021-04-08 | D76: EQT*210400354 | E76: SOCSO | F76: MYR | G76: 46922.55 | H76: SOCSO-MYR000-500000 | I76: 0 | J76: SS | K76: 0 | L76: -44734.37 | M76: 0 | N76: -2188.18 | O76: 0 | P76: 0 | Q76: 0 | R76: 0 | S76: 46922.55 | T76: -27400 | U76: cur | V76: SUNWAY BHD
A77: Cur | B77: STM*210400565 | C77: 2021-04-07 | D77: EQT*210400264 | E77: SOCSO | F77: MYR | G77: 139962.47 | H77: SOCSO-MYR000-500000 | I77: 0 | J77: SS | K77: 0 | L77: -133386.78 | M77: 0 | N77: -6575.69 | O77: 0 | P77: 0 | Q77: 0 | R77: 0 | S77: 139962.47 | T77: -81700 | U77: cur | V77: SUNWAY BHD
A78: Cur | B78: STM*210400470 | C78: 2021-04-06 | D78: EQT*210400199 | E78: SOCSO | F78: MYR | G78: 106111.86 | H78: SOCSO-MYR000-500000 | I78: 0 | J78: SS | K78: 0 | L78: -102203.34 | M78: 0 | N78: -3908.52 | O78: 0 | P78: 0 | Q78: 0 | R78: 0 | S78: 106111.86 | T78: -62600 | U78: cur | V78: SUNWAY BHD
A79: Cur | B79: STM*210400293 | C79: 2021-04-05 | D79: EQT*210400109 | E79: SOCSO | F79: MYR | G79: 51360.63 | H79: SOCSO-MYR000-500000 | I79: 0 | J79: SS | K79: 0 | L79: -49469.03 | M79: 0 | N79: -1891.6 | O79: 0 | P79: 0 | Q79: 0 | R79: 0 | S79: 51360.63 | T79: -30300 | U79: cur | V79: SUNWAY BHD
A80: Cur | B80: STM*210400205 | C80: 2021-04-02 | D80: EQT*210400015 | E80: SOCSO | F80: MYR | G80: 81703.13 | H80: SOCSO-MYR000-500000 | I80: 0 | J80: SS | K80: 0 | L80: -78693.3 | M80: 0 | N80: -3009.83 | O80: 0 | P80: 0 | Q80: 0 | R80: 0 | S80: 81703.13 | T80: -48200 | U80: cur | V80: SUNWAY BHD
A81: Cur | B81: STM*210400073 | C81: 2021-04-01 | D81: EQT*210302715 | E81: SOCSO | F81: MYR | G81: 87974.24 | H81: SOCSO-MYR000-500000 | I81: 0 | J81: SS | K81: 0 | L81: -84734.08 | M81: 0 | N81: -3240.16 | O81: 0 | P81: 0 | Q81: 0 | R81: 0 | S81: 87974.24 | T81: -51900 | U81: cur | V81: SUNWAY BHD
A82: Cur | B82: STM*210400072 | C82: 2021-04-01 | D82: EQT*210302714 | E82: SOCSO | F82: MYR | G82: -96792.92 | H82: SOCSO-MYR000-500000 | I82: 0 | J82: SP | K82: 0 | L82: 96792.92 | M82: 0 | N82: 0 | O82: 0 | P82: 0 | Q82: 0 | R82: 0 | S82: -96792.92 | T82: 43000 | U82: cur | V82: SKP RESOURCES BHD
A83: Cur | B83: STM*210402598 | C83: 2021-04-28 | D83: EQC*210400114 | E83: SOCSO | F83: MYR | G83: 37222.5 | H83: SOCSO-MYR000-500000 | I83: 0 | J83: SI | K83: 0 | L83: 0 | M83: 0 | N83: -37222.5 | O83: 0 | P83: 0 | Q83: 0 | R83: 0 | S83: 37222.5 | T83: 0 | U83: cur | V83: SUNWAY BHD
A84: Cur | B84: STM*210401634 | C84: 2021-04-19 | D84: EQC*210400040 | E84: SOCSO | F84: MYR | G84: 51518.35 | H84: SOCSO-MYR000-500000 | I84: 0 | J84: SI | K84: 0 | L84: 0 | M84: 0 | N84: -51518.35 | O84: 0 | P84: 0 | Q84: 0 | R84: 0 | S84: 51518.35 | T84: 0 | U84: cur | V84: MEGA FIRST CORP BHD
A85: Cur | B85: STM*210401480 | C85: 2021-04-16 | D85: EQC*210300403 | E85: SOCSO | F85: MYR | G85: 204394.5 | H85: SOCSO-MYR000-500000 | I85: 0 | J85: SI | K85: 0 | L85: 0 | M85: 0 | N85: -204394.5 | O85: 0 | P85: 0 | Q85: 0 | R85: 0 | S85: 204394.5 | T85: 0 | U85: cur | V85: TENAGA NASIONAL BHD
A86: Cur | B86: STM*210401470 | C86: 2021-04-16 | D86: EQC*210300381 | E86: SOCSO | F86: MYR | G86: 454210 | H86: SOCSO-MYR000-500000 | I86: 0 | J86: SI | K86: 0 | L86: 0 | M86: 0 | N86: -454210 | O86: 0 | P86: 0 | Q86: 0 | R86: 0 | S86: 454210 | T86: 0 | U86: cur | V86: TENAGA NASIONAL BHD
A87: Cur | B87: STM*210400696 | C87: 2021-04-08 | D87: EQC*210300337 | E87: SOCSO | F87: MYR | G87: 28385 | H87: SOCSO-MYR000-500000 | I87: 0 | J87: SI | K87: 0 | L87: 0 | M87: 0 | N87: -28385 | O87: 0 | P87: 0 | Q87: 0 | R87: 0 | S87: 28385 | T87: 0 | U87: cur | V87: AXIATA GROUP BERHAD
A88: Cur | B88: STM*210402207 | C88: 2021-04-23 | D88: EQT*210401346 | E88: SOCSO | F88: MYR | G88: -137978.96 | H88: SOCSO-MYR000-500000 | I88: 0 | J88: SP | K88: 0 | L88: 137978.96 | M88: 0 | N88: 0 | O88: 0 | P88: 0 | Q88: 0 | R88: 0 | S88: -137978.96 | T88: 26100 | U88: cur | V88: PRESS METAL ALUMINIUM HOLDIN
A89: Cur | B89: STM*210402084 | C89: 2021-04-22 | D89: EQT*210401232 | E89: SOCSO | F89: MYR | G89: -232007.86 | H89: SOCSO-MYR000-500000 | I89: 0 | J89: SP | K89: 0 | L89: 232007.86 | M89: 0 | N89: 0 | O89: 0 | P89: 0 | Q89: 0 | R89: 0 | S89: -232007.86 | T89: 43900 | U89: cur | V89: PRESS METAL ALUMINIUM HOLDIN
A90: Cur | B90: STM*210401934 | C90: 2021-04-21 | D90: EQT*210401135 | E90: SOCSO | F90: MYR | G90: -268145.47 | H90: SOCSO-MYR000-500000 | I90: 0 | J90: SP | K90: 0 | L90: 268145.47 | M90: 0 | N90: 0 | O90: 0 | P90: 0 | Q90: 0 | R90: 0 | S90: -268145.47 | T90: 50000 | U90: cur | V90: PRESS METAL ALUMINIUM HOLDIN
A91: Cur | B91: STM*210402751 | C91: 2021-04-30 | D91: EQC*210300386 | E91: SOCSO | F91: MYR | G91: 45080 | H91: SOCSO-MYR000-500000 | I91: 0 | J91: SI | K91: 0 | L91: 0 | M91: 0 | N91: -45080 | O91: 0 | P91: 0 | Q91: 0 | R91: 0 | S91: 45080 | T91: 0 | U91: cur | V91: IHH HEALTHCARE BHD

Sheet InJournal
A1: SPeriod | B1: GLKey | C1: JournalID | D1: GLCode | E1: qFundCode | F1: qCurrencyCode | G1: AccDate | H1: Description | I1: Amount | J1: TrialBalanceRef | K1: UnitPricingFlag | L1: ApprovalStatus | M1: AppDtTime | N1: AppOrRejBy | O1: AutoPostFlag | P1: FirstGL | Q1: ShortGL | R1: CPName

Sheet InTB
A1: qFundCode | B1: TBDate | C1: qAssetRptGrp | D1: qCurrencyCode | E1: GLCode | F1: qAssetAccType | G1: ShortGL | H1: CreditAmt | I1: DebitAmt | J1: ExRate | K1: ValuationGL | L1: TBType | M1: SumDrCr
A2: SOCSO | B2: 2021-03-31 | C2: EQT | D2: MYR | E2: SOCSO-MYR010-100000 | F2: 010 | G2: 100000 | H2: -71214614.95 | I2: 248226091.3 | J2: 1 | K2: FALSE | L2: BS | M2: 177011476.4
A3: SOCSO | B3: 2021-03-31 | C3: MM | D3: MYR | E3: SOCSO-MYR210-100000 | F3: 210 | G3: 100000 | H3: -268005322 | I3: 277105322 | J3: 1 | K3: FALSE | L3: BS | M3: 9100000
A4: SOCSO | B4: 2021-03-31 | C4: EQT | D4: MYR | E4: SOCSO-MYR010-101000 | F4: 010 | G4: 101000 | H4: -7675134.04 | I4: 0 | J4: 1 | K4: FALSE | L4: BS | M4: -7675134.04
A5: SOCSO | B5: 2021-03-31 | C5: MM | D5: MYR | E5: SOCSO-MYR210-139000 | F5: 210 | G5: 139000 | H5: 0 | I5: 436.3 | J5: 1 | K5: TRUE | L5: BS | M5: 436.3
A6: SOCSO | B6: 2021-03-31 | C6: EQT | D6: MYR | E6: SOCSO-MYR010-189000 | F6: 010 | G6: 189000 | H6: -4292760.19 | I6: 12546894.83 | J6: 1 | K6: TRUE | L6: BS | M6: 8254134.64
A7: SOCSO | B7: 2021-03-31 | C7: EQT | D7: MYR | E7: SOCSO-MYR010-200000 | F7: 010 | G7: 200000 | H7: -5846143.83 | I7: 6841322.64 | J7: 1 | K7: FALSE | L7: BS | M7: 995178.81
A8: SOCSO | B8: 2021-03-31 | C8: EQT | D8: MYR | E8: SOCSO-MYR010-299000 | F8: 010 | G8: 299000 | H8: -1888460.06 | I8: 2711123.37 | J8: 1 | K8: FALSE | L8: BS | M8: 822663.31
A9: SOCSO | B9: 2021-03-31 | C9: EQT | D9: MYR | E9: SOCSO-MYR010-300000 | F9: 010 | G9: 300000 | H9: -904730.6 | I9: 807937.68 | J9: 1 | K9: FALSE | L9: BS | M9: -96792.92
A10: SOCSO | B10: 2021-03-31 | C10: CSH | D10: MYR | E10: SOCSO-MYR000-500000 | F10: 000 | G10: 500000 | H10: -501428709.4 | I10: 501509549.4 | J10: 1 | K10: FALSE | L10: BS | M10: 80839.96
A11: SOCSO | B11: 2021-03-31 | C11: EQT | D11: MYR | E11: SOCSO-MYR020-600000 | F11: 020 | G11: 600000 | H11: -32920.23 | I11: 0 | J11: 1 | K11: FALSE | L11: PLR | M11: -32920.23
A12: SOCSO | B12: 2021-03-31 | C12: EQT | D12: MYR | E12: SOCSO-MYR010-600000 | F12: 010 | G12: 600000 | H12: -23088391.64 | I12: 14347989.17 | J12: 1 | K12: FALSE | L12: PLR | M12: -8740402.47
A13: SOCSO | B13: 2021-03-31 | C13: EQT | D13: MYR | E13: SOCSO-MYR010-601000 | F13: 010 | G13: 601000 | H13: 0 | I13: 7675134.04 | J13: 1 | K13: FALSE | L13: PLR | M13: 7675134.04
A14: SOCSO | B14: 2021-03-31 | C14: MM | D14: MYR | E14: SOCSO-MYR210-630000 | F14: 210 | G14: 630000 | H14: -33380.28 | I14: 613.71 | J14: 1 | K14: FALSE | L14: PLR | M14: -32766.57
A15: SOCSO | B15: 2021-03-31 | C15: EQT | D15: MYR | E15: SOCSO-MYR010-636000 | F15: 010 | G15: 636000 | H15: -2236659.68 | I15: 63769.04 | J15: 1 | K15: FALSE | L15: PLR | M15: -2172890.64
A16: SOCSO | B16: 2021-03-31 | C16: MM | D16: MYR | E16: SOCSO-MYR210-639000 | F16: 210 | G16: 639000 | H16: -436.3 | I16: 0 | J16: 1 | K16: TRUE | L16: PLR | M16: -436.3
A17: SOCSO | B17: 2021-03-31 | C17: CSH | D17: MYR | E17: SOCSO-MYR000-640003 | F17: 000 | G17: 640003 | H17: -330.82 | I17: 0 | J17: 1 | K17: FALSE | L17: PLR | M17: -330.82
A18: SOCSO | B18: 2021-03-31 | C18: CSH | D18: MYR | E18: SOCSO-MYR000-640004 | F18: 000 | G18: 640004 | H18: -177840.98 | I18: 0 | J18: 1 | K18: FALSE | L18: PLR | M18: -177840.98
A19: SOCSO | B19: 2021-03-31 | C19: EQT | D19: MYR | E19: SOCSO-MYR010-689000 | F19: 010 | G19: 689000 | H19: -12546894.83 | I19: 4292760.19 | J19: 1 | K19: TRUE | L19: PLU | M19: -8254134.64
A20: SOCSO | B20: 2021-03-31 | C20: CSH | D20: MYR | E20: SOCSO-MYR000-710106 | F20: 000 | G20: 710106 | H20: 0 | I20: 177840.98 | J20: 1 | K20: FALSE | L20: PLR | M20: 177840.98
A21: SOCSO | B21: 2021-03-31 | C21: CSH | D21: MYR | E21: SOCSO-MYR000-800000 | F21: 000 | G21: 800000 | H21: -71703535.73 | I21: 0 | J21: 1 | K21: FALSE | L21: BS | M21: -71703535.73
A22: SOCSO | B22: 2021-03-31 | C22: EQT | D22: MYR | E22: SOCSO-MYR010-810000 | F22: 010 | G22: 810000 | H22: -7725218.59 | I22: 0 | J22: 1 | K22: FALSE | L22: BS | M22: -7725218.59
A23: SOCSO | B23: 2021-03-31 | C23: EQT | D23: MYR | E23: SOCSO-MYR010-830000 | F23: 010 | G23: 830000 | H23: -105913598.3 | I23: 0 | J23: 1 | K23: FALSE | L23: BS | M23: -105913598.3
A24: SOCSO | B24: 2021-03-31 | C24: MM | D24: MYR | E24: SOCSO-MYR210-830000 | F24: 210 | G24: 830000 | H24: -3782191.26 | I24: 0 | J24: 1 | K24: FALSE | L24: BS | M24: -3782191.26
A25: SOCSO | B25: 2021-03-31 | C25: CSH | D25: MYR | E25: SOCSO-MYR000-830000 | F25: 000 | G25: 830000 | H25: -331038.58 | I25: 1269.88 | J25: 1 | K25: FALSE | L25: BS | M25: -329768.7
A26: SOCSO | B26: 2021-03-31 | C26: O-EQT | D26: MYR | E26: SOCSO-MYR015-830000 | F26: 015 | G26: 830000 | H26: -668.44 | I26: 0 | J26: 1 | K26: FALSE | L26: BS | M26: -668.44
A27: SOCSO | B27: 2021-03-31 | C27: CSH | D27: MYR | E27: SOCSO-MYR000-850000 | F27: 000 | G27: 850000 | H27: 0 | I27: 4795307.18 | J27: 1 | K27: FALSE | L27: PLR | M27: 4795307.18
A28: SOCSO | B28: 2021-03-31 | C28: MM | D28: MYR | E28: SOCSO-MYR210-939000 | F28: 210 | G28: 939000 | H28: 400.41 | I28: 0 | J28: 1 | K28: FALSE | L28: PLR | M28: 400.41
A29: SOCSO | B29: 2021-03-31 | C29: EQT | D29: MYR | E29: SOCSO-MYR010-989000 | F29: 010 | G29: 989000 | H29: 7725218.59 | I29: 0 | J29: 1 | K29: FALSE | L29: PLU | M29: 7725218.59
A30: SOCSO | B30: 2021-04-30 | C30: EQT | D30: MYR | E30: SOCSO-MYR010-100000 | F30: 010 | G30: 100000 | H30: -80997849.67 | I30: 259704546.3 | J30: 1 | K30: FALSE | L30: BS | M30: 178706696.7
A31: SOCSO | B31: 2021-04-30 | C31: MM | D31: MYR | E31: SOCSO-MYR210-100000 | F31: 210 | G31: 100000 | H31: -422906386.4 | I31: 429706386.4 | J31: 1 | K31: FALSE | L31: BS | M31: 6800000
A32: SOCSO | B32: 2021-04-30 | C32: EQT | D32: MYR | E32: SOCSO-MYR010-101000 | F32: 010 | G32: 101000 | H32: -7675134.04 | I32: 0 | J32: 1 | K32: FALSE | L32: BS | M32: -7675134.04
A33: SOCSO | B33: 2021-04-30 | C33: MM | D33: MYR | E33: SOCSO-MYR210-139000 | F33: 210 | G33: 139000 | H33: 0 | I33: 326.03 | J33: 1 | K33: TRUE | L33: BS | M33: 326.03
A34: SOCSO | B34: 2021-04-30 | C34: EQT | D34: MYR | E34: SOCSO-MYR010-189000 | F34: 010 | G34: 189000 | H34: -5596180.31 | I34: 12285130.47 | J34: 1 | K34: TRUE | L34: BS | M34: 6688950.16
A35: SOCSO | B35: 2021-04-30 | C35: EQT | D35: MYR | E35: SOCSO-MYR010-299000 | F35: 010 | G35: 299000 | H35: -2808602.62 | I35: 2974160.62 | J35: 1 | K35: FALSE | L35: BS | M35: 165558
A36: SOCSO | B36: 2021-04-30 | C36: EQT | D36: MYR | E36: SOCSO-MYR010-300000 | F36: 010 | G36: 300000 | H36: -8356694.43 | I36: 8326399.81 | J36: 1 | K36: FALSE | L36: BS | M36: -30294.62
A37: SOCSO | B37: 2021-04-30 | C37: CSH | D37: MYR | E37: SOCSO-MYR000-500000 | F37: 000 | G37: 500000 | H37: -661735578.5 | I37: 661792946.3 | J37: 1 | K37: FALSE | L37: BS | M37: 57367.75
A38: SOCSO | B38: 2021-04-30 | C38: EQT | D38: MYR | E38: SOCSO-MYR010-600000 | F38: 010 | G38: 600000 | H38: -24514580.67 | I38: 14934943.46 | J38: 1 | K38: FALSE | L38: PLR | M38: -9579637.21
A39: SOCSO | B39: 2021-04-30 | C39: EQT | D39: MYR | E39: SOCSO-MYR020-600000 | F39: 020 | G39: 600000 | H39: -32920.23 | I39: 0 | J39: 1 | K39: FALSE | L39: PLR | M39: -32920.23
A40: SOCSO | B40: 2021-04-30 | C40: EQT | D40: MYR | E40: SOCSO-MYR010-601000 | F40: 010 | G40: 601000 | H40: 0 | I40: 7675134.04 | J40: 1 | K40: FALSE | L40: PLR | M40: 7675134.04
A41: SOCSO | B41: 2021-04-30 | C41: MM | D41: MYR | E41: SOCSO-MYR210-630000 | F41: 210 | G41: 630000 | H41: -43957.06 | I41: 613.71 | J41: 1 | K41: FALSE | L41: PLR | M41: -43343.35
A42: SOCSO | B42: 2021-04-30 | C42: EQT | D42: MYR | E42: SOCSO-MYR010-636000 | F42: 010 | G42: 636000 | H42: -2499696.93 | I42: 2074-08-03T00:57:36 | J42: 1 | K42: FALSE | L42: PLR | M42: -2435927.89
A43: SOCSO | B43: 2021-04-30 | C43: MM | D43: MYR | E43: SOCSO-MYR210-639000 | F43: 210 | G43: 639000 | H43: -326.03 | I43: 00:00:00 | J43: 1 | K43: TRUE | L43: PLR | M43: -326.03
A44: SOCSO | B44: 2021-04-30 | C44: CSH | D44: MYR | E44: SOCSO-MYR000-640003 | F44: 000 | G44: 640003 | H44: -330.82 | I44: 00:00:00 | J44: 1 | K44: FALSE | L44: PLR | M44: -330.82
A45: SOCSO | B45: 2021-04-30 | C45: CSH | D45: MYR | E45: SOCSO-MYR000-640004 | F45: 000 | G45: 640004 | H45: -177840.98 | I45: 00:00:00 | J45: 1 | K45: FALSE | L45: PLR | M45: -177840.98
A46: SOCSO | B46: 2021-04-30 | C46: EQT | D46: MYR | E46: SOCSO-MYR010-689000 | F46: 010 | G46: 689000 | H46: -12285130.47 | I46: 5596180.31 | J46: 1 | K46: TRUE | L46: PLU | M46: -6688950.16
A47: SOCSO | B47: 2021-04-30 | C47: CSH | D47: MYR | E47: SOCSO-MYR000-710106 | F47: 000 | G47: 710106 | H47: 0 | I47: 2386-11-27T23:31:12 | J47: 1 | K47: FALSE | L47: PLR | M47: 177840.98
A48: SOCSO | B48: 2021-04-30 | C48: CSH | D48: MYR | E48: SOCSO-MYR000-800000 | F48: 000 | G48: 800000 | H48: -71703535.73 | I48: 3326886.52 | J48: 1 | K48: FALSE | L48: BS | M48: -68376649.21
A49: SOCSO | B49: 2021-04-30 | C49: EQT | D49: MYR | E49: SOCSO-MYR010-810000 | F49: 010 | G49: 810000 | H49: -7725218.59 | I49: 00:00:00 | J49: 1 | K49: FALSE | L49: BS | M49: -7725218.59
A50: SOCSO | B50: 2021-04-30 | C50: EQT | D50: MYR | E50: SOCSO-MYR010-830000 | F50: 010 | G50: 830000 | H50: -105913598.3 | I50: 00:00:00 | J50: 1 | K50: FALSE | L50: BS | M50: -105913598.3
A51: SOCSO | B51: 2021-04-30 | C51: O-EQT | D51: MYR | E51: SOCSO-MYR015-830000 | F51: 015 | G51: 830000 | H51: -668.44 | I51: 00:00:00 | J51: 1 | K51: FALSE | L51: BS | M51: -668.44
A52: SOCSO | B52: 2021-04-30 | C52: CSH | D52: MYR | E52: SOCSO-MYR000-830000 | F52: 000 | G52: 830000 | H52: -331038.58 | I52: 1903-06-22T21:07:12 | J52: 1 | K52: FALSE | L52: BS | M52: -329768.7
A53: SOCSO | B53: 2021-04-30 | C53: MM | D53: MYR | E53: SOCSO-MYR210-830000 | F53: 210 | G53: 830000 | H53: -3782191.26 | I53: 00:00:00 | J53: 1 | K53: FALSE | L53: BS | M53: -3782191.26
A54: SOCSO | B54: 2021-04-30 | C54: CSH | D54: MYR | E54: SOCSO-MYR000-850000 | F54: 000 | G54: 850000 | H54: 0 | I54: 4795307.18 | J54: 1 | K54: FALSE | L54: PLR | M54: 4795307.18
A55: SOCSO | B55: 2021-04-30 | C55: MM | D55: MYR | E55: SOCSO-MYR210-939000 | F55: 210 | G55: 939000 | H55: 400.41 | I55: 00:00:00 | J55: 1 | K55: FALSE | L55: PLR | M55: 400.41
A56: SOCSO | B56: 2021-04-30 | C56: EQT | D56: MYR | E56: SOCSO-MYR010-989000 | F56: 010 | G56: 989000 | H56: 7725218.59 | I56: 00:00:00 | J56: 1 | K56: FALSE | L56: PLU | M56: 7725218.59

Sheet InPricing
A1: UTFlag | B1: TotalUnits | C1: StartTotalUnits | D1: LastUnits | E1: LstStartTotalUnits | F1: FundName | G1: qFundCode | H1: BuyPrice | I1: StartBuyPrice | J1: LstBuyPrice | K1: LstStartBuyPrice
A2: 0 | B2: 0 | C2: 0 | D2: 0 | E2: 0 | F2: PERTUBUHAN KESELAMATAN SOCIAL(SOCSO) | G2: SOCSO | H2: 0 | I2: 0 | J2: 0 | K2: 0

Sheet BS
A2: =UPPER(CompanyName) -> NOMURA ASSET MANAGEMENT MALAYSIA SDN BHD
A3: Condensed Statement of Financial Position
A4: ="as at " & (TEXT(ValueDate,"DD.MM.YYYY")) -> as at 30.04.2021
C6: =TEXT(ValueDate,"dd.mm.yyyy") -> 30.04.2021 | D6: =TEXT(LstValueDt,"dd.mm.yyyy") -> 30.04.2020
C7: RM | D7: RM
A8: ASSETS
B9: CURRENT ASSETS | E9: Reference | G9: =ValueDate -> 2021-04-30 | H9: =LstValueDt -> 2020-04-30
B10: Unquoted Fixed Income Securities -Commercial Paper | C10: =SUM(C11:C14) -> 0 | D10: =SUM(D11:D14) -> 0 | E10: Asset | F10: ShortGL
B11: Investment Cost -CP | C11: =G11 -> 0 | D11: 0 | E11: {"120","121","125","170"} | F11: 10000*,10100* | G11: =SUM(SUMIFS(InTB!M:M,InTB!B:B,ValueDate,InTB!F:F,{"120","121","125","170"},InTB!G:G,"10000*"))+SUM(SUMIFS(InTB!M:M,InTB!B:B,ValueDate,InTB!F:F,{"120","121","125","170"},InTB!G:G,"10100*")) -> 0 | H11: =SUM(SUMIFS(InTB!M:M,InTB!B:B,LstValueDt,InTB!F:F,{"120","121","125","170"},InTB!G:G,"10000*"))+SUM(SUMIFS(InTB!M:M,InTB!B:B,LstValueDt,InTB!F:F,{"120","121","125","170"},InTB!G:G,"10100*")) -> 0 | I11: 1
B12: Accretion of Discount- CP | C12: 0 | D12: 0 | E12: {"120","121","125","170"} | F12: {"120","128"} | G12: =SUM(SUMIFS(InTB!M:M,InTB!B:B,ValueDate,InTB!F:F,{"120","121","125","170"},InTB!G:G,"120*"))+SUM(SUMIFS(InTB!M:M,InTB!B:B,ValueDate,InTB!F:F,{"120","121","125","170"},InTB!G:G,"128")) -> 0 | H12: =SUM(SUMIFS(InTB!M:M,InTB!B:B,LstValueDt,InTB!F:F,{"120","121","125","170"},InTB!G:G,"120*"))+SUM(SUMIFS(InTB!M:M,InTB!B:B,LstValueDt,InTB!F:F,{"120","121","125","170"},InTB!G:G,"128")) -> 0 | I12: 1
B13: Unrealised FX GnL - Investment - CP | C13: 0 | D13: 0 | E13: {"120","121","125","170"} | F13: 19900* | G13: =SUM(SUMIFS(InTB!M:M,InTB!B:B,ValueDate,InTB!F:F,{"120","121","125","170"},InTB!G:G,F13)) -> 0 | H13: =SUM(SUMIFS(InTB!M:M,InTB!B:B,LstValueDt,InTB!F:F,{"120","121","125","170"},InTB!G:G,F13)) -> 0 | I13: 1
B14: Unrealised Reserves on Investment -CP | C14: =G14 -> 0 | D14: 0 | E14: {"120","121","125","170"} | F14: 18900* | G14: =SUM(SUMIFS(InTB!M:M,InTB!B:B,ValueDate,InTB!F:F,{"120","121","125","170"},InTB!G:G,F14)) -> 0 | H14: =SUM(SUMIFS(InTB!M:M,InTB!B:B,LstValueDt,InTB!F:F,{"120","121","125","170"},InTB!G:G,F14)) -> 0 | I14: 1
B15: ="Unquoted Fixed Income Securities -Commercial " & BNDSUKUK -> Unquoted Fixed Income Securities -Commercial bond | C15: =SUM(C16:C21) -> 0 | D15: =SUM(D16:D21) -> 0
B16: Investment Cost - CB | C16: 0 | D16: 0 | E16: {"1**","450"} | F16: 10000*,10100* | G16: =SUM(SUMIFS(InTB!M:M,InTB!B:B,ValueDate,InTB!F:F,{"1**","450"},InTB!G:G,"10000*"))+SUM(SUMIFS(InTB!M:M,InTB!B:B,ValueDate,InTB!F:F,{"1**","450"},InTB!G:G,"10100*"))-G11 -> 0 | H16: =SUM(SUMIFS(InTB!M:M,InTB!B:B,LstValueDt,InTB!F:F,{"1**","450"},InTB!G:G,"10000*"))+SUM(SUMIFS(InTB!M:M,InTB!B:B,LstValueDt,InTB!F:F,{"1**","450"},InTB!G:G,"10100*"))-H11 -> 0 | I16: 1
B17: Pre-Acq Interest - CB | C17: 0 | D17: 0 | E17: {"1**","450"} | F17: 13000* | G17: =SUM(SUMIFS(InTB!M:M,InTB!B:B,ValueDate,InTB!F:F,{"1**","450"},InTB!G:G,F17)) -> 0 | H17: =SUM(SUMIFS(InTB!M:M,InTB!B:B,LstValueDt,InTB!F:F,{"1**","450"},InTB!G:G,F17)) -> 0 | I17: 1
B18: Premium on Acquisition-CB | C18: 0 | D18: 0 | E18: {"1**","450"} | F18: {"110","118"} | G18: =SUM(SUMIFS(InTB!M:M,InTB!B:B,ValueDate,InTB!F:F,{"1**","450"},InTB!G:G,"110*"))+SUM(SUMIFS(InTB!M:M,InTB!B:B,ValueDate,InTB!F:F,{"1**","450"},InTB!G:G,"118*")) -> 0 | H18: =SUM(SUMIFS(InTB!M:M,InTB!B:B,LstValueDt,InTB!F:F,{"1**","450"},InTB!G:G,"110*"))+SUM(SUMIFS(InTB!M:M,InTB!B:B,LstValueDt,InTB!F:F,{"1**","450"},InTB!G:G,"118*")) -> 0 | I18: 1
B19: Accreation of Discount -CB | C19: 0 | D19: 0 | E19: {"1**","450"} | F19: {"120","128"} | G19: =(SUM(SUMIFS(InTB!M:M,InTB!B:B,ValueDate,InTB!F:F,{"1**","450"},InTB!G:G,"120*"))+SUM(SUMIFS(InTB!M:M,InTB!B:B,ValueDate,InTB!F:F,{"1**","450"},InTB!G:G,"128*")))-G12 -> 0 | H19: =(SUM(SUMIFS(InTB!M:M,InTB!B:B,LstValueDt,InTB!F:F,{"1**","450"},InTB!G:G,"120*"))+SUM(SUMIFS(InTB!M:M,InTB!B:B,LstValueDt,InTB!F:F,{"1**","450"},InTB!G:G,"128*")))-H12 -> 0 | I19: 1
B20: Unrealised FX GnL - Investment - CB | C20: 0 | D20: 0 | E20: {"1**","450"} | F20: 19900* | G20: =SUM(SUMIFS(InTB!M:M,InTB!B:B,ValueDate,InTB!F:F,{"1**","450"},InTB!G:G,F20))-G13 -> 0 | H20: =SUM(SUMIFS(InTB!M:M,InTB!B:B,LstValueDt,InTB!F:F,{"1**","450"},InTB!G:G,F20))-H13 -> 0 | I20: 1
B21: Unrealised Reserves on Investment -CB | C21: 0 | D21: 0 | E21: {"1**","450"} | F21: 18900* | G21: =SUM(SUMIFS(InTB!M:M,InTB!B:B,ValueDate,InTB!F:F,{"1**","450"},InTB!G:G,F21))-G14 -> 0 | H21: =SUM(SUMIFS(InTB!M:M,InTB!B:B,LstValueDt,InTB!F:F,{"1**","450"},InTB!G:G,F21))-H14 -> 0 | I21: 1
B22: Quoted Investments | C22: =SUM(C23:C29) -> 177720512.8 | D22: =SUM(D23:D29) -> 0
B23: Local Listed Securities | C23: 171031562.6 | D23: 0 | E23: {"010","020","030","150","151"} | F23: 10000*,10100* | G23: =SUM(SUMIFS(InTB!M:M,InTB!B:B,ValueDate,InTB!F:F,{"010","020","030","150","151"},InTB!G:G,"10000*"))+SUM(SUMIFS(InTB!M:M,InTB!B:B,ValueDate,InTB!F:F,{"010","020","030","150","151"},InTB!G:G,"10100*")) -> 171031562.6 | H23: =SUM(SUMIFS(InTB!M:M,InTB!B:B,LstValueDt,InTB!F:F,{"010","020","030","150","151"},InTB!G:G,"10000*"))+SUM(SUMIFS(InTB!M:M,InTB!B:B,LstValueDt,InTB!F:F,{"010","020","030","150","151"},InTB!G:G,"10100*")) -> 0 | I23: 1
B24: Unrealised Gains/(Loss) on Local Listed Securities | C24: 6688950.16 | D24: 0 | E24: {"010","020","030","150","151"} | F24: 18900* | G24: =SUM(SUMIFS(InTB!M:M,InTB!B:B,ValueDate,InTB!F:F,{"010","020","030","150","151"},InTB!G:G,F24)) -> 6688950.16 | H24: =SUM(SUMIFS(InTB!M:M,InTB!B:B,LstValueDt,InTB!F:F,{"010","020","030","150","151"},InTB!G:G,F24)) -> 0 | I24: 1
B25: Foreign Listed Securities | C25: 0 | D25: 0 | E25: {"015","025"} | F25: 10000*,10100* | G25: =SUM(SUMIFS(InTB!M:M,InTB!B:B,ValueDate,InTB!F:F,{"015","025"},InTB!G:G,"10000*"))+SUM(SUMIFS(InTB!M:M,InTB!B:B,ValueDate,InTB!F:F,{"015","025"},InTB!G:G,"10100*")) -> 0 | H25: =SUM(SUMIFS(InTB!M:M,InTB!B:B,LstValueDt,InTB!F:F,{"015","025"},InTB!G:G,"10000*"))+SUM(SUMIFS(InTB!M:M,InTB!B:B,LstValueDt,InTB!F:F,{"015","025"},InTB!G:G,"10100*")) -> 0 | I25: 1
B26: Unrealised Gains/(Loss) On Foreign Listed Securities | C26: 0 | D26: 0 | E26: {"015","025"} | F26: 18900* | G26: =SUM(SUMIFS(InTB!M:M,InTB!B:B,ValueDate,InTB!F:F,{"015","025"},InTB!G:G,F26)) -> 0 | H26: =SUM(SUMIFS(InTB!M:M,InTB!B:B,LstValueDt,InTB!F:F,{"015","025"},InTB!G:G,F26)) -> 0 | I26: 1
B27: Unrealised Forex Gains/(Loss) On Foreign Listed Securities | C27: 0 | D27: 0 | E27: {"015","025"} | F27: 19900* | G27: =SUM(SUMIFS(InTB!M:M,InTB!B:B,ValueDate,InTB!F:F,{"015","025"},InTB!G:G,F27)) -> 0 | H27: =SUM(SUMIFS(InTB!M:M,InTB!B:B,LstValueDt,InTB!F:F,{"015","025"},InTB!G:G,F27)) -> 0 | I27: 1
B28: Quoted Derivatives | C28: 0 | D28: 0 | E28: 3** | F28: 10000*,10100* | G28: =SUM(SUMIFS(InTB!M:M,InTB!B:B,ValueDate,InTB!F:F,E28,InTB!G:G,"10000*"))+SUM(SUMIFS(InTB!M:M,InTB!B:B,ValueDate,InTB!F:F,E28,InTB!G:G,"10100*"))-G40 -> 0 | H28: =SUM(SUMIFS(InTB!M:M,InTB!B:B,LstValueDt,InTB!F:F,E28,InTB!G:G,"10000*"))+SUM(SUMIFS(InTB!M:M,InTB!B:B,LstValueDt,InTB!F:F,E28,InTB!G:G,"10100*"))-H40 -> 0 | I28: 1
B29: Unrealised Gains/(Loss) On Quoted Derivatives | C29: 0 | D29: 0 | E29: 3** | F29: 18900* | G29: =SUM(SUMIFS(InTB!M:M,InTB!B:B,ValueDate,InTB!F:F,E29,InTB!G:G,F29))-G41 -> 0 | H29: =SUM(SUMIFS(InTB!M:M,InTB!B:B,LstValueDt,InTB!F:F,E29,InTB!G:G,F29))-H41 -> 0 | I29: 1
B30: Collective Investment Scheme | C30: =SUM(C31:C35) -> 0 | D30: =SUM(D31:D35) -> 0
B31: Local Collective Investment Scheme | C31: 0 | D31: 0 | E31: {"410","411","430","431","440","441","604"} | F31: 10000*,10100* | G31: =SUM(SUMIFS(InTB!M:M,InTB!B:B,ValueDate,InTB!F:F,{"410","411","430","431","440","441","604"},InTB!G:G,"10000*"))+SUM(SUMIFS(InTB!M:M,InTB!B:B,ValueDate,InTB!F:F,{"410","411","430","431","440","441","604"},InTB!G:G,"10100*")) -> 0 | H31: =SUM(SUMIFS(InTB!M:M,InTB!B:B,LstValueDt,InTB!F:F,{"410","411","430","431","440","441","604"},InTB!G:G,"10000*"))+SUM(SUMIFS(InTB!M:M,InTB!B:B,LstValueDt,InTB!F:F,{"410","411","430","431","440","441","604"},InTB!G:G,"10100*")) -> 0 | I31: 1
B32: Unrealised Gains/(Loss) on Local Collective Investment Scheme | C32: 0 | D32: 0 | E32: {"410","411","430","431","440","441","604"} | F32: 18900* | G32: =SUM(SUMIFS(InTB!M:M,InTB!B:B,ValueDate,InTB!F:F,{"410","411","430","431","440","441","604"},InTB!G:G,F32)) -> 0 | H32: =SUM(SUMIFS(InTB!M:M,InTB!B:B,LstValueDt,InTB!F:F,{"410","411","430","431","440","441","604"},InTB!G:G,F32)) -> 0 | I32: 1
B33: Foreign Collective Investment Scheme | C33: 0 | D33: 0 | E33: {"415","416"} | F33: 10000*,10100* | G33: =SUM(SUMIFS(InTB!M:M,InTB!B:B,ValueDate,InTB!F:F,{"415","416"},InTB!G:G,"10000*"))+SUM(SUMIFS(InTB!M:M,InTB!B:B,ValueDate,InTB!F:F,{"415","416"},InTB!G:G,"10100*")) -> 0 | H33: =SUM(SUMIFS(InTB!M:M,InTB!B:B,LstValueDt,InTB!F:F,{"415","416"},InTB!G:G,"10000*"))+SUM(SUMIFS(InTB!M:M,InTB!B:B,LstValueDt,InTB!F:F,{"415","416"},InTB!G:G,"10100*")) -> 0 | I33: 1
B34: Unrealised Gains/(Loss) on Foreign Collective Investment Scheme | C34: 0 | D34: 0 | E34: {"415","416"} | F34: 18900* | G34: =SUM(SUMIFS(InTB!M:M,InTB!B:B,ValueDate,InTB!F:F,{"415","416"},InTB!G:G,F34)) -> 0 | H34: =SUM(SUMIFS(InTB!M:M,InTB!B:B,LstValueDt,InTB!F:F,{"415","416"},InTB!G:G,F34)) -> 0 | I34: 1
B35: Unrealised FOREX Gains/(Loss) on Foreign Collective Investment Scheme | C35: 0 | D35: 0 | E35: {"415","416"} | F35: 19900* | G35: =SUM(SUMIFS(InTB!M:M,InTB!B:B,ValueDate,InTB!F:F,{"415","416"},InTB!G:G,F35)) -> 0 | H35: =SUM(SUMIFS(InTB!M:M,InTB!B:B,LstValueDt,InTB!F:F,{"415","416"},InTB!G:G,F35)) -> 0 | I35: 1
B36: Options | C36: =SUM(C37:C41) -> 0 | D36: =SUM(D37:D41) -> 0
B37: Foreign Options | C37: 0 | D37: 0 | I37: 1
B38: Unrealised Gains/(Loss) on Foreign Options | C38: 0 | D38: 0 | I38: 1
B39: Unrealised FOREX Gains/(Loss) on Foreign Options | C39: 0 | D39: 0 | I39: 1
B40: Forward Contract | C40: 0 | D40: 0 | E40: 310 | F40: 10000*,10100* | G40: =SUM(SUMIFS(InTB!M:M,InTB!B:B,ValueDate,InTB!F:F,E40,InTB!G:G,"10000*"))+SUM(SUMIFS(InTB!M:M,InTB!B:B,ValueDate,InTB!F:F,E40,InTB!G:G,"10100*")) -> 0 | H40: =SUM(SUMIFS(InTB!M:M,InTB!B:B,LstValueDt,InTB!F:F,E40,InTB!G:G,"10000*"))+SUM(SUMIFS(InTB!M:M,InTB!B:B,LstValueDt,InTB!F:F,E40,InTB!G:G,"10100*")) -> 0 | I40: 1
B41: Unrealised Gains/(Loss) on Forward Contract | C41: 0 | D41: 0 | E41: 310 | F41: 18900* | G41: =SUM(SUMIFS(InTB!M:M,InTB!B:B,ValueDate,InTB!F:F,E41,InTB!G:G,F41)) -> 0 | H41: =SUM(SUMIFS(InTB!M:M,InTB!B:B,LstValueDt,InTB!F:F,E41,InTB!G:G,F41)) -> 0 | I41: 1
B42: Deposits And Placements With Financial Institutions | C42: =SUM(C43:C45) -> 6800000 | D42: =SUM(D43:D45) -> 0
B43: Deposits And Placements With Financial Institutions | C43: 6800000 | D43: 0 | E43: 2** | F43: 10000*,10100* | G43: =SUM(SUMIFS(InTB!M:M,InTB!B:B,ValueDate,InTB!F:F,E43,InTB!G:G,"10000*"))+SUM(SUMIFS(InTB!M:M,InTB!B:B,ValueDate,InTB!F:F,E43,InTB!G:G,"10100*")) -> 6800000 | H43: =SUM(SUMIFS(InTB!M:M,InTB!B:B,LstValueDt,InTB!F:F,E43,InTB!G:G,"10000*"))+SUM(SUMIFS(InTB!M:M,InTB!B:B,LstValueDt,InTB!F:F,E43,InTB!G:G,"10100*")) -> 0 | I43: 1
B44: Unrealised Gains/(Loss) on Placement | E44: 2** | F44: 18900* | G44: =SUM(SUMIFS(InTB!M:M,InTB!B:B,ValueDate,InTB!F:F,E44,InTB!G:G,F44)) -> 0 | H44: =SUM(SUMIFS(InTB!M:M,InTB!B:B,LstValueDt,InTB!F:F,E44,InTB!G:G,F44)) -> 0 | I44: 1
B45: Unrealised Forex Gains/(Loss) on Foreign Placement | C45: 0 | D45: 0 | E45: 2** | F45: 19900* | G45: =SUM(SUMIFS(InTB!M:M,InTB!B:B,ValueDate,InTB!F:F,E45,InTB!G:G,F45)) -> 0 | H45: =SUM(SUMIFS(InTB!M:M,InTB!B:B,LstValueDt,InTB!F:F,E45,InTB!G:G,F45)) -> 0 | I45: 1
B46: Other Investment | C46: =C47 -> 0 | D46: =D47 -> 0
B47: Real Estate Investment Trust | C47: =G47 -> 0 | D47: =H47 -> 0 | E47: 46* | F47: 19900* | G47: =SUM(SUMIFS(InTB!M:M,InTB!B:B,ValueDate,InTB!F:F,E47,InTB!G:G,F47)) -> 0 | H47: =SUM(SUMIFS(InTB!M:M,InTB!B:B,LstValueDt,InTB!F:F,E47,InTB!G:G,F47)) -> 0 | I47: 1
C48: =C46+C42+C36+C30+C22+C15+C10 -> 184520512.8 | D48: =D46+D42+D36+D30+D22+D15+D10 -> 0
B50: OTHER ASSETS
B51: Amount Due/ (To) From The Manager (Net Creation / (Cancellation)) | C51: =SUM(C52) -> 0 | D51: =SUM(D52) -> 0
B52: Amount due from Manager | C52: 0 | D52: 0 | E52: *** | F52: 200800 | G52: =SUM(SUMIFS(InTB!M:M,InTB!B:B,ValueDate,InTB!F:F,E52,InTB!G:G,F52)) -> 0 | H52: =SUM(SUMIFS(InTB!M:M,InTB!B:B,LstValueDt,InTB!F:F,E52,InTB!G:G,F52)) -> 0 | I52: 1
B53: Amount Due From Stockbrokers | C53: =SUM(C54:C55) -> 0 | D53: =SUM(D54:D55) -> 0
B54: Broker - Local | C54: 0 | D54: 0 | E54: {"010","020","030","150","151"} | F54: 200000 | G54: =SUM(SUMIFS(InTB!M:M,InTB!B:B,ValueDate,InTB!F:F,{"010","020","030","150","151"},InTB!G:G,F54)) -> 0 | H54: =SUM(SUMIFS(InTB!M:M,InTB!B:B,LstValueDt,InTB!F:F,{"010","020","030","150","151"},InTB!G:G,F54)) -> 0 | I54: 1
B55: Broker - Foreign | C55: =G55 -> 0 | D55: 0 | E55: {"015","025"} | F55: 200000 | G55: =SUM(SUMIFS(InTB!M:M,InTB!B:B,ValueDate,InTB!F:F,{"015","025"},InTB!G:G,F55)) -> 0 | H55: =SUM(SUMIFS(InTB!M:M,InTB!B:B,LstValueDt,InTB!F:F,{"015","025"},InTB!G:G,F55)) -> 0 | I55: 1
B56: Amount Due From Other Investment | C56: 0 | D56: 0 | E56: *** | F56: 200000 | G56: =SUM(SUMIFS(InTB!M:M,InTB!B:B,ValueDate,InTB!F:F,E56,InTB!G:G,F56))-G55-G54 -> 0 | H56: =SUM(SUMIFS(InTB!M:M,InTB!B:B,LstValueDt,InTB!F:F,E56,InTB!G:G,F56))-H55-H54 -> 0
B57: Rebates Receivable | C57: 0 | D57: 0 | E57: *** | F57: 220103 | G57: =SUM(SUMIFS(InTB!M:M,InTB!B:B,ValueDate,InTB!F:F,E57,InTB!G:G,F57)) -> 0 | H57: =SUM(SUMIFS(InTB!M:M,InTB!B:B,LstValueDt,InTB!F:F,E57,InTB!G:G,F57)) -> 0
B58: Profit receivable on Deposit and Placements | C58: =C59 -> 326.03 | D58: =D59 -> 0
B59: Interest receivable - Deposit and Placements | C59: =G59 -> 326.03 | D59: =H59 -> 0 | E59: 2** | F59: {"137*","138*","139*"} | G59: =SUM(SUMIFS(InTB!M:M,InTB!B:B,ValueDate,InTB!F:F,E59,InTB!G:G,{"137*","138*","139*"})) -> 326.03 | H59: =SUM(SUMIFS(InTB!M:M,InTB!B:B,LstValueDt,InTB!F:F,E59,InTB!G:G,{"137*","138*","139*"})) -> 0 | I59: 1
B60: Profit receivable on Fixed Income securities | C60: =C61 -> 0 | D60: =D61 -> 0
B61: Interest receivable - Fixed Income securities | C61: =G61 -> 0 | D61: =H61 -> 0 | E61: {1**,"450"} | F61: {"137*","138*","139*"} | G61: =SUM(SUMIFS(InTB!M:M,InTB!B:B,ValueDate,InTB!F:F,"1**",InTB!G:G,{"137*","138*","139*"}))+SUM(SUMIFS(InTB!M:M,InTB!B:B,ValueDate,InTB!F:F,"450",InTB!G:G,{"137*","138*","139*"})) -> 0 | H61: =SUM(SUMIFS(InTB!M:M,InTB!B:B,LstValueDt,InTB!F:F,"1**",InTB!G:G,{"137*","138*","139*"}))+SUM(SUMIFS(InTB!M:M,InTB!B:B,LstValueDt,InTB!F:F,"450",InTB!G:G,{"137*","138*","139*"})) -> 0 | I61: 1
B62: Dividend receivable | C62: =SUM(C63:C64) -> 165558 | D62: =SUM(D63:D64) -> 0
B63: Dividend receivable - Local | C63: 165558 | D63: 0 | E63: {"010","020","030","150","151"} | F63: 299000 | G63: =SUM(SUMIFS(InTB!M:M,InTB!B:B,ValueDate,InTB!F:F,{"010","020","030","150","151"},InTB!G:G,F63)) -> 165558 | H63: =SUM(SUMIFS(InTB!M:M,InTB!B:B,LstValueDt,InTB!F:F,{"010","020","030","150","151"},InTB!G:G,F63)) -> 0 | I63: 1
B64: Dividend receivable - Foreign | C64: =G64 -> 0 | D64: 0 | E64: {"015","025"} | F64: 299000 | G64: =SUM(SUMIFS(InTB!M:M,InTB!B:B,ValueDate,InTB!F:F,{"015","025"},InTB!G:G,F64)) -> 0 | H64: =SUM(SUMIFS(InTB!M:M,InTB!B:B,LstValueDt,InTB!F:F,{"015","025"},InTB!G:G,F64)) -> 0 | I64: 1
B65: Tax recoverable | C65: 0 | D65: 0 | E65: *** | F65: 299999 | G65: =SUM(SUMIFS(InTB!M:M,InTB!B:B,ValueDate,InTB!F:F,E65,InTB!G:G,F65)) -> 0 | H65: =SUM(SUMIFS(InTB!M:M,InTB!B:B,LstValueDt,InTB!F:F,E65,InTB!G:G,F65)) -> 0
B66: Sundry Debtor | C66: 0 | D66: 0 | E66: *** | F66: {"200139","220101","220105","320205","320206","320207","320660","320884"} | G66: =SUM(SUMIFS(InTB!M:M,InTB!B:B,ValueDate,InTB!F:F,E66,InTB!G:G,{"200139","220101","220105","320205","320206","320207","320660","320884"}))+SUM(SUMIFS(InTB!M:M,InTB!B:B,ValueDate,InTB!F:F,"600",InTB!G:G,{"137*","138*","139*"})) -> 0 | H66: =SUM(SUMIFS(InTB!M:M,InTB!B:B,LstValueDt,InTB!F:F,E66,InTB!G:G,{"200139","220101","220105","320205","320206","320207","320660","320884"}))+SUM(SUMIFS(InTB!M:M,InTB!B:B,LstValueDt,InTB!F:F,"600",InTB!G:G,{"137*","138*","139*"})) -> 0
B67: Cash at banks | C67: 57367.75 | D67: 0 | E67: *** | F67: 500** | G67: =SUM(SUMIFS(InTB!M:M,InTB!B:B,ValueDate,InTB!F:F,E67,InTB!G:G,F67)) -> 57367.75 | H67: =SUM(SUMIFS(InTB!M:M,InTB!B:B,LstValueDt,InTB!F:F,E67,InTB!G:G,F67)) -> 0
C68: =C51+C53+C56+C57+C58+C60+C62+C65+C66+C67 -> 223251.78 | D68: =D51+D53+D56+D57+D58+D60+D62+D65+D66+D67 -> 0
A69: TOTAL ASSETS | C69: =C48+C68 -> 184743764.6 | D69: =D48+D68 -> 0
A71: LIABILITIES
B72: Amount due to the Manager | C72: =SUM(C73:C74) -> 0 | D72: =SUM(D73:D74) -> 0
B73: Amount due to the Manager | C73: =-G73 -> 0 | D73: 0 | E73: *** | F73: {"300800","320780"} | G73: =SUM(SUMIFS(InTB!M:M,InTB!B:B,ValueDate,InTB!F:F,E73,InTB!G:G,{"300800","320780"})) -> 0 | H73: =SUM(SUMIFS(InTB!M:M,InTB!B:B,LstValueDt,InTB!F:F,E73,InTB!G:G,{"300800","320780"})) -> 0 | I73: 1
B74: Amount due to the Manager (Expenses) | C74: 0 | D74: 0 | E74: *** | F74: {"320103","320109"} | G74: =SUM(SUMIFS(InTB!M:M,InTB!B:B,ValueDate,InTB!F:F,E74,InTB!G:G,{"320103","320109"})) -> 0 | H74: =SUM(SUMIFS(InTB!M:M,InTB!B:B,LstValueDt,InTB!F:F,E74,InTB!G:G,{"320103","320109"})) -> 0 | I74: 1
B75: Amount due to the Trustee | C75: 0 | D75: 0 | E75: *** | F75: {"320102","320104","320781"} | G75: =SUM(SUMIFS(InTB!M:M,InTB!B:B,ValueDate,InTB!F:F,E75,InTB!G:G,{"320102","320104","320781"})) -> 0 | H75: =SUM(SUMIFS(InTB!M:M,InTB!B:B,LstValueDt,InTB!F:F,E75,InTB!G:G,{"320102","320104","320781"})) -> 0
B76: Amount due to Stockbrokers | C76: =SUM(C77:C78) -> 30294.62 | D76: =SUM(D77:D78) -> 0
B77: Broker - Local | C77: =-G77 -> 30294.62 | D77: 0 | E77: {"010","020","030","150","151"} | F77: 300000 | G77: =SUM(SUMIFS(InTB!M:M,InTB!B:B,ValueDate,InTB!F:F,{"010","020","030","150","151"},InTB!G:G,F77)) -> -30294.62 | H77: =SUM(SUMIFS(InTB!M:M,InTB!B:B,LstValueDt,InTB!F:F,{"010","020","030","150","151"},InTB!G:G,F77)) -> 0 | I77: 1
B78: Broker - Foreign | C78: 0 | D78: 0 | E78: {"015","025"} | F78: 300000 | G78: =SUM(SUMIFS(InTB!M:M,InTB!B:B,ValueDate,InTB!F:F,{"015","025"},InTB!G:G,F78)) -> 0 | H78: =SUM(SUMIFS(InTB!M:M,InTB!B:B,LstValueDt,InTB!F:F,{"015","025"},InTB!G:G,F78)) -> 0 | I78: 1
B79: Amount due to Other Investment | C79: 0 | D79: 0 | E79: *** | F79: 300000 | G79: =SUM(SUMIFS(InTB!M:M,InTB!B:B,ValueDate,InTB!F:F,E79,InTB!G:G,F79))-G78-G77 -> 0 | H79: =SUM(SUMIFS(InTB!M:M,InTB!B:B,LstValueDt,InTB!F:F,E79,InTB!G:G,F79))-H78-H77 -> 0
B80: Tax Payable | C80: 0 | D80: 0 | E80: *** | F80: {"320108","320111"} | G80: =SUM(SUMIFS(InTB!M:M,InTB!B:B,ValueDate,InTB!F:F,E80,InTB!G:G,{"320108","320111"})) -> 0 | H80: =SUM(SUMIFS(InTB!M:M,InTB!B:B,LstValueDt,InTB!F:F,E80,InTB!G:G,{"320108","320111"})) -> 0
B81: Other payables and accruals | C81: =SUM(C82:C87) -> 0 | D81: =SUM(D82:D87) -> 0
B82: Tax Fee Payable | C82: =-G82 -> 0 | D82: 0 | E82: *** | F82: {"320107","320773"} | G82: =SUM(SUMIFS(InTB!M:M,InTB!B:B,ValueDate,InTB!F:F,E82,InTB!G:G,{"320107","320773"})) -> 0 | H82: =SUM(SUMIFS(InTB!M:M,InTB!B:B,LstValueDt,InTB!F:F,E82,InTB!G:G,{"320107","320773"})) -> 0 | I82: 1
B83: Dividend Payable | C83: 0 | D83: 0 | E83: *** | F83: 320102 | G83: =SUM(SUMIFS(InTB!M:M,InTB!B:B,ValueDate,InTB!F:F,E83,InTB!G:G,F83)) -> 0 | H83: =SUM(SUMIFS(InTB!M:M,InTB!B:B,LstValueDt,InTB!F:F,E83,InTB!G:G,F83)) -> 0 | I83: 1
B84: Provision for audit fee | C84: 0 | D84: 0 | E84: *** | F84: {"320105","320789"} | G84: =SUM(SUMIFS(InTB!M:M,InTB!B:B,ValueDate,InTB!F:F,E84,InTB!G:G,{"320105","320789"})) -> 0 | H84: =SUM(SUMIFS(InTB!M:M,InTB!B:B,LstValueDt,InTB!F:F,E84,InTB!G:G,{"320105","320789"})) -> 0 | I84: 1
B85: Amount due to trustee (INITIAL BANK AMOUNT) | C85: 0 | D85: 0 | E85: *** | F85: 320113 | G85: =SUM(SUMIFS(InTB!M:M,InTB!B:B,ValueDate,InTB!F:F,E85,InTB!G:G,F85)) -> 0 | H85: =SUM(SUMIFS(InTB!M:M,InTB!B:B,LstValueDt,InTB!F:F,E85,InTB!G:G,F85)) -> 0 | I85: 1
B86: Custodian fee accrual | C86: 0 | D86: 0 | E86: *** | F86: {"320110","320131","320440","320441","320770","320788"} | G86: =SUM(SUMIFS(InTB!M:M,InTB!B:B,ValueDate,InTB!F:F,E86,InTB!G:G,{"320110","320131","320440","320441","320770","320788"})) -> 0 | H86: =SUM(SUMIFS(InTB!M:M,InTB!B:B,LstValueDt,InTB!F:F,E86,InTB!G:G,{"320110","320131","320440","320441","320770","320788"})) -> 0 | I86: 1
B87: Sundry accruals | C87: 0 | D87: 0 | E87: *** | F87: {"320101","320106","320112","320114","320116","320117","320118","320119","320120","320151","320208","320209","320301","320778","320779","320783","320801","320873","320874","320878","320879","320880","320881","320882","320883","320885","320886","320887","320888","320889","320990"} | G87: =SUM(SUMIFS(InTB!M:M,InTB!B:B,ValueDate,InTB!F:F,E87,InTB!G:G,{"320101","320106","320112","320114","320116","320117","320118","320119","320120","320151","320208","320209","320301","320778","320779","320783","320801","320873","320874","320878","320879","320880","320881","320882","320883","320885","320886","320887","320888","320889","320990"})) -> 0 | H87: =SUM(SUMIFS(InTB!M:M,InTB!B:B,LstValueDt,InTB!F:F,E87,InTB!G:G,{"320101","320106","320112","320114","320116","320117","320118","320119","320120","320151","320208","320209","320301","320778","320779","320783","320801","320873","320874","320878","320879","320880","320881","320882","320883","320885","320886","320887","320888","320889","320990"})) -> 0 | I87: 1
A88: TOTAL LIABILITIES | C88: =SUM(C72,C75,C76,C80,C81,C79) -> 30294.62 | D88: =SUM(D72,D75,D76,D80,D81,D79) -> 0
B90: NET ASSET VALUE OF THE FUND | C90: =C69-C88 -> 184713469.9 | D90: =D69-D88 -> 0
B91: NUMBER OF UNITS IN CIRCULATION | C91: =InPricing!B2 -> 0 | D91: =InPricing!D2 -> 0
B92: NET ASSET VALUE PER UNIT | C92: =IF(C91=0,0,C90/C91) -> 0 | D92: =IF(D91=0,0,D90/D91) -> 0
A94: EQUITY
B95: Unitholders' capital | C95: =-G95 -> 68376649.21 | D95: =-H95 -> 0 | E95: *** | F95: 800000 | G95: =SUM(SUMIFS(InTB!M:M,InTB!B:B,ValueDate,InTB!F:F,E95,InTB!G:G,F95)) -> -68376649.21 | H95: =SUM(SUMIFS(InTB!M:M,InTB!B:B,LstValueDt,InTB!F:F,E95,InTB!G:G,F95)) -> 0
B96: Distribution Equalisation | C96: =-G96 -> -4795307.18 | D96: =-H96 -> 0 | E96: *** | F96: {"820000","850000"} | G96: =SUM(SUMIFS(InTB!M:M,InTB!B:B,ValueDate,InTB!F:F,E96,InTB!G:G,{"820000","850000"})) -> 4795307.18 | H96: =SUM(SUMIFS(InTB!M:M,InTB!B:B,LstValueDt,InTB!F:F,E96,InTB!G:G,{"820000","850000"})) -> 0
B97: Retained earnings | C97: =(C98+C99+C100) -> 117751445.3 | D97: =(D98+D99+D100) -> 0 | E97: *** | G97: =SUM(SUMIFS(InTB!M:M,InTB!B:B,ValueDate,InTB!F:F,E97,InTB!G:G,F97)) -> 0 | H97: =SUM(SUMIFS(InTB!M:M,InTB!B:B,LstValueDt,InTB!F:F,E97,InTB!G:G,F97)) -> 0
B98: Unrealised Gain/(Loss) On Investment | C98: =-G98 -> 7725218.59 | D98: 0 | E98: *** | F98: 810000 | G98: =SUM(SUMIFS(InTB!M:M,InTB!B:B,ValueDate,InTB!F:F,E98,InTB!G:G,F98)) -> -7725218.59 | H98: =SUM(SUMIFS(InTB!M:M,InTB!B:B,LstValueDt,InTB!F:F,E98,InTB!G:G,F98)) -> 0 | I98: 1
B99: Unrealised Gains/(Loss) From FOREX | C99: 0 | D99: 0 | E99: *** | G99: =SUM(SUMIFS(InTB!M:M,InTB!B:B,ValueDate,InTB!F:F,E99,InTB!G:G,F99)) -> 0 | H99: =SUM(SUMIFS(InTB!M:M,InTB!B:B,LstValueDt,InTB!F:F,E99,InTB!G:G,F99)) -> 0 | I99: 1
B100: Realised Retained Profit | C100: 110026226.7 | D100: 0 | E100: *** | F100: {"830000","860000"} | G100: =SUM(SUMIFS(InTB!M:M,InTB!B:B,ValueDate,InTB!F:F,E100,InTB!G:G,{"830000","860000"})) -> -110026226.7 | H100: =SUM(SUMIFS(InTB!M:M,InTB!B:B,LstValueDt,InTB!F:F,E100,InTB!G:G,{"830000","860000"})) -> 0 | I100: 1
B101: Current Year Profit / (Loss) | C101: =C102-C95-C96-C97 -> 3350388.03 | D101: =D102-D95-D96-D97 -> 0
B102: TOTAL EQUITY | C102: =C103-C88 -> 184683175.3 | D102: =D103-D88 -> 0
B103: TOTAL LIABILITIES AND EQUITY | C103: =C90 -> 184713469.9 | D103: =D90 -> 0
B105: UNITS IN CIRCULATION | C105: =TotalUnits -> 0 | D105: =LastUnits -> 0
B106: NET ASSET VALUE ("NAV") PER UNIT | C106: =IF(C105<>0,(C69-C88)/C105,0) -> 0 | D106: =IF(D105<>0,(D69-D88)/D105,0) -> 0

Sheet PL
A2: =UPPER(CompanyName) -> NOMURA ASSET MANAGEMENT MALAYSIA SDN BHD
A3: Condensed Statement of Comprehensive Income
A4: ="for the six-month period from" & (TEXT(StartDate,"DD MMMM YYYY")) & " to " & (TEXT(ValueDate,"DD MMMM YYYY")) -> for the six-month period from01 April 2021 to 30 April 2021
C6: =(TEXT(StartDate,"DD.MM.YYYY")) & " to " & (TEXT(ValueDate,"DD.MM.YYYY")) -> 01.04.2021 to 30.04.2021 | D6: =(TEXT(LstStartDt,"DD.MM.YYYY")) & " to " & (TEXT(LstValueDt,"DD.MM.YYYY")) -> 01.04.2020 to 30.04.2020 | E6: Reference | G6: =ValueDate -> 2021-04-30 | H6: =StartDate-1 -> 2021-03-31 | I6: =LstValueDt -> 2020-04-30 | J6: =LstStartDt-1 -> 2020-03-31
B7: Note | C7: =FundCur -> MYR | D7: =FundCur -> MYR
E8: Asset | F8: ShortGL
A9: Investment Income
B10: Profit Income | C10: =SUM(C11:C14) -> 10466.51 | D10: =SUM(D11:D14) -> 0
B11: Interest Income - Money Market Placement | C11: =G11-H11 -> 10466.51 | D11: =I11-J11 -> 0 | E11: 2** | F11: {"630*","638*","637*","639*","938*","939*","937*"} | G11: =-SUM(SUMIFS(InTB!M:M,InTB!B:B,ValueDate,InTB!F:F,E11,InTB!G:G,{"630*","638*","637*","639*","938*","939*","937*"})) -> 43268.97 | H11: =-SUM(SUMIFS(InTB!M:M,InTB!B:B,StartDate-1,InTB!F:F,E11,InTB!G:G,{"630*","638*","637*","639*","938*","939*","937*"}))*(1-Mthflag) -> 32802.46 | I11: =-SUM(SUMIFS(InTB!M:M,InTB!B:B,LstValueDt,InTB!F:F,E11,InTB!G:G,{"630*","638*","637*","639*","938*","939*","937*"})) -> 0 | J11: =-SUM(SUMIFS(InTB!M:M,InTB!B:B,LstStartDt-1,InTB!F:F,E11,InTB!G:G,{"630*","638*","637*","639*","938*","939*","937*"}))*(1-Mthflag) -> 0 | K11: 1
B12: Interest Income - Bank | C12: =G12-H12 -> 0 | D12: =I12-J12 -> 0 | E12: *** | F12: {"640002","640005"} | G12: =-SUM(SUMIFS(InTB!M:M,InTB!B:B,ValueDate,InTB!F:F,PL!E12,InTB!G:G,{"640002","640005"})) -> 0 | H12: =-SUM(SUMIFS(InTB!M:M,InTB!B:B,StartDate-1,InTB!F:F,PL!E12,InTB!G:G,{"640002","640005"}))*(1-Mthflag) -> 0 | I12: =-SUM(SUMIFS(InTB!M:M,InTB!B:B,LstValueDt,InTB!F:F,PL!E12,InTB!G:G,{"640002","640005"})) -> 0 | J12: =-SUM(SUMIFS(InTB!M:M,InTB!B:B,LstStartDt-1,InTB!F:F,PL!E12,InTB!G:G,{"640002","640005"}))*(1-Mthflag) -> 0 | K12: 1
B13: Interest Income - loan stock | C13: 0 | D13: 0 | E13: 15* | F13: {"630*","638*","637*","639*","938*","939*","937*"} | G13: =-SUM(SUMIFS(InTB!M:M,InTB!B:B,ValueDate,InTB!F:F,E13,InTB!G:G,{"630*","638*","637*","639*","938*","939*","937*"})) -> 0 | H13: =-SUM(SUMIFS(InTB!M:M,InTB!B:B,StartDate-1,InTB!F:F,E13,InTB!G:G,{"630*","638*","637*","639*","938*","939*","937*"}))*(1-Mthflag) -> 0 | I13: =-SUM(SUMIFS(InTB!M:M,InTB!B:B,LstValueDt,InTB!F:F,E13,InTB!G:G,{"630*","638*","637*","639*","938*","939*","937*"})) -> 0 | J13: =-SUM(SUMIFS(InTB!M:M,InTB!B:B,LstStartDt-1,InTB!F:F,E13,InTB!G:G,{"630*","638*","637*","639*","938*","939*","937*"}))*(1-Mthflag) -> 0 | K13: 1
B14: ="Interest Income - Commercial " & BNDSUKUK -> Interest Income - Commercial bond | C14: 0 | D14: 0 | E14: 1** | F14: {"630*","638*","637*","639*","938*","939*","937*"} | G14: =-SUM(SUMIFS(InTB!M:M,InTB!B:B,ValueDate,InTB!F:F,E14,InTB!G:G,{"630*","638*","637*","639*","938*","939*","937*"}))-G13 -> 0 | H14: =-SUM(SUMIFS(InTB!M:M,InTB!B:B,StartDate-1,InTB!F:F,E14,InTB!G:G,{"630*","638*","637*","639*","938*","939*","937*"}))*(1-Mthflag)-H13 -> 0 | I14: =-SUM(SUMIFS(InTB!M:M,InTB!B:B,LstValueDt,InTB!F:F,E14,InTB!G:G,{"630*","638*","637*","639*","938*","939*","937*"}))-I13 -> 0 | J14: =-SUM(SUMIFS(InTB!M:M,InTB!B:B,LstStartDt-1,InTB!F:F,E14,InTB!G:G,{"630*","638*","637*","639*","938*","939*","937*"}))*(1-Mthflag)-J13 -> 0 | K14: 1
B15: Gross Dividend Income | C15: =SUM(C16:C19) -> 263037.25 | D15: =SUM(D16:D19) -> 0
B16: Dividend Income - Local (TA) | C16: 0 | D16: 0 | E16: {"010","020","030","410","411","430","431","440","441","460","604"} | F16: 635000 | G16: =-SUM(SUMIFS(InTB!M:M,InTB!B:B,ValueDate,InTB!F:F,{"010","020","030","410","411","430","431","440","441","460","604"},InTB!G:G,F16)) -> 0 | H16: =-SUM(SUMIFS(InTB!M:M,InTB!B:B,StartDate-1,InTB!F:F,{"010","020","030","410","411","430","431","440","441","460","604"},InTB!G:G,F16))*(1-Mthflag) -> 0 | I16: =-SUM(SUMIFS(InTB!M:M,InTB!B:B,LstValueDt,InTB!F:F,{"010","020","030","410","411","430","431","440","441","460","604"},InTB!G:G,F16)) -> 0 | J16: =-SUM(SUMIFS(InTB!M:M,InTB!B:B,LstStartDt-1,InTB!F:F,{"010","020","030","410","411","430","431","440","441","460","604"},InTB!G:G,F16))*(1-Mthflag) -> 0 | K16: 1
B17: Dividend Income - Local (TE) | C17: 263037.25 | D17: 0 | E17: {"010","020","030","410","411","430","431","440","441","460","604"} | F17: 636000 | G17: =-SUM(SUMIFS(InTB!M:M,InTB!B:B,ValueDate,InTB!F:F,{"010","020","030","410","411","430","431","440","441","460","604"},InTB!G:G,F17)) -> 2435927.89 | H17: =-SUM(SUMIFS(InTB!M:M,InTB!B:B,StartDate-1,InTB!F:F,{"010","020","030","410","411","430","431","440","441","460","604"},InTB!G:G,F17))*(1-Mthflag) -> 2172890.64 | I17: =-SUM(SUMIFS(InTB!M:M,InTB!B:B,LstValueDt,InTB!F:F,{"010","020","030","410","411","430","431","440","441","460","604"},InTB!G:G,F17)) -> 0 | J17: =-SUM(SUMIFS(InTB!M:M,InTB!B:B,LstStartDt-1,InTB!F:F,{"010","020","030","410","411","430","431","440","441","460","604"},InTB!G:G,F17))*(1-Mthflag) -> 0 | K17: 1
B18: Dividend Income - Foreign (TA) | C18: 0 | D18: 0 | E18: {"015","025","415","416","465"} | F18: 635000 | G18: =-SUM(SUMIFS(InTB!M:M,InTB!B:B,ValueDate,InTB!F:F,{"015","025","415","416","465"},InTB!G:G,F18)) -> 0 | H18: =-SUM(SUMIFS(InTB!M:M,InTB!B:B,StartDate-1,InTB!F:F,{"015","025","415","416","465"},InTB!G:G,F18))*(1-Mthflag) -> 0 | I18: =-SUM(SUMIFS(InTB!M:M,InTB!B:B,LstValueDt,InTB!F:F,{"015","025","415","416","465"},InTB!G:G,F18)) -> 0 | J18: =-SUM(SUMIFS(InTB!M:M,InTB!B:B,LstStartDt-1,InTB!F:F,{"015","025","415","416","465"},InTB!G:G,F18))*(1-Mthflag) -> 0 | K18: 1
B19: Dividend Income - Foreign (TE) | C19: 0 | D19: 0 | E19: {"015","025","415","416","465"} | F19: 636000 | G19: =-SUM(SUMIFS(InTB!M:M,InTB!B:B,ValueDate,InTB!F:F,{"015","025","415","416","465"},InTB!G:G,F19)) -> 0 | H19: =-SUM(SUMIFS(InTB!M:M,InTB!B:B,StartDate-1,InTB!F:F,{"015","025","415","416","465"},InTB!G:G,F19))*(1-Mthflag) -> 0 | I19: =-SUM(SUMIFS(InTB!M:M,InTB!B:B,LstValueDt,InTB!F:F,{"015","025","415","416","465"},InTB!G:G,F19)) -> 0 | J19: =-SUM(SUMIFS(InTB!M:M,InTB!B:B,LstStartDt-1,InTB!F:F,{"015","025","415","416","465"},InTB!G:G,F19))*(1-Mthflag) -> 0 | K19: 1
B20: Amortisation of premium,net of accretion of discount | C20: =SUM(C21:C23) -> 0 | D20: =SUM(D21:D23) -> 0
B21: Discount - Commercial Paper | C21: 0 | D21: 0 | E21: {"120","121","125","170"} | F21: {"62*","92*"} | G21: =-(SUM(SUMIFS(InTB!M:M,InTB!B:B,ValueDate,InTB!F:F,{"120","121","125","170"},InTB!G:G,"62*"))+SUM(SUMIFS(InTB!M:M,InTB!B:B,ValueDate,InTB!F:F,{"120","121","125","170"},InTB!G:G,"92*"))) -> 0 | H21: =(-(SUM(SUMIFS(InTB!M:M,InTB!B:B,StartDate-1,InTB!F:F,{"120","121","125","170"},InTB!G:G,"62*"))+SUM(SUMIFS(InTB!M:M,InTB!B:B,StartDate-1,InTB!F:F,{"120","121","125","170"},InTB!G:G,"92*"))))*(1-Mthflag) -> 0 | I21: =-(SUM(SUMIFS(InTB!M:M,InTB!B:B,LstValueDt,InTB!F:F,{"120","121","125","170"},InTB!G:G,"62*"))+SUM(SUMIFS(InTB!M:M,InTB!B:B,LstValueDt,InTB!F:F,{"120","121","125","170"},InTB!G:G,"92*"))) -> 0 | J21: =(-(SUM(SUMIFS(InTB!M:M,InTB!B:B,LstStartDt-1,InTB!F:F,{"120","121","125","170"},InTB!G:G,"62*"))+SUM(SUMIFS(InTB!M:M,InTB!B:B,LstStartDt-1,InTB!F:F,{"120","121","125","170"},InTB!G:G,"92*"))))*(1-Mthflag) -> 0 | K21: 1
B22: ="Discount - Commercial " & BNDSUKUK -> Discount - Commercial bond | C22: 0 | D22: 0 | E22: {"1**","450"} | F22: {"62*","92*"} | G22: =-(SUM(SUMIFS(InTB!M:M,InTB!B:B,ValueDate,InTB!F:F,{"1**","450"},InTB!G:G,"62*"))+SUM(SUMIFS(InTB!M:M,InTB!B:B,ValueDate,InTB!F:F,{"1**","450"},InTB!G:G,"92*")))-G21 -> 0 | H22: =-(SUM(SUMIFS(InTB!M:M,InTB!B:B,StartDate-1,InTB!F:F,{"1**","450"},InTB!G:G,"62*"))+SUM(SUMIFS(InTB!M:M,InTB!B:B,StartDate-1,InTB!F:F,{"1**","450"},InTB!G:G,"92*")))*(1-Mthflag)-H21 -> 0 | I22: =-(SUM(SUMIFS(InTB!M:M,InTB!B:B,LstValueDt,InTB!F:F,{"1**","450"},InTB!G:G,"62*"))+SUM(SUMIFS(InTB!M:M,InTB!B:B,LstValueDt,InTB!F:F,{"1**","450"},InTB!G:G,"92*")))-I21 -> 0 | J22: =-(SUM(SUMIFS(InTB!M:M,InTB!B:B,LstStartDt-1,InTB!F:F,{"1**","450"},InTB!G:G,"62*"))+SUM(SUMIFS(InTB!M:M,InTB!B:B,LstStartDt-1,InTB!F:F,{"1**","450"},InTB!G:G,"92*")))*(1-Mthflag)-J21 -> 0 | K22: 1
B23: Amortisation of Premium | C23: 0 | D23: 0 | E23: {"1**","450"} | F23: {"61*","91*"} | G23: =-(SUM(SUMIFS(InTB!M:M,InTB!B:B,ValueDate,InTB!F:F,{"1**","450"},InTB!G:G,"61*"))+SUM(SUMIFS(InTB!M:M,InTB!B:B,ValueDate,InTB!F:F,{"1**","450"},InTB!G:G,"91*"))) -> 0 | H23: =(-(SUM(SUMIFS(InTB!M:M,InTB!B:B,StartDate-1,InTB!F:F,{"1**","450"},InTB!G:G,"61*"))+SUM(SUMIFS(InTB!M:M,InTB!B:B,StartDate-1,InTB!F:F,{"1**","450"},InTB!G:G,"91*"))))*(1-Mthflag) -> 0 | I23: =-(SUM(SUMIFS(InTB!M:M,InTB!B:B,LstValueDt,InTB!F:F,{"1**","450"},InTB!G:G,"61*"))+SUM(SUMIFS(InTB!M:M,InTB!B:B,LstValueDt,InTB!F:F,{"1**","450"},InTB!G:G,"91*"))) -> 0 | J23: =(-(SUM(SUMIFS(InTB!M:M,InTB!B:B,LstStartDt-1,InTB!F:F,{"1**","450"},InTB!G:G,"61*"))+SUM(SUMIFS(InTB!M:M,InTB!B:B,LstStartDt-1,InTB!F:F,{"1**","450"},InTB!G:G,"91*"))))*(1-Mthflag) -> 0 | K23: 1
B24: Net realised gain on sale/(loss) of financial assets at fair value through profit or loss | C24: =SUM(C25:C26) -> 839234.74 | D24: =SUM(D25:D26) -> 0
B25: Local | C25: 839234.74 | D25: 0 | E25: *** | F25: {"600*","601*"} | G25: =-SUM(SUMIFS(InTB!M:M,InTB!B:B,ValueDate,InTB!F:F,E25,InTB!G:G,{"600*","601*"}))-G26 -> 1937423.4 | H25: =-SUM(SUMIFS(InTB!M:M,InTB!B:B,StartDate-1,InTB!F:F,E25,InTB!G:G,{"600*","601*"}))*(1-Mthflag)-H26 -> 1098188.66 | I25: =-SUM(SUMIFS(InTB!M:M,InTB!B:B,LstValueDt,InTB!F:F,E25,InTB!G:G,{"600*","601*"}))-I26 -> 0 | J25: =-SUM(SUMIFS(InTB!M:M,InTB!B:B,LstStartDt-1,InTB!F:F,E25,InTB!G:G,{"600*","601*"}))*(1-Mthflag)-J26 -> 0 | K25: 1
B26: Foreign | C26: 0 | D26: 0 | E26: {**5,**6} | F26: {"600*","601*"} | G26: =-SUM(SUMIFS(InTB!M:M,InTB!B:B,ValueDate,InTB!F:F,E26,InTB!G:G,{"600*","601*"})) -> 0 | H26: =-SUM(SUMIFS(InTB!M:M,InTB!B:B,StartDate-1,InTB!F:F,E26,InTB!G:G,{"600*","601*"})*(1-Mthflag)) -> 0 | I26: =-SUM(SUMIFS(InTB!M:M,InTB!B:B,LstValueDt,InTB!F:F,E26,InTB!G:G,{"600*","601*"})) -> 0 | J26: =-SUM(SUMIFS(InTB!M:M,InTB!B:B,LstStartDt-1,InTB!F:F,E26,InTB!G:G,{"600*","601*"}))*(1-Mthflag) -> 0 | K26: 1
B27: Net gain/ (loss) on foreign exchange - Realised | C27: 0 | D27: 0 | E27: *** | F27: 650000 | G27: =-SUM(SUMIFS(InTB!M:M,InTB!B:B,ValueDate,InTB!F:F,E27,InTB!G:G,F27)) -> 0 | H27: =-SUM(SUMIFS(InTB!M:M,InTB!B:B,StartDate-1,InTB!F:F,E27,InTB!G:G,F27))*(1-Mthflag) -> 0 | I27: =-SUM(SUMIFS(InTB!M:M,InTB!B:B,LstValueDt,InTB!F:F,E27,InTB!G:G,F27)) -> 0 | J27: =-SUM(SUMIFS(InTB!M:M,InTB!B:B,LstStartDt-1,InTB!F:F,E27,InTB!G:G,F27))*(1-Mthflag) -> 0
B28: Net gain/ (loss) on investment -UnRealised | C28: -1565184.48 | D28: 0 | E28: *** | F28: {"660*","689*","960*","970*","989*"} | G28: =-SUM(SUMIFS(InTB!M:M,InTB!B:B,ValueDate,InTB!F:F,E28,InTB!G:G,{"660*","689*","960*","970*","989*"})) -> -1036268.43 | H28: =-SUM(SUMIFS(InTB!M:M,InTB!B:B,StartDate-1,InTB!F:F,E28,InTB!G:G,{"660*","689*","960*","970*","989*"}))*(1-Mthflag) -> 528916.05 | I28: =-SUM(SUMIFS(InTB!M:M,InTB!B:B,LstValueDt,InTB!F:F,E28,InTB!G:G,{"660*","689*","960*","970*","989*"})) -> 0 | J28: =-SUM(SUMIFS(InTB!M:M,InTB!B:B,LstStartDt-1,InTB!F:F,E28,InTB!G:G,{"660*","689*","960*","970*","989*"}))*(1-Mthflag) -> 0
B29: Net gain/ (loss) on foreign exchange - UnRealised | C29: 0 | D29: 0 | E29: *** | F29: {"699*","999*"} | G29: =-SUM(SUMIFS(InTB!M:M,InTB!B:B,ValueDate,InTB!F:F,E29,InTB!G:G,{"699*","999*"})) -> 0 | H29: =-SUM(SUMIFS(InTB!M:M,InTB!B:B,StartDate-1,InTB!F:F,E29,InTB!G:G,{"699*","999*"}))*(1-Mthflag) -> 0 | I29: =-SUM(SUMIFS(InTB!M:M,InTB!B:B,LstValueDt,InTB!F:F,E29,InTB!G:G,{"699*","999*"})) -> 0 | J29: =-SUM(SUMIFS(InTB!M:M,InTB!B:B,LstStartDt-1,InTB!F:F,E29,InTB!G:G,{"699*","999*"}))*(1-Mthflag) -> 0
B30: Rebates from management fee | C30: 0 | D30: 0 | E30: *** | F30: 640001 | G30: =-SUM(SUMIFS(InTB!M:M,InTB!B:B,ValueDate,InTB!F:F,E30,InTB!G:G,F30)) -> 0 | H30: =-SUM(SUMIFS(InTB!M:M,InTB!B:B,StartDate-1,InTB!F:F,E30,InTB!G:G,F30))*(1-Mthflag) -> 0 | I30: =-SUM(SUMIFS(InTB!M:M,InTB!B:B,LstValueDt,InTB!F:F,E30,InTB!G:G,F30)) -> 0 | J30: =-SUM(SUMIFS(InTB!M:M,InTB!B:B,LstStartDt-1,InTB!F:F,E30,InTB!G:G,F30))*(1-Mthflag) -> 0
B31: Other income | C31: 0 | D31: 0 | E31: *** | F31: {"640003","640004","640006"} | G31: =-SUM(SUMIFS(InTB!M:M,InTB!B:B,ValueDate,InTB!F:F,E31,InTB!G:G,{"640003","640004","640006"})) -> 178171.8 | H31: =-SUM(SUMIFS(InTB!M:M,InTB!B:B,StartDate-1,InTB!F:F,E31,InTB!G:G,{"640003","640004","640006"}))*(1-Mthflag) -> 178171.8 | I31: =-SUM(SUMIFS(InTB!M:M,InTB!B:B,LstValueDt,InTB!F:F,E31,InTB!G:G,{"640003","640004","640006"})) -> 0 | J31: =-SUM(SUMIFS(InTB!M:M,InTB!B:B,LstStartDt-1,InTB!F:F,E31,InTB!G:G,{"640003","640004","640006"}))*(1-Mthflag) -> 0
A32: Total Income | C32: =C10+C15+C20+C24+C27+C28+C29+C30+C31 -> -452445.98 | D32: =D10+D15+D20+D24+D27+D28+D29+D30+D31 -> 0
A34: Expeniture
B35: Management fee | C35: =-(G35-H35) -> 0 | D35: =-(I35-J35) -> 0 | F35: 710106 | G35: =-SUM(SUMIFS(InTB!M:M,InTB!B:B,ValueDate,InTB!G:G,F35)) -> -177840.98 | H35: =-SUM(SUMIFS(InTB!M:M,InTB!B:B,StartDate-1,InTB!G:G,F35))*(1-Mthflag) -> -177840.98 | I35: =-SUM(SUMIFS(InTB!M:M,InTB!B:B,LstValueDt,InTB!G:G,F35)) -> 0 | J35: =-SUM(SUMIFS(InTB!M:M,InTB!B:B,LstStartDt-1,InTB!G:G,F35))*(1-Mthflag) -> 0
B36: Trustee's fee | C36: =-(G36-H36) -> 0 | D36: =-(I36-J36) -> 0 | F36: 710113 | G36: =-SUM(SUMIFS(InTB!M:M,InTB!B:B,ValueDate,InTB!G:G,F36)) -> 0 | H36: =-SUM(SUMIFS(InTB!M:M,InTB!B:B,StartDate-1,InTB!G:G,F36))*(1-Mthflag) -> 0 | I36: =-SUM(SUMIFS(InTB!M:M,InTB!B:B,LstValueDt,InTB!G:G,F36)) -> 0 | J36: =-SUM(SUMIFS(InTB!M:M,InTB!B:B,LstStartDt-1,InTB!G:G,F36))*(1-Mthflag) -> 0
B37: Performance fee | C37: =-(G37-H37) -> 0 | D37: =-(I37-J37) -> 0 | F37: {"710126","710151"} | G37: =-SUM(SUMIFS(InTB!M:M,InTB!B:B,ValueDate,InTB!G:G,{"710126","710151"})) -> 0 | H37: =-SUM(SUMIFS(InTB!M:M,InTB!B:B,StartDate-1,InTB!G:G,{"710126","710151"}))*(1-Mthflag) -> 0 | I37: =-SUM(SUMIFS(InTB!M:M,InTB!B:B,LstValueDt,InTB!G:G,{"710126","710151"})) -> 0 | J37: =-SUM(SUMIFS(InTB!M:M,InTB!B:B,LstStartDt-1,InTB!G:G,{"710126","710151"}))*(1-Mthflag) -> 0
B38: Auditors' remuneration | C38: =-(G38-H38) -> 0 | D38: =-(I38-J38) -> 0 | F38: 710101 | G38: =-SUM(SUMIFS(InTB!M:M,InTB!B:B,ValueDate,InTB!G:G,F38)) -> 0 | H38: =-SUM(SUMIFS(InTB!M:M,InTB!B:B,StartDate-1,InTB!G:G,F38))*(1-Mthflag) -> 0 | I38: =-SUM(SUMIFS(InTB!M:M,InTB!B:B,LstValueDt,InTB!G:G,F38)) -> 0 | J38: =-SUM(SUMIFS(InTB!M:M,InTB!B:B,LstStartDt-1,InTB!G:G,F38))*(1-Mthflag) -> 0
B39: Tax agent's fee | C39: =-(G39-H39) -> 0 | D39: =-(I39-J39) -> 0 | F39: 710115 | G39: =-SUM(SUMIFS(InTB!M:M,InTB!B:B,ValueDate,InTB!G:G,F39)) -> 0 | H39: =-SUM(SUMIFS(InTB!M:M,InTB!B:B,StartDate-1,InTB!G:G,F39))*(1-Mthflag) -> 0 | I39: =-SUM(SUMIFS(InTB!M:M,InTB!B:B,LstValueDt,InTB!G:G,F39)) -> 0 | J39: =-SUM(SUMIFS(InTB!M:M,InTB!B:B,LstStartDt-1,InTB!G:G,F39))*(1-Mthflag) -> 0
B40: Custodian's fee | C40: =SUM(C41:C43) -> 0 | D40: =SUM(D41:D43) -> 0 | H40: =-SUM(SUMIFS(InTB!M:M,InTB!B:B,StartDate-1,InTB!G:G,F40))*(1-Mthflag) -> 0 | J40: =-SUM(SUMIFS(InTB!M:M,InTB!B:B,LstStartDt-1,InTB!G:G,F40))*(1-Mthflag) -> 0
B41: Foreign Custodian - Annual Fees | C41: =-(G41-H41) -> 0 | D41: =-(I41-J41) -> 0 | F41: 710122 | G41: =-SUM(SUMIFS(InTB!M:M,InTB!B:B,ValueDate,InTB!G:G,F41)) -> 0 | H41: =-SUM(SUMIFS(InTB!M:M,InTB!B:B,StartDate-1,InTB!G:G,F41))*(1-Mthflag) -> 0 | I41: =-SUM(SUMIFS(InTB!M:M,InTB!B:B,LstValueDt,InTB!G:G,F41)) -> 0 | J41: =-SUM(SUMIFS(InTB!M:M,InTB!B:B,LstStartDt-1,InTB!G:G,F41))*(1-Mthflag) -> 0 | K41: 1
B42: Custodian & Registration service | C42: =-(G42-H42) -> 0 | D42: =-(I42-J42) -> 0 | F42: 700301 | G42: =-SUM(SUMIFS(InTB!M:M,InTB!B:B,ValueDate,InTB!G:G,F42)) -> 0 | H42: =-SUM(SUMIFS(InTB!M:M,InTB!B:B,StartDate-1,InTB!G:G,F42))*(1-Mthflag) -> 0 | I42: =-SUM(SUMIFS(InTB!M:M,InTB!B:B,LstValueDt,InTB!G:G,F42)) -> 0 | J42: =-SUM(SUMIFS(InTB!M:M,InTB!B:B,LstStartDt-1,InTB!G:G,F42))*(1-Mthflag) -> 0 | K42: 1
B43: Foreign Custodian - Transaction Charges | C43: =-(G43-H43) -> 0 | D43: =-(I43-J43) -> 0 | F43: {"700300","799900","799970","799980"} | G43: =-SUM(SUMIFS(InTB!M:M,InTB!B:B,ValueDate,InTB!G:G,{"700300","799900","799970","799980"})) -> 0 | H43: =-SUM(SUMIFS(InTB!M:M,InTB!B:B,StartDate-1,InTB!G:G,{"700300","799900","799970","799980"}))*(1-Mthflag) -> 0 | I43: =-SUM(SUMIFS(InTB!M:M,InTB!B:B,LstValueDt,InTB!G:G,{"700300","799900","799970","799980"})) -> 0 | J43: =-SUM(SUMIFS(InTB!M:M,InTB!B:B,LstStartDt-1,InTB!G:G,{"700300","799900","799970","799980"}))*(1-Mthflag) -> 0 | K43: 1
B44: Brokerage and transaction fee | C44: =SUM(C45:C45) -> 0 | D44: =SUM(D45:D45) -> 0
B45: Foreign brokerage fee | C45: =-(G45-H45) -> 0 | D45: =-(I45-J45) -> 0 | F45: 710127 | G45: =-SUM(SUMIFS(InTB!M:M,InTB!B:B,ValueDate,InTB!G:G,F45)) -> 0 | H45: =-SUM(SUMIFS(InTB!M:M,InTB!B:B,StartDate-1,InTB!G:G,F45))*(1-Mthflag) -> 0 | I45: =-SUM(SUMIFS(InTB!M:M,InTB!B:B,LstValueDt,InTB!G:G,F45)) -> 0 | J45: =-SUM(SUMIFS(InTB!M:M,InTB!B:B,LstStartDt-1,InTB!G:G,F45))*(1-Mthflag) -> 0 | K45: 1
B46: Administration expenses | C46: =SUM(C47:C74) -> 0 | D46: =SUM(D47:D74) -> 0 | F46: 7** | G46: =-SUM(SUMIFS(InTB!M:M,InTB!B:B,ValueDate,InTB!G:G,"7*")) -> -177840.98 | H46: =-SUM(SUMIFS(InTB!M:M,InTB!B:B,StartDate-1,InTB!G:G,F46))*(1-Mthflag) -> -177840.98 | I46: =-SUM(SUMIFS(InTB!M:M,InTB!B:B,LstValueDt,InTB!G:G,"7*")) -> 0 | J46: =-SUM(SUMIFS(InTB!M:M,InTB!B:B,LstStartDt-1,InTB!G:G,F46))*(1-Mthflag) -> 0
B47: Printing | C47: =-(G47-H47) -> 0 | D47: =-(I47-J47) -> 0 | F47: 710108 | G47: =-SUM(SUMIFS(InTB!M:M,InTB!B:B,ValueDate,InTB!G:G,F47)) -> 0 | H47: =-SUM(SUMIFS(InTB!M:M,InTB!B:B,StartDate-1,InTB!G:G,F47))*(1-Mthflag) -> 0 | I47: =-SUM(SUMIFS(InTB!M:M,InTB!B:B,LstValueDt,InTB!G:G,F47)) -> 0 | J47: =-SUM(SUMIFS(InTB!M:M,InTB!B:B,LstStartDt-1,InTB!G:G,F47))*(1-Mthflag) -> 0 | K47: 1
B48: Postage | C48: 0 | D48: 0 | F48: 710107 | G48: =-SUM(SUMIFS(InTB!M:M,InTB!B:B,ValueDate,InTB!G:G,F48)) -> 0 | H48: =-SUM(SUMIFS(InTB!M:M,InTB!B:B,StartDate-1,InTB!G:G,F48))*(1-Mthflag) -> 0 | I48: =-SUM(SUMIFS(InTB!M:M,InTB!B:B,LstValueDt,InTB!G:G,F48)) -> 0 | J48: =-SUM(SUMIFS(InTB!M:M,InTB!B:B,LstStartDt-1,InTB!G:G,F48))*(1-Mthflag) -> 0 | K48: 1
B49: Bank charges | C49: 0 | D49: 0 | F49: 710102 | G49: =-SUM(SUMIFS(InTB!M:M,InTB!B:B,ValueDate,InTB!G:G,F49)) -> 0 | H49: =-SUM(SUMIFS(InTB!M:M,InTB!B:B,StartDate-1,InTB!G:G,F49))*(1-Mthflag) -> 0 | I49: =-SUM(SUMIFS(InTB!M:M,InTB!B:B,LstValueDt,InTB!G:G,F49)) -> 0 | J49: =-SUM(SUMIFS(InTB!M:M,InTB!B:B,LstStartDt-1,InTB!G:G,F49))*(1-Mthflag) -> 0 | K49: 1
B50: CDS deposit fee | C50: 0 | D50: 0 | F50: 710123 | G50: =-SUM(SUMIFS(InTB!M:M,InTB!B:B,ValueDate,InTB!G:G,F50)) -> 0 | H50: =-SUM(SUMIFS(InTB!M:M,InTB!B:B,StartDate-1,InTB!G:G,F50))*(1-Mthflag) -> 0 | I50: =-SUM(SUMIFS(InTB!M:M,InTB!B:B,LstValueDt,InTB!G:G,F50)) -> 0 | J50: =-SUM(SUMIFS(InTB!M:M,InTB!B:B,LstStartDt-1,InTB!G:G,F50))*(1-Mthflag) -> 0 | K50: 1
B51: CDS fee | C51: 0 | D51: 0 | F51: 710120 | G51: =-SUM(SUMIFS(InTB!M:M,InTB!B:B,ValueDate,InTB!G:G,F51)) -> 0 | H51: =-SUM(SUMIFS(InTB!M:M,InTB!B:B,StartDate-1,InTB!G:G,F51))*(1-Mthflag) -> 0 | I51: =-SUM(SUMIFS(InTB!M:M,InTB!B:B,LstValueDt,InTB!G:G,F51)) -> 0 | J51: =-SUM(SUMIFS(InTB!M:M,InTB!B:B,LstStartDt-1,InTB!G:G,F51))*(1-Mthflag) -> 0 | K51: 1
B52: ADR Charges | C52: 0 | D52: 0 | F52: 710134 | G52: =-SUM(SUMIFS(InTB!M:M,InTB!B:B,ValueDate,InTB!G:G,F52)) -> 0 | H52: =-SUM(SUMIFS(InTB!M:M,InTB!B:B,StartDate-1,InTB!G:G,F52))*(1-Mthflag) -> 0 | I52: =-SUM(SUMIFS(InTB!M:M,InTB!B:B,LstValueDt,InTB!G:G,F52)) -> 0 | J52: =-SUM(SUMIFS(InTB!M:M,InTB!B:B,LstStartDt-1,InTB!G:G,F52))*(1-Mthflag) -> 0 | K52: 1
B53: Cash distribution expenses | C53: 0 | D53: 0 | F53: 710116 | G53: =-SUM(SUMIFS(InTB!M:M,InTB!B:B,ValueDate,InTB!G:G,F53)) -> 0 | H53: =-SUM(SUMIFS(InTB!M:M,InTB!B:B,StartDate-1,InTB!G:G,F53))*(1-Mthflag) -> 0 | I53: =-SUM(SUMIFS(InTB!M:M,InTB!B:B,LstValueDt,InTB!G:G,F53)) -> 0 | J53: =-SUM(SUMIFS(InTB!M:M,InTB!B:B,LstStartDt-1,InTB!G:G,F53))*(1-Mthflag) -> 0 | K53: 1
B54: CDS transfer fee | C54: 0 | D54: 0 | F54: 710121 | G54: =-SUM(SUMIFS(InTB!M:M,InTB!B:B,ValueDate,InTB!G:G,F54)) -> 0 | H54: =-SUM(SUMIFS(InTB!M:M,InTB!B:B,StartDate-1,InTB!G:G,F54))*(1-Mthflag) -> 0 | I54: =-SUM(SUMIFS(InTB!M:M,InTB!B:B,LstValueDt,InTB!G:G,F54)) -> 0 | J54: =-SUM(SUMIFS(InTB!M:M,InTB!B:B,LstStartDt-1,InTB!G:G,F54))*(1-Mthflag) -> 0 | K54: 1
B55: Online service charges | C55: 0 | D55: 0 | F55: 710118 | G55: =-SUM(SUMIFS(InTB!M:M,InTB!B:B,ValueDate,InTB!G:G,F55)) -> 0 | H55: =-SUM(SUMIFS(InTB!M:M,InTB!B:B,StartDate-1,InTB!G:G,F55))*(1-Mthflag) -> 0 | I55: =-SUM(SUMIFS(InTB!M:M,InTB!B:B,LstValueDt,InTB!G:G,F55)) -> 0 | J55: =-SUM(SUMIFS(InTB!M:M,InTB!B:B,LstStartDt-1,InTB!G:G,F55))*(1-Mthflag) -> 0 | K55: 1
B56: SSTS custodian charges | C56: 0 | D56: =-(I56-J551) -> 0 | F56: 700302 | G56: =-SUM(SUMIFS(InTB!M:M,InTB!B:B,ValueDate,InTB!G:G,F56)) -> 0 | H56: =-SUM(SUMIFS(InTB!M:M,InTB!B:B,StartDate-1,InTB!G:G,F56))*(1-Mthflag) -> 0 | I56: =-SUM(SUMIFS(InTB!M:M,InTB!B:B,LstValueDt,InTB!G:G,F56)) -> 0 | J56: =-SUM(SUMIFS(InTB!M:M,InTB!B:B,LstStartDt-1,InTB!G:G,F56))*(1-Mthflag) -> 0 | K56: 1
B57: SSTS charges | C57: 0 | D57: =-(I57-J57) -> 0 | F57: 710136 | G57: =-SUM(SUMIFS(InTB!M:M,InTB!B:B,ValueDate,InTB!G:G,F57)) -> 0 | H57: =-SUM(SUMIFS(InTB!M:M,InTB!B:B,StartDate-1,InTB!G:G,F57))*(1-Mthflag) -> 0 | I57: =-SUM(SUMIFS(InTB!M:M,InTB!B:B,LstValueDt,InTB!G:G,F57)) -> 0 | J57: =-SUM(SUMIFS(InTB!M:M,InTB!B:B,LstStartDt-1,InTB!G:G,F57))*(1-Mthflag) -> 0 | K57: 1
B58: Trustee's fee (Registration Services) | C58: 0 | D58: 0 | F58: 710114 | G58: =-SUM(SUMIFS(InTB!M:M,InTB!B:B,ValueDate,InTB!G:G,F58)) -> 0 | H58: =-SUM(SUMIFS(InTB!M:M,InTB!B:B,StartDate-1,InTB!G:G,F58))*(1-Mthflag) -> 0 | I58: =-SUM(SUMIFS(InTB!M:M,InTB!B:B,LstValueDt,InTB!G:G,F58)) -> 0 | J58: =-SUM(SUMIFS(InTB!M:M,InTB!B:B,LstStartDt-1,InTB!G:G,F58))*(1-Mthflag) -> 0 | K58: 1
B59: Services charges | C59: 0 | D59: 0 | F59: 710111 | G59: =-SUM(SUMIFS(InTB!M:M,InTB!B:B,ValueDate,InTB!G:G,F59)) -> 0 | H59: =-SUM(SUMIFS(InTB!M:M,InTB!B:B,StartDate-1,InTB!G:G,F59))*(1-Mthflag) -> 0 | I59: =-SUM(SUMIFS(InTB!M:M,InTB!B:B,LstValueDt,InTB!G:G,F59)) -> 0 | J59: =-SUM(SUMIFS(InTB!M:M,InTB!B:B,LstStartDt-1,InTB!G:G,F59))*(1-Mthflag) -> 0 | K59: 1
B60: Shariah Advisory Fees | C60: 0 | D60: 0 | F60: 710112 | G60: =-SUM(SUMIFS(InTB!M:M,InTB!B:B,ValueDate,InTB!G:G,F60)) -> 0 | H60: =-SUM(SUMIFS(InTB!M:M,InTB!B:B,StartDate-1,InTB!G:G,F60))*(1-Mthflag) -> 0 | I60: =-SUM(SUMIFS(InTB!M:M,InTB!B:B,LstValueDt,InTB!G:G,F60)) -> 0 | J60: =-SUM(SUMIFS(InTB!M:M,InTB!B:B,LstStartDt-1,InTB!G:G,F60))*(1-Mthflag) -> 0 | K60: 1
B61: Up-Front Fee | C61: 0 | D61: 0 | F61: 710205 | G61: =-SUM(SUMIFS(InTB!M:M,InTB!B:B,ValueDate,InTB!G:G,F61)) -> 0 | H61: =-SUM(SUMIFS(InTB!M:M,InTB!B:B,StartDate-1,InTB!G:G,F61))*(1-Mthflag) -> 0 | I61: =-SUM(SUMIFS(InTB!M:M,InTB!B:B,LstValueDt,InTB!G:G,F61)) -> 0 | J61: =-SUM(SUMIFS(InTB!M:M,InTB!B:B,LstStartDt-1,InTB!G:G,F61))*(1-Mthflag) -> 0 | K61: 1
B62: Administration Fee (IPO) | C62: 0 | D62: 0 | F62: 710206 | G62: =-SUM(SUMIFS(InTB!M:M,InTB!B:B,ValueDate,InTB!G:G,F62)) -> 0 | H62: =-SUM(SUMIFS(InTB!M:M,InTB!B:B,StartDate-1,InTB!G:G,F62))*(1-Mthflag) -> 0 | I62: =-SUM(SUMIFS(InTB!M:M,InTB!B:B,LstValueDt,InTB!G:G,F62)) -> 0 | J62: =-SUM(SUMIFS(InTB!M:M,InTB!B:B,LstStartDt-1,InTB!G:G,F62))*(1-Mthflag) -> 0 | K62: 1
B63: Exit Fee/Penalty Fee | C63: 0 | D63: 0 | F63: 710207 | G63: =-SUM(SUMIFS(InTB!M:M,InTB!B:B,ValueDate,InTB!G:G,F63)) -> 0 | H63: =-SUM(SUMIFS(InTB!M:M,InTB!B:B,StartDate-1,InTB!G:G,F63))*(1-Mthflag) -> 0 | I63: =-SUM(SUMIFS(InTB!M:M,InTB!B:B,LstValueDt,InTB!G:G,F63)) -> 0 | J63: =-SUM(SUMIFS(InTB!M:M,InTB!B:B,LstStartDt-1,InTB!G:G,F63))*(1-Mthflag) -> 0 | K63: 1
B64: GST on Service Charge | C64: 0 | D64: 0 | F64: 710872 | G64: =-SUM(SUMIFS(InTB!M:M,InTB!B:B,ValueDate,InTB!G:G,F64)) -> 0 | H64: =-SUM(SUMIFS(InTB!M:M,InTB!B:B,StartDate-1,InTB!G:G,F64))*(1-Mthflag) -> 0 | I64: =-SUM(SUMIFS(InTB!M:M,InTB!B:B,LstValueDt,InTB!G:G,F64)) -> 0 | J64: =-SUM(SUMIFS(InTB!M:M,InTB!B:B,LstStartDt-1,InTB!G:G,F64))*(1-Mthflag) -> 0 | K64: 1
B65: Investment Commitee Fees | C65: 0 | D65: 0 | F65: 710135 | G65: =-SUM(SUMIFS(InTB!M:M,InTB!B:B,ValueDate,InTB!G:G,F65)) -> 0 | H65: =-SUM(SUMIFS(InTB!M:M,InTB!B:B,StartDate-1,InTB!G:G,F65))*(1-Mthflag) -> 0 | I65: =-SUM(SUMIFS(InTB!M:M,InTB!B:B,LstValueDt,InTB!G:G,F65)) -> 0 | J65: =-SUM(SUMIFS(InTB!M:M,InTB!B:B,LstStartDt-1,InTB!G:G,F65))*(1-Mthflag) -> 0 | K65: 1
B66: Professional fees | C66: 0 | D66: 0 | F66: 710109 | G66: =-SUM(SUMIFS(InTB!M:M,InTB!B:B,ValueDate,InTB!G:G,F66)) -> 0 | H66: =-SUM(SUMIFS(InTB!M:M,InTB!B:B,StartDate-1,InTB!G:G,F66))*(1-Mthflag) -> 0 | I66: =-SUM(SUMIFS(InTB!M:M,InTB!B:B,LstValueDt,InTB!G:G,F66)) -> 0 | J66: =-SUM(SUMIFS(InTB!M:M,InTB!B:B,LstStartDt-1,InTB!G:G,F66))*(1-Mthflag) -> 0 | K66: 1
B67: Tax Disbursement | C67: 0 | D67: 0 | F67: 710105 | G67: =-SUM(SUMIFS(InTB!M:M,InTB!B:B,ValueDate,InTB!G:G,F67)) -> 0 | H67: =-SUM(SUMIFS(InTB!M:M,InTB!B:B,StartDate-1,InTB!G:G,F67))*(1-Mthflag) -> 0 | I67: =-SUM(SUMIFS(InTB!M:M,InTB!B:B,LstValueDt,InTB!G:G,F67)) -> 0 | J67: =-SUM(SUMIFS(InTB!M:M,InTB!B:B,LstStartDt-1,InTB!G:G,F67))*(1-Mthflag) -> 0 | K67: 1
B68: License Fees | C68: 0 | D68: 0 | F68: {"710110","710208","710209"} | G68: =-SUM(SUMIFS(InTB!M:M,InTB!B:B,ValueDate,InTB!G:G,{"710110","710208","710209"})) -> 0 | H68: =-SUM(SUMIFS(InTB!M:M,InTB!B:B,StartDate-1,InTB!G:G,{"710110","710208","710209"}))*(1-Mthflag) -> 0 | I68: =-SUM(SUMIFS(InTB!M:M,InTB!B:B,LstValueDt,InTB!G:G,{"710110","710208","710209"})) -> 0 | J68: =-SUM(SUMIFS(InTB!M:M,InTB!B:B,LstStartDt-1,InTB!G:G,{"710110","710208","710209"}))*(1-Mthflag) -> 0 | K68: 1
B69: Nominee's charges | C69: 0 | D69: 0 | F69: 710117 | G69: =-SUM(SUMIFS(InTB!M:M,InTB!B:B,ValueDate,InTB!G:G,F69)) -> 0 | H69: =-SUM(SUMIFS(InTB!M:M,InTB!B:B,StartDate-1,InTB!G:G,F69))*(1-Mthflag) -> 0 | I69: =-SUM(SUMIFS(InTB!M:M,InTB!B:B,LstValueDt,InTB!G:G,F69)) -> 0 | J69: =-SUM(SUMIFS(InTB!M:M,InTB!B:B,LstStartDt-1,InTB!G:G,F69))*(1-Mthflag) -> 0 | K69: 1
B70: Dividend postage and handling fees | C70: 0 | D70: 0 | F70: {"799010","799040"} | G70: =-SUM(SUMIFS(InTB!M:M,InTB!B:B,ValueDate,InTB!G:G,{"799010","799040"})) -> 0 | H70: =-SUM(SUMIFS(InTB!M:M,InTB!B:B,StartDate-1,InTB!G:G,{"799010","799040"}))*(1-Mthflag) -> 0 | I70: =-SUM(SUMIFS(InTB!M:M,InTB!B:B,LstValueDt,InTB!G:G,{"799010","799040"})) -> 0 | J70: =-SUM(SUMIFS(InTB!M:M,InTB!B:B,LstStartDt-1,InTB!G:G,{"799010","799040"}))*(1-Mthflag) -> 0 | K70: 1
B71: Audit Disbursement | C71: 0 | D71: 0 | F71: 710119 | G71: =-SUM(SUMIFS(InTB!M:M,InTB!B:B,ValueDate,InTB!G:G,F71)) -> 0 | H71: =-SUM(SUMIFS(InTB!M:M,InTB!B:B,StartDate-1,InTB!G:G,F71))*(1-Mthflag) -> 0 | I71: =-SUM(SUMIFS(InTB!M:M,InTB!B:B,LstValueDt,InTB!G:G,F71)) -> 0 | J71: =-SUM(SUMIFS(InTB!M:M,InTB!B:B,LstStartDt-1,InTB!G:G,F71))*(1-Mthflag) -> 0 | K71: 1
B72: Listed Securities Investment Cost | C72: 0 | D72: 0 | F72: {"710660","799000","799100"} | G72: =-SUM(SUMIFS(InTB!M:M,InTB!B:B,ValueDate,InTB!G:G,{"710660","799000","799100"})) -> 0 | H72: =-SUM(SUMIFS(InTB!M:M,InTB!B:B,StartDate-1,InTB!G:G,{"710660","799000","799100"}))*(1-Mthflag) -> 0 | I72: =-SUM(SUMIFS(InTB!M:M,InTB!B:B,LstValueDt,InTB!G:G,{"710660","799000","799100"})) -> 0 | J72: =-SUM(SUMIFS(InTB!M:M,InTB!B:B,LstStartDt-1,InTB!G:G,{"710660","799000","799100"}))*(1-Mthflag) -> 0 | K72: 1
B73: Management Expenses | C73: 0 | D73: 0 | F73: 710125 | G73: =-SUM(SUMIFS(InTB!M:M,InTB!B:B,ValueDate,InTB!G:G,F73)) -> 0 | H73: =-SUM(SUMIFS(InTB!M:M,InTB!B:B,StartDate-1,InTB!G:G,F73))*(1-Mthflag) -> 0 | I73: =-SUM(SUMIFS(InTB!M:M,InTB!B:B,LstValueDt,InTB!G:G,F73)) -> 0 | J73: =-SUM(SUMIFS(InTB!M:M,InTB!B:B,LstStartDt-1,InTB!G:G,F73))*(1-Mthflag) -> 0 | K73: 1
B74: General Expenses | C74: 0 | D74: 0 | F74: {"710103","710104","710124","710132","710150","710210","710211","710212","710301","710302"} | G74: =-SUM(SUMIFS(InTB!M:M,InTB!B:B,ValueDate,InTB!G:G,{"710103","710104","710124","710132","710150","710210","710211","710212","710301","710302"})) -> 0 | H74: =-SUM(SUMIFS(InTB!M:M,InTB!B:B,StartDate-1,InTB!G:G,{"710103","710104","710124","710132","710150","710210","710211","710212","710301","710302"}))*(1-Mthflag) -> 0 | I74: =-SUM(SUMIFS(InTB!M:M,InTB!B:B,LstValueDt,InTB!G:G,{"710103","710104","710124","710132","710150","710210","710211","710212","710301","710302"})) -> 0 | J74: =-SUM(SUMIFS(InTB!M:M,InTB!B:B,LstStartDt-1,InTB!G:G,{"710103","710104","710124","710132","710150","710210","710211","710212","710301","710302"}))*(1-Mthflag) -> 0 | K74: 1
A75: Total Expenditure | C75: =C35+C36+C37+C38+C39+C40+C44+C46 -> 0 | D75: =D35+D36+D37+D38+D39+D40+D44+D46 -> 0
A77: Net Income /( Loss) Before Taxation | C77: =C32-C75 -> -452445.98 | D77: =D32-D75 -> 0
B78: Taxation | C78: =G78-H78 -> 0 | D78: =I78-J78 -> 0 | F78: 710198 | G78: =-SUM(SUMIFS(InTB!M:M,InTB!B:B,ValueDate,InTB!G:G,F78)) -> 0 | H78: =-SUM(SUMIFS(InTB!M:M,InTB!B:B,StartDate-1,InTB!G:G,F78))*(1-Mthflag) -> 0 | I78: =-SUM(SUMIFS(InTB!M:M,InTB!B:B,LstValueDt,InTB!G:G,F78)) -> 0 | J78: =-SUM(SUMIFS(InTB!M:M,InTB!B:B,LstStartDt-1,InTB!G:G,F78))*(1-Mthflag) -> 0
B79: Local Prior Year under/(over) Provision of Tax | C79: =G79-H79 -> 0 | D79: =I79-J79 -> 0 | F79: 710131 | G79: =-SUM(SUMIFS(InTB!M:M,InTB!B:B,ValueDate,InTB!G:G,F79)) -> 0 | H79: =-SUM(SUMIFS(InTB!M:M,InTB!B:B,StartDate-1,InTB!G:G,F79))*(1-Mthflag) -> 0 | I79: =-SUM(SUMIFS(InTB!M:M,InTB!B:B,LstValueDt,InTB!G:G,F79)) -> 0 | J79: =-SUM(SUMIFS(InTB!M:M,InTB!B:B,LstStartDt-1,InTB!G:G,F79))*(1-Mthflag) -> 0
B80: Local Witholding Tax | C80: =SUM(C81:C84) -> 0 | D80: =SUM(D81:D84) -> 0
B81: Withholding Taxation (Coupon) | C81: =G81-H81 -> 0 | D81: =I81-J81 -> 0 | F81: 710128 | G81: =-SUM(SUMIFS(InTB!M:M,InTB!B:B,ValueDate,InTB!G:G,F81)) -> 0 | H81: =-SUM(SUMIFS(InTB!M:M,InTB!B:B,StartDate-1,InTB!G:G,F81))*(1-Mthflag) -> 0 | I81: =-SUM(SUMIFS(InTB!M:M,InTB!B:B,LstValueDt,InTB!G:G,F81)) -> 0 | J81: =-SUM(SUMIFS(InTB!M:M,InTB!B:B,LstStartDt-1,InTB!G:G,F81))*(1-Mthflag) -> 0 | K81: 1
B82: Withholding Taxation (Dividend) | C82: =G82-H82 -> 0 | D82: =I82-J82 -> 0 | F82: 710130 | G82: =-SUM(SUMIFS(InTB!M:M,InTB!B:B,ValueDate,InTB!G:G,F82)) -> 0 | H82: =-SUM(SUMIFS(InTB!M:M,InTB!B:B,StartDate-1,InTB!G:G,F82))*(1-Mthflag) -> 0 | I82: =-SUM(SUMIFS(InTB!M:M,InTB!B:B,LstValueDt,InTB!G:G,F82)) -> 0 | J82: =-SUM(SUMIFS(InTB!M:M,InTB!B:B,LstStartDt-1,InTB!G:G,F82))*(1-Mthflag) -> 0 | K82: 1
B83: Witholding Tax | C83: =G83-H83 -> 0 | D83: =I83-J83 -> 0 | F83: 799020 | G83: =-SUM(SUMIFS(InTB!M:M,InTB!B:B,ValueDate,InTB!G:G,F83)) -> 0 | H83: =-SUM(SUMIFS(InTB!M:M,InTB!B:B,StartDate-1,InTB!G:G,F83))*(1-Mthflag) -> 0 | I83: =-SUM(SUMIFS(InTB!M:M,InTB!B:B,LstValueDt,InTB!G:G,F83)) -> 0 | J83: =-SUM(SUMIFS(InTB!M:M,InTB!B:B,LstStartDt-1,InTB!G:G,F83))*(1-Mthflag) -> 0 | K83: 1
B84: Withholding Taxation(Local) | C84: =G84-H84 -> 0 | D84: =I84-J84 -> 0 | F84: 799030 | G84: =-SUM(SUMIFS(InTB!M:M,InTB!B:B,ValueDate,InTB!G:G,F84)) -> 0 | H84: =-SUM(SUMIFS(InTB!M:M,InTB!B:B,StartDate-1,InTB!G:G,F84))*(1-Mthflag) -> 0 | I84: =-SUM(SUMIFS(InTB!M:M,InTB!B:B,LstValueDt,InTB!G:G,F84)) -> 0 | J84: =-SUM(SUMIFS(InTB!M:M,InTB!B:B,LstStartDt-1,InTB!G:G,F84))*(1-Mthflag) -> 0 | K84: 1
B85: Foreign Taxation | C85: =G85-H85 -> 0 | D85: =I85-J85 -> 0 | F85: 710129 | G85: =-SUM(SUMIFS(InTB!M:M,InTB!B:B,ValueDate,InTB!G:G,F85)) -> 0 | H85: =-SUM(SUMIFS(InTB!M:M,InTB!B:B,StartDate-1,InTB!G:G,F85))*(1-Mthflag) -> 0 | I85: =-SUM(SUMIFS(InTB!M:M,InTB!B:B,LstValueDt,InTB!G:G,F85)) -> 0 | J85: =-SUM(SUMIFS(InTB!M:M,InTB!B:B,LstStartDt-1,InTB!G:G,F85))*(1-Mthflag) -> 0
A86: Net Income /( Loss) After Taxation | C86: =C77+(C78+C79+C80+C85) -> -452445.98 | D86: =D77+(D78+D79+D80+D85) -> 0
B88: Distribution equalisation | C88: =G88-H88 -> 0 | D88: =I88-J88 -> 0 | F88: {"820000","850000"} | G88: =-SUM(SUMIFS(InTB!M:M,InTB!B:B,ValueDate,InTB!G:G,{"820000","850000"})) -> -4795307.18 | H88: =-SUM(SUMIFS(InTB!M:M,InTB!B:B,StartDate-1,InTB!G:G,{"820000","850000"})) -> -4795307.18 | I88: =-SUM(SUMIFS(InTB!M:M,InTB!B:B,LstValueDt,InTB!G:G,{"820000","850000"})) -> 0 | J88: =-SUM(SUMIFS(InTB!M:M,InTB!B:B,LstStartDt-1,InTB!G:G,{"820000","850000"})) -> 0
B89: Distributions | C89: =G89-H89 -> 0 | D89: =I89-J89 -> 0 | F89: {"840000"} | G89: =-SUM(SUMIFS(InTB!M:M,InTB!B:B,ValueDate,InTB!G:G,{"840000"})) -> 0 | H89: =-SUM(SUMIFS(InTB!M:M,InTB!B:B,StartDate-1,InTB!G:G,{"840000"}))*(1-Mthflag) -> 0 | I89: =-SUM(SUMIFS(InTB!M:M,InTB!B:B,LstValueDt,InTB!G:G,{"840000"})) -> 0 | J89: =-SUM(SUMIFS(InTB!M:M,InTB!B:B,LstStartDt-1,InTB!G:G,{"840000"}))*(1-Mthflag) -> 0
A90: Undistributed Income/(Loss) Carried Forward | C90: =C86+C88+C89 -> -452445.98 | D90: =D86+D88+D89 -> 0
A92: Net Income after taxation is made up of:
B93: Realised income/(loss) | C93: =C97-C94 -> 1112738.5 | D93: =D97-D94 -> 0
B94: Unrealised income/(loss) | C94: =C95+C96 -> -1565184.48 | D94: =D95+D96 -> 0
B95: Unrealised income/ (loss) On Foreign Exchange | C95: =G95-H95 -> 0 | D95: =I95-J95 -> 0 | F95: {699*,999*} | G95: =-SUM(SUMIFS(InTB!M:M,InTB!B:B,ValueDate,InTB!G:G,{"699*","999*"})) -> 0 | H95: =-SUM(SUMIFS(InTB!M:M,InTB!B:B,StartDate-1,InTB!G:G,{"699*","999*"}))*(1-Mthflag) -> 0 | I95: =-SUM(SUMIFS(InTB!M:M,InTB!B:B,LstValueDt,InTB!G:G,{"699*","999*"})) -> 0 | J95: =-SUM(SUMIFS(InTB!M:M,InTB!B:B,LstStartDt-1,InTB!G:G,{"699*","999*"}))*(1-Mthflag) -> 0 | K95: 1
B96: Unrealised income/ (loss) On Investment | C96: =G96-H96 -> -1565184.48 | D96: =I96-J96 -> 0 | F96: {"660*","689*","960*","970*","989*"} | G96: =-SUM(SUMIFS(InTB!M:M,InTB!B:B,ValueDate,InTB!G:G,{"660*","689*","960*","970*","989*"})) -> -1036268.43 | H96: =-SUM(SUMIFS(InTB!M:M,InTB!B:B,StartDate-1,InTB!G:G,{"660*","689*","960*","970*","989*"}))*(1-Mthflag) -> 528916.05 | I96: =-SUM(SUMIFS(InTB!M:M,InTB!B:B,LstValueDt,InTB!G:G,{"660*","689*","960*","970*","989*"})) -> 0 | J96: =-SUM(SUMIFS(InTB!M:M,InTB!B:B,LstStartDt-1,InTB!G:G,{"660*","689*","960*","970*","989*"}))*(1-Mthflag) -> 0 | K96: 1
C97: =C90 -> -452445.98 | D97: =D90 -> 0

Sheet CashFlow
A2: =UPPER(CompanyName) -> NOMURA ASSET MANAGEMENT MALAYSIA SDN BHD
A3: Condensed Statement of Cash Flows
A4: =" from " & TEXT(StartDate,"dd mmmm yyyy") & " to " & TEXT(ValueDate,"dd mmmm yyyy") -> from 01 April 2021 to 30 April 2021
C6: =(TEXT(StartDate,"DD.MM.YYYY")) & " to " & (TEXT(ValueDate,"DD.MM.YYYY")) -> 01.04.2021 to 30.04.2021 | D6: =(TEXT(LstStartDt,"DD.MM.YYYY")) & " to " & (TEXT(LstValueDt,"DD.MM.YYYY")) -> 01.04.2020 to 30.04.2020
B7: Note | C7: =FundCur -> MYR | D7: =FundCur -> MYR
A9: CASH FLOWS FROM OPERATING AND INVESTING ACTIVITIES | E9: =ValueDate -> 2021-04-30 | F9: =LstValueDt -> 2020-04-30
A10: Proceed from sales of investments | C10: =SUM(C11:C14) -> 4451613.22 | D10: =SUM(D11:D14) -> 0
A11: Sales of Equity | C11: =E11 -> 4451613.22 | D11: =F11 -> 0 | E11: =-(SUMIFS(InSett!L:L,InSett!J:J,"SS",InSett!A:A,"Cur")+SUMIFS(InSett!N:N,InSett!J:J,"SS",InSett!A:A,"Cur")) -> 4451613.22 | F11: =-(SUMIFS(InSett!L:L,InSett!J:J,"SS",InSett!A:A,"Lst")+SUMIFS(InSett!N:N,InSett!J:J,"SS",InSett!A:A,"Lst")) -> 0 | G11: 1
A12: ="Sales of " & BNDSUKUK -> Sales of bond | C12: =E12 -> 0 | D12: 0 | E12: =-(SUMIFS(InSett!L:L,InSett!J:J,"BS",InSett!A:A,"Cur")+SUMIFS(InSett!N:N,InSett!J:J,"BS",InSett!A:A,"Cur")+SUMIFS(InSett!P:P,InSett!J:J,"BS",InSett!A:A,"Cur")+SUMIFS(InSett!O:O,InSett!J:J,"BS",InSett!A:A,"Cur")) -> 0 | F12: =-(SUMIFS(InSett!L:L,InSett!J:J,"BS",InSett!A:A,"Lst")+SUMIFS(InSett!N:N,InSett!J:J,"BS",InSett!A:A,"Lst")+SUMIFS(InSett!P:P,InSett!J:J,"BS",InSett!A:A,"Lst")+SUMIFS(InSett!O:O,InSett!J:J,"BS",InSett!A:A,"Lst")) -> 0 | G12: 1
A13: Treasury Bill Maturity | C13: 0 | D13: 0 | E13: =-(SUMIFS(InSett!L:L,InSett!J:J,"TM",InSett!A:A,"Cur")+SUMIFS(InSett!N:N,InSett!J:J,"TM",InSett!A:A,"Cur")+SUMIFS(InSett!P:P,InSett!J:J,"TM",InSett!A:A,"Cur")+SUMIFS(InSett!O:O,InSett!J:J,"TM",InSett!A:A,"Cur")) -> 0 | F13: =-(SUMIFS(InSett!L:L,InSett!J:J,"TM",InSett!A:A,"Lst")+SUMIFS(InSett!N:N,InSett!J:J,"TM",InSett!A:A,"Lst")+SUMIFS(InSett!P:P,InSett!J:J,"TM",InSett!A:A,"Lst")+SUMIFS(InSett!O:O,InSett!J:J,"TM",InSett!A:A,"Lst")) -> 0 | G13: 1
A14: Proceed from capital reduction of investment | C14: 0 | D14: 0 | E14: =-(SUMIFS(InSett!L:L,InSett!J:J,"SU",InSett!A:A,"Cur")+SUMIFS(InSett!N:N,InSett!J:J,"Su",InSett!A:A,"Cur")) -> 0 | F14: =-(SUMIFS(InSett!L:L,InSett!J:J,"Su",InSett!A:A,"Lst")+SUMIFS(InSett!N:N,InSett!J:J,"Su",InSett!A:A,"Lst")) -> 0 | G14: 1
A15: Corporate Event | C15: =SUM(C16:C17) -> 0 | D15: =SUM(D16:D17) -> 0
A16: Convert Right to Mother | C16: =E16 -> 0 | D16: 0 | E16: =SUMIFS(InSett!G:G,InSett!J:J,"SM",InSett!A:A,"Cur") -> 0 | F16: =SUMIFS(InSett!G:G,InSett!J:J,"SM",InSett!A:A,"Lst") -> 0 | G16: 1
A17: Short Term Sale | C17: 0 | D17: 0 | E17: =SUMIFS(InSett!G:G,InSett!J:J,"TS",InSett!A:A,"Cur") -> 0 | F17: =SUMIFS(InSett!G:G,InSett!J:J,"TS",InSett!A:A,"Lst") -> 0 | G17: 1
A18: ="Proceed from "&BNDSUKUK&" maturity" -> Proceed from bond maturity | C18: 0 | D18: 0 | E18: =-(SUMIFS(InSett!L:L,InSett!J:J,"BM",InSett!A:A,"Cur")+SUMIFS(InSett!N:N,InSett!J:J,"BM",InSett!A:A,"Cur")+SUMIFS(InSett!O:O,InSett!J:J,"BM",InSett!A:A,"Cur")) -> 0 | F18: =-(SUMIFS(InSett!L:L,InSett!J:J,"BM",InSett!A:A,"Lst")+SUMIFS(InSett!N:N,InSett!J:J,"BM",InSett!A:A,"Lst")+SUMIFS(InSett!O:O,InSett!J:J,"BM",InSett!A:A,"Lst")) -> 0
A19: Purchase of investments | C19: =SUM(C20:C23) -> -4378918.25 | D19: =SUM(D20:D23) -> 0
A20: =BNDSUKUK&" Purchase" -> bond Purchase | C20: =E20 -> 0 | D20: 0 | E20: =-(SUMIFS(InSett!L:L,InSett!J:J,"BP",InSett!A:A,"Cur")+SUMIFS(InSett!P:P,InSett!J:J,"BP",InSett!A:A,"Cur")+SUMIFS(InSett!O:O,InSett!J:J,"BP",InSett!A:A,"Cur")) -> 0 | F20: =-(SUMIFS(InSett!L:L,InSett!J:J,"BP",InSett!A:A,"Lst")+SUMIFS(InSett!P:P,InSett!J:J,"BP",InSett!A:A,"Lst")+SUMIFS(InSett!O:O,InSett!J:J,"BP",InSett!A:A,"Lst")) -> 0 | G20: 1
A21: Equity Purchase | C21: -4378918.25 | D21: 0 | E21: =-(SUMIFS(InSett!L:L,InSett!J:J,"SP",InSett!A:A,"Cur")+SUMIFS(InSett!N:N,InSett!J:J,"SP",InSett!A:A,"Cur")) -> -4378918.25 | F21: =-(SUMIFS(InSett!L:L,InSett!J:J,"SP",InSett!A:A,"Lst")) -> 0 | G21: 1
A22: Dividend Reinvestment | C22: 0 | D22: 0 | E22: =-(SUMIFS(InSett!L:L,InSett!J:J,"Sd",InSett!A:A,"Cur")) -> 0 | F22: =-(SUMIFS(InSett!L:L,InSett!J:J,"SD",InSett!A:A,"Lst")) -> 0 | G22: 1
A23: Treasury Bill Purchase | C23: 0 | D23: 0 | E23: =-(SUMIFS(InSett!L:L,InSett!J:J,"tp",InSett!A:A,"Cur")+SUMIFS(InSett!P:P,InSett!J:J,"tp",InSett!A:A,"Cur")) -> 0 | F23: =-(SUMIFS(InSett!L:L,InSett!J:J,"TP",InSett!A:A,"Lst")+SUMIFS(InSett!P:P,InSett!J:J,"TP",InSett!A:A,"Lst")) -> 0 | G23: 1
A24: Deposit Upliftment | C24: 0 | D24: 0 | E24: =SUM(SUMIFS(InSett!G:G,InSett!J:J,{"RW","FW"},InSett!A:A,"Cur")) -> 0 | F24: =SUM(SUMIFS(InSett!G:G,InSett!J:J,{"RW","FW"},InSett!A:A,"Lst")) -> 0
A25: Realised foreign exchange differences arising from investing and operating activities | C25: =SUM(C26:C27) -> 0 | D25: =SUM(D26:D27) -> 0
A26: Realised FX From Transaction & Journal | C26: =E26 -> 0 | D26: =F26 -> 0 | E26: =-(SUMIFS(InSett!R:R,InSett!A:A,"Cur")+SUMIFS(InSett!I:I,InSett!A:A,"Cur")+SUM(SUMIFS(InJournal!I:I,InJournal!Q:Q,{"650000"},InJournal!A:A,"Cur",InJournal!K:K,"500"))) -> 0 | F26: =-(SUMIFS(InSett!R:R,InSett!A:A,"Lst")+SUMIFS(InSett!I:I,InSett!A:A,"Lst")+SUM(SUMIFS(InJournal!I:I,InJournal!Q:Q,{"650000"},InJournal!A:A,"Lst",InJournal!K:K,"500"))) -> 0 | G26: 1
A27: Proceed from Derivative Placement | C27: =E27 -> 0 | D27: =F27 -> 0 | E27: =SUM(SUMIFS(InSett!G:G,InSett!J:J,{"DC"},InSett!A:A,"Cur")) -> 0 | F27: =SUM(SUMIFS(InSett!G:G,InSett!J:J,{"DC"},InSett!A:A,"Lst")) -> 0 | G27: 1
A28: Interest received | C28: =SUM(C29:C30) -> 10576.78 | D28: =SUM(D29:D30) -> 0
A29: Interest Income From Deposit and Journal | C29: =E29 -> 10576.78 | D29: =F29 -> 0 | E29: =-(SUM(SUMIFS(InSett!M:M,InSett!J:J,{"RM","FM"},InSett!A:A,"Cur"))+SUM(SUMIFS(InJournal!I:I,InJournal!A:A,"Cur",InJournal!Q:Q,"640002",InJournal!K:K,"500"))) -> 10576.78 | F29: =-SUM(SUMIFS(InSett!M:M,InSett!J:J,{"RM","FM"},InSett!A:A,"Lst"))+SUM(SUMIFS(InJournal!I:I,InJournal!A:A,"Lst",InJournal!Q:Q,"640002",InJournal!K:K,"500")) -> 0 | G29: 1
A30: ="Interest Income From " & BNDSUKUK -> Interest Income From bond | C30: =E30 -> 0 | D30: =F30 -> 0 | E30: =-(SUM(SUMIFS(InSett!M:M,InSett!J:J,{"BI","BS"},InSett!A:A,"Cur"))+SUMIFS(InSett!P:P,InSett!J:J,"BI",InSett!A:A,"Cur")) -> 0 | F30: =-(SUM(SUMIFS(InSett!M:M,InSett!J:J,{"BI","BS"},InSett!A:A,"Lst"))+SUMIFS(InSett!P:P,InSett!J:J,"BI",InSett!A:A,"Lst")) -> 0 | G30: 1
A31: Net dividend received | C31: =SUM(C32:C33) -> 920142.56 | D31: =SUM(D32:D33) -> 0
A32: Dividend Income | C32: =E32 -> 920142.56 | D32: 0 | E32: =-(SUMIFS(InSett!M:M,InSett!A:A,"Cur",InSett!J:J,"SI")+SUMIFS(InSett!N:N,InSett!A:A,"Cur",InSett!J:J,"SI")) -> 920142.56 | F32: =-(SUMIFS(InSett!M:M,InSett!A:A,"Lst",InSett!J:J,"SI")+SUMIFS(InSett!N:N,InSett!A:A,"Lst",InSett!J:J,"SI")) -> 0 | G32: 1
A33: Foreign Dividend Tax & Receivable | C33: 0 | D33: 0 | E33: =-(SUMIFS(InSett!Q:Q,InSett!A:A,"Cur",InSett!J:J,"SI")) -> 0 | F33: =-(SUMIFS(InSett!Q:Q,InSett!A:A,"Lst",InSett!J:J,"SI")) -> 0 | G33: 1
A34: Management fee paid | C34: 0 | D34: 0 | E34: =-(SUMIFS(InJournal!I:I,InJournal!A:A,"Cur",InJournal!Q:Q,"710106",InJournal!K:K,"500")) -> 0 | F34: =-(SUMIFS(InJournal!I:I,InJournal!A:A,"Lst",InJournal!Q:Q,"710106",InJournal!K:K,"500")) -> 0
A35: Other income | C35: 0 | D35: 0 | E35: =-SUM(SUMIFS(InJournal!I:I,InJournal!A:A,"Cur",InJournal!Q:Q,{"640003","640004","640006"},InJournal!K:K,"500")) -> 0 | F35: =-SUM(SUMIFS(InJournal!I:I,InJournal!A:A,"Lst",InJournal!Q:Q,{"640003","640004","640006"},InJournal!K:K,"500")) -> 0
A36: Trustee's fee paid | C36: 0 | D36: 0 | E36: =-(SUMIFS(InJournal!I:I,InJournal!A:A,"Cur",InJournal!Q:Q,"710107",InJournal!K:K,"500")) -> 0 | F36: =-(SUMIFS(InJournal!I:I,InJournal!A:A,"Lst",InJournal!Q:Q,"710107",InJournal!K:K,"500")) -> 0
A37: Other expenses paid | C37: 0 | D37: 0 | E37: =-(SUMIFS(InJournal!I:I,InJournal!A:A,"Cur",InJournal!Q:Q,"7",InJournal!K:K,"500"))+E34+E36 -> 0 | F37: =-SUMIFS(InJournal!I:I,InJournal!A:A,"Lst",InJournal!Q:Q,"7",InJournal!K:K,"500")+F34+F36 -> 0
A38: Cash flow from operating and investing activities | C38: =C10+C15+C18+C19+C24+C25+C28+C31+C34+C35+C36+C37 -> 1003414.31 | D38: =D10+D15+D18+D19+D24+D25+D28+D31+D34+D35+D36+D37 -> 0
A39: Tax Refunded | C39: =E39 -> 0 | D39: =F39 -> 0 | E39: =(SUMIFS(InJournal!I:I,InJournal!A:A,"Cur",InJournal!Q:Q,"299999",InJournal!K:K,"500")) -> 0 | F39: =(SUMIFS(InJournal!I:I,InJournal!A:A,"Lst",InJournal!Q:Q,"299999",InJournal!K:K,"500")) -> 0
A40: Management Rebate | C40: =E40 -> 0 | D40: =F40 -> 0 | E40: =(SUMIFS(InJournal!I:I,InJournal!A:A,"Cur",InJournal!Q:Q,"220103",InJournal!K:K,"500")) -> 0 | F40: =(SUMIFS(InJournal!I:I,InJournal!A:A,"Lst",InJournal!Q:Q,"220103",InJournal!K:K,"500")) -> 0
A41: Net cash generated from/(used in) operating and investing activities | C41: =C38+C39+C40 -> 1003414.31 | D41: =D38+D39+D40 -> 0
A43: CASH FLOWS FROM FINANCING ACTIVITIES
A44: Receipts from creation of units | C44: =SUM(C45:C46) -> 0 | D44: =SUM(D45:D46) -> 0
A45: Creation From Journal | C45: =E45 -> 0 | D45: =F45 -> 0 | E45: =-SUMIFS(InJournal!I:I,InJournal!A:A,"Cur",InJournal!Q:Q,"800000",InJournal!I:I,">" & 0,InJournal!K:K,"500") -> 0 | F45: =-SUMIFS(InJournal!I:I,InJournal!A:A,"Lst",InJournal!Q:Q,"800000",InJournal!I:I,">" & 0,InJournal!K:K,"500") -> 0 | G45: 1
A46: Creation From Transaction | C46: =E46 -> 0 | D46: =F46 -> 0 | E46: =SUMIFS(InSett!G:G,InSett!J:J,"CR",InSett!A:A,"Cur") -> 0 | F46: =SUMIFS(InSett!G:G,InSett!J:J,"CR",InSett!A:A,"Lst") -> 0 | G46: 1
A47: Payments for cancellation of units | C47: =SUM(C48:C49) -> -3326886.52 | D47: =SUM(D48:D49) -> 0
A48: Cancellation From Journal | C48: =E48 -> 0 | D48: 0 | E48: =-SUMIFS(InJournal!I:I,InJournal!A:A,"Cur",InJournal!Q:Q,"800000",InJournal!I:I,"<" & 0,InJournal!K:K,"500") -> 0 | F48: =-SUMIFS(InJournal!I:I,InJournal!A:A,"Lst",InJournal!Q:Q,"800000",InJournal!I:I,"<" & 0,InJournal!K:K,"500") -> 0 | G48: 1
A49: Cancellation From Transaction | C49: -3326886.52 | D49: 0 | E49: =SUMIFS(InSett!G:G,InSett!J:J,"CN",InSett!A:A,"Cur") -> -3326886.52 | F49: =SUMIFS(InSett!G:G,InSett!J:J,"CN",InSett!A:A,"Lst") -> 0 | G49: 1
A50: Payment for distribution | C50: 0 | D50: 0 | E50: =-(SUMIFS(InJournal!I:I,InJournal!A:A,"Cur",InJournal!Q:Q,"840000",InJournal!K:K,"500")) -> 0 | F50: =-(SUMIFS(InJournal!I:I,InJournal!A:A,"Lst",InJournal!Q:Q,"840000",InJournal!K:K,"500")) -> 0
A51: Net cash generated from/(used in) financing activities | C51: =C44+C50+C47 -> -3326886.52 | D51: =D44+D50+D47 -> 0
A53: NET INCREASE/(DECREASE IN CASH AND CASH EQUIVALENTS) | C53: =C41+C51 -> -2323472.21 | D53: =D41+D51 -> 0
A54: Effect of changes in Exchange Rates | C54: =C56-C55-C53 -> 0 | D54: =D56-D55-D53 -> 0
A55: Cash and Cash Equivalents at Beginning of Financial Period | C55: =E55 -> 9180839.96 | D55: =F55 -> 0 | E55: =SUMIFS(InTB!M:M,InTB!G:G,"5*",InTB!B:B,StartDate-1)+SUMIFS(InTB!M:M,InTB!G:G,"10000*",InTB!F:F,"2**",InTB!B:B,StartDate-1) -> 9180839.96 | F55: =SUMIFS(InTB!M:M,InTB!G:G,"5*",InTB!B:B,LstStartDt-1)+SUMIFS(InTB!M:M,InTB!G:G,"10000*",InTB!F:F,"2**",InTB!B:B,LstStartDt-1) -> 0
A56: Cash and Cash Equivalents at End of Financial Period | C56: =C61 -> 6857367.75 | D56: =D61 -> 0
A58: Cash and cash equivalents comprise:
A59: Cash at bank | C59: =SUMIFS(InTB!M:M,InTB!G:G,"5*",InTB!B:B,ValueDate) -> 57367.75 | D59: =SUMIFS(InTB!N:N,InTB!H:H,"5*",InTB!C:C,ValueDate) -> 0 | E59: =SUMIFS(InTB!M:M,InTB!G:G,"5*",InTB!B:B,ValueDate) -> 57367.75 | F59: =SUMIFS(InTB!M:M,InTB!G:G,"5*",InTB!B:B,LstValueDt) -> 0
A60: Deposits and placements with licensed financial institutions | C60: =SUMIFS(InTB!M:M,InTB!G:G,"10000*",InTB!F:F,"2**",InTB!B:B,ValueDate) -> 6800000 | D60: =SUMIFS(InTB!N:N,InTB!H:H,"10000*",InTB!G:G,"2**",InTB!C:C,ValueDate) -> 0 | E60: =SUMIFS(InTB!M:M,InTB!G:G,"10000*",InTB!F:F,"2**",InTB!B:B,ValueDate) -> 6800000 | F60: =SUMIFS(InTB!M:M,InTB!G:G,"10000*",InTB!F:F,"2**",InTB!B:B,LstValueDt) -> 0
C61: =C59+C60 -> 6857367.75 | D61: =D59+D60 -> 0

Sheet FVTPL
A2: =UPPER(CompanyName) -> NOMURA ASSET MANAGEMENT MALAYSIA SDN BHD
A4: MANAGEMENT FEE
B6: =TEXT(ValueDate,"YYYY") -> 2021 | C6: =TEXT(LstValueDt,"YYYY") -> 2020
B7: =FundCur -> MYR | C7: =FundCur -> MYR
A9: Management Fee | B9: =PL!C35 -> 0 | C9: =PL!D35 -> 0
A10: Rebate of Management fee | B10: =PL!C30 -> 0 | C10: =PL!D30 -> 0
A11: Net Management fee | B11: =SUM(B9:B10) -> 0 | C11: =SUM(C9:C10) -> 0
A14: QUOTED INVESTMENTS
B16: =TEXT(ValueDate,"dd.mm.YYYY") -> 30.04.2021 | C16: =TEXT(LstValueDt,"dd.mm.YYYY") -> 30.04.2020
B17: =FundCur -> MYR | C17: =FundCur -> MYR
B18: Financial assets at FVTPL Total | C18: Total
A20: Quoted Investments | B20: =BS!C48-BS!C42 -> 177720512.8 | C20: =BS!D48-BS!D42 -> 0
A24: FINANCIAL ASSETS AT FVTPL
C26: =TEXT(ValueDate,"dd.mm.yyyy") -> 30.04.2021
C27: =FundCur -> MYR
A28: Financial assets held for trading:
A29: Quoted equity securities | C29: =BS!C22+BS!C36 -> 177720512.8
A30: Quoted collective investment scheme | C30: =BS!C30 -> 0
A31: ="Unquoted " & BNDSUKUK -> Unquoted bond | C31: =BS!C10+BS!C15 -> 0
C32: =SUM(C29:C31) -> 177720512.8
A34: Net gain on financial instruments at FVTPL comprised:
A35: Realised gain on disposals | C35: =SUM(C36:C38) -> 839234.74
A36: Gains/(Loss) From Investment - Local | C36: =PL!C25 -> 839234.74
A37: Gains/(Loss) From Investment - Foreign | C37: =PL!C26 -> 0
A38: Gains/(Loss) From FOREX | C38: =PL!C27 -> 0
A39: Unrealised changes in fair values of investments | C39: =-C42+C41+C40 -> -1565184.48
A40: Unrealised Gain/(Loss) On Investment | C40: =PL!C28 -> -1565184.48
A41: Unrealised Gains/(Loss) From FOREX | C41: =PL!C29 -> 0
A42: Unrealised Retained Profit | C42: =PL!C31 -> 0
C43: =C35+C39 -> -725949.74

Sheet Equities
A1: =IF(O1="Grand Total","QUOTED EQUITIES TOTAL",O1) -> 0 | B1: =P1 -> 0 | C1: =Q1 -> 0 | D1: =U1 -> 0 | E1: =S1 -> 0 | F1: =IF(LEN(C1)>1,G1/D1,"") ->  | G1: =V1 -> 0 | H1: =T1 -> 0 | I1: =IF(LEN(C1)>1,J1/D1,"") ->  | J1: =W1 -> 0 | K1: =(J1/MAX(J:J))*100 -> 0 | L1: =J1-G1 -> 0
A2: =FundName -> PERTUBUHAN KESELAMATAN SOCIAL(SOCSO)
A4: (a) QUOTED EQUITIES
B6: Counter | C6: Stock Code | D6: Quantity | E6: Historic Cost | H6: Market Value | O6: qProductType | P6: EQT
E7: Cost | F7: Cost Price | G7: Total Cost | H7: Current Value | I7: Closing Price | J7: Current Value | K7: % of Total Fund | L7: Unrealised Profit / (Loss) | O7: qAssetClass | P7: (Multiple Items)
E8: SC | F8: =FundCur -> MYR | G8: =FundCur -> MYR | H8: SC | I8: =FundCur -> MYR | J8: =FundCur -> MYR | L8: =FundCur -> MYR
O9: Row Labels | P9: StockName | Q9: BursaCode | R9: PriceCurr | S9: CostSC | T9: MarketValueSC | U9: Sum of UnitFaceValue | V9: Sum of CostFC | W9: Sum of MarketValueFC
A10: MALAYSIA | B10: 0 | C10: 0 | D10: 0 | E10: 0 | G10: 0 | H10: 0 | J10: 0 | K10: 0 | L10: 0 | O10: MALAYSIA
A11: FINANCIAL SERVICES | B11: CIMB GROUP HOLDINGS BHD | C11: 1023 | D11: 503338 | E11: 2308912.6 | F11: 4.587201046 | G11: 2308912.6 | H11: 2083819.32 | I11: 4.14 | J11: 2083819.32 | K11: 1.172526056 | L11: -225093.28 | O11: FINANCIAL SERVICES | P11: CIMB GROUP HOLDINGS BHD | Q11: 1023 | R11: 4.14 | S11: 2308912.6 | T11: 2083819.32 | U11: 503338 | V11: 2308912.6 | W11: 2083819.32
A12: 0 | B12: RHB BANK BHD | C12: 1066 | D12: 1071800 | E12: 5988439.23 | F12: 5.587273027 | G12: 5988439.23 | H12: 5584078 | I12: 5.21 | J12: 5584078 | K12: 3.14205598 | L12: -404361.23 | P12: RHB BANK BHD | Q12: 1066 | R12: 5.21 | S12: 5988439.23 | T12: 5584078 | U12: 1071800 | V12: 5988439.23 | W12: 5584078
A13: 0 | B13: HONG LEONG FINANCIAL GROUP | C13: 1082 | D13: 345284 | E13: 5862487.21 | F13: 16.97873985 | G13: 5862487.21 | H13: 5724808.72 | I13: 16.58 | J13: 5724808.72 | K13: 3.221242518 | L13: -137678.49 | P13: HONG LEONG FINANCIAL GROUP | Q13: 1082 | R13: 16.58 | S13: 5862487.21 | T13: 5724808.72 | U13: 345284 | V13: 5862487.21 | W13: 5724808.72
A14: 0 | B14: BURSA MALAYSIA BHD | C14: 1818 | D14: 251200 | E14: 2144361.5 | F14: 8.536470939 | G14: 2144361.5 | H14: 2117616 | I14: 8.43 | J14: 2117616 | K14: 1.191542815 | L14: -26745.5 | P14: BURSA MALAYSIA BHD | Q14: 1818 | R14: 8.43 | S14: 2144361.5 | T14: 2117616 | U14: 251200 | V14: 2144361.5 | W14: 2117616
A15: 0 | B15: AEON CREDIT SERVICE M BHD | C15: 5139 | D15: 212586 | E15: 2468637.09 | F15: 11.6124161 | G15: 2468637.09 | H15: 2636066.4 | I15: 12.4 | J15: 2636066.4 | K15: 1.483265133 | L15: 167429.31 | P15: AEON CREDIT SERVICE M BHD | Q15: 5139 | R15: 12.4 | S15: 2468637.09 | T15: 2636066.4 | U15: 212586 | V15: 2468637.09 | W15: 2636066.4
A16: 0 | B16: PUBLIC BANK BERHAD | C16: 1295 | D16: 3245250 | E16: 12669912.8 | F16: 3.90414076 | G16: 12669912.8 | H16: 13467787.5 | I16: 4.15 | J16: 13467787.5 | K16: 7.578071484 | L16: 797874.7 | P16: PUBLIC BANK BERHAD | Q16: 1295 | R16: 4.15 | S16: 12669912.8 | T16: 13467787.5 | U16: 3245250 | V16: 12669912.8 | W16: 13467787.5
A17: 0 | B17: LPI CAPITAL BERHAD | C17: 8621 | D17: 209200 | E17: 3122504.45 | F17: 14.92592949 | G17: 3122504.45 | H17: 2891144 | I17: 13.82 | J17: 2891144 | K17: 1.626792515 | L17: -231360.45 | P17: LPI CAPITAL BERHAD | Q17: 8621 | R17: 13.82 | S17: 3122504.45 | T17: 2891144 | U17: 209200 | V17: 3122504.45 | W17: 2891144
A18: 0 | B18: MALAYAN BANKING BHD | C18: 1155 | D18: 1711981 | E18: 14475766.04 | F18: 8.455564659 | G18: 14475766.04 | H18: 14089603.63 | I18: 8.23 | J18: 14089603.63 | K18: 7.92795576 | L18: -386162.41 | P18: MALAYAN BANKING BHD | Q18: 1155 | R18: 8.23 | S18: 14475766.04 | T18: 14089603.63 | U18: 1711981 | V18: 14475766.04 | W18: 14089603.63
A19: FINANCIAL SERVICES Total | B19: 0 | C19: 0 | D19: 7550639 | E19: 0 | G19: 49041020.92 | H19: 0 | J19: 48594923.57 | K19: 27.34345226 | L19: -446097.35 | O19: FINANCIAL SERVICES Total | U19: 7550639 | V19: 49041020.92 | W19: 48594923.57
A20: 0 | B20: 0 | C20: 0 | D20: 0 | E20: 0 | G20: 0 | H20: 0 | J20: 0 | K20: 0 | L20: 0
A21: TELECOMMUNICATIONS & MEDIA | B21: TIME DOTCOM BHD | C21: 5031 | D21: 230000 | E21: 2608063.81 | F21: 11.33940787 | G21: 2608063.81 | H21: 3192400 | I21: 13.88 | J21: 3192400 | K21: 1.796303617 | L21: 584336.19 | O21: TELECOMMUNICATIONS & MEDIA | P21: TIME DOTCOM BHD | Q21: 5031 | R21: 13.88 | S21: 2608063.81 | T21: 3192400 | U21: 230000 | V21: 2608063.81 | W21: 3192400
A22: 0 | B22: AXIATA GROUP BERHAD | C22: 6888 | D22: 567700 | E22: 2123198 | F22: 3.74 | G22: 2123198 | H22: 2196999 | I22: 3.87 | J22: 2196999 | K22: 1.23621014 | L22: 73801 | P22: AXIATA GROUP BERHAD | Q22: 6888 | R22: 3.87 | S22: 2123198 | T22: 2196999 | U22: 567700 | V22: 2123198 | W22: 2196999
A23: 0 | B23: TELEKOM MALAYSIA BHD | C23: 4863 | D23: 780000 | E23: 3586394.96 | F23: 4.597942256 | G23: 3586394.96 | H23: 4453800 | I23: 5.71 | J23: 4453800 | K23: 2.506069744 | L23: 867405.04 | P23: TELEKOM MALAYSIA BHD | Q23: 4863 | R23: 5.71 | S23: 3586394.96 | T23: 4453800 | U23: 780000 | V23: 3586394.96 | W23: 4453800
A24: 0 | B24: DIGI.COM BHD | C24: 6947 | D24: 600000 | E24: 2560022.31 | F24: 4.26670385 | G24: 2560022.31 | H24: 2514000 | I24: 4.19 | J24: 2514000 | K24: 1.414580659 | L24: -46022.31 | P24: DIGI.COM BHD | Q24: 6947 | R24: 4.19 | S24: 2560022.31 | T24: 2514000 | U24: 600000 | V24: 2560022.31 | W24: 2514000
A25: TELECOMMUNICATIONS & MEDIA Total | B25: 0 | C25: 0 | D25: 2177700 | E25: 0 | G25: 10877679.08 | H25: 0 | J25: 12357199 | K25: 6.95316416 | L25: 1479519.92 | O25: TELECOMMUNICATIONS & MEDIA Total | U25: 2177700 | V25: 10877679.08 | W25: 12357199
A26: 0 | B26: 0 | C26: 0 | D26: 0 | E26: 0 | G26: 0 | H26: 0 | J26: 0 | K26: 0 | L26: 0
A27: ENERGY | B27: YINSON HOLDINGS BHD | C27: 7293 | D27: 980000 | E27: 5733703.48 | F27: 5.850717837 | G27: 5733703.48 | H27: 5115600 | I27: 5.22 | J27: 5115600 | K27: 2.878452194 | L27: -618103.48 | O27: ENERGY | P27: YINSON HOLDINGS BHD | Q27: 7293 | R27: 5.22 | S27: 5733703.48 | T27: 5115600 | U27: 980000 | V27: 5733703.48 | W27: 5115600
A28: 0 | B28: DIALOG GROUP BHD | C28: 7277 | D28: 1548112 | E28: 5063121.49 | F28: 3.27051369 | G28: 5063121.49 | H28: 4706260.48 | I28: 3.04 | J28: 4706260.48 | K28: 2.648124522 | L28: -356861.01 | P28: DIALOG GROUP BHD | Q28: 7277 | R28: 3.04 | S28: 5063121.49 | T28: 4706260.48 | U28: 1548112 | V28: 5063121.49 | W28: 4706260.48
A29: ENERGY Total | B29: 0 | C29: 0 | D29: 2528112 | E29: 0 | G29: 10796824.97 | H29: 0 | J29: 9821860.48 | K29: 5.526576717 | L29: -974964.49 | O29: ENERGY Total | U29: 2528112 | V29: 10796824.97 | W29: 9821860.48
A30: 0 | B30: 0 | C30: 0 | D30: 0 | E30: 0 | G30: 0 | H30: 0 | J30: 0 | K30: 0 | L30: 0
A31: CONSUMER PRODUCTS & SERVICES | B31: MR DIY GROUP M BHD | C31: 5296 | D31: 141600 | E31: 555452.14 | F31: 3.922684605 | G31: 555452.14 | H31: 564984 | I31: 3.99 | J31: 564984 | K31: 0.3179059025 | L31: 9531.86 | O31: CONSUMER PRODUCTS & SERVICES | P31: MR DIY GROUP M BHD | Q31: 5296 | R31: 3.99 | S31: 555452.14 | T31: 564984 | U31: 141600 | V31: 555452.14 | W31: 564984
A32: 0 | B32: BERMAZ AUTO BHD | C32: 5248 | D32: 1310000 | E32: 2020487.22 | F32: 1.542356656 | G32: 2020487.22 | H32: 1938800 | I32: 1.48 | J32: 1938800 | K32: 1.090926404 | L32: -81687.22 | P32: BERMAZ AUTO BHD | Q32: 5248 | R32: 1.48 | S32: 2020487.22 | T32: 1938800 | U32: 1310000 | V32: 2020487.22 | W32: 1938800
A33: 0 | B33: SIME DARBY BERHAD | C33: 4197 | D33: 2431800 | E33: 5565331.2 | F33: 2.28856452 | G33: 5565331.2 | H33: 5495868 | I33: 2.26 | J33: 5495868 | K33: 3.092421867 | L33: -69463.2 | P33: SIME DARBY BERHAD | Q33: 4197 | R33: 2.26 | S33: 5565331.2 | T33: 5495868 | U33: 2431800 | V33: 5565331.2 | W33: 5495868
A34: 0 | B34: QL RESOURCES BHD | C34: 7084 | D34: 478365 | E34: 2174144.51 | F34: 4.544948962 | G34: 2174144.51 | H34: 2894108.25 | I34: 6.05 | J34: 2894108.25 | K34: 1.628460443 | L34: 719963.74 | P34: QL RESOURCES BHD | Q34: 7084 | R34: 6.05 | S34: 2174144.51 | T34: 2894108.25 | U34: 478365 | V34: 2174144.51 | W34: 2894108.25
A35: CONSUMER PRODUCTS & SERVICES Total | B35: 0 | C35: 0 | D35: 4361765 | E35: 0 | G35: 10315415.07 | H35: 0 | J35: 10893760.25 | K35: 6.129714617 | L35: 578345.18 | O35: CONSUMER PRODUCTS & SERVICES Total | U35: 4361765 | V35: 10315415.07 | W35: 10893760.25
A36: 0 | B36: 0 | C36: 0 | D36: 0 | E36: 0 | G36: 0 | H36: 0 | J36: 0 | K36: 0 | L36: 0
A37: INDUSTRIAL PRODUCTS & SERVICES | B37: PETRONAS CHEMICALS GROUP BHD | C37: 5183 | D37: 733200 | E37: 5609687.62 | F37: 7.650965112 | G37: 5609687.62 | H37: 6012240 | I37: 8.2 | J37: 6012240 | K37: 3.382974709 | L37: 402552.38 | O37: INDUSTRIAL PRODUCTS & SERVICES | P37: PETRONAS CHEMICALS GROUP BHD | Q37: 5183 | R37: 8.2 | S37: 5609687.62 | T37: 6012240 | U37: 733200 | V37: 5609687.62 | W37: 6012240
A38: 0 | B38: SUNWAY BHD | C38: 5211 | D38: 2481500 | E38: 4051399.01 | F38: 1.632641148 | G38: 4051399.01 | H38: 4020030 | I38: 1.62 | J38: 4020030 | K38: 2.261995499 | L38: -31369.01 | P38: SUNWAY BHD | Q38: 5211 | R38: 1.62 | S38: 4051399.01 | T38: 4020030 | U38: 2481500 | V38: 4051399.01 | W38: 4020030
A39: 0 | B39: SCIENTEX BHD | C39: 4731 | D39: 545400 | E39: 1404958.6 | F39: 2.576015035 | G39: 1404958.6 | H39: 2285226 | I39: 4.19 | J39: 2285226 | K39: 1.285853819 | L39: 880267.4 | P39: SCIENTEX BHD | Q39: 4731 | R39: 4.19 | S39: 1404958.6 | T39: 2285226 | U39: 545400 | V39: 1404958.6 | W39: 2285226
A40: 0 | B40: V.S. INDUSTRY BERHAD | C40: 6963 | D40: 928200 | E40: 2487028.17 | F40: 2.679409793 | G40: 2487028.17 | H40: 2580396 | I40: 2.78 | J40: 2580396 | K40: 1.451940443 | L40: 93367.83 | P40: V.S. INDUSTRY BERHAD | Q40: 6963 | R40: 2.78 | S40: 2487028.17 | T40: 2580396 | U40: 928200 | V40: 2487028.17 | W40: 2580396
A41: 0 | B41: PRESS METAL ALUMINIUM HOLDIN | C41: 8869 | D41: 1280000 | E41: 5759877.1 | F41: 4.499903984 | G41: 5759877.1 | H41: 6656000 | I41: 5.2 | J41: 6656000 | K41: 3.745206389 | L41: 896122.9 | P41: PRESS METAL ALUMINIUM HOLDIN | Q41: 8869 | R41: 5.2 | S41: 5759877.1 | T41: 6656000 | U41: 1280000 | V41: 5759877.1 | W41: 6656000
A42: 0 | B42: SKP RESOURCES BHD | C42: 7155 | D42: 2350000 | E42: 4285255.66 | F42: 1.823513047 | G42: 4285255.66 | H42: 3901000 | I42: 1.66 | J42: 3901000 | K42: 2.19501955 | L42: -384255.66 | P42: SKP RESOURCES BHD | Q42: 7155 | R42: 1.66 | S42: 4285255.66 | T42: 3901000 | U42: 2350000 | V42: 4285255.66 | W42: 3901000
A43: INDUSTRIAL PRODUCTS & SERVICES Total | B43: 0 | C43: 0 | D43: 8318300 | E43: 0 | G43: 23598206.16 | H43: 0 | J43: 25454892 | K43: 14.32299041 | L43: 1856685.84 | O43: INDUSTRIAL PRODUCTS & SERVICES Total | U43: 8318300 | V43: 23598206.16 | W43: 25454892
A44: 0 | B44: 0 | C44: 0 | D44: 0 | E44: 0 | G44: 0 | H44: 0 | J44: 0 | K44: 0 | L44: 0
A45: REAL ESTATE INVESTMENT TRUSTS | B45: PAVILION REAL ESTATE INVEST | C45: 5212 | D45: 1025200 | E45: 1657721.96 | F45: 1.61697421 | G45: 1657721.96 | H45: 1425028 | I45: 1.39 | J45: 1425028 | K45: 0.8018365341 | L45: -232693.96 | O45: REAL ESTATE INVESTMENT TRUSTS | P45: PAVILION REAL ESTATE INVEST | Q45: 5212 | R45: 1.39 | S45: 1657721.96 | T45: 1425028 | U45: 1025200 | V45: 1657721.96 | W45: 1425028
A46: 0 | B46: IGB REAL ESTATE INVESTMENT T | C46: 5227 | D46: 1101400 | E46: 1834177.6 | F46: 1.66531469 | G46: 1834177.6 | H46: 1927450 | I46: 1.75 | J46: 1927450 | K46: 1.084539972 | L46: 93272.4 | P46: IGB REAL ESTATE INVESTMENT T | Q46: 5227 | R46: 1.75 | S46: 1834177.6 | T46: 1927450 | U46: 1101400 | V46: 1834177.6 | W46: 1927450
A47: 0 | B47: SUNWAY REAL ESTATE INVESTMEN | C47: 5176 | D47: 500000 | E47: 922692.34 | F47: 1.84538468 | G47: 922692.34 | H47: 750000 | I47: 1.5 | J47: 750000 | K47: 0.4220109363 | L47: -172692.34 | P47: SUNWAY REAL ESTATE INVESTMEN | Q47: 5176 | R47: 1.5 | S47: 922692.34 | T47: 750000 | U47: 500000 | V47: 922692.34 | W47: 750000
A48: 0 | B48: AXIS REAL ESTATE INVESTMENT | C48: 5106 | D48: 1642695 | E48: 3042955.23 | F48: 1.852416444 | G48: 3042955.23 | H48: 3236109.15 | I48: 1.97 | J48: 3236109.15 | K48: 1.820897937 | L48: 193153.92 | P48: AXIS REAL ESTATE INVESTMENT | Q48: 5106 | R48: 1.97 | S48: 3042955.23 | T48: 3236109.15 | U48: 1642695 | V48: 3042955.23 | W48: 3236109.15
A49: REAL ESTATE INVESTMENT TRUSTS Total | B49: 0 | C49: 0 | D49: 4269295 | E49: 0 | G49: 7457547.13 | H49: 0 | J49: 7338587.15 | K49: 4.129285379 | L49: -118959.98 | O49: REAL ESTATE INVESTMENT TRUSTS Total | U49: 4269295 | V49: 7457547.13 | W49: 7338587.15
A50: 0 | B50: 0 | C50: 0 | D50: 0 | E50: 0 | G50: 0 | H50: 0 | J50: 0 | K50: 0 | L50: 0
A51: PLANTATION | B51: GENTING PLANTATIONS BHD | C51: 2291 | D51: 381600 | E51: 3796315.98 | F51: 9.948417138 | G51: 3796315.98 | H51: 3331368 | I51: 8.73 | J51: 3331368 | K51: 1.874498305 | L51: -464947.98 | O51: PLANTATION | P51: GENTING PLANTATIONS BHD | Q51: 2291 | R51: 8.73 | S51: 3796315.98 | T51: 3331368 | U51: 381600 | V51: 3796315.98 | W51: 3331368
A52: 0 | B52: KUALA LUMPUR KEPONG BHD | C52: 2445 | D52: 133000 | E52: 3020189.01 | F52: 22.70818805 | G52: 3020189.01 | H52: 2926000 | I52: 22 | J52: 2926000 | K52: 1.646405333 | L52: -94189.01 | P52: KUALA LUMPUR KEPONG BHD | Q52: 2445 | R52: 22 | S52: 3020189.01 | T52: 2926000 | U52: 133000 | V52: 3020189.01 | W52: 2926000
A53: PLANTATION Total | B53: 0 | C53: 0 | D53: 514600 | E53: 0 | G53: 6816504.99 | H53: 0 | J53: 6257368 | K53: 3.520903638 | L53: -559136.99 | O53: PLANTATION Total | U53: 514600 | V53: 6816504.99 | W53: 6257368
A54: 0 | B54: 0 | C54: 0 | D54: 0 | E54: 0 | G54: 0 | H54: 0 | J54: 0 | K54: 0 | L54: 0
A55: CONSTRUCTION | B55: GAMUDA BHD | C55: 5398 | D55: 1189191 | E55: 4337813.18 | F55: 3.647700983 | G55: 4337813.18 | H55: 4197844.23 | I55: 3.53 | J55: 4197844.23 | K55: 2.362048232 | L55: -139968.95 | O55: CONSTRUCTION | P55: GAMUDA BHD | Q55: 5398 | R55: 3.53 | S55: 4337813.18 | T55: 4197844.23 | U55: 1189191 | V55: 4337813.18 | W55: 4197844.23
A56: 0 | B56: AME ELITE CONSORTIUM BHD | C56: 5293 | D56: 1193100 | E56: 2267159.19 | F56: 1.900225622 | G56: 2267159.19 | H56: 2577096 | I56: 2.16 | J56: 2577096 | K56: 1.450083595 | L56: 309936.81 | P56: AME ELITE CONSORTIUM BHD | Q56: 5293 | R56: 2.16 | S56: 2267159.19 | T56: 2577096 | U56: 1193100 | V56: 2267159.19 | W56: 2577096
A57: 0 | B57: SUNWAY CONSTRUCTION GROUP BH | C57: 5263 | D57: 1450300 | E57: 2083898.53 | F57: 1.436874116 | G57: 2083898.53 | H57: 2523522 | I57: 1.74 | J57: 2523522 | K57: 1.419938509 | L57: 439623.47 | P57: SUNWAY CONSTRUCTION GROUP BH | Q57: 5263 | R57: 1.74 | S57: 2083898.53 | T57: 2523522 | U57: 1450300 | V57: 2083898.53 | W57: 2523522
A58: 0 | B58: IJM CORP BHD | C58: 3336 | D58: 1821200 | E58: 3004002.25 | F58: 1.649463129 | G58: 3004002.25 | H58: 3551340 | I58: 1.95 | J58: 3551340 | K58: 1.998272425 | L58: 547337.75 | P58: IJM CORP BHD | Q58: 3336 | R58: 1.95 | S58: 3004002.25 | T58: 3551340 | U58: 1821200 | V58: 3004002.25 | W58: 3551340
A59: CONSTRUCTION Total | B59: 0 | C59: 0 | D59: 5653791 | E59: 0 | G59: 11692873.15 | H59: 0 | J59: 12849802.23 | K59: 7.230342761 | L59: 1156929.08 | O59: CONSTRUCTION Total | U59: 5653791 | V59: 11692873.15 | W59: 12849802.23
A60: 0 | B60: 0 | C60: 0 | D60: 0 | E60: 0 | G60: 0 | H60: 0 | J60: 0 | K60: 0 | L60: 0
A61: HEALTH CARE | B61: IHH HEALTHCARE BHD | C61: 5225 | D61: 1127000 | E61: 6376629.33 | F61: 5.658056193 | G61: 6376629.33 | H61: 6063260 | I61: 5.38 | J61: 6063260 | K61: 3.411682706 | L61: -313369.33 | O61: HEALTH CARE | P61: IHH HEALTHCARE BHD | Q61: 5225 | R61: 5.38 | S61: 6376629.33 | T61: 6063260 | U61: 1127000 | V61: 6376629.33 | W61: 6063260
A62: 0 | B62: HARTALEGA HOLDINGS BHD | C62: 5168 | D62: 216400 | E62: 2627096 | F62: 12.14 | G62: 2627096 | H62: 2224592 | I62: 10.28 | J62: 2224592 | K62: 1.251736204 | L62: -402504 | P62: HARTALEGA HOLDINGS BHD | Q62: 5168 | R62: 10.28 | S62: 2627096 | T62: 2224592 | U62: 216400 | V62: 2627096 | W62: 2224592
A63: HEALTH CARE Total | B63: 0 | C63: 0 | D63: 1343400 | E63: 0 | G63: 9003725.33 | H63: 0 | J63: 8287852 | K63: 4.66341891 | L63: -715873.33 | O63: HEALTH CARE Total | U63: 1343400 | V63: 9003725.33 | W63: 8287852
A64: 0 | B64: 0 | C64: 0 | D64: 0 | E64: 0 | G64: 0 | H64: 0 | J64: 0 | K64: 0 | L64: 0
A65: TRANSPORTATION & LOGISTICS | B65: WESTPORTS HOLDINGS BHD | C65: 5246 | D65: 822500 | E65: 3432174.94 | F65: 4.17285707 | G65: 3432174.94 | H65: 3536750 | I65: 4.3 | J65: 3536750 | K65: 1.990062905 | L65: 104575.06 | O65: TRANSPORTATION & LOGISTICS | P65: WESTPORTS HOLDINGS BHD | Q65: 5246 | R65: 4.3 | S65: 3432174.94 | T65: 3536750 | U65: 822500 | V65: 3432174.94 | W65: 3536750
A66: TRANSPORTATION & LOGISTICS Total | B66: 0 | C66: 0 | D66: 822500 | E66: 0 | G66: 3432174.94 | H66: 0 | J66: 3536750 | K66: 1.990062905 | L66: 104575.06 | O66: TRANSPORTATION & LOGISTICS Total | U66: 822500 | V66: 3432174.94 | W66: 3536750
A67: 0 | B67: 0 | C67: 0 | D67: 0 | E67: 0 | G67: 0 | H67: 0 | J67: 0 | K67: 0 | L67: 0
A68: TECHNOLOGY | B68: UWC BHD | C68: 5292 | D68: 450000 | E68: 1027166.63 | F68: 2.282592511 | G68: 1027166.63 | H68: 2691000 | I68: 5.98 | J68: 2691000 | K68: 1.514175239 | L68: 1663833.37 | O68: TECHNOLOGY | P68: UWC BHD | Q68: 5292 | R68: 5.98 | S68: 1027166.63 | T68: 2691000 | U68: 450000 | V68: 1027166.63 | W68: 2691000
A69: 0 | B69: INARI AMERTRON BHD | C69: 0166 | D69: 810000 | E69: 2004353.01 | F69: 2.474509889 | G69: 2004353.01 | H69: 2794500 | I69: 3.45 | J69: 2794500 | K69: 1.572412749 | L69: 790146.99 | P69: INARI AMERTRON BHD | Q69: 0166 | R69: 3.45 | S69: 2004353.01 | T69: 2794500 | U69: 810000 | V69: 2004353.01 | W69: 2794500
A70: 0 | B70: VITROX CORP BHD | C70: 0097 | D70: 229800 | E70: 3519751.6 | F70: 15.3165866 | G70: 3519751.6 | H70: 3690588 | I70: 16.06 | J70: 3690588 | K70: 2.076624663 | L70: 170836.4 | P70: VITROX CORP BHD | Q70: 0097 | R70: 16.06 | S70: 3519751.6 | T70: 3690588 | U70: 229800 | V70: 3519751.6 | W70: 3690588
A71: 0 | B71: PENTAMASTER CORP BHD | C71: 7160 | D71: 600000 | E71: 3185014.68 | F71: 5.3083578 | G71: 3185014.68 | H71: 3498000 | I71: 5.83 | J71: 3498000 | K71: 1.968259007 | L71: 312985.32 | P71: PENTAMASTER CORP BHD | Q71: 7160 | R71: 5.83 | S71: 3185014.68 | T71: 3498000 | U71: 600000 | V71: 3185014.68 | W71: 3498000
A72: TECHNOLOGY Total | B72: 0 | C72: 0 | D72: 2089800 | E72: 0 | G72: 9736285.92 | H72: 0 | J72: 12674088 | K72: 7.131471658 | L72: 2937802.08 | O72: TECHNOLOGY Total | U72: 2089800 | V72: 9736285.92 | W72: 12674088
A73: 0 | B73: 0 | C73: 0 | D73: 0 | E73: 0 | G73: 0 | H73: 0 | J73: 0 | K73: 0 | L73: 0
A74: UTILITIES | B74: PETRONAS GAS BHD | C74: 6033 | D74: 163000 | E74: 2819929.99 | F74: 17.30018399 | G74: 2819929.99 | H74: 2565620 | I74: 15.74 | J74: 2565620 | K74: 1.443626265 | L74: -254309.99 | O74: UTILITIES | P74: PETRONAS GAS BHD | Q74: 6033 | R74: 15.74 | S74: 2819929.99 | T74: 2565620 | U74: 163000 | V74: 2819929.99 | W74: 2565620
A75: 0 | B75: TENAGA NASIONAL BHD | C75: 5347 | D75: 1135525 | E75: 11832170.5 | F75: 10.42 | G75: 11832170.5 | H75: 11309829 | I75: 9.96 | J75: 11309829 | K75: 6.363828701 | L75: -522341.5 | P75: TENAGA NASIONAL BHD | Q75: 5347 | R75: 9.96 | S75: 11832170.5 | T75: 11309829 | U75: 1135525 | V75: 11832170.5 | W75: 11309829
A76: 0 | B76: MEGA FIRST CORP BHD | C76: 3069 | D76: 792590 | E76: 3611204.47 | F76: 4.556207459 | G76: 3611204.47 | H76: 5777981.1 | I76: 7.29 | J76: 5777981.1 | K76: 3.251161619 | L76: 2166776.63 | P76: MEGA FIRST CORP BHD | Q76: 3069 | R76: 7.29 | S76: 3611204.47 | T76: 5777981.1 | U76: 792590 | V76: 3611204.47 | W76: 5777981.1
A77: UTILITIES Total | B77: 0 | C77: 0 | D77: 2091115 | E77: 0 | G77: 18263304.96 | H77: 0 | J77: 19653430.1 | K77: 11.05861658 | L77: 1390125.14 | O77: UTILITIES Total | U77: 2091115 | V77: 18263304.96 | W77: 19653430.1
A78: 0 | B78: 0 | C78: 0 | D78: 0 | E78: 0 | G78: 0 | H78: 0 | J78: 0 | K78: 0 | L78: 0
A79: UNKNOWN | B79: SKP RESOURCES BHD-CW99 | D79: 376000 | E79: 0 | G79: 0 | H79: 0 | J79: 0 | K79: 0 | L79: 0 | O79: UNKNOWN | P79: SKP RESOURCES BHD-CW99 | R79: 0 | S79: 0 | T79: 0 | U79: 376000 | V79: 0 | W79: 0
A80: UNKNOWN Total | B80: 0 | C80: 0 | D80: 376000 | E80: 0 | G80: 0 | H80: 0 | J80: 0 | K80: 0 | L80: 0 | O80: UNKNOWN Total | U80: 376000 | V80: 0 | W80: 0
A81: 0 | B81: 0 | C81: 0 | D81: 0 | E81: 0 | G81: 0 | H81: 0 | J81: 0 | K81: 0 | L81: 0
A82: QUOTED EQUITIES TOTAL | B82: 0 | C82: 0 | D82: 42097017 | E82: 0 | G82: 171031562.6 | H82: 0 | J82: 177720512.8 | K82: 100 | L82: 6688950.16 | O82: Grand Total | U82: 42097017 | V82: 171031562.6 | W82: 177720512.8

Sheet CIS
A1: =IF(O1="Grand Total","COLLECTIVE INVESTMENT SCHEMES TOTAL",O1) -> 0 | B1: =P1 -> 0 | C1: =Q1 -> 0 | D1: =U1 -> 0 | E1: =S1 -> 0 | F1: =IF(LEN(C1)>1,G1/D1,"") ->  | G1: =V1 -> 0 | H1: =T1 -> 0 | I1: =IF(LEN(C1)>1,J1/D1,"") ->  | J1: =W1 -> 0 | K1: =IF(ISERROR((J1/MAX(J:J))*100)=TRUE,"",(J1/MAX(J:J))*100) ->  | L1: =J1-G1 -> 0
A2: =FundName -> PERTUBUHAN KESELAMATAN SOCIAL(SOCSO)
A4: (b) COLLECTIVE INVESTMENT SCHEMES
B6: Counter | C6: Stock Code | D6: Quantity | E6: Historic Cost | H6: Market Value | O6: qProductType | P6: EQT
E7: Cost | F7: Cost Price | G7: Total Cost | H7: Current Value | I7: Closing Price | J7: Current Value | K7: % of Total Fund | L7: Unrealised Profit / (Loss) | O7: qAssetClass | P7: (Multiple Items)
E8: SC | F8: =FundCur -> MYR | G8: =FundCur -> MYR | H8: SC | I8: =FundCur -> MYR | J8: =FundCur -> MYR | L8: =FundCur -> MYR
O9: Row Labels | P9: StockName | Q9: BursaCode | R9: PriceCurr | S9: CostSC | T9: MarketValueSC | U9: Sum of UnitFaceValue | V9: Sum of CostFC | W9: Sum of MarketValueFC
A10: COLLECTIVE INVESTMENT SCHEMES TOTAL | B10: 0 | C10: 0 | D10: 0 | E10: 0 | G10: 0 | H10: 0 | J10: 0 | L10: 0 | O10: Grand Total

Sheet BND
A1: =IF(R1="Grand Total",IF(BNDSUKUK=1,"UNQUOTED SUKUK TOTAL","UNQUOTED BOND TOTAL"),R1) -> 0 | B1: =S1 -> 0 | C1: =T1 -> 00:00:00 | D1: =AA1 -> 0 | E1: =U1 -> 00:00:00 | F1: =V1 -> 00:00:00 | G1: =W1 -> 0 | H1: =X1 -> 0 | I1: =Y1 -> 0 | J1: =IF(D1=0,0,K1/D1) -> 0 | K1: =AB1 -> 0 | L1: =Z1-AD1-AE1 -> 0 | M1: =IF(D1=0,0,N1/D1) -> 0 | N1: =AC1-AD1-AE1 -> 0 | O1: =AF1 -> 0
A2: =FundName -> PERTUBUHAN KESELAMATAN SOCIAL(SOCSO)
A4: ="UNQUOTED " & UPPER(BNDSUKUK) -> UNQUOTED BOND
B6: Issuer | C6: Code | D6: Nominal Value | E6: Issue Date | F6: Maturity Date | G6: Coupon | H6: PurchaseYTM | I6: ValueYTM | J6: Purchase Price | K6: Principal Cost | L6: Book Value | M6: Market Price | N6: Market Value | O6: UnRealised Profit /(Loss)
J7: =FundCur -> MYR | K7: MYR | L7: MYR | M7: MYR | N7: MYR | O7: MYR | R7: qProductType | S7: BND
R9: Row Labels | S9: StockName | T9: LocalStockCode | U9: IssueDate | V9: MaturityDateBND | W9: Coupon | X9: PurchaseYTM | Y9: ValueYTM | Z9: Sum of BookValue | AA9: Sum of UnitFaceValue | AB9: Sum of CostFC | AC9: Sum of MarketValueFC | AD9: Sum of AccruedInterestFC | AE9: Sum of LastMarketValue | AF9: Sum of UnGnl
A10: UNQUOTED BOND TOTAL | B10: 0 | C10: 00:00:00 | D10: 0 | E10: 00:00:00 | F10: 00:00:00 | G10: 0 | H10: 0 | I10: 0 | J10: 0 | K10: 0 | L10: 0 | M10: 0 | N10: 0 | O10: 0 | R10: Grand Total | AF10: 0

Sheet CSH&Deposit
A2: =UPPER(CompanyName) -> NOMURA ASSET MANAGEMENT MALAYSIA SDN BHD
A3: DEPOSITS WITH FINANCIAL INSTITUTIONS
B5: =ValueDate -> 2021-04-30 | C5: =LstValueDt -> 2020-04-30 | D5: Reference | F5: =ValueDate -> 2021-04-30 | G5: =LstValueDt -> 2020-04-30
B6: =FundCur -> MYR | C6: =FundCur -> MYR | D6: Asset | E6: ShortGL
A8: A licensed banks related to the Manager | B8: =F8 -> 6800000 | C8: =G8 -> 0 | D8: 2** | E8: 10000* | F8: =SUM(SUMIFS(InTB!M:M,InTB!B:B,ValueDate,InTB!F:F,D8,InTB!G:G,E8)) -> 6800000 | G8: =SUM(SUMIFS(InTB!M:M,InTB!B:B,LstValueDt,InTB!F:F,D8,InTB!G:G,E8)) -> 0
A9: Other licensed banks | B9: =F9 -> 0 | C9: =G9 -> 0 | D9: *** | F9: =SUM(SUMIFS(InTB!M:M,InTB!B:B,ValueDate,InTB!F:F,D9,InTB!G:G,E9)) -> 0 | G9: =SUM(SUMIFS(InTB!M:M,InTB!B:B,LstValueDt,InTB!F:F,D9,InTB!G:G,E9)) -> 0
B10: =SUM(B8:B9) -> 6800000 | C10: =SUM(C8:C9) -> 0
A12: TAX RECOVERABLE
B13: =ValueDate -> 2021-04-30 | C13: =LstValueDt -> 2020-04-30
B14: =FundCur -> MYR | C14: =FundCur -> MYR
A15: At beginning of interim period | B15: =F15 -> 0 | C15: 0 | D15: *** | E15: 299999 | F15: =SUM(SUMIFS(InTB!M:M,InTB!B:B,StartDate-1,InTB!F:F,D15,InTB!G:G,E15)) -> 0 | G15: =SUM(SUMIFS(InTB!M:M,InTB!B:B,LstStartDt-1,InTB!F:F,D15,InTB!G:G,E15)) -> 0
A16: Arising during the interim period | B16: 0 | C16: 0 | D16: *** | E16: 299999 | F16: =SUM(SUMIFS(InTB!I:I,InTB!B:B,ValueDate,InTB!F:F,D16,InTB!G:G,E16))-SUM(SUMIFS(InTB!I:I,InTB!B:B,StartDate-1,InTB!F:F,D16,InTB!G:G,E16)) -> 0 | G16: =SUM(SUMIFS(InTB!I:I,InTB!B:B,LstValueDt,InTB!F:F,D16,InTB!G:G,E16))-SUM(SUMIFS(InTB!I:I,InTB!B:B,LstStartDt-1,InTB!F:F,D16,InTB!G:G,E16)) -> 0
A17: Utilised during the interim period | B17: 0 | C17: 0 | D17: *** | E17: 299999 | F17: =SUM(SUMIFS(InTB!H:H,InTB!B:B,ValueDate,InTB!F:F,D17,InTB!G:G,E17))-SUM(SUMIFS(InTB!I:I,InTB!B:B,StartDate-1,InTB!F:F,D17,InTB!G:G,E17)) -> 0 | G17: =SUM(SUMIFS(InTB!H:H,InTB!B:B,LstValueDt,InTB!F:F,D16,InTB!G:G,E16))-SUM(SUMIFS(InTB!H:H,InTB!B:B,LstStartDt-1,InTB!F:F,D16,InTB!G:G,E16)) -> 0
A18: At end of interim period | B18: =SUM(B15:B17) -> 0 | C18: =SUM(C15:C17) -> 0 | D18: *** | E18: 299999 | F18: =SUM(SUMIFS(InTB!M:M,InTB!B:B,ValueDate,InTB!F:F,D18,InTB!G:G,E18)) -> 0 | G18: =SUM(SUMIFS(InTB!M:M,InTB!B:B,LstValueDt,InTB!F:F,D18,InTB!G:G,E18)) -> 0
A21: CASH AT BANKS
B23: =ValueDate -> 2021-04-30 | C23: =LstValueDt -> 2020-04-30
B24: =FundCur -> MYR | C24: =FundCur -> MYR
A26: A licensed banks related to the Manager | B26: =F26 -> 57367.75 | C26: =G26 -> 0 | D26: *** | E26: 500000 | F26: =SUM(SUMIFS(InTB!M:M,InTB!B:B,ValueDate,InTB!F:F,D26,InTB!G:G,E26)) -> 57367.75 | G26: =SUM(SUMIFS(InTB!M:M,InTB!B:B,LstValueDt,InTB!F:F,D26,InTB!G:G,E26)) -> 0
A27: A licensed banks | B27: =F27-F26 -> 0 | C27: =G27-G26 -> 0 | D27: *** | E27: 50000* | F27: =SUM(SUMIFS(InTB!M:M,InTB!B:B,ValueDate,InTB!F:F,D27,InTB!G:G,E27)) -> 57367.75 | G27: =SUM(SUMIFS(InTB!M:M,InTB!B:B,LstValueDt,InTB!F:F,D27,InTB!G:G,E27)) -> 0
B28: =SUM(B26:B27) -> 57367.75 | C28: =SUM(C26:C27) -> 0

Sheet TotalEQT
A2: =UPPER(CompanyName) -> NOMURA ASSET MANAGEMENT MALAYSIA SDN BHD
A3: TOTAL EQUITY
D5: =ValueDate -> 2021-04-30 | E5: =LstValueDt -> 2020-04-30
C6: Note | D6: =FundCur -> MYR | E6: =FundCur -> MYR
A7: NAV attributable to unitholders is represented by:
A8: Unitholders' capital | D8: =BS!C95 -> 68376649.21 | E8: =BS!D95 -> 0
A9: Distribution equalisation | D9: =BS!C96 -> -4795307.18 | E9: =BS!D96 -> 0
A10: Retained earnings | D10: =SUM(D11:D12) -> 121101833.3 | E10: =SUM(E11:E12) -> 0
A11: -Unrealised reserve | D11: =BS!C98+BS!C99 -> 7725218.59 | E11: =BS!D98+BS!D99 -> 0
A12: -Undistributed income | D12: =BS!C100+BS!C101 -> 113376614.7 | E12: =BS!D100+BS!D101 -> 0
A13: Total equity | D13: =D8+D9+D11+D12 -> 184683175.3 | E13: =E8+E9+E11+E12 -> 0
A15: Unitholders' capital
B16: =ValueDate -> 44316 | D16: =LstValueDt -> 43951
B17: Units | C17: =FundCur -> MYR | D17: Units | E17: =FundCur -> MYR
A18: In circulation
A19: At beginning of the financial period/year | B19: =InPricing!C2 -> 0 | C19: =-SUMIFS(InTB!M:M,InTB!G:G,"800000",InTB!B:B,StartDate-1) -> 71703535.73 | D19: =InPricing!E2 -> 0 | E19: =-SUMIFS(InTB!M:M,InTB!G:G,"800000",InTB!B:B,LstStartDt-1) -> 0
A20: Creation of units | B20: =SUMIFS(InTrn!Q:Q,InTrn!C:C,"CR",InTrn!A:A,"Cur") -> 0 | C20: =-SUMIFS(InTrn!AD:AD,InTrn!C:C,"CR",InTrn!A:A,"Cur") -> 0 | D20: =SUMIFS(InTrn!Q:Q,InTrn!C:C,"CR",InTrn!A:A,"Lst") -> 0 | E20: =-SUMIFS(InTrn!AD:AD,InTrn!C:C,"CR",InTrn!A:A,"Lst") -> 0
A21: Cancellation of units | B21: =SUMIFS(InTrn!Q:Q,InTrn!C:C,"CN",InTrn!A:A,"Cur") -> -3326886.52 | C21: =-SUMIFS(InTrn!AD:AD,InTrn!C:C,"CN",InTrn!A:A,"Cur") -> -3326886.52 | D21: =SUMIFS(InTrn!Q:Q,InTrn!C:C,"CN",InTrn!A:A,"Lst") -> 0 | E21: =-SUMIFS(InTrn!AD:AD,InTrn!C:C,"CN",InTrn!A:A,"Lst") -> 0
A22: Distribution equalisation | B22: =B23-B21-B20-B19 -> 3326886.52 | C22: =C23-C19-C20-C21 -> -1.071020961e-08 | D22: =D23-D19-D20-D21 -> 0 | E22: =E23-E19-E20-E21 -> 0
A23: At end of the financial period/year | B23: =InPricing!B2 -> 0 | C23: =-SUMIFS(InTB!M:M,InTB!G:G,"800000",InTB!B:B,ValueDate) -> 68376649.21 | D23: =InPricing!D2 -> 0 | E23: 0

Sheet Transaction
A1: =G1 -> 00:00:00 | B1: =ABS(H1) -> 0 | C1: =ABS(J1) -> 0 | D1: =I1 -> 0 | E1: =K1 -> 0
A2: =UPPER(CompanyName) -> NOMURA ASSET MANAGEMENT MALAYSIA SDN BHD
A3: TRANSACTIONS WITH STOCKBROKING COMPANIES
G4: sPeriod | H4: Cur
B5: Value of Trade | D5: Net brokerage commision and fees | G5: qTrnCode | H5: (Multiple Items)
B6: =FundCur -> MYR | C6: % | D6: =FundCur -> MYR | E6: %
G7: Row Labels | H7: Sum of FCGrossProceed | I7: Sum of Fee | J7: Sum of FCGrossProceed2 | K7: Sum of Fee2
A8: CIMB-GK | B8: 267044.49 | C8: 0.3192454157 | D8: 704.72 | E8: 0.03614132205 | G8: CIMB-GK | H8: -267044.49 | I8: 704.72 | J8: 0.3192454157 | K8: 0.03614132205
A9: CITIGROUP GLOBAL MARKETS | B9: 798359.63 | C9: 0.9544201865 | D9: 2889.47 | E9: 0.148185472 | G9: CITIGROUP GLOBAL MARKETS | H9: -798359.63 | I9: 2889.47 | J9: 0.9544201865 | K9: 0.148185472
A10: CLSA | B10: 2687886.5 | C10: 3.21330518 | D10: 6804.33 | E10: 0.3489577163 | G10: CLSA | H10: -2687886.5 | I10: 6804.33 | J10: 3.21330518 | K10: 0.3489577163
A11: COLLINS STEWART | B11: 105881.82 | C11: 0.126579229 | D11: 306.12 | E11: 0.01569925858 | G11: COLLINS STEWART | H11: 105881.82 | I11: 306.12 | J11: -0.126579229 | K11: 0.01569925858
A12: KAF EQUITIES SDN BHD | B12: 487845.92 | C12: 0.5832083393 | D12: 1322.04 | E12: 0.06780036525 | G12: KAF EQUITIES SDN BHD | H12: 487845.92 | I12: 1322.04 | J12: -0.5832083393 | K12: 0.06780036525
A13: MACQUARIE SECURITIES | B13: 663837.54 | C13: 0.7936021875 | D13: 3095.32 | E13: 0.1587424182 | G13: MACQUARIE SECURITIES | H13: 663837.54 | I13: 3095.32 | J13: -0.7936021875 | K13: 0.1587424182
A14: NOMURA SECURITIES | B14: 803167.09 | C14: 0.9601673921 | D14: 1979.99 | E14: 0.101543104 | G14: NOMURA SECURITIES | H14: 803167.09 | I14: 1979.99 | J14: -0.9601673921 | K14: 0.101543104
A15: RHB INVESTMENT BANK BERHAD | B15: 553325.72 | C15: 0.6614879023 | D15: 1520.81 | E15: 0.07799421612 | G15: RHB INVESTMENT BANK BERHAD | H15: 553325.72 | I15: 1520.81 | J15: -0.6614879023 | K15: 0.07799421612
A16: UBS SECURITIES | B16: 302746 | C16: 0.3619257324 | D16: 876.21 | E16: 0.04493612753 | G16: UBS SECURITIES | H16: 302746 | I16: 876.21 | J16: -0.3619257324 | K16: 0.04493612753
A17: Grand Total | B17: 836486.53 | C17: 1 | D17: 19499.01 | E17: 1 | G17: Grand Total | H17: -836486.53 | I17: 19499.01 | J17: 1 | K17: 1

Sheet Segment
A2: =UPPER(CompanyName) -> NOMURA ASSET MANAGEMENT MALAYSIA SDN BHD
A3: SEGMENT INFORMATION
B5: Quoted Shariah-compliant equity securities and Shariah-based collective investment scheme | C5: ="Unquoted " & BNDSUKUK -> Unquoted bond | D5: Deposits | E5: Total
B6: =FundCur -> MYR | C6: =FundCur -> MYR | D6: =FundCur -> MYR | E6: =FundCur -> MYR
A7: =TEXT(StartDate,"dd.mm.yyyy") & " - " & TEXT(ValueDate,"dd.mm.yyyy") -> 01.04.2021 - 30.04.2021
A8: Profit from bank balances and deposits | D8: =PL!C11+PL!C12 -> 10466.51 | E8: =SUM(B8:D8) -> 10466.51
A9: ="Profit from unquoted " & BNDSUKUK -> Profit from unquoted bond | C9: =PL!C14 -> 0 | E9: =SUM(B9:D9) -> 0
A10: Gross dividend income | B10: =PL!C15 -> 263037.25 | E10: 263037.25
A11: Amortisation of premium, net of accretion of discount | C11: =PL!C20 -> 0 | E11: 0
A12: Net gain/(loss) on financial instruments at FVTPL | B12: =-(SUM(SUMIFS(InTB!M:M,InTB!B:B,ValueDate,InTB!F:F,"0*",InTB!G:G,"600*"))-SUM(SUMIFS(InTB!M:M,InTB!B:B,StartDate-1,InTB!F:F,"0*",InTB!G:G,"600*"))) -> 839234.74 | C12: =-(SUM(SUMIFS(InTB!M:M,InTB!B:B,ValueDate,InTB!F:F,"1*",InTB!G:G,"600*"))-SUM(SUMIFS(InTB!M:M,InTB!B:B,StartDate-1,InTB!F:F,"1*",InTB!G:G,"600*"))) -> 0 | D12: =-(SUM(SUMIFS(InTB!M:M,InTB!B:B,ValueDate,InTB!F:F,"2*",InTB!G:G,"600*"))-SUM(SUMIFS(InTB!M:M,InTB!B:B,StartDate-1,InTB!F:F,"2*",InTB!G:G,"600*"))) -> 0 | E12: 839234.74
A13: Net gain/(loss) on foreign exchange - Realised | B13: =PL!C27 -> 0 | E13: 0
A14: Net gain/ (loss) on investment -UnRealised | B14: =PL!C28 -> -1565184.48 | E14: -1565184.48
A15: Net gain/ (loss) on foreign exchange - UnRealised | B15: =PL!C29 -> 0 | E15: 0
A16: Other Income | B16: =PL!C31+PL!C30 -> 0 | E16: 0
A17: Total segment operating income for the period | B17: =SUM(B8:B16) -> -462912.49 | C17: =SUM(C8:C16) -> 0 | D17: =SUM(D8:D16) -> 10466.51 | E17: =SUM(E8:E16) -> -452445.98
A19: =TEXT(ValueDate,"dd.mm.yyyy") -> 30.04.2021
A20: Quoted Investments | B20: =BS!C22+BS!C30+BS!C46+BS!C36 -> 177720512.8 | C20: =BS!C10+BS!C15 -> 0 | D20: =BS!C42 -> 6800000 | E20: =B20+C20+D20 -> 184520512.8
A21: Other assets | B21: =BS!C53+BS!C51+BS!C56+BS!C62 -> 165558 | C21: =BS!C60 -> 0 | D21: =BS!C58 -> 326.03 | E21: =B21+C21+D21 -> 165884.03
A22: Total segment assets | B22: =B20+B21 -> 177886070.8 | C22: =C20+C21 -> 0 | D22: =D20+D21 -> 6800326.03 | E22: =B22+C22+D22 -> 184686396.8
A23: Total segment liabilities | B23: =BS!C76+BS!C79 -> 30294.62 | E23: =B23 -> 30294.62
A25: =TEXT(LstStartDt,"dd.mm.yyyy") & " - " & TEXT(LstValueDt,"dd.mm.yyyy") -> 01.04.2020 - 30.04.2020
A26: Profit from bank balances and deposits | D26: =PL!D11+PL!D12 -> 0 | E26: =SUM(B26:D26) -> 0
A27: ="Profit from unquoted " & BNDSUKUK -> Profit from unquoted bond | C27: =PL!D14 -> 0 | E27: =SUM(B27:D27) -> 0
A28: Gross dividend income | B28: =PL!D15 -> 0 | E28: 0
A29: Amortisation of premium, net of accretion of discount | C29: =PL!D20 -> 0 | E29: 0
A30: Net gain/(loss) on financial instruments at FVTPL | B30: =-(SUM(SUMIFS(InTB!M:M,InTB!B:B,LstValueDt,InTB!F:F,"0*",InTB!G:G,"600*"))-SUM(SUMIFS(InTB!M:M,InTB!B:B,lstStartDate-1,InTB!F:F,"0*",InTB!G:G,"600*"))) -> 0 | C30: =-(SUM(SUMIFS(InTB!M:M,InTB!B:B,LstValueDt,InTB!F:F,"1*",InTB!G:G,"600*"))-SUM(SUMIFS(InTB!M:M,InTB!B:B,lstStartDate-1,InTB!F:F,"1*",InTB!G:G,"600*"))) -> 0 | D30: =-(SUM(SUMIFS(InTB!M:M,InTB!B:B,LstValueDt,InTB!F:F,"2*",InTB!G:G,"600*"))-SUM(SUMIFS(InTB!M:M,InTB!B:B,lstStartDate-1,InTB!F:F,"2*",InTB!G:G,"600*"))) -> 0 | E30: 0
A31: Net gain/(loss) on foreign exchange - Realised | B31: =PL!D27 -> 0 | E31: 0
A32: Net gain/ (loss) on investment -UnRealised | B32: =PL!D28 -> 0 | E32: 0
A33: Net gain/ (loss) on foreign exchange - UnRealised | B33: =PL!D29 -> 0 | E33: 0
A34: Other Income | B34: =PL!D30+PL!D31 -> 0 | E34: 0
A35: Total segment operating income for the period | B35: =SUM(B26:B34) -> 0 | C35: =SUM(C26:C34) -> 0 | D35: =SUM(D26:D34) -> 0 | E35: =SUM(E26:E34) -> 0
A37: =TEXT(LstValueDt,"dd.mm.yyyy") -> 30.04.2020
A38: Quoted Investments | B38: =BS!D22+BS!D30+BS!D46+BS!D36 -> 0 | C38: =BS!D10+BS!D15 -> 0 | D38: =BS!D42 -> 0 | E38: =B38+C38+D38 -> 0
A39: Other assets | B39: =BS!D53+BS!D51+BS!D56+BS!D62 -> 0 | C39: =BS!D60 -> 0 | D39: =BS!D58 -> 0 | E39: =B39+C39+D39 -> 0
A40: Total segment assets | B40: =B38+B39 -> 0 | C40: =C38+C39 -> 0 | D40: =D38+D39 -> 0 | E40: =E38+E39 -> 0
A41: Total segment liabilities | B41: =BS!D76+BS!D79 -> 0 | E41: =B41 -> 0

Sheet Segment2
A1: =UPPER(CompanyName) -> NOMURA ASSET MANAGEMENT MALAYSIA SDN BHD
A2: SEGMENT INFORMATION (continued)
D4: =TEXT(StartDate,"dd.mm.yyyy") & " to " & TEXT(ValueDate,"dd.mm.yyyy") -> 01.04.2021 to 30.04.2021 | E4: =TEXT(LstStartDt,"dd.mm.yyyy") & " to " & TEXT(LstValueDt,"dd.mm.yyyy") -> 01.04.2020 to 30.04.2020
D5: =FundCur -> MYR | E5: =FundCur -> MYR
A6: Net reportable segment operating income | D6: =PL!C32 -> -452445.98 | E6: =PL!D32 -> 0
A7: Expenses | D7: =-PL!C75 -> 0 | E7: =-PL!D75 -> 0
A8: Net income before taxation | D8: =D6+D7 -> -452445.98 | E8: =E6+E7 -> 0
A9: Taxation | D9: =PL!C78+PL!C79+PL!C80+PL!C85 -> 0 | E9: =PL!D78+PL!D79+PL!D80+PL!D85 -> 0
A10: Net income after taxation | D10: =D8+D9 -> -452445.98 | E10: =E8+E9 -> 0
D13: =TEXT(ValueDate,"dd.mm.yyyy") -> 30.04.2021 | E13: =TEXT(LstValueDt,"dd.mm.yyyy") -> 30.04.2020
D14: =FundCur -> MYR | E14: =FundCur -> MYR
A15: Total Segment assets | D15: =Segment!E22 -> 184686396.8 | E15: =Segment!E40 -> 0
A16: Prepayment-Advanced Shariah Advisory Fee | D16: =BS!C66+BS!C57+BS!C65 -> 0 | E16: =BS!D66+BS!D57+BS!D65 -> 0
A17: Cash at banks | D17: =BS!C67 -> 57367.75 | E17: =BS!D67 -> 0
A18: Total assets of the Fund | D18: =SUM(D15:D17) -> 184743764.6 | E18: =SUM(E15:E17) -> 0
A20: Total segment liabilities | D20: =Segment!B23 -> 30294.62 | E20: =Segment!E41 -> 0
A21: Amount due to the Manager, net | D21: =BS!C72 -> 0 | E21: =BS!D72 -> 0
A22: Amount due to the Trustee | D22: =BS!C75 -> 0 | E22: =BS!D75 -> 0
A23: Tax Payable | D23: =BS!C80 -> 0 | E23: =BS!D80 -> 0
A24: Other payables and accruals | D24: =BS!C81 -> 0 | E24: =BS!D81 -> 0
A25: Total liabilities of the Fund | D25: =SUM(D20:D24) -> 30294.62 | E25: =SUM(E20:E24) -> 0

Sheet FinancialInst
A2: =UPPER(CompanyName) -> NOMURA ASSET MANAGEMENT MALAYSIA SDN BHD
A3: FINANCIAL INSTRUMENTS
A4: (a) Classification of financial instruments
B5: Financial assets at FVTPL | C5: Other receivables | D5: Financial liabilities at amortised cost | E5: Total
B6: =FundCur -> MYR | C6: =FundCur -> MYR | D6: =FundCur -> MYR | E6: =FundCur -> MYR
A7: Assets
A8: Quoted investments | B8: =BS!C48-BS!C42 -> 177720512.8 | E8: =B8+C8+D8 -> 177720512.8
A9: Deposits with financial institutions in Malaysia | B9: =BS!C42 -> 6800000 | E9: =B9+C9+D9 -> 6800000
A10: Amount due from Manager | C10: =BS!C72 -> 0 | E10: 0
A11: Amount due from StockBrokers | C11: =BS!C76 -> 30294.62 | E11: 30294.62
A12: Amount due from Other Investment | C12: =BS!C56 -> 0 | E12: 0
A13: Interest receivable | C13: =BS!C58+BS!C60 -> 326.03 | E13: 326.03
A14: Dividend receivable | C14: =BS!C62 -> 165558 | E14: 165558
A15: Tax recoverable | C15: =BS!C65 -> 0 | E15: 0
A16: Rebates receivable | C16: =BS!C57 -> 0 | E16: 0
A17: Other receivable | C17: =BS!C66 -> 0 | E17: 0
A18: Cash at banks | C18: =BS!C67 -> 57367.75 | E18: 57367.75
A19: Total financial assets | B19: =SUM(B8:B18) -> 184520512.8 | C19: =SUM(C8:C18) -> 253546.4 | D19: 0 | E19: 184774059.2
A21: Liabilities
A22: Other payables and accruals | D22: =BS!C81 -> 0 | E22: =B22+C22+D22 -> 0
A23: Amount due to Manager | D23: =BS!C72 -> 0 | E23: =B23+C23+D23 -> 0
A24: Amount due to the Stockbrokers | D24: =BS!C76 -> 30294.62 | E24: 30294.62
A25: Amount due to Trustee | D25: =BS!C75 -> 0 | E25: 0
A26: Amount due to Other Investment | D26: =BS!C79 -> 0 | E26: 0
A27: Provision for taxation | D27: =BS!C80 -> 0 | E27: 0
A28: Total financial liabilities | B28: =SUM(B22:B27) -> 0 | C28: =SUM(C22:C27) -> 0 | D28: 30294.62 | E28: 30294.62
C29: Income, expenses,gains and losses
C30: =FundCur -> MYR
A31: Net gains/(loss) from financial assets FVTPL | C31: =PL!C24 -> 839234.74
A32: Income | C32: =PL!C32-PL!C24 -> -1291680.72
A33: Expenses | C33: =PL!C75 -> 0
